Workbook

Sheet Start
E3: Sege å - vattenkontroll 2021
B6: Foto: ??
C7: Resultat sorterat per månad | E7: Resultat sorterat per provpunkt | H7: Diagram och statistik
C9: Resultat veckoprov
C11: Månadsrapport | E11: Kommentarer | H11: Vattenföring
C13: Länkar | E13: Kontakt | H13: Användarguide
C15: På uppdrag av Segeåns Vattendragsförbund och Vattenråd

Sheet Resultat
B1: Sege å 2021 Resultat
D2: Peka på röda trianglar (►) för förklaring av parametrar
A3: Sorterings- | B3: Provtagningspunkt | C3: Provtagn | D3: Vattenf | E3: Temp | F3: Syreh | G3: Syrem | H3: pH | I3: Gruml | J3: Kond | K3: BOD7 | L3: TOC | M3: Tot-P | N3: NO3+2-N | O3: NH4-N | P3: Tot-N | Q3: Klor a | R3: Siktdj VK | S3: Siktdj | T3: Tid | U3: Anmärkning
A4: ordning | B4: Nr Läge | C4: datum | D4: m3/s | E4: °C | F4: mg/l | G4: % | I4: FNU | J4: mS/m | K4: mg/l | L4: mg/l | M4: µg/l | N4: µg/l | O4: µg/l | P4: µg/l | Q4: mg/m3 | R4: m | S4: m
A5: 250 | B5: februari
A6: 3 | B6: 1 Sege å, vid Brännemölla, uppströms Svedala AR | C6: 2021-02-15 | E6: 0.4 | F6: 14 | G6: 97 | H6: 7.78 | I6: 12 | J6: 50.4 | K6: 4.9 | L6: 22 | M6: 65 | N6: 1800 | O6: 250 | P6: 3600 | Q6: =IF(Rapport!Q10="","",Rapport!Q10) ->  | R6: =IF(Rapport!R10="","",Rapport!R10) ->  | S6: =IF(Rapport!S10="","",Rapport!S10) ->  | T6: =IF(Rapport!T10="","",Rapport!T10) -> 1545 | U6: =IF(Rapport!U10="","",Rapport!U10) -> is i kanten
A7: 5 | B7: 2 Sege å, söder Krågeholm, nedströms Svedala AR | C7: 2021-02-15 | D7: 0.49 | E7: 1.2 | F7: 13.5 | G7: 95 | H7: 7.8 | I7: 15 | J7: 54.2 | K7: 5 | L7: 19 | M7: 86 | N7: 2900 | O7: 300 | P7: 4100 | Q7: =IF(Rapport!Q11="","",Rapport!Q11) ->  | R7: =IF(Rapport!R11="","",Rapport!R11) ->  | S7: =IF(Rapport!S11="","",Rapport!S11) ->  | T7: =IF(Rapport!T11="","",Rapport!T11) -> 1600 | U7: =IF(Rapport!U11="","",Rapport!U11) -> is i kanten
A8: 7 | B8: 9 Sege å, vid Lilla Mölleberga | C8: 2021-02-15 | E8: 0 | F8: 14 | G8: 96 | H8: 7.92 | I8: 11 | J8: 68.3 | L8: 16 | M8: 83 | N8: 3300 | O8: 300 | P8: 3900 | Q8: =IF(Rapport!Q12="","",Rapport!Q12) ->  | R8: =IF(Rapport!R12="","",Rapport!R12) ->  | S8: =IF(Rapport!S12="","",Rapport!S12) ->  | T8: =IF(Rapport!T12="","",Rapport!T12) -> 1445 | U8: =IF(Rapport!U12="","",Rapport!U12) -> istäckt
A9: 9 | B9: 18 Sege å, nordväst Valdemarsro, järnvägsbron | C9: 2021-02-15 | E9: 0.1 | F9: 13.5 | G9: 92 | H9: 7.89 | I9: 14 | J9: 78.2 | L9: 14 | M9: 99 | N9: 4300 | O9: 240 | P9: 4800 | Q9: =IF(Rapport!Q13="","",Rapport!Q13) ->  | R9: =IF(Rapport!R13="","",Rapport!R13) ->  | S9: =IF(Rapport!S13="","",Rapport!S13) ->  | T9: =IF(Rapport!T13="","",Rapport!T13) -> 1400 | U9: =IF(Rapport!U13="","",Rapport!U13) -> is i kanten
A10: 11 | B10: 21 Spångholmsbäcken, vid utlopp till Sege å | C10: 2021-02-15 | E10: 0 | F10: 13.5 | G10: 92 | H10: 7.9 | I10: 11 | J10: 68.7 | L10: 16 | M10: 72 | N10: 1500 | O10: 640 | P10: 3100 | Q10: =IF(Rapport!Q14="","",Rapport!Q14) ->  | R10: =IF(Rapport!R14="","",Rapport!R14) ->  | S10: =IF(Rapport!S14="","",Rapport!S14) ->  | T10: =IF(Rapport!T14="","",Rapport!T14) -> 1500 | U10: =IF(Rapport!U14="","",Rapport!U14) -> istäckt
A11: 13 | B11: 22b Spångholmsbäcken, bron vid Torupsvägen | C11: 2021-02-15 | E11: 0.1 | F11: 13.8 | G11: 95 | H11: 7.91 | I11: 6.6 | J11: 62.9 | L11: 18 | M11: 55 | N11: 1400 | O11: 910 | P11: 3000 | Q11: =IF(Rapport!Q15="","",Rapport!Q15) ->  | R11: =IF(Rapport!R15="","",Rapport!R15) ->  | S11: =IF(Rapport!S15="","",Rapport!S15) ->  | T11: =IF(Rapport!T15="","",Rapport!T15) -> 1510 | U11: =IF(Rapport!U15="","",Rapport!U15) -> is i kanten
A12: 15 | B12: 23 Spångholmsbäcken, uppströms Torupsdammen | C12: 2021-02-15 | E12: 0 | F12: 14.3 | G12: 98 | H12: 8.01 | I12: 10 | J12: 59 | L12: 18 | M12: 62 | N12: 760 | O12: 980 | P12: 3000 | Q12: =IF(Rapport!Q16="","",Rapport!Q16) ->  | R12: =IF(Rapport!R16="","",Rapport!R16) ->  | S12: =IF(Rapport!S16="","",Rapport!S16) ->  | T12: =IF(Rapport!T16="","",Rapport!T16) -> 1520 | U12: =IF(Rapport!U16="","",Rapport!U16) -> istäckt
A13: 17 | B13: 10 Torrebergabäcken, vägbron nordost Mölleberga | C13: 2021-02-15 | E13: 0 | F13: 11.5 | G13: 79 | H13: 7.67 | I13: 9.6 | J13: 78.9 | L13: 12 | M13: 140 | N13: 6900 | O13: 210 | P13: 6700 | Q13: =IF(Rapport!Q17="","",Rapport!Q17) ->  | R13: =IF(Rapport!R17="","",Rapport!R17) ->  | S13: =IF(Rapport!S17="","",Rapport!S17) ->  | T13: =IF(Rapport!T17="","",Rapport!T17) -> 1430 | U13: =IF(Rapport!U17="","",Rapport!U17) -> istäckt
A14: 18 | B14: 15 Risebergabäcken, ca 250 m uppströms från Sege å | C14: 2021-02-15 | E14: 0.9 | F14: 14.5 | G14: 102 | H14: 8.24 | I14: 2.6 | J14: 115 | L14: 5.2 | M14: 31 | N14: 1600 | O14: 37 | P14: 3600 | Q14: =IF(Rapport!Q18="","",Rapport!Q18) ->  | R14: =IF(Rapport!R18="","",Rapport!R18) ->  | S14: =IF(Rapport!S18="","",Rapport!S18) ->  | T14: =IF(Rapport!T18="","",Rapport!T18) -> 1410 | U14: =IF(Rapport!U18="","",Rapport!U18) -> 
A15: 30 | B15: A1 Alnarpsån, mynningen | C15: 2021-02-15 | E15: 0.1 | F15: 13.3 | G15: 91 | H15: 7.92 | I15: 18 | J15: 113 | L15: 5.6 | M15: 63 | N15: 5700 | O15: 160 | P15: 5800 | Q15: =IF(Rapport!Q19="","",Rapport!Q19) ->  | R15: =IF(Rapport!R19="","",Rapport!R19) ->  | S15: =IF(Rapport!S19="","",Rapport!S19) ->  | T15: =IF(Rapport!T19="","",Rapport!T19) -> 1315 | U15: =IF(Rapport!U19="","",Rapport!U19) -> istäckt
A16: 32 | B16: A4 Alnarpsån, Coyetgården | C16: 2021-02-15 | E16: 0.1 | F16: 18.5 | G16: 127 | H16: 8.36 | I16: 8 | J16: 88.1 | L16: 3.4 | M16: 130 | N16: 6100 | O16: 300 | P16: 6300 | Q16: =IF(Rapport!Q20="","",Rapport!Q20) ->  | R16: =IF(Rapport!R20="","",Rapport!R20) ->  | S16: =IF(Rapport!S20="","",Rapport!S20) ->  | T16: =IF(Rapport!T20="","",Rapport!T20) -> 1330 | U16: =IF(Rapport!U20="","",Rapport!U20) -> istäckt
A17: 200
A18: 250 | B18: april
A19: 3 | B19: 1 Sege å, vid Brännemölla, uppströms Svedala AR | C19: 2021-04-19 | E19: 9.8 | F19: 11.2 | G19: 99 | H19: 7.81 | I19: 11 | J19: 47.7 | K19: 6.3 | L19: 22 | M19: 66 | N19: 1300 | O19: <10 | P19: 2900 | Q19: =IF(Rapport!Q23="","",Rapport!Q23) ->  | R19: =IF(Rapport!R23="","",Rapport!R23) ->  | S19: =IF(Rapport!S23="","",Rapport!S23) ->  | T19: =IF(Rapport!T23="","",Rapport!T23) -> 1050 | U19: =IF(Rapport!U23="","",Rapport!U23) -> grumligt
A20: 5 | B20: 2 Sege å, söder Krågeholm, nedströms Svedala AR | C20: 2021-04-19 | D20: 0.41 | E20: 9.5 | F20: 12 | G20: 105 | H20: 7.89 | I20: 11 | J20: 56.8 | K20: 6.1 | L20: 18 | M20: 69 | N20: 2100 | O20: 68 | P20: 3400 | Q20: =IF(Rapport!Q24="","",Rapport!Q24) ->  | R20: =IF(Rapport!R24="","",Rapport!R24) ->  | S20: =IF(Rapport!S24="","",Rapport!S24) ->  | T20: =IF(Rapport!T24="","",Rapport!T24) -> 1030 | U20: =IF(Rapport!U24="","",Rapport!U24) -> grumligt
A21: 7 | B21: 9 Sege å, vid Lilla Mölleberga | C21: 2021-04-19 | E21: 9.5 | F21: 11 | G21: 97 | H21: 8 | I21: 8.2 | J21: 63.8 | L21: 15 | M21: 77 | N21: 2100 | O21: <10 | P21: 2900 | Q21: =IF(Rapport!Q25="","",Rapport!Q25) ->  | R21: =IF(Rapport!R25="","",Rapport!R25) ->  | S21: =IF(Rapport!S25="","",Rapport!S25) ->  | T21: =IF(Rapport!T25="","",Rapport!T25) -> 920 | U21: =IF(Rapport!U25="","",Rapport!U25) -> 
A22: 9 | B22: 18 Sege å, nordväst Valdemarsro, järnvägsbron | C22: 2021-04-19 | E22: 9.5 | F22: 10.4 | G22: 91 | H22: 8 | I22: 6.7 | J22: 70.1 | L22: 13 | M22: 62 | N22: 2400 | O22: 14 | P22: 3200 | Q22: =IF(Rapport!Q26="","",Rapport!Q26) ->  | R22: =IF(Rapport!R26="","",Rapport!R26) ->  | S22: =IF(Rapport!S26="","",Rapport!S26) ->  | T22: =IF(Rapport!T26="","",Rapport!T26) -> 840 | U22: =IF(Rapport!U26="","",Rapport!U26) -> 
A23: 11 | B23: 21 Spångholmsbäcken, vid utlopp till Sege å | C23: 2021-04-19 | E23: 8.6 | F23: 11 | G23: 95 | H23: 7.85 | I23: 7 | J23: 63.9 | L23: 15 | M23: 60 | N23: 1200 | O23: 50 | P23: 2100 | Q23: =IF(Rapport!Q27="","",Rapport!Q27) ->  | R23: =IF(Rapport!R27="","",Rapport!R27) ->  | S23: =IF(Rapport!S27="","",Rapport!S27) ->  | T23: =IF(Rapport!T27="","",Rapport!T27) -> 930 | U23: =IF(Rapport!U27="","",Rapport!U27) -> 
A24: 13 | B24: 22b Spångholmsbäcken, bron vid Torupsvägen | C24: 2021-04-19 | E24: 9.1 | F24: 11.5 | G24: 100 | H24: 7.83 | I24: 4.3 | J24: 58.8 | L24: 18 | M24: 52 | N24: 1200 | O24: 180 | P24: 2300 | Q24: =IF(Rapport!Q28="","",Rapport!Q28) ->  | R24: =IF(Rapport!R28="","",Rapport!R28) ->  | S24: =IF(Rapport!S28="","",Rapport!S28) ->  | T24: =IF(Rapport!T28="","",Rapport!T28) -> 950 | U24: =IF(Rapport!U28="","",Rapport!U28) -> 
A25: 15 | B25: 23 Spångholmsbäcken, uppströms Torupsdammen | C25: 2021-04-19 | E25: 9.4 | F25: 11.1 | G25: 97 | H25: 7.99 | I25: 3.1 | J25: 56.4 | L25: 18 | M25: 53 | N25: 590 | O25: 410 | P25: 2100 | Q25: =IF(Rapport!Q29="","",Rapport!Q29) ->  | R25: =IF(Rapport!R29="","",Rapport!R29) ->  | S25: =IF(Rapport!S29="","",Rapport!S29) ->  | T25: =IF(Rapport!T29="","",Rapport!T29) -> 1010 | U25: =IF(Rapport!U29="","",Rapport!U29) -> 
A26: 17 | B26: 10 Torrebergabäcken, vägbron nordost Mölleberga | C26: 2021-04-19 | E26: 8.9 | F26: 9.8 | G26: 85 | H26: 7.84 | I26: 5.3 | J26: 66 | L26: 14 | M26: 66 | N26: 2900 | O26: 20 | P26: 3600 | Q26: =IF(Rapport!Q30="","",Rapport!Q30) ->  | R26: =IF(Rapport!R30="","",Rapport!R30) ->  | S26: =IF(Rapport!S30="","",Rapport!S30) ->  | T26: =IF(Rapport!T30="","",Rapport!T30) -> 910 | U26: =IF(Rapport!U30="","",Rapport!U30) -> 
A27: 18 | B27: 15 Risebergabäcken, ca 250 m uppströms från Sege å | C27: 2021-04-19 | E27: 9.5 | F27: 12.2 | G27: 107 | H27: 8.06 | I27: 3.2 | J27: 104 | L27: 5.5 | M27: 32 | N27: 2000 | O27: 37 | P27: 2300 | Q27: =IF(Rapport!Q31="","",Rapport!Q31) ->  | R27: =IF(Rapport!R31="","",Rapport!R31) ->  | S27: =IF(Rapport!S31="","",Rapport!S31) ->  | T27: =IF(Rapport!T31="","",Rapport!T31) -> 850 | U27: =IF(Rapport!U31="","",Rapport!U31) -> 
A28: 30 | B28: A1 Alnarpsån, mynningen | C28: 2021-04-19 | E28: 6.6 | F28: 18.5 | G28: 151 | H28: 7.73 | I28: 5.4 | J28: 100 | L28: 6 | M28: 52 | N28: 3400 | O28: 26 | P28: 3900 | Q28: =IF(Rapport!Q32="","",Rapport!Q32) ->  | R28: =IF(Rapport!R32="","",Rapport!R32) ->  | S28: =IF(Rapport!S32="","",Rapport!S32) ->  | T28: =IF(Rapport!T32="","",Rapport!T32) -> 800 | U28: =IF(Rapport!U32="","",Rapport!U32) -> 
A29: 32 | B29: A4 Alnarpsån, Coyetgården | C29: 2021-04-19 | E29: 8.6 | F29: 8.6 | G29: 74 | H29: 8.17 | I29: 1.4 | J29: 86.1 | L29: 3.2 | M29: 16 | N29: 3800 | O29: <10 | P29: 4400 | Q29: =IF(Rapport!Q33="","",Rapport!Q33) ->  | R29: =IF(Rapport!R33="","",Rapport!R33) ->  | S29: =IF(Rapport!S33="","",Rapport!S33) ->  | T29: =IF(Rapport!T33="","",Rapport!T33) -> 815 | U29: =IF(Rapport!U33="","",Rapport!U33) -> 
A30: 200 | Q30: =IF(Rapport!Q34="","",Rapport!Q34) ->  | R30: =IF(Rapport!R34="","",Rapport!R34) ->  | S30: =IF(Rapport!S34="","",Rapport!S34) ->  | T30: =IF(Rapport!T34="","",Rapport!T34) -> 
A31: 250 | B31: maj
A32: 20 | B32: 31 Börringesjön | C32: 2021-05-17 | E32: 16.3 | F32: 13.3 | G32: 136 | H32: 8.82 | I32: 36 | J32: 38.6 | L32: 20 | M32: 77 | N32: <10 | O32: <10 | P32: 2300 | Q32: =IF(Rapport!Q36="","",Rapport!Q36) -> 62 | R32: =IF(Rapport!R36="","",Rapport!R36) -> 0.3 | S32: =IF(Rapport!S36="","",Rapport!S36) -> 0.3 | T32: =IF(Rapport!T36="","",Rapport!T36) -> 1000 | U32: =IF(Rapport!U36="","",Rapport!U36) -> gröngrumligt
A33: 22 | B33: 32 Fjällfotasjön | C33: 2021-05-17 | E33: 16.4 | F33: 10.6 | G33: 109 | H33: 8.87 | I33: 8.9 | J33: 31.4 | L33: 25 | M33: 52 | N33: <10 | O33: <10 | P33: 1900 | Q33: =IF(Rapport!Q37="","",Rapport!Q37) -> 28 | R33: =IF(Rapport!R37="","",Rapport!R37) -> 0.6 | S33: =IF(Rapport!S37="","",Rapport!S37) -> 0.6 | T33: =IF(Rapport!T37="","",Rapport!T37) -> 930 | U33: =IF(Rapport!U37="","",Rapport!U37) -> brungrumligt
A34: 24 | B34: 33 Yddingen | C34: 2021-05-17 | E34: 16.1 | F34: 13.4 | G34: 136 | H34: 8.75 | I34: 14 | J34: 49.5 | L34: 21 | M34: 40 | N34: <10 | O34: <10 | P34: 2000 | Q34: =IF(Rapport!Q38="","",Rapport!Q38) -> 90 | R34: =IF(Rapport!R38="","",Rapport!R38) -> 0.55 | S34: =IF(Rapport!S38="","",Rapport!S38) -> 0.5 | T34: =IF(Rapport!T38="","",Rapport!T38) -> 800 | U34: =IF(Rapport!U38="","",Rapport!U38) -> gulgrumligt
A35: 26 | B35: 34 Havgårdssjön | C35: 2021-05-17 | E35: 16.1 | F35: 9.3 | G35: 95 | H35: 8.31 | I35: 3.7 | J35: 30.8 | L35: 7.6 | M35: 42 | N35: 180 | O35: 39 | P35: 1000 | Q35: =IF(Rapport!Q39="","",Rapport!Q39) -> 4.2 | R35: =IF(Rapport!R39="","",Rapport!R39) -> 2 | S35: =IF(Rapport!S39="","",Rapport!S39) -> 1.8 | T35: =IF(Rapport!T39="","",Rapport!T39) -> 1030 | U35: =IF(Rapport!U39="","",Rapport!U39) -> ganska klart vatten
A36: 200
A37: 250 | B37: juni
A38: 3 | B38: 1 Sege å, vid Brännemölla, uppströms Svedala AR | C38: 2021-06-15 | E38: 16.4 | F38: 4.3 | G38: 44 | H38: 7.41 | I38: 18 | J38: 45.3 | K38: 7.7 | L38: 26 | M38: 160 | N38: 590 | O38: 250 | P38: 3300 | Q38: =IF(Rapport!Q42="","",Rapport!Q42) ->  | R38: =IF(Rapport!R42="","",Rapport!R42) ->  | S38: =IF(Rapport!S42="","",Rapport!S42) ->  | T38: =IF(Rapport!T42="","",Rapport!T42) -> 1000 | U38: =IF(Rapport!U42="","",Rapport!U42) -> grumligt
A39: 5 | B39: 2 Sege å, söder Krågeholm, nedströms Svedala AR | C39: 2021-06-15 | D39: 0.06 | E39: 16.4 | F39: 8 | G39: 82 | H39: 7.76 | I39: 15 | J39: 63.8 | K39: 7.6 | L39: 16 | M39: 150 | N39: 1100 | O39: 700 | P39: 3400 | Q39: =IF(Rapport!Q43="","",Rapport!Q43) ->  | R39: =IF(Rapport!R43="","",Rapport!R43) ->  | S39: =IF(Rapport!S43="","",Rapport!S43) ->  | T39: =IF(Rapport!T43="","",Rapport!T43) -> 1020 | U39: =IF(Rapport!U43="","",Rapport!U43) -> grumligt
A40: 7 | B40: 9 Sege å, vid Lilla Mölleberga | C40: 2021-06-15 | E40: 16.6 | F40: 7.6 | G40: 78 | H40: 7.81 | I40: 8.8 | J40: 65.6 | L40: 13 | M40: 120 | N40: 1100 | O40: 39 | P40: 2100 | Q40: =IF(Rapport!Q44="","",Rapport!Q44) ->  | R40: =IF(Rapport!R44="","",Rapport!R44) ->  | S40: =IF(Rapport!S44="","",Rapport!S44) ->  | T40: =IF(Rapport!T44="","",Rapport!T44) -> 845 | U40: =IF(Rapport!U44="","",Rapport!U44) -> 
A41: 9 | B41: 18 Sege å, nordväst Valdemarsro, järnvägsbron | C41: 2021-06-15 | E41: 17.2 | F41: 5.7 | G41: 59 | H41: 7.78 | I41: 4.1 | J41: 73.5 | L41: 12 | M41: 94 | N41: 850 | O41: 87 | P41: 1700 | Q41: =IF(Rapport!Q45="","",Rapport!Q45) ->  | R41: =IF(Rapport!R45="","",Rapport!R45) ->  | S41: =IF(Rapport!S45="","",Rapport!S45) ->  | T41: =IF(Rapport!T45="","",Rapport!T45) -> 810 | U41: =IF(Rapport!U45="","",Rapport!U45) -> 
A42: 11 | B42: 21 Spångholmsbäcken, vid utlopp till Sege å | C42: 2021-06-15 | E42: 14.6 | F42: 6.2 | G42: 61 | H42: 7.7 | I42: 7.7 | J42: 77.5 | L42: 8.6 | M42: 120 | N42: 1000 | O42: 91 | P42: 1700 | Q42: =IF(Rapport!Q46="","",Rapport!Q46) ->  | R42: =IF(Rapport!R46="","",Rapport!R46) ->  | S42: =IF(Rapport!S46="","",Rapport!S46) ->  | T42: =IF(Rapport!T46="","",Rapport!T46) -> 900 | U42: =IF(Rapport!U46="","",Rapport!U46) -> 
A43: 13 | B43: 22b Spångholmsbäcken, bron vid Torupsvägen | C43: 2021-06-15 | E43: 14.5 | F43: 5.4 | G43: 53 | H43: 7.68 | I43: 5.8 | J43: 74.8 | L43: 11 | M43: 76 | N43: 1900 | O43: 130 | P43: 4100 | Q43: =IF(Rapport!Q47="","",Rapport!Q47) ->  | R43: =IF(Rapport!R47="","",Rapport!R47) ->  | S43: =IF(Rapport!S47="","",Rapport!S47) ->  | T43: =IF(Rapport!T47="","",Rapport!T47) -> 920 | U43: =IF(Rapport!U47="","",Rapport!U47) -> 
A44: 15 | B44: 23 Spångholmsbäcken, uppströms Torupsdammen | C44: 2021-06-15 | E44: 14.6 | F44: 3.9 | G44: 38 | H44: 7.58 | I44: 5.3 | J44: 65 | L44: 15 | M44: 220 | N44: 45 | O44: 570 | P44: 1700 | Q44: =IF(Rapport!Q48="","",Rapport!Q48) ->  | R44: =IF(Rapport!R48="","",Rapport!R48) ->  | S44: =IF(Rapport!S48="","",Rapport!S48) ->  | T44: =IF(Rapport!T48="","",Rapport!T48) -> 940 | U44: =IF(Rapport!U48="","",Rapport!U48) -> 
A45: 17 | B45: 10 Torrebergabäcken, vägbron nordost Mölleberga | C45: 2021-06-15 | E45: 17.1 | F45: 3.4 | G45: 35 | H45: 7.52 | I45: 11 | J45: 64.8 | L45: 12 | M45: 150 | N45: 750 | O45: 100 | P45: 1700 | Q45: =IF(Rapport!Q49="","",Rapport!Q49) ->  | R45: =IF(Rapport!R49="","",Rapport!R49) ->  | S45: =IF(Rapport!S49="","",Rapport!S49) ->  | T45: =IF(Rapport!T49="","",Rapport!T49) -> 830 | U45: =IF(Rapport!U49="","",Rapport!U49) -> 
A46: 18 | B46: 15 Risebergabäcken, ca 250 m uppströms från Sege å | C46: 2021-06-15 | E46: 13.8 | F46: 8.5 | G46: 82 | H46: 8 | I46: 5.5 | J46: 111 | L46: 4.1 | M46: 63 | N46: 1100 | O46: 140 | P46: 1600 | Q46: =IF(Rapport!Q50="","",Rapport!Q50) ->  | R46: =IF(Rapport!R50="","",Rapport!R50) ->  | S46: =IF(Rapport!S50="","",Rapport!S50) ->  | T46: =IF(Rapport!T50="","",Rapport!T50) -> 820 | U46: =IF(Rapport!U50="","",Rapport!U50) -> 
A47: 20 | B47: 31 Börringesjön | C47: 2021-06-14 | E47: 19.2 | F47: 9.7 | G47: 105 | H47: 8.67 | I47: 42 | J47: 39.3 | L47: 26 | M47: 96 | N47: <10 | O47: <10 | P47: 2800 | Q47: =IF(Rapport!Q51="","",Rapport!Q51) -> 54 | R47: =IF(Rapport!R51="","",Rapport!R51) -> 0.3 | S47: =IF(Rapport!S51="","",Rapport!S51) -> 0.3 | T47: =IF(Rapport!T51="","",Rapport!T51) -> 950 | U47: =IF(Rapport!U51="","",Rapport!U51) -> gulgrumligt
A48: 22 | B48: 32 Fjällfotasjön | C48: 2021-06-14 | E48: 19.4 | F48: 9.9 | G48: 108 | H48: 9.06 | I48: 16 | J48: 33 | L48: 28 | M48: 76 | N48: <10 | O48: <10 | P48: 2200 | Q48: =IF(Rapport!Q52="","",Rapport!Q52) -> 38 | R48: =IF(Rapport!R52="","",Rapport!R52) -> 0.6 | S48: =IF(Rapport!S52="","",Rapport!S52) -> 0.5 | T48: =IF(Rapport!T52="","",Rapport!T52) -> 900 | U48: =IF(Rapport!U52="","",Rapport!U52) -> gröngrumligt
A49: 24 | B49: 33 Yddingen | C49: 2021-06-14 | E49: 20.1 | F49: 8.3 | G49: 91 | H49: 8.44 | I49: 14 | J49: 48.6 | L49: 22 | M49: 54 | N49: <10 | O49: <10 | P49: 1900 | Q49: =IF(Rapport!Q53="","",Rapport!Q53) -> 40 | R49: =IF(Rapport!R53="","",Rapport!R53) -> 0.55 | S49: =IF(Rapport!S53="","",Rapport!S53) -> 0.5 | T49: =IF(Rapport!T53="","",Rapport!T53) -> 800 | U49: =IF(Rapport!U53="","",Rapport!U53) -> brungrumligt
A50: 26 | B50: 34 Havgårdssjön | C50: 2021-06-14 | E50: 19.1 | F50: 8.7 | G50: 94 | H50: 8.23 | I50: 4.7 | J50: 30.6 | L50: 10 | M50: 56 | N50: 84 | O50: 130 | P50: 1100 | Q50: =IF(Rapport!Q54="","",Rapport!Q54) -> 8 | R50: =IF(Rapport!R54="","",Rapport!R54) -> 2 | S50: =IF(Rapport!S54="","",Rapport!S54) -> 1.8 | T50: =IF(Rapport!T54="","",Rapport!T54) -> 1030 | U50: =IF(Rapport!U54="","",Rapport!U54) -> klart vatten
A51: 30 | B51: A1 Alnarpsån, mynningen | C51: 2021-06-15 | E51: 16.4 | F51: 4.4 | G51: 45 | H51: 7.69 | I51: 5.4 | J51: 98.3 | L51: 6.9 | M51: 130 | N51: 2300 | O51: 41 | P51: 2800 | Q51: =IF(Rapport!Q55="","",Rapport!Q55) ->  | R51: =IF(Rapport!R55="","",Rapport!R55) ->  | S51: =IF(Rapport!S55="","",Rapport!S55) ->  | T51: =IF(Rapport!T55="","",Rapport!T55) -> 750 | U51: =IF(Rapport!U55="","",Rapport!U55) -> 
A52: 32 | B52: A4 Alnarpsån, Coyetgården | C52: 2021-06-15 | E52: 14.3 | F52: 9.6 | G52: 94 | H52: 8.06 | I52: 2.1 | J52: 97 | L52: 5.2 | M52: 97 | N52: 1200 | O52: 100 | P52: 1600 | Q52: =IF(Rapport!Q56="","",Rapport!Q56) ->  | R52: =IF(Rapport!R56="","",Rapport!R56) ->  | S52: =IF(Rapport!S56="","",Rapport!S56) ->  | T52: =IF(Rapport!T56="","",Rapport!T56) -> 730 | U52: =IF(Rapport!U56="","",Rapport!U56) -> 
A53: 200
A54: 250 | B54: juli
A55: 20 | B55: 31 Börringesjön | C55: 2021-07-13 | E55: 21.6 | F55: 10.1 | G55: 114 | H55: 8.83 | I55: 30 | J55: 37.8 | L55: 22 | M55: 75 | N55: <10 | O55: <10 | P55: 2200 | Q55: =IF(Rapport!Q59="","",Rapport!Q59) -> 40 | R55: =IF(Rapport!R59="","",Rapport!R59) -> 0.4 | S55: =IF(Rapport!S59="","",Rapport!S59) -> 0.4 | T55: =IF(Rapport!T59="","",Rapport!T59) -> 920 | U55: =IF(Rapport!U59="","",Rapport!U59) -> gulgrumligt
A56: 22 | B56: 32 Fjällfotasjön | C56: 2021-07-13 | E56: 22.1 | F56: 9.6 | G56: 110 | H56: 8.82 | I56: 13 | J56: 32.3 | L56: 29 | M56: 54 | N56: <10 | O56: 14 | P56: 1900 | Q56: =IF(Rapport!Q60="","",Rapport!Q60) -> 25 | R56: =IF(Rapport!R60="","",Rapport!R60) -> 0.6 | S56: =IF(Rapport!S60="","",Rapport!S60) -> 0.5 | T56: =IF(Rapport!T60="","",Rapport!T60) -> 830 | U56: =IF(Rapport!U60="","",Rapport!U60) -> gröngrumligt
A57: 24 | B57: 33 Yddingen | C57: 2021-07-13 | E57: 21.9 | F57: 9 | G57: 102 | H57: 8.63 | I57: 14 | J57: 49.5 | L57: 21 | M57: 47 | N57: <10 | O57: <10 | P57: 1700 | Q57: =IF(Rapport!Q61="","",Rapport!Q61) -> 36 | R57: =IF(Rapport!R61="","",Rapport!R61) -> 0.4 | S57: =IF(Rapport!S61="","",Rapport!S61) -> 0.4 | T57: =IF(Rapport!T61="","",Rapport!T61) -> 745 | U57: =IF(Rapport!U61="","",Rapport!U61) -> gulgrumligt
A58: 26 | B58: 34 Havgårdssjön | C58: 2021-07-13 | E58: 22.1 | F58: 9 | G58: 103 | H58: 8.41 | I58: 3.6 | J58: 28 | L58: 9.3 | M58: 45 | N58: <10 | O58: 24 | P58: 920 | Q58: =IF(Rapport!Q62="","",Rapport!Q62) -> 8.2 | R58: =IF(Rapport!R62="","",Rapport!R62) -> 2.2 | S58: =IF(Rapport!S62="","",Rapport!S62) -> 2 | T58: =IF(Rapport!T62="","",Rapport!T62) -> 1000 | U58: =IF(Rapport!U62="","",Rapport!U62) -> klart vatten
A59: 200
A60: 250 | B60: augusti
A61: 3 | B61: 1 Sege å, vid Brännemölla, uppströms Svedala AR | C61: 2021-08-19 | E61: 14.5 | F61: 8.5 | G61: 84 | H61: 7.5 | I61: 14 | J61: 50.2 | K61: 5.6 | L61: 22 | M61: 120 | N61: 1100 | O61: 130 | P61: 3000 | Q61: =IF(Rapport!Q65="","",Rapport!Q65) ->  | R61: =IF(Rapport!R65="","",Rapport!R65) ->  | S61: =IF(Rapport!S65="","",Rapport!S65) ->  | T61: =IF(Rapport!T65="","",Rapport!T65) -> 1310 | U61: =IF(Rapport!U65="","",Rapport!U65) -> 
A62: 5 | B62: 2 Sege å, söder Krågeholm, nedströms Svedala AR | C62: 2021-08-19 | D62: 0.17 | E62: 16.5 | F62: 8.5 | G62: 87 | H62: 7.71 | I62: 7.2 | J62: 44.9 | K62: 4 | L62: 11 | M62: 120 | N62: 1300 | O62: 76 | P62: 2300 | Q62: =IF(Rapport!Q66="","",Rapport!Q66) ->  | R62: =IF(Rapport!R66="","",Rapport!R66) ->  | S62: =IF(Rapport!S66="","",Rapport!S66) ->  | T62: =IF(Rapport!T66="","",Rapport!T66) -> 1330 | U62: =IF(Rapport!U66="","",Rapport!U66) -> 
A63: 7 | B63: 9 Sege å, vid Lilla Mölleberga | C63: 2021-08-19 | E63: 15 | F63: 7 | G63: 70 | H63: 7.7 | I63: 6.3 | J63: 35.4 | L63: 7.7 | M63: 120 | N63: 920 | O63: 83 | P63: 1600 | Q63: =IF(Rapport!Q67="","",Rapport!Q67) ->  | R63: =IF(Rapport!R67="","",Rapport!R67) ->  | S63: =IF(Rapport!S67="","",Rapport!S67) ->  | T63: =IF(Rapport!T67="","",Rapport!T67) -> 1220 | U63: =IF(Rapport!U67="","",Rapport!U67) -> 
A64: 9 | B64: 18 Sege å, nordväst Valdemarsro, järnvägsbron | C64: 2021-08-19 | E64: 15.6 | F64: 6.6 | G64: 66 | H64: 7.63 | I64: 8.6 | J64: 45.1 | L64: 7 | M64: 100 | N64: 830 | O64: 35 | P64: 1200 | Q64: =IF(Rapport!Q68="","",Rapport!Q68) ->  | R64: =IF(Rapport!R68="","",Rapport!R68) ->  | S64: =IF(Rapport!S68="","",Rapport!S68) ->  | T64: =IF(Rapport!T68="","",Rapport!T68) -> 1140 | U64: =IF(Rapport!U68="","",Rapport!U68) -> 
A65: 11 | B65: 21 Spångholmsbäcken, vid utlopp till Sege å | C65: 2021-08-19 | E65: 15 | F65: 9.5 | G65: 94 | H65: 7.7 | I65: 4.3 | J65: 59.2 | L65: 7.8 | M65: 130 | N65: 1600 | O65: 86 | P65: 2100 | Q65: =IF(Rapport!Q69="","",Rapport!Q69) ->  | R65: =IF(Rapport!R69="","",Rapport!R69) ->  | S65: =IF(Rapport!S69="","",Rapport!S69) ->  | T65: =IF(Rapport!T69="","",Rapport!T69) -> 1230 | U65: =IF(Rapport!U69="","",Rapport!U69) -> 
A66: 13 | B66: 22b Spångholmsbäcken, bron vid Torupsvägen | C66: 2021-08-19 | E66: 14.4 | F66: 5.7 | G66: 56 | H66: 7.66 | I66: 3.4 | J66: 73.5 | L66: 9.7 | M66: 68 | N66: 4500 | O66: 40 | P66: 5200 | Q66: =IF(Rapport!Q70="","",Rapport!Q70) ->  | R66: =IF(Rapport!R70="","",Rapport!R70) ->  | S66: =IF(Rapport!S70="","",Rapport!S70) ->  | T66: =IF(Rapport!T70="","",Rapport!T70) -> 1240 | U66: =IF(Rapport!U70="","",Rapport!U70) -> 
A67: 15 | B67: 23 Spångholmsbäcken, uppströms Torupsdammen | C67: 2021-08-19 | E67: 15.6 | F67: 7.1 | G67: 72 | H67: 7.77 | I67: 12 | J67: 60.9 | L67: 7.1 | M67: 110 | N67: 2900 | O67: 31 | P67: 3500 | Q67: =IF(Rapport!Q71="","",Rapport!Q71) ->  | R67: =IF(Rapport!R71="","",Rapport!R71) ->  | S67: =IF(Rapport!S71="","",Rapport!S71) ->  | T67: =IF(Rapport!T71="","",Rapport!T71) -> 1250 | U67: =IF(Rapport!U71="","",Rapport!U71) -> 
A68: 17 | B68: 10 Torrebergabäcken, vägbron nordost Mölleberga | C68: 2021-08-19 | E68: 15.6 | F68: 3.9 | G68: 39 | H68: 7.56 | I68: 5.6 | J68: 28.3 | L68: 6.5 | M68: 140 | N68: 390 | O68: 36 | P68: 890 | Q68: =IF(Rapport!Q72="","",Rapport!Q72) ->  | R68: =IF(Rapport!R72="","",Rapport!R72) ->  | S68: =IF(Rapport!S72="","",Rapport!S72) ->  | T68: =IF(Rapport!T72="","",Rapport!T72) -> 1210 | U68: =IF(Rapport!U72="","",Rapport!U72) -> 
A69: 18 | B69: 15 Risebergabäcken, ca 250 m uppströms från Sege å | C69: 2021-08-19 | E69: 15.5 | F69: 5.8 | G69: 58 | H69: 7.96 | I69: 32 | J69: 63.8 | L69: 7.1 | M69: 110 | N69: 2900 | O69: 31 | P69: 3500 | Q69: =IF(Rapport!Q73="","",Rapport!Q73) ->  | R69: =IF(Rapport!R73="","",Rapport!R73) ->  | S69: =IF(Rapport!S73="","",Rapport!S73) ->  | T69: =IF(Rapport!T73="","",Rapport!T73) -> 1150 | U69: =IF(Rapport!U73="","",Rapport!U73) -> 
A70: 20 | B70: 31 Börringesjön | C70: 2021-08-18 | E70: 16.2 | F70: 10 | G70: 102 | H70: 8.48 | I70: 34 | J70: 35.4 | L70: 20 | M70: 74 | N70: <10 | O70: <10 | P70: 2100 | Q70: =IF(Rapport!Q74="","",Rapport!Q74) -> 43 | R70: =IF(Rapport!R74="","",Rapport!R74) -> 0.3 | S70: =IF(Rapport!S74="","",Rapport!S74) -> 0.3 | T70: =IF(Rapport!T74="","",Rapport!T74) -> 1100 | U70: =IF(Rapport!U74="","",Rapport!U74) -> gulgrumligt
A71: 22 | B71: 32 Fjällfotasjön | C71: 2021-08-18 | E71: 16.6 | F71: 8.9 | G71: 92 | H71: 8.12 | I71: 12 | J71: 32.4 | L71: 27 | M71: 70 | N71: <10 | O71: 11 | P71: 2000 | Q71: =IF(Rapport!Q75="","",Rapport!Q75) -> 23 | R71: =IF(Rapport!R75="","",Rapport!R75) -> 0.8 | S71: =IF(Rapport!S75="","",Rapport!S75) -> 0.7 | T71: =IF(Rapport!T75="","",Rapport!T75) -> 1000 | U71: =IF(Rapport!U75="","",Rapport!U75) -> ganska klart vatten
A72: 24 | B72: 33 Yddingen | C72: 2021-08-18 | E72: 17 | F72: 8.8 | G72: 91 | H72: 8.27 | I72: 22 | J72: 50.5 | L72: 20 | M72: 74 | N72: <10 | O72: <10 | P72: 2100 | Q72: =IF(Rapport!Q76="","",Rapport!Q76) -> 43 | R72: =IF(Rapport!R76="","",Rapport!R76) -> 0.6 | S72: =IF(Rapport!S76="","",Rapport!S76) -> 0.6 | T72: =IF(Rapport!T76="","",Rapport!T76) -> 845 | U72: =IF(Rapport!U76="","",Rapport!U76) -> grumligt
A73: 26 | B73: 34 Havgårdssjön | C73: 2021-08-18 | E73: 18.3 | F73: 9.9 | G73: 105 | H73: 8.47 | I73: 6.2 | J73: 25.6 | L73: 10 | M73: 58 | N73: 48 | O73: <10 | P73: 1200 | Q73: =IF(Rapport!Q77="","",Rapport!Q77) -> 17 | R73: =IF(Rapport!R77="","",Rapport!R77) -> 1.5 | S73: =IF(Rapport!S77="","",Rapport!S77) -> 1.3 | T73: =IF(Rapport!T77="","",Rapport!T77) -> 1400 | U73: =IF(Rapport!U77="","",Rapport!U77) -> klart vatten
A74: 28 | B74: 35 Eksholmssjön | C74: 2021-08-18 | E74: 18 | F74: 8.7 | G74: 92 | H74: 7.14 | I74: 7 | J74: 11 | L74: 23 | M74: 58 | N74: <10 | O74: 10 | P74: 1100 | Q74: =IF(Rapport!Q78="","",Rapport!Q78) -> 19 | R74: =IF(Rapport!R78="","",Rapport!R78) -> 1 | S74: =IF(Rapport!S78="","",Rapport!S78) -> 0.9 | T74: =IF(Rapport!T78="","",Rapport!T78) -> 1500 | U74: =IF(Rapport!U78="","",Rapport!U78) -> humöst
A75: 30 | B75: A1 Alnarpsån, mynningen | C75: 2021-08-19 | E75: 15.7 | F75: 5.5 | G75: 56 | H75: 7.55 | I75: 5.7 | J75: 78 | L75: 9.3 | M75: 120 | N75: 1700 | O75: 68 | P75: 1900 | Q75: =IF(Rapport!Q79="","",Rapport!Q79) ->  | R75: =IF(Rapport!R79="","",Rapport!R79) ->  | S75: =IF(Rapport!S79="","",Rapport!S79) ->  | T75: =IF(Rapport!T79="","",Rapport!T79) -> 1120 | U75: =IF(Rapport!U79="","",Rapport!U79) -> 
A76: 32 | B76: A4 Alnarpsån, Coyetgården | C76: 2021-08-19 | E76: 13.7 | F76: 6.1 | G76: 59 | H76: 8.2 | I76: 2.3 | J76: 49.5 | L76: 5.6 | M76: 72 | N76: 470 | O76: 17 | P76: 800 | Q76: =IF(Rapport!Q80="","",Rapport!Q80) ->  | R76: =IF(Rapport!R80="","",Rapport!R80) ->  | S76: =IF(Rapport!S80="","",Rapport!S80) ->  | T76: =IF(Rapport!T80="","",Rapport!T80) -> 1100 | U76: =IF(Rapport!U80="","",Rapport!U80) -> 
A77: 200
A78: 250 | B78: september
A79: 20 | B79: 31 Börringesjön | C79: 2021-09-20 | E79: 14.1 | F79: 11 | G79: 107 | H79: 8.58 | I79: 37 | J79: 37.1 | L79: 26 | M79: 98 | N79: <10 | O79: <10 | P79: 2900 | Q79: =IF(Rapport!Q83="","",Rapport!Q83) -> 80 | R79: =IF(Rapport!R83="","",Rapport!R83) -> 0.3 | S79: =IF(Rapport!S83="","",Rapport!S83) -> 0.3 | T79: =IF(Rapport!T83="","",Rapport!T83) -> 930 | U79: =IF(Rapport!U83="","",Rapport!U83) -> gulgrumligt
A80: 22 | B80: 32 Fjällfotasjön | C80: 2021-09-20 | E80: 14.6 | F80: 10.1 | G80: 100 | H80: 8.16 | I80: 8.5 | J80: 34 | L80: 26 | M80: 51 | N80: <10 | O80: 170 | P80: 2100 | Q80: =IF(Rapport!Q84="","",Rapport!Q84) -> 28 | R80: =IF(Rapport!R84="","",Rapport!R84) -> 0.7 | S80: =IF(Rapport!S84="","",Rapport!S84) -> 0.6 | T80: =IF(Rapport!T84="","",Rapport!T84) -> 845 | U80: =IF(Rapport!U84="","",Rapport!U84) -> gröngrumligt
A81: 24 | B81: 33 Yddingen | C81: 2021-09-20 | E81: 15.2 | F81: 9.6 | G81: 96 | H81: 8.25 | I81: 17 | J81: 49.8 | L81: 20 | M81: 63 | N81: <50 | O81: <10 | P81: 2300 | Q81: =IF(Rapport!Q85="","",Rapport!Q85) -> 82 | R81: =IF(Rapport!R85="","",Rapport!R85) -> 0.55 | S81: =IF(Rapport!S85="","",Rapport!S85) -> 0.5 | T81: =IF(Rapport!T85="","",Rapport!T85) -> 800 | U81: =IF(Rapport!U85="","",Rapport!U85) -> brungrumligt
A82: 26 | B82: 34 Havgårdssjön | C82: 2021-09-20 | E82: 16 | F82: 11 | G82: 112 | H82: 8.32 | I82: 6.5 | J82: 26.9 | L82: 9.3 | M82: 54 | N82: <10 | O82: 120 | P82: 1200 | Q82: =IF(Rapport!Q86="","",Rapport!Q86) -> 26 | R82: =IF(Rapport!R86="","",Rapport!R86) -> 1.4 | S82: =IF(Rapport!S86="","",Rapport!S86) -> 1.2 | T82: =IF(Rapport!T86="","",Rapport!T86) -> 1000 | U82: =IF(Rapport!U86="","",Rapport!U86) -> gröngrumligt
A83: 200
A84: 250 | B84: oktober
A85: 3 | B85: 1 Sege å, vid Brännemölla, uppströms Svedala AR | C85: 2021-10-20 | E85: 11.5 | F85: 7.5 | G85: 69 | H85: 7.62 | I85: 76 | J85: 54.5 | K85: 5.7 | L85: 21 | M85: 210 | N85: 5600 | O85: 48 | P85: 7700 | Q85: =IF(Rapport!Q89="","",Rapport!Q89) ->  | R85: =IF(Rapport!R89="","",Rapport!R89) ->  | S85: =IF(Rapport!S89="","",Rapport!S89) ->  | T85: =IF(Rapport!T89="","",Rapport!T89) -> 1400 | U85: =IF(Rapport!U89="","",Rapport!U89) -> 
A86: 5 | B86: 2 Sege å, söder Krågeholm, nedströms Svedala AR | C86: 2021-10-20 | D86: 0.23 | E86: 12.9 | F86: 7.9 | G86: 75 | H86: 7.61 | I86: 39 | J86: 54.1 | K86: 4.6 | L86: 11 | M86: 150 | N86: 2900 | O86: 160 | P86: 4400 | Q86: =IF(Rapport!Q90="","",Rapport!Q90) ->  | R86: =IF(Rapport!R90="","",Rapport!R90) ->  | S86: =IF(Rapport!S90="","",Rapport!S90) ->  | T86: =IF(Rapport!T90="","",Rapport!T90) -> 1430 | U86: =IF(Rapport!U90="","",Rapport!U90) -> 
A87: 7 | B87: 9 Sege å, vid Lilla Mölleberga | C87: 2021-10-20 | E87: 11.9 | F87: 8.1 | G87: 75 | H87: 7.9 | I87: 5.6 | J87: 66.2 | L87: 8.3 | M87: 81 | N87: 2000 | O87: 18 | P87: 2900 | Q87: =IF(Rapport!Q91="","",Rapport!Q91) ->  | R87: =IF(Rapport!R91="","",Rapport!R91) ->  | S87: =IF(Rapport!S91="","",Rapport!S91) ->  | T87: =IF(Rapport!T91="","",Rapport!T91) -> 1255 | U87: =IF(Rapport!U91="","",Rapport!U91) -> 
A88: 9 | B88: 18 Sege å, nordväst Valdemarsro, järnvägsbron | C88: 2021-10-20 | E88: 12 | F88: 8.3 | G88: 77 | H88: 7.89 | I88: 8.7 | J88: 59.6 | L88: 7.9 | M88: 84 | N88: 1800 | O88: 50 | P88: 2600 | Q88: =IF(Rapport!Q92="","",Rapport!Q92) ->  | R88: =IF(Rapport!R92="","",Rapport!R92) ->  | S88: =IF(Rapport!S92="","",Rapport!S92) ->  | T88: =IF(Rapport!T92="","",Rapport!T92) -> 1200 | U88: =IF(Rapport!U92="","",Rapport!U92) -> 
A89: 11 | B89: 21 Spångholmsbäcken, vid utlopp till Sege å | C89: 2021-10-20 | E89: 12.4 | F89: 7.2 | G89: 68 | H89: 7.73 | I89: 4.2 | J89: 62 | L89: 7.1 | M89: 66 | N89: 1500 | O89: 28 | P89: 2200 | Q89: =IF(Rapport!Q93="","",Rapport!Q93) ->  | R89: =IF(Rapport!R93="","",Rapport!R93) ->  | S89: =IF(Rapport!S93="","",Rapport!S93) ->  | T89: =IF(Rapport!T93="","",Rapport!T93) -> 1300 | U89: =IF(Rapport!U93="","",Rapport!U93) -> 
A90: 13 | B90: 22b Spångholmsbäcken, bron vid Torupsvägen | C90: 2021-10-20 | E90: 12.4 | F90: 7.8 | G90: 73 | H90: 7.63 | I90: 3.9 | J90: 80.1 | L90: 13 | M90: 64 | N90: 5100 | O90: 15 | P90: 6400 | Q90: =IF(Rapport!Q94="","",Rapport!Q94) ->  | R90: =IF(Rapport!R94="","",Rapport!R94) ->  | S90: =IF(Rapport!S94="","",Rapport!S94) ->  | T90: =IF(Rapport!T94="","",Rapport!T94) -> 1315 | U90: =IF(Rapport!U94="","",Rapport!U94) -> 
A91: 15 | B91: 23 Spångholmsbäcken, uppströms Torupsdammen | C91: 2021-10-20 | E91: 12.8 | F91: 7.6 | G91: 72 | H91: 7.51 | I91: 1.5 | J91: 70.1 | L91: 17 | M91: 94 | N91: 360 | O91: 45 | P91: 1600 | Q91: =IF(Rapport!Q95="","",Rapport!Q95) ->  | R91: =IF(Rapport!R95="","",Rapport!R95) ->  | S91: =IF(Rapport!S95="","",Rapport!S95) ->  | T91: =IF(Rapport!T95="","",Rapport!T95) -> 1330 | U91: =IF(Rapport!U95="","",Rapport!U95) -> 
A92: 17 | B92: 10 Torrebergabäcken, vägbron nordost Mölleberga | C92: 2021-10-20 | E92: 11.5 | F92: 5.7 | G92: 52 | H92: 7.65 | I92: 5.2 | J92: 71.3 | L92: 13 | M92: 98 | N92: 2400 | O92: 59 | P92: 3200 | Q92: =IF(Rapport!Q96="","",Rapport!Q96) ->  | R92: =IF(Rapport!R96="","",Rapport!R96) ->  | S92: =IF(Rapport!S96="","",Rapport!S96) ->  | T92: =IF(Rapport!T96="","",Rapport!T96) -> 1245 | U92: =IF(Rapport!U96="","",Rapport!U96) -> 
A93: 18 | B93: 15 Risebergabäcken, ca 250 m uppströms från Sege å | C93: 2021-10-20 | E93: 13.3 | F93: 9.5 | G93: 91 | H93: 7.88 | I93: 16 | J93: 40.9 | L93: 4.5 | M93: 91 | N93: 1500 | O93: 100 | P93: 1700 | Q93: =IF(Rapport!Q97="","",Rapport!Q97) ->  | R93: =IF(Rapport!R97="","",Rapport!R97) ->  | S93: =IF(Rapport!S97="","",Rapport!S97) ->  | T93: =IF(Rapport!T97="","",Rapport!T97) -> 1215 | U93: =IF(Rapport!U97="","",Rapport!U97) -> 
A94: 30 | B94: A1 Alnarpsån, mynningen | C94: 2021-10-20 | E94: 12.6 | F94: 7.2 | G94: 68 | H94: 7.7 | I94: 20 | J94: 50.3 | L94: 3.8 | M94: 110 | N94: 740 | O94: 44 | P94: 1000 | Q94: =IF(Rapport!Q98="","",Rapport!Q98) ->  | R94: =IF(Rapport!R98="","",Rapport!R98) ->  | S94: =IF(Rapport!S98="","",Rapport!S98) ->  | T94: =IF(Rapport!T98="","",Rapport!T98) -> 1145 | U94: =IF(Rapport!U98="","",Rapport!U98) -> 
A95: 32 | B95: A4 Alnarpsån, Coyetgården | C95: 2021-10-20 | E95: 13.2 | F95: 9.1 | G95: 87 | H95: 7.75 | I95: 6 | J95: 49.1 | L95: 5.2 | M95: 110 | N95: 1000 | O95: 25 | P95: 1500 | Q95: =IF(Rapport!Q99="","",Rapport!Q99) ->  | R95: =IF(Rapport!R99="","",Rapport!R99) ->  | S95: =IF(Rapport!S99="","",Rapport!S99) ->  | T95: =IF(Rapport!T99="","",Rapport!T99) -> 1130 | U95: =IF(Rapport!U99="","",Rapport!U99) -> 
A96: 200
A97: 250 | B97: december
A98: 3 | B98: 1 Sege å, vid Brännemölla, uppströms Svedala AR | C98: 2021-12-20 | E98: 1.3 | F98: 10.5 | G98: 74 | H98: 7.58 | I98: 20 | J98: 45.8 | K98: 5.8 | L98: 24 | M98: 120 | N98: 1900 | O98: 650 | P98: 4400 | Q98: =IF(Rapport!Q102="","",Rapport!Q102) ->  | R98: =IF(Rapport!R102="","",Rapport!R102) ->  | S98: =IF(Rapport!S102="","",Rapport!S102) ->  | T98: =IF(Rapport!T102="","",Rapport!T102) -> 1430 | U98: =IF(Rapport!U102="","",Rapport!U102) -> 
A99: 5 | B99: 2 Sege å, söder Krågeholm, nedströms Svedala AR | C99: 2021-12-20 | D99: 1.1 | E99: 2.7 | F99: 11.5 | G99: 85 | H99: 7.66 | I99: 19 | J99: 52.2 | K99: 6.6 | L99: 17 | M99: 170 | N99: 2700 | O99: 580 | P99: 4800 | Q99: =IF(Rapport!Q103="","",Rapport!Q103) ->  | R99: =IF(Rapport!R103="","",Rapport!R103) ->  | S99: =IF(Rapport!S103="","",Rapport!S103) ->  | T99: =IF(Rapport!T103="","",Rapport!T103) -> 1445 | U99: =IF(Rapport!U103="","",Rapport!U103) -> 
A100: 7 | B100: 9 Sege å, vid Lilla Mölleberga | C100: 2021-12-20 | E100: 2.9 | F100: 12.2 | G100: 90 | H100: 7.97 | I100: 12 | J100: 61.3 | L100: 16 | M100: 93 | N100: 3600 | O100: 310 | P100: 4200 | Q100: =IF(Rapport!Q104="","",Rapport!Q104) ->  | R100: =IF(Rapport!R104="","",Rapport!R104) ->  | S100: =IF(Rapport!S104="","",Rapport!S104) ->  | T100: =IF(Rapport!T104="","",Rapport!T104) -> 1330 | U100: =IF(Rapport!U104="","",Rapport!U104) -> 
A101: 9 | B101: 18 Sege å, nordväst Valdemarsro, järnvägsbron | C101: 2021-12-20 | E101: 3.4 | F101: 11.5 | G101: 86 | H101: 7.98 | I101: 11 | J101: 69.4 | L101: 14 | M101: 90 | N101: 5200 | O101: 170 | P101: 5600 | Q101: =IF(Rapport!Q105="","",Rapport!Q105) ->  | R101: =IF(Rapport!R105="","",Rapport!R105) ->  | S101: =IF(Rapport!S105="","",Rapport!S105) ->  | T101: =IF(Rapport!T105="","",Rapport!T105) -> 1300 | U101: =IF(Rapport!U105="","",Rapport!U105) -> 
A102: 11 | B102: 21 Spångholmsbäcken, vid utlopp till Sege å | C102: 2021-12-20 | E102: 2.4 | F102: 12.1 | G102: 88 | H102: 7.94 | I102: 7.9 | J102: 58.3 | L102: 16 | M102: 66 | N102: 1400 | O102: 390 | P102: 2600 | Q102: =IF(Rapport!Q106="","",Rapport!Q106) ->  | R102: =IF(Rapport!R106="","",Rapport!R106) ->  | S102: =IF(Rapport!S106="","",Rapport!S106) ->  | T102: =IF(Rapport!T106="","",Rapport!T106) -> 1345 | U102: =IF(Rapport!U106="","",Rapport!U106) -> 
A103: 13 | B103: 22b Spångholmsbäcken, bron vid Torupsvägen | C103: 2021-12-20 | E103: 2 | F103: 12.5 | G103: 90 | H103: 7.94 | I103: 6.3 | J103: 54.5 | L103: 17 | M103: 64 | N103: 920 | O103: 520 | P103: 3000 | Q103: =IF(Rapport!Q107="","",Rapport!Q107) ->  | R103: =IF(Rapport!R107="","",Rapport!R107) ->  | S103: =IF(Rapport!S107="","",Rapport!S107) ->  | T103: =IF(Rapport!T107="","",Rapport!T107) -> 1355 | U103: =IF(Rapport!U107="","",Rapport!U107) -> 
A104: 15 | B104: 23 Spångholmsbäcken, uppströms Torupsdammen | C104: 2021-12-20 | E104: 1.9 | F104: 12.2 | G104: 88 | H104: 8.19 | I104: 7.3 | J104: 52.2 | L104: 19 | M104: 66 | N104: 310 | O104: 540 | P104: 2000 | Q104: =IF(Rapport!Q108="","",Rapport!Q108) ->  | R104: =IF(Rapport!R108="","",Rapport!R108) ->  | S104: =IF(Rapport!S108="","",Rapport!S108) ->  | T104: =IF(Rapport!T108="","",Rapport!T108) -> 1410 | U104: =IF(Rapport!U108="","",Rapport!U108) -> 
A105: 17 | B105: 10 Torrebergabäcken, vägbron nordost Mölleberga | C105: 2021-12-20 | E105: 2.6 | F105: 10 | G105: 74 | H105: 7.81 | I105: 7 | J105: 70.8 | L105: 16 | M105: 85 | N105: 7700 | O105: 160 | P105: 7300 | Q105: =IF(Rapport!Q109="","",Rapport!Q109) ->  | R105: =IF(Rapport!R109="","",Rapport!R109) ->  | S105: =IF(Rapport!S109="","",Rapport!S109) ->  | T105: =IF(Rapport!T109="","",Rapport!T109) -> 1315 | U105: =IF(Rapport!U109="","",Rapport!U109) -> 
A106: 18 | B106: 15 Risebergabäcken, ca 250 m uppströms från Sege å | C106: 2021-12-20 | E106: 7 | F106: 11.1 | G106: 92 | H106: 8.14 | I106: 4.5 | J106: 110 | L106: 5.7 | M106: 56 | N106: 4900 | O106: 120 | P106: 5000 | Q106: =IF(Rapport!Q110="","",Rapport!Q110) ->  | R106: =IF(Rapport!R110="","",Rapport!R110) ->  | S106: =IF(Rapport!S110="","",Rapport!S110) ->  | T106: =IF(Rapport!T110="","",Rapport!T110) -> 1305 | U106: =IF(Rapport!U110="","",Rapport!U110) -> 
A107: 30 | B107: A1 Alnarpsån, mynningen | C107: 2021-12-20 | E107: 4.4 | F107: 10.7 | G107: 83 | H107: 7.99 | I107: 3.4 | J107: 102 | L107: 5.8 | M107: 74 | N107: 12000 | O107: 55 | P107: 12000 | Q107: =IF(Rapport!Q111="","",Rapport!Q111) ->  | R107: =IF(Rapport!R111="","",Rapport!R111) ->  | S107: =IF(Rapport!S111="","",Rapport!S111) ->  | T107: =IF(Rapport!T111="","",Rapport!T111) -> 1245 | U107: =IF(Rapport!U111="","",Rapport!U111) -> 
A108: 32 | B108: A4 Alnarpsån, Coyetgården | C108: 2021-12-20 | E108: 5.3 | F108: 12.2 | G108: 96 | H108: 8.17 | I108: 2.2 | J108: 88.1 | L108: 3.4 | M108: 90 | N108: 11000 | O108: 19 | P108: 11000 | Q108: =IF(Rapport!Q112="","",Rapport!Q112) ->  | R108: =IF(Rapport!R112="","",Rapport!R112) ->  | S108: =IF(Rapport!S112="","",Rapport!S112) ->  | T108: =IF(Rapport!T112="","",Rapport!T112) -> 1230 | U108: =IF(Rapport!U112="","",Rapport!U112) -> 
A109: 200

Sheet RS (hidden)
A1: =TRIM(CONCATENATE(D1,E1)) -> ProvtagningspunktProvtagn | C1: Sorterings- | D1: Provtagningspunkt | E1: Provtagn | F1: Vattenf | G1: Temp | H1: Syreh | I1: Syrem | J1: pH | K1: Gruml | L1: Kond | M1: BOD7 | N1: TOC | O1: Tot-P | P1: NO3+2-N | Q1: NH4-N | R1: Tot-N | S1: Klor a | T1: Siktdj VK | U1: Siktdj | V1: Tid | W1: Anmärkning
C2: ordning | D2: Nr Läge | E2: datum | F2: m3/s | G2: °C | H2: mg/l | I2: % | K2: FNU | L2: mS/m | M2: mg/l | N2: mg/l | O2: µg/l | P2: µg/l | Q2: µg/l | R2: µg/l | S2: mg/m3 | T2: m | U2: m
A3: =TRIM(CONCATENATE(D3,E3)) -> 1 Sege å, vid Brännemölla, uppströms Svedala AR44242 | B3: =CONCATENATE(D3,MONTH(E3)) -> 1 Sege å, vid Brännemölla, uppströms Svedala AR2 | C3: 3 | D3: 1 Sege å, vid Brännemölla, uppströms Svedala AR | E3: 2021-02-15 | G3: 0.4 | H3: 14 | I3: 97 | J3: 7.78 | K3: 12 | L3: 50.4 | M3: 4.9 | N3: 22 | O3: 65 | P3: 1800 | Q3: 250 | R3: 3600 | V3: 1545 | W3: is i kanten
A4: 1 Sege å, vid Brännemölla, uppströms Svedala AR44305 | B4: 1 Sege å, vid Brännemölla, uppströms Svedala AR4 | C4: 3 | D4: 1 Sege å, vid Brännemölla, uppströms Svedala AR | E4: 2021-04-19 | G4: 9.8 | H4: 11.2 | I4: 99 | J4: 7.81 | K4: 11 | L4: 47.7 | M4: 6.3 | N4: 22 | O4: 66 | P4: 1300 | Q4: <10 | R4: 2900 | V4: 1050 | W4: grumligt
A5: 1 Sege å, vid Brännemölla, uppströms Svedala AR44362 | B5: 1 Sege å, vid Brännemölla, uppströms Svedala AR6 | C5: 3 | D5: 1 Sege å, vid Brännemölla, uppströms Svedala AR | E5: 2021-06-15 | G5: 16.4 | H5: 4.3 | I5: 44 | J5: 7.41 | K5: 18 | L5: 45.3 | M5: 7.7 | N5: 26 | O5: 160 | P5: 590 | Q5: 250 | R5: 3300 | V5: 1000 | W5: grumligt
A6: 1 Sege å, vid Brännemölla, uppströms Svedala AR44427 | B6: 1 Sege å, vid Brännemölla, uppströms Svedala AR8 | C6: 3 | D6: 1 Sege å, vid Brännemölla, uppströms Svedala AR | E6: 2021-08-19 | G6: 14.5 | H6: 8.5 | I6: 84 | J6: 7.5 | K6: 14 | L6: 50.2 | M6: 5.6 | N6: 22 | O6: 120 | P6: 1100 | Q6: 130 | R6: 3000 | V6: 1310
A7: 1 Sege å, vid Brännemölla, uppströms Svedala AR44489 | B7: 1 Sege å, vid Brännemölla, uppströms Svedala AR10 | C7: 3 | D7: 1 Sege å, vid Brännemölla, uppströms Svedala AR | E7: 2021-10-20 | G7: 11.5 | H7: 7.5 | I7: 69 | J7: 7.62 | K7: 76 | L7: 54.5 | M7: 5.7 | N7: 21 | O7: 210 | P7: 5600 | Q7: 48 | R7: 7700 | V7: 1400
A8: 1 Sege å, vid Brännemölla, uppströms Svedala AR44550 | B8: 1 Sege å, vid Brännemölla, uppströms Svedala AR12 | C8: 3 | D8: 1 Sege å, vid Brännemölla, uppströms Svedala AR | E8: 2021-12-20 | G8: 1.3 | H8: 10.5 | I8: 74 | J8: 7.58 | K8: 20 | L8: 45.8 | M8: 5.8 | N8: 24 | O8: 120 | P8: 1900 | Q8: 650 | R8: 4400 | V8: 1430
A9: 2 Sege å, söder Krågeholm, nedströms Svedala AR44242 | B9: 2 Sege å, söder Krågeholm, nedströms Svedala AR2 | C9: 5 | D9: 2 Sege å, söder Krågeholm, nedströms Svedala AR | E9: 2021-02-15 | F9: 0.49 | G9: 1.2 | H9: 13.5 | I9: 95 | J9: 7.8 | K9: 15 | L9: 54.2 | M9: 5 | N9: 19 | O9: 86 | P9: 2900 | Q9: 300 | R9: 4100 | V9: 1600 | W9: is i kanten
A10: 2 Sege å, söder Krågeholm, nedströms Svedala AR44305 | B10: 2 Sege å, söder Krågeholm, nedströms Svedala AR4 | C10: 5 | D10: 2 Sege å, söder Krågeholm, nedströms Svedala AR | E10: 2021-04-19 | F10: 0.41 | G10: 9.5 | H10: 12 | I10: 105 | J10: 7.89 | K10: 11 | L10: 56.8 | M10: 6.1 | N10: 18 | O10: 69 | P10: 2100 | Q10: 68 | R10: 3400 | V10: 1030 | W10: grumligt
A11: 2 Sege å, söder Krågeholm, nedströms Svedala AR44362 | B11: 2 Sege å, söder Krågeholm, nedströms Svedala AR6 | C11: 5 | D11: 2 Sege å, söder Krågeholm, nedströms Svedala AR | E11: 2021-06-15 | F11: 0.06 | G11: 16.4 | H11: 8 | I11: 82 | J11: 7.76 | K11: 15 | L11: 63.8 | M11: 7.6 | N11: 16 | O11: 150 | P11: 1100 | Q11: 700 | R11: 3400 | V11: 1020 | W11: grumligt
A12: 2 Sege å, söder Krågeholm, nedströms Svedala AR44427 | B12: 2 Sege å, söder Krågeholm, nedströms Svedala AR8 | C12: 5 | D12: 2 Sege å, söder Krågeholm, nedströms Svedala AR | E12: 2021-08-19 | F12: 0.17 | G12: 16.5 | H12: 8.5 | I12: 87 | J12: 7.71 | K12: 7.2 | L12: 44.9 | M12: 4 | N12: 11 | O12: 120 | P12: 1300 | Q12: 76 | R12: 2300 | V12: 1330
A13: 2 Sege å, söder Krågeholm, nedströms Svedala AR44489 | B13: =CONCATENATE(D13,MONTH(E13)) -> 2 Sege å, söder Krågeholm, nedströms Svedala AR10 | C13: 5 | D13: 2 Sege å, söder Krågeholm, nedströms Svedala AR | E13: 2021-10-20 | F13: 0.23 | G13: 12.9 | H13: 7.9 | I13: 75 | J13: 7.61 | K13: 39 | L13: 54.1 | M13: 4.6 | N13: 11 | O13: 150 | P13: 2900 | Q13: 160 | R13: 4400 | V13: 1430
A14: 2 Sege å, söder Krågeholm, nedströms Svedala AR44550 | B14: 2 Sege å, söder Krågeholm, nedströms Svedala AR12 | C14: 5 | D14: 2 Sege å, söder Krågeholm, nedströms Svedala AR | E14: 2021-12-20 | F14: 1.1 | G14: 2.7 | H14: 11.5 | I14: 85 | J14: 7.66 | K14: 19 | L14: 52.2 | M14: 6.6 | N14: 17 | O14: 170 | P14: 2700 | Q14: 580 | R14: 4800 | V14: 1445
A15: 9 Sege å, vid Lilla Mölleberga44242 | B15: 9 Sege å, vid Lilla Mölleberga2 | C15: 7 | D15: 9 Sege å, vid Lilla Mölleberga | E15: 2021-02-15 | G15: 0 | H15: 14 | I15: 96 | J15: 7.92 | K15: 11 | L15: 68.3 | N15: 16 | O15: 83 | P15: 3300 | Q15: 300 | R15: 3900 | V15: 1445 | W15: istäckt
A16: 9 Sege å, vid Lilla Mölleberga44305 | B16: 9 Sege å, vid Lilla Mölleberga4 | C16: 7 | D16: 9 Sege å, vid Lilla Mölleberga | E16: 2021-04-19 | G16: 9.5 | H16: 11 | I16: 97 | J16: 8 | K16: 8.2 | L16: 63.8 | N16: 15 | O16: 77 | P16: 2100 | Q16: <10 | R16: 2900 | V16: 920
A17: 9 Sege å, vid Lilla Mölleberga44362 | B17: 9 Sege å, vid Lilla Mölleberga6 | C17: 7 | D17: 9 Sege å, vid Lilla Mölleberga | E17: 2021-06-15 | G17: 16.6 | H17: 7.6 | I17: 78 | J17: 7.81 | K17: 8.8 | L17: 65.6 | N17: 13 | O17: 120 | P17: 1100 | Q17: 39 | R17: 2100 | V17: 845
A18: 9 Sege å, vid Lilla Mölleberga44427 | B18: 9 Sege å, vid Lilla Mölleberga8 | C18: 7 | D18: 9 Sege å, vid Lilla Mölleberga | E18: 2021-08-19 | G18: 15 | H18: 7 | I18: 70 | J18: 7.7 | K18: 6.3 | L18: 35.4 | N18: 7.7 | O18: 120 | P18: 920 | Q18: 83 | R18: 1600 | V18: 1220
A19: 9 Sege å, vid Lilla Mölleberga44489 | B19: 9 Sege å, vid Lilla Mölleberga10 | C19: 7 | D19: 9 Sege å, vid Lilla Mölleberga | E19: 2021-10-20 | G19: 11.9 | H19: 8.1 | I19: 75 | J19: 7.9 | K19: 5.6 | L19: 66.2 | N19: 8.3 | O19: 81 | P19: 2000 | Q19: 18 | R19: 2900 | V19: 1255
A20: 9 Sege å, vid Lilla Mölleberga44550 | B20: 9 Sege å, vid Lilla Mölleberga12 | C20: 7 | D20: 9 Sege å, vid Lilla Mölleberga | E20: 2021-12-20 | G20: 2.9 | H20: 12.2 | I20: 90 | J20: 7.97 | K20: 12 | L20: 61.3 | N20: 16 | O20: 93 | P20: 3600 | Q20: 310 | R20: 4200 | V20: 1330
A21: 18 Sege å, nordväst Valdemarsro, järnvägsbron44242 | B21: 18 Sege å, nordväst Valdemarsro, järnvägsbron2 | C21: 9 | D21: 18 Sege å, nordväst Valdemarsro, järnvägsbron | E21: 2021-02-15 | G21: 0.1 | H21: 13.5 | I21: 92 | J21: 7.89 | K21: 14 | L21: 78.2 | N21: 14 | O21: 99 | P21: 4300 | Q21: 240 | R21: 4800 | V21: 1400 | W21: is i kanten
A22: 18 Sege å, nordväst Valdemarsro, järnvägsbron44305 | B22: 18 Sege å, nordväst Valdemarsro, järnvägsbron4 | C22: 9 | D22: 18 Sege å, nordväst Valdemarsro, järnvägsbron | E22: 2021-04-19 | G22: 9.5 | H22: 10.4 | I22: 91 | J22: 8 | K22: 6.7 | L22: 70.1 | N22: 13 | O22: 62 | P22: 2400 | Q22: 14 | R22: 3200 | V22: 840
A23: 18 Sege å, nordväst Valdemarsro, järnvägsbron44362 | B23: 18 Sege å, nordväst Valdemarsro, järnvägsbron6 | C23: 9 | D23: 18 Sege å, nordväst Valdemarsro, järnvägsbron | E23: 2021-06-15 | G23: 17.2 | H23: 5.7 | I23: 59 | J23: 7.78 | K23: 4.1 | L23: 73.5 | N23: 12 | O23: 94 | P23: 850 | Q23: 87 | R23: 1700 | V23: 810
A24: 18 Sege å, nordväst Valdemarsro, järnvägsbron44427 | B24: 18 Sege å, nordväst Valdemarsro, järnvägsbron8 | C24: 9 | D24: 18 Sege å, nordväst Valdemarsro, järnvägsbron | E24: 2021-08-19 | G24: 15.6 | H24: 6.6 | I24: 66 | J24: 7.63 | K24: 8.6 | L24: 45.1 | N24: 7 | O24: 100 | P24: 830 | Q24: 35 | R24: 1200 | V24: 1140
A25: 18 Sege å, nordväst Valdemarsro, järnvägsbron44489 | B25: 18 Sege å, nordväst Valdemarsro, järnvägsbron10 | C25: 9 | D25: 18 Sege å, nordväst Valdemarsro, järnvägsbron | E25: 2021-10-20 | G25: 12 | H25: 8.3 | I25: 77 | J25: 7.89 | K25: 8.7 | L25: 59.6 | N25: 7.9 | O25: 84 | P25: 1800 | Q25: 50 | R25: 2600 | V25: 1200
A26: 18 Sege å, nordväst Valdemarsro, järnvägsbron44550 | B26: 18 Sege å, nordväst Valdemarsro, järnvägsbron12 | C26: 9 | D26: 18 Sege å, nordväst Valdemarsro, järnvägsbron | E26: 2021-12-20 | G26: 3.4 | H26: 11.5 | I26: 86 | J26: 7.98 | K26: 11 | L26: 69.4 | N26: 14 | O26: 90 | P26: 5200 | Q26: 170 | R26: 5600 | V26: 1300
A27: 21 Spångholmsbäcken, vid utlopp till Sege å44242 | B27: 21 Spångholmsbäcken, vid utlopp till Sege å2 | C27: 11 | D27: 21 Spångholmsbäcken, vid utlopp till Sege å | E27: 2021-02-15 | G27: 0 | H27: 13.5 | I27: 92 | J27: 7.9 | K27: 11 | L27: 68.7 | N27: 16 | O27: 72 | P27: 1500 | Q27: 640 | R27: 3100 | V27: 1500 | W27: istäckt
A28: 21 Spångholmsbäcken, vid utlopp till Sege å44305 | B28: 21 Spångholmsbäcken, vid utlopp till Sege å4 | C28: 11 | D28: 21 Spångholmsbäcken, vid utlopp till Sege å | E28: 2021-04-19 | G28: 8.6 | H28: 11 | I28: 95 | J28: 7.85 | K28: 7 | L28: 63.9 | N28: 15 | O28: 60 | P28: 1200 | Q28: 50 | R28: 2100 | V28: 930
A29: 21 Spångholmsbäcken, vid utlopp till Sege å44362 | B29: 21 Spångholmsbäcken, vid utlopp till Sege å6 | C29: 11 | D29: 21 Spångholmsbäcken, vid utlopp till Sege å | E29: 2021-06-15 | G29: 14.6 | H29: 6.2 | I29: 61 | J29: 7.7 | K29: 7.7 | L29: 77.5 | N29: 8.6 | O29: 120 | P29: 1000 | Q29: 91 | R29: 1700 | V29: 900
A30: 21 Spångholmsbäcken, vid utlopp till Sege å44427 | B30: 21 Spångholmsbäcken, vid utlopp till Sege å8 | C30: 11 | D30: 21 Spångholmsbäcken, vid utlopp till Sege å | E30: 2021-08-19 | G30: 15 | H30: 9.5 | I30: 94 | J30: 7.7 | K30: 4.3 | L30: 59.2 | N30: 7.8 | O30: 130 | P30: 1600 | Q30: 86 | R30: 2100 | V30: 1230
A31: 21 Spångholmsbäcken, vid utlopp till Sege å44489 | B31: 21 Spångholmsbäcken, vid utlopp till Sege å10 | C31: 11 | D31: 21 Spångholmsbäcken, vid utlopp till Sege å | E31: 2021-10-20 | G31: 12.4 | H31: 7.2 | I31: 68 | J31: 7.73 | K31: 4.2 | L31: 62 | N31: 7.1 | O31: 66 | P31: 1500 | Q31: 28 | R31: 2200 | V31: 1300
A32: 21 Spångholmsbäcken, vid utlopp till Sege å44550 | B32: 21 Spångholmsbäcken, vid utlopp till Sege å12 | C32: 11 | D32: 21 Spångholmsbäcken, vid utlopp till Sege å | E32: 2021-12-20 | G32: 2.4 | H32: 12.1 | I32: 88 | J32: 7.94 | K32: 7.9 | L32: 58.3 | N32: 16 | O32: 66 | P32: 1400 | Q32: 390 | R32: 2600 | V32: 1345
A33: 22b Spångholmsbäcken, bron vid Torupsvägen44242 | B33: 22b Spångholmsbäcken, bron vid Torupsvägen2 | C33: 13 | D33: 22b Spångholmsbäcken, bron vid Torupsvägen | E33: 2021-02-15 | G33: 0.1 | H33: 13.8 | I33: 95 | J33: 7.91 | K33: 6.6 | L33: 62.9 | N33: 18 | O33: 55 | P33: 1400 | Q33: 910 | R33: 3000 | V33: 1510 | W33: is i kanten
A34: 22b Spångholmsbäcken, bron vid Torupsvägen44305 | B34: 22b Spångholmsbäcken, bron vid Torupsvägen4 | C34: 13 | D34: 22b Spångholmsbäcken, bron vid Torupsvägen | E34: 2021-04-19 | G34: 9.1 | H34: 11.5 | I34: 100 | J34: 7.83 | K34: 4.3 | L34: 58.8 | N34: 18 | O34: 52 | P34: 1200 | Q34: 180 | R34: 2300 | V34: 950
A35: =TRIM(CONCATENATE(D35,E35)) -> 22b Spångholmsbäcken, bron vid Torupsvägen44362 | B35: 22b Spångholmsbäcken, bron vid Torupsvägen6 | C35: 13 | D35: 22b Spångholmsbäcken, bron vid Torupsvägen | E35: 2021-06-15 | G35: 14.5 | H35: 5.4 | I35: 53 | J35: 7.68 | K35: 5.8 | L35: 74.8 | N35: 11 | O35: 76 | P35: 1900 | Q35: 130 | R35: 4100 | V35: 920
A36: 22b Spångholmsbäcken, bron vid Torupsvägen44427 | B36: 22b Spångholmsbäcken, bron vid Torupsvägen8 | C36: 13 | D36: 22b Spångholmsbäcken, bron vid Torupsvägen | E36: 2021-08-19 | G36: 14.4 | H36: 5.7 | I36: 56 | J36: 7.66 | K36: 3.4 | L36: 73.5 | N36: 9.7 | O36: 68 | P36: 4500 | Q36: 40 | R36: 5200 | V36: 1240
A37: 22b Spångholmsbäcken, bron vid Torupsvägen44489 | B37: 22b Spångholmsbäcken, bron vid Torupsvägen10 | C37: 13 | D37: 22b Spångholmsbäcken, bron vid Torupsvägen | E37: 2021-10-20 | G37: 12.4 | H37: 7.8 | I37: 73 | J37: 7.63 | K37: 3.9 | L37: 80.1 | N37: 13 | O37: 64 | P37: 5100 | Q37: 15 | R37: 6400 | V37: 1315
A38: 22b Spångholmsbäcken, bron vid Torupsvägen44550 | B38: 22b Spångholmsbäcken, bron vid Torupsvägen12 | C38: 13 | D38: 22b Spångholmsbäcken, bron vid Torupsvägen | E38: 2021-12-20 | G38: 2 | H38: 12.5 | I38: 90 | J38: 7.94 | K38: 6.3 | L38: 54.5 | N38: 17 | O38: 64 | P38: 920 | Q38: 520 | R38: 3000 | V38: 1355
A39: 23 Spångholmsbäcken, uppströms Torupsdammen44242 | B39: 23 Spångholmsbäcken, uppströms Torupsdammen2 | C39: 15 | D39: 23 Spångholmsbäcken, uppströms Torupsdammen | E39: 2021-02-15 | G39: 0 | H39: 14.3 | I39: 98 | J39: 8.01 | K39: 10 | L39: 59 | N39: 18 | O39: 62 | P39: 760 | Q39: 980 | R39: 3000 | V39: 1520 | W39: istäckt
A40: 23 Spångholmsbäcken, uppströms Torupsdammen44305 | B40: 23 Spångholmsbäcken, uppströms Torupsdammen4 | C40: 15 | D40: 23 Spångholmsbäcken, uppströms Torupsdammen | E40: 2021-04-19 | G40: 9.4 | H40: 11.1 | I40: 97 | J40: 7.99 | K40: 3.1 | L40: 56.4 | N40: 18 | O40: 53 | P40: 590 | Q40: 410 | R40: 2100 | V40: 1010
A41: 23 Spångholmsbäcken, uppströms Torupsdammen44362 | B41: 23 Spångholmsbäcken, uppströms Torupsdammen6 | C41: 15 | D41: 23 Spångholmsbäcken, uppströms Torupsdammen | E41: 2021-06-15 | G41: 14.6 | H41: 3.9 | I41: 38 | J41: 7.58 | K41: 5.3 | L41: 65 | N41: 15 | O41: 220 | P41: 45 | Q41: 570 | R41: 1700 | V41: 940
A42: 23 Spångholmsbäcken, uppströms Torupsdammen44427 | B42: 23 Spångholmsbäcken, uppströms Torupsdammen8 | C42: 15 | D42: 23 Spångholmsbäcken, uppströms Torupsdammen | E42: 2021-08-19 | G42: 15.6 | H42: 7.1 | I42: 72 | J42: 7.77 | K42: 12 | L42: 60.9 | N42: 7.1 | O42: 110 | P42: 2900 | Q42: 31 | R42: 3500 | V42: 1250
A43: 23 Spångholmsbäcken, uppströms Torupsdammen44489 | B43: 23 Spångholmsbäcken, uppströms Torupsdammen10 | C43: 15 | D43: 23 Spångholmsbäcken, uppströms Torupsdammen | E43: 2021-10-20 | G43: 12.8 | H43: 7.6 | I43: 72 | J43: 7.51 | K43: 1.5 | L43: 70.1 | N43: 17 | O43: 94 | P43: 360 | Q43: 45 | R43: 1600 | V43: 1330
A44: 23 Spångholmsbäcken, uppströms Torupsdammen44550 | B44: 23 Spångholmsbäcken, uppströms Torupsdammen12 | C44: 15 | D44: 23 Spångholmsbäcken, uppströms Torupsdammen | E44: 2021-12-20 | G44: 1.9 | H44: 12.2 | I44: 88 | J44: 8.19 | K44: 7.3 | L44: 52.2 | N44: 19 | O44: 66 | P44: 310 | Q44: 540 | R44: 2000 | V44: 1410
A45: 10 Torrebergabäcken, vägbron nordost Mölleberga44242 | B45: 10 Torrebergabäcken, vägbron nordost Mölleberga2 | C45: 17 | D45: 10 Torrebergabäcken, vägbron nordost Mölleberga | E45: 2021-02-15 | G45: 0 | H45: 11.5 | I45: 79 | J45: 7.67 | K45: 9.6 | L45: 78.9 | N45: 12 | O45: 140 | P45: 6900 | Q45: 210 | R45: 6700 | V45: 1430 | W45: istäckt
A46: 10 Torrebergabäcken, vägbron nordost Mölleberga44305 | B46: 10 Torrebergabäcken, vägbron nordost Mölleberga4 | C46: 17 | D46: 10 Torrebergabäcken, vägbron nordost Mölleberga | E46: 2021-04-19 | G46: 8.9 | H46: 9.8 | I46: 85 | J46: 7.84 | K46: 5.3 | L46: 66 | N46: 14 | O46: 66 | P46: 2900 | Q46: 20 | R46: 3600 | V46: 910
A47: 10 Torrebergabäcken, vägbron nordost Mölleberga44362 | B47: 10 Torrebergabäcken, vägbron nordost Mölleberga6 | C47: 17 | D47: 10 Torrebergabäcken, vägbron nordost Mölleberga | E47: 2021-06-15 | G47: 17.1 | H47: 3.4 | I47: 35 | J47: 7.52 | K47: 11 | L47: 64.8 | N47: 12 | O47: 150 | P47: 750 | Q47: 100 | R47: 1700 | V47: 830
A48: 10 Torrebergabäcken, vägbron nordost Mölleberga44427 | B48: 10 Torrebergabäcken, vägbron nordost Mölleberga8 | C48: 17 | D48: 10 Torrebergabäcken, vägbron nordost Mölleberga | E48: 2021-08-19 | G48: 15.6 | H48: 3.9 | I48: 39 | J48: 7.56 | K48: 5.6 | L48: 28.3 | N48: 6.5 | O48: 140 | P48: 390 | Q48: 36 | R48: 890 | V48: 1210
A49: 10 Torrebergabäcken, vägbron nordost Mölleberga44489 | B49: 10 Torrebergabäcken, vägbron nordost Mölleberga10 | C49: 17 | D49: 10 Torrebergabäcken, vägbron nordost Mölleberga | E49: 2021-10-20 | G49: 11.5 | H49: 5.7 | I49: 52 | J49: 7.65 | K49: 5.2 | L49: 71.3 | N49: 13 | O49: 98 | P49: 2400 | Q49: 59 | R49: 3200 | V49: 1245
A50: 10 Torrebergabäcken, vägbron nordost Mölleberga44550 | B50: 10 Torrebergabäcken, vägbron nordost Mölleberga12 | C50: 17 | D50: 10 Torrebergabäcken, vägbron nordost Mölleberga | E50: 2021-12-20 | G50: 2.6 | H50: 10 | I50: 74 | J50: 7.81 | K50: 7 | L50: 70.8 | N50: 16 | O50: 85 | P50: 7700 | Q50: 160 | R50: 7300 | V50: 1315
A51: 15 Risebergabäcken, ca 250 m uppströms från Sege å44242 | B51: 15 Risebergabäcken, ca 250 m uppströms från Sege å2 | C51: 18 | D51: 15 Risebergabäcken, ca 250 m uppströms från Sege å | E51: 2021-02-15 | G51: 0.9 | H51: 14.5 | I51: 102 | J51: 8.24 | K51: 2.6 | L51: 115 | N51: 5.2 | O51: 31 | P51: 1600 | Q51: 37 | R51: 3600 | V51: 1410
A52: 15 Risebergabäcken, ca 250 m uppströms från Sege å44305 | B52: 15 Risebergabäcken, ca 250 m uppströms från Sege å4 | C52: 18 | D52: 15 Risebergabäcken, ca 250 m uppströms från Sege å | E52: 2021-04-19 | G52: 9.5 | H52: 12.2 | I52: 107 | J52: 8.06 | K52: 3.2 | L52: 104 | N52: 5.5 | O52: 32 | P52: 2000 | Q52: 37 | R52: 2300 | V52: 850
A53: 15 Risebergabäcken, ca 250 m uppströms från Sege å44362 | B53: 15 Risebergabäcken, ca 250 m uppströms från Sege å6 | C53: 18 | D53: 15 Risebergabäcken, ca 250 m uppströms från Sege å | E53: 2021-06-15 | G53: 13.8 | H53: 8.5 | I53: 82 | J53: 8 | K53: 5.5 | L53: 111 | N53: 4.1 | O53: 63 | P53: 1100 | Q53: 140 | R53: 1600 | V53: 820
A54: 15 Risebergabäcken, ca 250 m uppströms från Sege å44427 | B54: 15 Risebergabäcken, ca 250 m uppströms från Sege å8 | C54: 18 | D54: 15 Risebergabäcken, ca 250 m uppströms från Sege å | E54: 2021-08-19 | G54: 15.5 | H54: 5.8 | I54: 58 | J54: 7.96 | K54: 32 | L54: 63.8 | N54: 7.1 | O54: 110 | P54: 2900 | Q54: 31 | R54: 3500 | V54: 1150
A55: 15 Risebergabäcken, ca 250 m uppströms från Sege å44489 | B55: 15 Risebergabäcken, ca 250 m uppströms från Sege å10 | C55: 18 | D55: 15 Risebergabäcken, ca 250 m uppströms från Sege å | E55: 2021-10-20 | G55: 13.3 | H55: 9.5 | I55: 91 | J55: 7.88 | K55: 16 | L55: 40.9 | N55: 4.5 | O55: 91 | P55: 1500 | Q55: 100 | R55: 1700 | V55: 1215
A56: 15 Risebergabäcken, ca 250 m uppströms från Sege å44550 | B56: 15 Risebergabäcken, ca 250 m uppströms från Sege å12 | C56: 18 | D56: 15 Risebergabäcken, ca 250 m uppströms från Sege å | E56: 2021-12-20 | G56: 7 | H56: 11.1 | I56: 92 | J56: 8.14 | K56: 4.5 | L56: 110 | N56: 5.7 | O56: 56 | P56: 4900 | Q56: 120 | R56: 5000 | V56: 1305
A57: 31 Börringesjön44333 | B57: 31 Börringesjön5 | C57: 20 | D57: 31 Börringesjön | E57: 2021-05-17 | G57: 16.3 | H57: 13.3 | I57: 136 | J57: 8.82 | K57: 36 | L57: 38.6 | N57: 20 | O57: 77 | P57: <10 | Q57: <10 | R57: 2300 | S57: 62 | T57: 0.3 | U57: 0.3 | V57: 1000 | W57: gröngrumligt
A58: 31 Börringesjön44361 | B58: 31 Börringesjön6 | C58: 20 | D58: 31 Börringesjön | E58: 2021-06-14 | G58: 19.2 | H58: 9.7 | I58: 105 | J58: 8.67 | K58: 42 | L58: 39.3 | N58: 26 | O58: 96 | P58: <10 | Q58: <10 | R58: 2800 | S58: 54 | T58: 0.3 | U58: 0.3 | V58: 950 | W58: gulgrumligt
A59: 31 Börringesjön44390 | B59: 31 Börringesjön7 | C59: 20 | D59: 31 Börringesjön | E59: 2021-07-13 | G59: 21.6 | H59: 10.1 | I59: 114 | J59: 8.83 | K59: 30 | L59: 37.8 | N59: 22 | O59: 75 | P59: <10 | Q59: <10 | R59: 2200 | S59: 40 | T59: 0.4 | U59: 0.4 | V59: 920 | W59: gulgrumligt
A60: 31 Börringesjön44426 | B60: 31 Börringesjön8 | C60: 20 | D60: 31 Börringesjön | E60: 2021-08-18 | G60: 16.2 | H60: 10 | I60: 102 | J60: 8.48 | K60: 34 | L60: 35.4 | N60: 20 | O60: 74 | P60: <10 | Q60: <10 | R60: 2100 | S60: 43 | T60: 0.3 | U60: 0.3 | V60: 1100 | W60: gulgrumligt
A61: 31 Börringesjön44459 | B61: 31 Börringesjön9 | C61: 20 | D61: 31 Börringesjön | E61: 2021-09-20 | G61: 14.1 | H61: 11 | I61: 107 | J61: 8.58 | K61: 37 | L61: 37.1 | N61: 26 | O61: 98 | P61: <10 | Q61: <10 | R61: 2900 | S61: 80 | T61: 0.3 | U61: 0.3 | V61: 930 | W61: gulgrumligt
A62: 32 Fjällfotasjön44333 | B62: 32 Fjällfotasjön5 | C62: 22 | D62: 32 Fjällfotasjön | E62: 2021-05-17 | G62: 16.4 | H62: 10.6 | I62: 109 | J62: 8.87 | K62: 8.9 | L62: 31.4 | N62: 25 | O62: 52 | P62: <10 | Q62: <10 | R62: 1900 | S62: 28 | T62: 0.6 | U62: 0.6 | V62: 930 | W62: brungrumligt
A63: 32 Fjällfotasjön44361 | B63: 32 Fjällfotasjön6 | C63: 22 | D63: 32 Fjällfotasjön | E63: 2021-06-14 | G63: 19.4 | H63: 9.9 | I63: 108 | J63: 9.06 | K63: 16 | L63: 33 | N63: 28 | O63: 76 | P63: <10 | Q63: <10 | R63: 2200 | S63: 38 | T63: 0.6 | U63: 0.5 | V63: 900 | W63: gröngrumligt
A64: 32 Fjällfotasjön44390 | B64: 32 Fjällfotasjön7 | C64: 22 | D64: 32 Fjällfotasjön | E64: 2021-07-13 | G64: 22.1 | H64: 9.6 | I64: 110 | J64: 8.82 | K64: 13 | L64: 32.3 | N64: 29 | O64: 54 | P64: <10 | Q64: 14 | R64: 1900 | S64: 25 | T64: 0.6 | U64: 0.5 | V64: 830 | W64: gröngrumligt
A65: 32 Fjällfotasjön44426 | B65: 32 Fjällfotasjön8 | C65: 22 | D65: 32 Fjällfotasjön | E65: 2021-08-18 | G65: 16.6 | H65: 8.9 | I65: 92 | J65: 8.12 | K65: 12 | L65: 32.4 | N65: 27 | O65: 70 | P65: <10 | Q65: 11 | R65: 2000 | S65: 23 | T65: 0.8 | U65: 0.7 | V65: 1000 | W65: ganska klart vatten
A66: 32 Fjällfotasjön44459 | B66: 32 Fjällfotasjön9 | C66: 22 | D66: 32 Fjällfotasjön | E66: 2021-09-20 | G66: 14.6 | H66: 10.1 | I66: 100 | J66: 8.16 | K66: 8.5 | L66: 34 | N66: 26 | O66: 51 | P66: <10 | Q66: 170 | R66: 2100 | S66: 28 | T66: 0.7 | U66: 0.6 | V66: 845 | W66: gröngrumligt
A67: =TRIM(CONCATENATE(D67,E67)) -> 33 Yddingen44333 | B67: 33 Yddingen5 | C67: 24 | D67: 33 Yddingen | E67: 2021-05-17 | G67: 16.1 | H67: 13.4 | I67: 136 | J67: 8.75 | K67: 14 | L67: 49.5 | N67: 21 | O67: 40 | P67: <10 | Q67: <10 | R67: 2000 | S67: 90 | T67: 0.55 | U67: 0.5 | V67: 800 | W67: gulgrumligt
A68: 33 Yddingen44361 | B68: 33 Yddingen6 | C68: 24 | D68: 33 Yddingen | E68: 2021-06-14 | G68: 20.1 | H68: 8.3 | I68: 91 | J68: 8.44 | K68: 14 | L68: 48.6 | N68: 22 | O68: 54 | P68: <10 | Q68: <10 | R68: 1900 | S68: 40 | T68: 0.55 | U68: 0.5 | V68: 800 | W68: brungrumligt
A69: 33 Yddingen44390 | B69: 33 Yddingen7 | C69: 24 | D69: 33 Yddingen | E69: 2021-07-13 | G69: 21.9 | H69: 9 | I69: 102 | J69: 8.63 | K69: 14 | L69: 49.5 | N69: 21 | O69: 47 | P69: <10 | Q69: <10 | R69: 1700 | S69: 36 | T69: 0.4 | U69: 0.4 | V69: 745 | W69: gulgrumligt
A70: 33 Yddingen44426 | B70: 33 Yddingen8 | C70: 24 | D70: 33 Yddingen | E70: 2021-08-18 | G70: 17 | H70: 8.8 | I70: 91 | J70: 8.27 | K70: 22 | L70: 50.5 | N70: 20 | O70: 74 | P70: <10 | Q70: <10 | R70: 2100 | S70: 43 | T70: 0.6 | U70: 0.6 | V70: 845 | W70: grumligt
A71: 33 Yddingen44459 | B71: 33 Yddingen9 | C71: 24 | D71: 33 Yddingen | E71: 2021-09-20 | G71: 15.2 | H71: 9.6 | I71: 96 | J71: 8.25 | K71: 17 | L71: 49.8 | N71: 20 | O71: 63 | P71: <50 | Q71: <10 | R71: 2300 | S71: 82 | T71: 0.55 | U71: 0.5 | V71: 800 | W71: brungrumligt
A72: 34 Havgårdssjön44333 | B72: 34 Havgårdssjön5 | C72: 26 | D72: 34 Havgårdssjön | E72: 2021-05-17 | G72: 16.1 | H72: 9.3 | I72: 95 | J72: 8.31 | K72: 3.7 | L72: 30.8 | N72: 7.6 | O72: 42 | P72: 180 | Q72: 39 | R72: 1000 | S72: 4.2 | T72: 2 | U72: 1.8 | V72: 1030 | W72: ganska klart vatten
A73: 34 Havgårdssjön44361 | B73: 34 Havgårdssjön6 | C73: 26 | D73: 34 Havgårdssjön | E73: 2021-06-14 | G73: 19.1 | H73: 8.7 | I73: 94 | J73: 8.23 | K73: 4.7 | L73: 30.6 | N73: 10 | O73: 56 | P73: 84 | Q73: 130 | R73: 1100 | S73: 8 | T73: 2 | U73: 1.8 | V73: 1030 | W73: klart vatten
A74: 34 Havgårdssjön44390 | B74: 34 Havgårdssjön7 | C74: 26 | D74: 34 Havgårdssjön | E74: 2021-07-13 | G74: 22.1 | H74: 9 | I74: 103 | J74: 8.41 | K74: 3.6 | L74: 28 | N74: 9.3 | O74: 45 | P74: <10 | Q74: 24 | R74: 920 | S74: 8.2 | T74: 2.2 | U74: 2 | V74: 1000 | W74: klart vatten
A75: 34 Havgårdssjön44426 | B75: 34 Havgårdssjön8 | C75: 26 | D75: 34 Havgårdssjön | E75: 2021-08-18 | G75: 18.3 | H75: 9.9 | I75: 105 | J75: 8.47 | K75: 6.2 | L75: 25.6 | N75: 10 | O75: 58 | P75: 48 | Q75: <10 | R75: 1200 | S75: 17 | T75: 1.5 | U75: 1.3 | V75: 1400 | W75: klart vatten
A76: 34 Havgårdssjön44459 | B76: 34 Havgårdssjön9 | C76: 26 | D76: 34 Havgårdssjön | E76: 2021-09-20 | G76: 16 | H76: 11 | I76: 112 | J76: 8.32 | K76: 6.5 | L76: 26.9 | N76: 9.3 | O76: 54 | P76: <10 | Q76: 120 | R76: 1200 | S76: 26 | T76: 1.4 | U76: 1.2 | V76: 1000 | W76: gröngrumligt
A77: 35 Eksholmssjön44426 | B77: =CONCATENATE(D77,MONTH(E77)) -> 35 Eksholmssjön8 | C77: 28 | D77: 35 Eksholmssjön | E77: 2021-08-18 | G77: 18 | H77: 8.7 | I77: 92 | J77: 7.14 | K77: 7 | L77: 11 | N77: 23 | O77: 58 | P77: <10 | Q77: 10 | R77: 1100 | S77: 19 | T77: 1 | U77: 0.9 | V77: 1500 | W77: humöst
A78: A1 Alnarpsån, mynningen44242 | B78: A1 Alnarpsån, mynningen2 | C78: 30 | D78: A1 Alnarpsån, mynningen | E78: 2021-02-15 | G78: 0.1 | H78: 13.3 | I78: 91 | J78: 7.92 | K78: 18 | L78: 113 | N78: 5.6 | O78: 63 | P78: 5700 | Q78: 160 | R78: 5800 | V78: 1315 | W78: istäckt
A79: A1 Alnarpsån, mynningen44305 | B79: A1 Alnarpsån, mynningen4 | C79: 30 | D79: A1 Alnarpsån, mynningen | E79: 2021-04-19 | G79: 6.6 | H79: 18.5 | I79: 151 | J79: 7.73 | K79: 5.4 | L79: 100 | N79: 6 | O79: 52 | P79: 3400 | Q79: 26 | R79: 3900 | V79: 800
A80: A1 Alnarpsån, mynningen44362 | B80: A1 Alnarpsån, mynningen6 | C80: 30 | D80: A1 Alnarpsån, mynningen | E80: 2021-06-15 | G80: 16.4 | H80: 4.4 | I80: 45 | J80: 7.69 | K80: 5.4 | L80: 98.3 | N80: 6.9 | O80: 130 | P80: 2300 | Q80: 41 | R80: 2800 | V80: 750
A81: A1 Alnarpsån, mynningen44427 | B81: A1 Alnarpsån, mynningen8 | C81: 30 | D81: A1 Alnarpsån, mynningen | E81: 2021-08-19 | G81: 15.7 | H81: 5.5 | I81: 56 | J81: 7.55 | K81: 5.7 | L81: 78 | N81: 9.3 | O81: 120 | P81: 1700 | Q81: 68 | R81: 1900 | V81: 1120
A82: A1 Alnarpsån, mynningen44489 | B82: A1 Alnarpsån, mynningen10 | C82: 30 | D82: A1 Alnarpsån, mynningen | E82: 2021-10-20 | G82: 12.6 | H82: 7.2 | I82: 68 | J82: 7.7 | K82: 20 | L82: 50.3 | N82: 3.8 | O82: 110 | P82: 740 | Q82: 44 | R82: 1000 | V82: 1145
A83: A1 Alnarpsån, mynningen44550 | B83: A1 Alnarpsån, mynningen12 | C83: 30 | D83: A1 Alnarpsån, mynningen | E83: 2021-12-20 | G83: 4.4 | H83: 10.7 | I83: 83 | J83: 7.99 | K83: 3.4 | L83: 102 | N83: 5.8 | O83: 74 | P83: 12000 | Q83: 55 | R83: 12000 | V83: 1245
A84: A4 Alnarpsån, Coyetgården44242 | B84: A4 Alnarpsån, Coyetgården2 | C84: 32 | D84: A4 Alnarpsån, Coyetgården | E84: 2021-02-15 | G84: 0.1 | H84: 18.5 | I84: 127 | J84: 8.36 | K84: 8 | L84: 88.1 | N84: 3.4 | O84: 130 | P84: 6100 | Q84: 300 | R84: 6300 | V84: 1330 | W84: istäckt
A85: A4 Alnarpsån, Coyetgården44305 | B85: A4 Alnarpsån, Coyetgården4 | C85: 32 | D85: A4 Alnarpsån, Coyetgården | E85: 2021-04-19 | G85: 8.6 | H85: 8.6 | I85: 74 | J85: 8.17 | K85: 1.4 | L85: 86.1 | N85: 3.2 | O85: 16 | P85: 3800 | Q85: <10 | R85: 4400 | V85: 815
A86: A4 Alnarpsån, Coyetgården44362 | B86: A4 Alnarpsån, Coyetgården6 | C86: 32 | D86: A4 Alnarpsån, Coyetgården | E86: 2021-06-15 | G86: 14.3 | H86: 9.6 | I86: 94 | J86: 8.06 | K86: 2.1 | L86: 97 | N86: 5.2 | O86: 97 | P86: 1200 | Q86: 100 | R86: 1600 | V86: 730
A87: A4 Alnarpsån, Coyetgården44427 | B87: A4 Alnarpsån, Coyetgården8 | C87: 32 | D87: A4 Alnarpsån, Coyetgården | E87: 2021-08-19 | G87: 13.7 | H87: 6.1 | I87: 59 | J87: 8.2 | K87: 2.3 | L87: 49.5 | N87: 5.6 | O87: 72 | P87: 470 | Q87: 17 | R87: 800 | V87: 1100
A88: A4 Alnarpsån, Coyetgården44489 | B88: A4 Alnarpsån, Coyetgården10 | C88: 32 | D88: A4 Alnarpsån, Coyetgården | E88: 2021-10-20 | G88: 13.2 | H88: 9.1 | I88: 87 | J88: 7.75 | K88: 6 | L88: 49.1 | N88: 5.2 | O88: 110 | P88: 1000 | Q88: 25 | R88: 1500 | V88: 1130
A89: A4 Alnarpsån, Coyetgården44550 | B89: A4 Alnarpsån, Coyetgården12 | C89: 32 | D89: A4 Alnarpsån, Coyetgården | E89: 2021-12-20 | G89: 5.3 | H89: 12.2 | I89: 96 | J89: 8.17 | K89: 2.2 | L89: 88.1 | N89: 3.4 | O89: 90 | P89: 11000 | Q89: 19 | R89: 11000 | V89: 1230
B90: 1 | C90: 200
B91: 1 | C91: 200
B92: 1 | C92: 200
B93: 1 | C93: 200
B94: 1 | C94: 200
B95: 1 | C95: 200
B96: 1 | C96: 200
B97: 1 | C97: 200
B98: 1 | C98: 200
A99: =TRIM(CONCATENATE(D99,E99)) -> april | B99: april1 | C99: 250 | D99: april
A100: maj | B100: maj1 | C100: 250 | D100: maj
A101: juni | B101: juni1 | C101: 250 | D101: juni
A102: juli | B102: juli1 | C102: 250 | D102: juli
A103: augusti | B103: augusti1 | C103: 250 | D103: augusti
A104: september | B104: september1 | C104: 250 | D104: september
A105: oktober | B105: oktober1 | C105: 250 | D105: oktober
A106: december | B106: december1 | C106: 250 | D106: december
B107: 1
B108: 1
B109: 1
B110: 1
A111: =TRIM(CONCATENATE(D111,E111)) ->  | B111: =CONCATENATE(D111,MONTH(E111)) -> 1
B112: 1
B113: 1
B114: 1
B115: 1
B116: 1
B117: 1
B118: 1
B119: 1
B120: 1
B121: 1
B122: 1
B123: 1
B124: 1
B125: 1
B126: 1
B127: 1
B128: 1
B129: 1
B130: 1
B131: 1
B132: 1
B133: 1
B134: 1
B135: 1
B136: 1
B137: 1
B138: 1
B139: 1
B140: 1
B141: 1
B142: 1
B143: 1
B144: 1
B145: 1
B146: 1
B147: 1
B148: 1
B149: 1
B150: 1
B151: 1
B152: 1
B153: 1
B154: 1
B155: 1
B156: 1
B157: 1
B158: 1
B159: 1
B160: 1
B161: 1
B162: 1
B163: 1
B164: 1
B165: 1
B166: 1
B167: 1
B168: 1
B169: 1
B170: 1

Sheet Sorterat
B2: Sege å 2021
B3: Sorterat per provpunkt
D4: Värden < a räknas som a vid beräkning av statistik | AI4: <-värden omvandlade till värden. Medelvärde hämtas här
A5: Sorterings- | B5: Provtagningspunkt | C5: Provtagn | D5: Vattenf | E5: Temp | F5: Syreh | G5: Syrem | H5: pH | I5: Gruml | J5: Kond | K5: BOD7 | L5: TOC | M5: Tot-P | N5: NO3+2-N | O5: NH4-N | P5: Tot-N | Q5: Klor a | R5: Siktdj VK | S5: Siktdj | T5: Tid | U5: Anmärkning | V5: provtagare/projektledare | AI5: Vattenf | AJ5: Temp | AK5: Syreh | AL5: Syrem | AM5: pH | AN5: Gruml | AO5: Kond | AP5: BOD7 | AQ5: PO4-P | AR5: Tot-P | AS5: NO3+2-N | AT5: NH4-N | AU5: Tot-N | AV5: Abs,filt | AW5: Klor a | AX5: Siktdjup | AY5: Het-bakt. | AZ5: E coli | BA5: Int.het.
A6: ordning | B6: Nr Läge | C6: datum | D6: m3/s | E6: °C | F6: mg/l | G6: % | I6: FNU | J6: mS/m | K6: mg/l | L6: mg/l | M6: µg/l | N6: µg/l | O6: µg/l | P6: µg/l | Q6: mg/m3 | R6: m | S6: m | AI6: m3/s | AJ6: °C | AK6: mg/l | AL6: % | AN6: FNU | AO6: mS/m | AP6: mg/l | AQ6: µg/l | AR6: µg/l | AS6: µg/l | AT6: µg/l | AU6: µg/l | AV6: /5cm | AW6: mg/m3 | AX6: m | AY6: cfu/ml | AZ6: cfu/100ml | BA6: cfu/100 ml
A7: 3 | B7: 1 Sege å, vid Brännemölla, uppströms Svedala AR | C7: 2021-02-15 | E7: 0.4 | F7: 14 | G7: 97 | H7: 7.78 | I7: 12 | J7: 50.4 | K7: 4.9 | L7: 22 | M7: 65 | N7: 1800 | O7: 250 | P7: 3600 | T7: 1545 | U7: is i kanten | AJ7: 0.4 | AK7: 14 | AL7: 97 | AM7: 7.78 | AN7: 12 | AO7: 50.4 | AP7: =IF(OR(LEFT(K7,1)="<",LEFT(K7,1)=">"),VALUE(MID(K7,2,5)),K7) -> 4.9 | AQ7: =IF(OR(LEFT(L7,1)="<",LEFT(L7,1)=">"),VALUE(MID(L7,2,5)),L7) -> 22 | AR7: =IF(OR(LEFT(M7,1)="<",LEFT(M7,1)=">"),VALUE(MID(M7,2,5)),M7) -> 65 | AS7: =IF(OR(LEFT(N7,1)="<",LEFT(N7,1)=">"),VALUE(MID(N7,2,5)),N7) -> 1800 | AT7: =IF(OR(LEFT(O7,1)="<",LEFT(O7,1)=">"),VALUE(MID(O7,2,5)),O7) -> 250 | AU7: =IF(OR(LEFT(P7,1)="<",LEFT(P7,1)=">"),VALUE(MID(P7,2,5)),P7) -> 3600 | AV7: =IF(OR(LEFT(Q7,1)="<",LEFT(Q7,1)=">"),VALUE(MID(Q7,2,5)),Q7) ->  | AW7: =IF(OR(LEFT(R7,1)="<",LEFT(R7,1)=">"),VALUE(MID(R7,2,5)),R7) ->  | AX7: =IF(OR(LEFT(S7,1)="<",LEFT(S7,1)=">"),VALUE(MID(S7,2,5)),S7) ->  | AY7: =IF(OR(LEFT(#REF!,1)="<",LEFT(#REF!,1)=">"),VALUE(MID(#REF!,2,5)),#REF!) ->  | AZ7: =IF(OR(LEFT(#REF!,1)="<",LEFT(#REF!,1)=">"),VALUE(MID(#REF!,2,5)),#REF!) ->  | BA7: =IF(OR(LEFT(#REF!,1)="<",LEFT(#REF!,1)=">"),VALUE(MID(#REF!,2,5)),#REF!) -> 
A8: 3 | B8: 1 Sege å, vid Brännemölla, uppströms Svedala AR | C8: 2021-04-19 | E8: 9.8 | F8: 11.2 | G8: 99 | H8: 7.81 | I8: 11 | J8: 47.7 | K8: 6.3 | L8: 22 | M8: 66 | N8: 1300 | O8: <10 | P8: 2900 | T8: 1050 | U8: grumligt | AJ8: 9.8 | AK8: 11.2 | AL8: 99 | AM8: 7.81 | AN8: 11 | AO8: 47.7 | AP8: 6.3 | AQ8: 22 | AR8: 66 | AS8: 1300 | AT8: 10 | AU8: 2900 | AY8: =IF(OR(LEFT(#REF!,1)="<",LEFT(#REF!,1)=">"),VALUE(MID(#REF!,2,5)),#REF!) ->  | AZ8: =IF(OR(LEFT(#REF!,1)="<",LEFT(#REF!,1)=">"),VALUE(MID(#REF!,2,5)),#REF!) ->  | BA8: =IF(OR(LEFT(#REF!,1)="<",LEFT(#REF!,1)=">"),VALUE(MID(#REF!,2,5)),#REF!) -> 
A9: 3 | B9: 1 Sege å, vid Brännemölla, uppströms Svedala AR | C9: 2021-06-15 | E9: 16.4 | F9: 4.3 | G9: 44 | H9: 7.41 | I9: 18 | J9: 45.3 | K9: 7.7 | L9: 26 | M9: 160 | N9: 590 | O9: 250 | P9: 3300 | T9: 1000 | U9: grumligt | AJ9: 16.4 | AK9: 4.3 | AL9: 44 | AM9: 7.41 | AN9: 18 | AO9: 45.3 | AP9: 7.7 | AQ9: 26 | AR9: 160 | AS9: 590 | AT9: 250 | AU9: 3300 | AY9: =IF(OR(LEFT(#REF!,1)="<",LEFT(#REF!,1)=">"),VALUE(MID(#REF!,2,5)),#REF!) ->  | AZ9: =IF(OR(LEFT(#REF!,1)="<",LEFT(#REF!,1)=">"),VALUE(MID(#REF!,2,5)),#REF!) ->  | BA9: =IF(OR(LEFT(#REF!,1)="<",LEFT(#REF!,1)=">"),VALUE(MID(#REF!,2,5)),#REF!) -> 
A10: 3 | B10: 1 Sege å, vid Brännemölla, uppströms Svedala AR | C10: 2021-08-19 | E10: 14.5 | F10: 8.5 | G10: 84 | H10: 7.5 | I10: 14 | J10: 50.2 | K10: 5.6 | L10: 22 | M10: 120 | N10: 1100 | O10: 130 | P10: 3000 | T10: 1310 | AJ10: 14.5 | AK10: 8.5 | AL10: 84 | AM10: 7.5 | AN10: 14 | AO10: 50.2 | AP10: 5.6 | AQ10: 22 | AR10: 120 | AS10: 1100 | AT10: 130 | AU10: 3000 | AY10: =IF(OR(LEFT(#REF!,1)="<",LEFT(#REF!,1)=">"),VALUE(MID(#REF!,2,5)),#REF!) ->  | AZ10: =IF(OR(LEFT(#REF!,1)="<",LEFT(#REF!,1)=">"),VALUE(MID(#REF!,2,5)),#REF!) ->  | BA10: =IF(OR(LEFT(#REF!,1)="<",LEFT(#REF!,1)=">"),VALUE(MID(#REF!,2,5)),#REF!) -> 
A11: 3 | B11: 1 Sege å, vid Brännemölla, uppströms Svedala AR | C11: 2021-10-20 | E11: 11.5 | F11: 7.5 | G11: 69 | H11: 7.62 | I11: 76 | J11: 54.5 | K11: 5.7 | L11: 21 | M11: 210 | N11: 5600 | O11: 48 | P11: 7700 | T11: 1400 | AJ11: 11.5 | AK11: 7.5 | AL11: 69 | AM11: 7.62 | AN11: 76 | AO11: 54.5 | AP11: 5.7 | AQ11: 21 | AR11: 210 | AS11: 5600 | AT11: 48 | AU11: 7700 | AY11: =IF(OR(LEFT(#REF!,1)="<",LEFT(#REF!,1)=">"),VALUE(MID(#REF!,2,5)),#REF!) ->  | AZ11: =IF(OR(LEFT(#REF!,1)="<",LEFT(#REF!,1)=">"),VALUE(MID(#REF!,2,5)),#REF!) ->  | BA11: =IF(OR(LEFT(#REF!,1)="<",LEFT(#REF!,1)=">"),VALUE(MID(#REF!,2,5)),#REF!) -> 
A12: 3 | B12: 1 Sege å, vid Brännemölla, uppströms Svedala AR | C12: 2021-12-20 | E12: 1.3 | F12: 10.5 | G12: 74 | H12: 7.58 | I12: 20 | J12: 45.8 | K12: 5.8 | L12: 24 | M12: 120 | N12: 1900 | O12: 650 | P12: 4400 | T12: 1430 | AJ12: 1.3 | AK12: 10.5 | AL12: 74 | AM12: 7.58 | AN12: 20 | AO12: 45.8 | AP12: 5.8 | AQ12: 24 | AR12: 120 | AS12: 1900 | AT12: 650 | AU12: 4400 | AY12: =IF(OR(LEFT(#REF!,1)="<",LEFT(#REF!,1)=">"),VALUE(MID(#REF!,2,5)),#REF!) ->  | AZ12: =IF(OR(LEFT(#REF!,1)="<",LEFT(#REF!,1)=">"),VALUE(MID(#REF!,2,5)),#REF!) ->  | BA12: =IF(OR(LEFT(#REF!,1)="<",LEFT(#REF!,1)=">"),VALUE(MID(#REF!,2,5)),#REF!) -> 
C13: Medel | E13: 8.983333333 | F13: 9.333333333 | G13: 77.83333333 | H13: 7.616666667 | I13: 25.16666667 | J13: 48.98333333 | K13: 6 | L13: 22.83333333 | M13: 123.5 | N13: 2048.333333 | O13: 223 | P13: 4150 | AI13: 0 | AJ13: 8.983333333 | AK13: 9.333333333 | AL13: 77.83333333 | AM13: 7.616666667 | AN13: 25.16666667 | AO13: 48.98333333 | AP13: 6 | AQ13: 22.83333333 | AR13: 123.5 | AS13: 2048.333333 | AT13: 223 | AU13: 4150 | AV13: 0 | AW13: 0 | AX13: 0 | AY13: =IF(OR(LEFT(#REF!,1)="<",LEFT(#REF!,1)=">"),VALUE(MID(#REF!,2,5)),#REF!) ->  | AZ13: =IF(OR(LEFT(#REF!,1)="<",LEFT(#REF!,1)=">"),VALUE(MID(#REF!,2,5)),#REF!) ->  | BA13: =IF(OR(LEFT(#REF!,1)="<",LEFT(#REF!,1)=">"),VALUE(MID(#REF!,2,5)),#REF!) -> 
C14: Max | E14: 16.4 | F14: 14 | G14: 99 | H14: 7.81 | I14: 76 | J14: 54.5 | K14: 7.7 | L14: 26 | M14: 210 | N14: 5600 | O14: 650 | P14: 7700 | AI14: 0 | AJ14: 16.4 | AK14: 14 | AL14: 99 | AM14: 7.81 | AN14: 76 | AO14: 54.5 | AP14: 7.7 | AQ14: 26 | AR14: 210 | AS14: 5600 | AT14: 650 | AU14: 7700 | AV14: 0 | AW14: 0 | AX14: 0 | AY14: =IF(OR(LEFT(#REF!,1)="<",LEFT(#REF!,1)=">"),VALUE(MID(#REF!,2,5)),#REF!) ->  | AZ14: =IF(OR(LEFT(#REF!,1)="<",LEFT(#REF!,1)=">"),VALUE(MID(#REF!,2,5)),#REF!) ->  | BA14: =IF(OR(LEFT(#REF!,1)="<",LEFT(#REF!,1)=">"),VALUE(MID(#REF!,2,5)),#REF!) -> 
C15: Min | E15: 0.4 | F15: 4.3 | G15: 44 | H15: 7.41 | I15: 11 | J15: 45.3 | K15: 4.9 | L15: 21 | M15: 65 | N15: 590 | O15: 10 | P15: 2900 | AI15: 0 | AJ15: 0.4 | AK15: 4.3 | AL15: 44 | AM15: 7.41 | AN15: 11 | AO15: 45.3 | AP15: 4.9 | AQ15: 21 | AR15: 65 | AS15: 590 | AT15: 10 | AU15: 2900 | AV15: 0 | AW15: 0 | AX15: 0 | AY15: =IF(OR(LEFT(#REF!,1)="<",LEFT(#REF!,1)=">"),VALUE(MID(#REF!,2,5)),#REF!) ->  | AZ15: =IF(OR(LEFT(#REF!,1)="<",LEFT(#REF!,1)=">"),VALUE(MID(#REF!,2,5)),#REF!) ->  | BA15: =IF(OR(LEFT(#REF!,1)="<",LEFT(#REF!,1)=">"),VALUE(MID(#REF!,2,5)),#REF!) -> 
AI16: 0 | AJ16: 0 | AK16: 0 | AL16: 0 | AM16: 0 | AN16: 0 | AO16: 0 | AP16: 0 | AQ16: 0 | AR16: 0 | AS16: 0 | AT16: 0 | AU16: 0 | AV16: 0 | AW16: 0 | AX16: 0 | AY16: =IF(OR(LEFT(#REF!,1)="<",LEFT(#REF!,1)=">"),VALUE(MID(#REF!,2,5)),#REF!) ->  | AZ16: =IF(OR(LEFT(#REF!,1)="<",LEFT(#REF!,1)=">"),VALUE(MID(#REF!,2,5)),#REF!) ->  | BA16: =IF(OR(LEFT(#REF!,1)="<",LEFT(#REF!,1)=">"),VALUE(MID(#REF!,2,5)),#REF!) -> 
A17: 5 | B17: 2 Sege å, söder Krågeholm, nedströms Svedala AR | C17: 2021-02-15 | D17: 0.49 | E17: 1.2 | F17: 13.5 | G17: 95 | H17: 7.8 | I17: 15 | J17: 54.2 | K17: 5 | L17: 19 | M17: 86 | N17: 2900 | O17: 300 | P17: 4100 | T17: 1600 | U17: is i kanten | AI17: 0.49 | AJ17: 1.2 | AK17: 13.5 | AL17: 95 | AM17: 7.8 | AN17: 15 | AO17: 54.2 | AP17: 5 | AQ17: 19 | AR17: 86 | AS17: 2900 | AT17: 300 | AU17: 4100 | AY17: =IF(OR(LEFT(#REF!,1)="<",LEFT(#REF!,1)=">"),VALUE(MID(#REF!,2,5)),#REF!) ->  | AZ17: =IF(OR(LEFT(#REF!,1)="<",LEFT(#REF!,1)=">"),VALUE(MID(#REF!,2,5)),#REF!) ->  | BA17: =IF(OR(LEFT(#REF!,1)="<",LEFT(#REF!,1)=">"),VALUE(MID(#REF!,2,5)),#REF!) -> 
A18: 5 | B18: 2 Sege å, söder Krågeholm, nedströms Svedala AR | C18: 2021-04-19 | D18: 0.41 | E18: 9.5 | F18: 12 | G18: 105 | H18: 7.89 | I18: 11 | J18: 56.8 | K18: 6.1 | L18: 18 | M18: 69 | N18: 2100 | O18: 68 | P18: 3400 | T18: 1030 | U18: grumligt | AI18: 0.41 | AJ18: 9.5 | AK18: 12 | AL18: 105 | AM18: 7.89 | AN18: 11 | AO18: 56.8 | AP18: 6.1 | AQ18: 18 | AR18: 69 | AS18: 2100 | AT18: 68 | AU18: 3400 | AY18: =IF(OR(LEFT(#REF!,1)="<",LEFT(#REF!,1)=">"),VALUE(MID(#REF!,2,5)),#REF!) ->  | AZ18: =IF(OR(LEFT(#REF!,1)="<",LEFT(#REF!,1)=">"),VALUE(MID(#REF!,2,5)),#REF!) ->  | BA18: =IF(OR(LEFT(#REF!,1)="<",LEFT(#REF!,1)=">"),VALUE(MID(#REF!,2,5)),#REF!) -> 
A19: 5 | B19: 2 Sege å, söder Krågeholm, nedströms Svedala AR | C19: 2021-06-15 | D19: 0.06 | E19: 16.4 | F19: 8 | G19: 82 | H19: 7.76 | I19: 15 | J19: 63.8 | K19: 7.6 | L19: 16 | M19: 150 | N19: 1100 | O19: 700 | P19: 3400 | T19: 1020 | U19: grumligt | AI19: 0.06 | AJ19: 16.4 | AK19: 8 | AL19: 82 | AM19: 7.76 | AN19: 15 | AO19: 63.8 | AP19: 7.6 | AQ19: 16 | AR19: 150 | AS19: 1100 | AT19: 700 | AU19: 3400 | AY19: =IF(OR(LEFT(#REF!,1)="<",LEFT(#REF!,1)=">"),VALUE(MID(#REF!,2,5)),#REF!) ->  | AZ19: =IF(OR(LEFT(#REF!,1)="<",LEFT(#REF!,1)=">"),VALUE(MID(#REF!,2,5)),#REF!) ->  | BA19: =IF(OR(LEFT(#REF!,1)="<",LEFT(#REF!,1)=">"),VALUE(MID(#REF!,2,5)),#REF!) -> 
A20: 5 | B20: 2 Sege å, söder Krågeholm, nedströms Svedala AR | C20: 2021-08-19 | D20: 0.17 | E20: 16.5 | F20: 8.5 | G20: 87 | H20: 7.71 | I20: 7.2 | J20: 44.9 | K20: 4 | L20: 11 | M20: 120 | N20: 1300 | O20: 76 | P20: 2300 | T20: 1330 | AI20: 0.17 | AJ20: 16.5 | AK20: 8.5 | AL20: 87 | AM20: 7.71 | AN20: 7.2 | AO20: 44.9 | AP20: 4 | AQ20: 11 | AR20: 120 | AS20: 1300 | AT20: 76 | AU20: 2300 | AY20: =IF(OR(LEFT(#REF!,1)="<",LEFT(#REF!,1)=">"),VALUE(MID(#REF!,2,5)),#REF!) ->  | AZ20: =IF(OR(LEFT(#REF!,1)="<",LEFT(#REF!,1)=">"),VALUE(MID(#REF!,2,5)),#REF!) ->  | BA20: =IF(OR(LEFT(#REF!,1)="<",LEFT(#REF!,1)=">"),VALUE(MID(#REF!,2,5)),#REF!) -> 
A21: 5 | B21: 2 Sege å, söder Krågeholm, nedströms Svedala AR | C21: 2021-10-20 | D21: 0.23 | E21: 12.9 | F21: 7.9 | G21: 75 | H21: 7.61 | I21: 39 | J21: 54.1 | K21: 4.6 | L21: 11 | M21: 150 | N21: 2900 | O21: 160 | P21: 4400 | T21: 1430 | AI21: 0.23 | AJ21: 12.9 | AK21: 7.9 | AL21: 75 | AM21: 7.61 | AN21: 39 | AO21: 54.1 | AP21: 4.6 | AQ21: 11 | AR21: 150 | AS21: 2900 | AT21: 160 | AU21: 4400 | AY21: =IF(OR(LEFT(#REF!,1)="<",LEFT(#REF!,1)=">"),VALUE(MID(#REF!,2,5)),#REF!) ->  | AZ21: =IF(OR(LEFT(#REF!,1)="<",LEFT(#REF!,1)=">"),VALUE(MID(#REF!,2,5)),#REF!) ->  | BA21: =IF(OR(LEFT(#REF!,1)="<",LEFT(#REF!,1)=">"),VALUE(MID(#REF!,2,5)),#REF!) -> 
A22: 5 | B22: 2 Sege å, söder Krågeholm, nedströms Svedala AR | C22: 2021-12-20 | D22: 1.1 | E22: 2.7 | F22: 11.5 | G22: 85 | H22: 7.66 | I22: 19 | J22: 52.2 | K22: 6.6 | L22: 17 | M22: 170 | N22: 2700 | O22: 580 | P22: 4800 | T22: 1445 | AI22: 1.1 | AJ22: 2.7 | AK22: 11.5 | AL22: 85 | AM22: 7.66 | AN22: 19 | AO22: 52.2 | AP22: 6.6 | AQ22: 17 | AR22: 170 | AS22: 2700 | AT22: 580 | AU22: 4800 | AY22: =IF(OR(LEFT(#REF!,1)="<",LEFT(#REF!,1)=">"),VALUE(MID(#REF!,2,5)),#REF!) ->  | AZ22: =IF(OR(LEFT(#REF!,1)="<",LEFT(#REF!,1)=">"),VALUE(MID(#REF!,2,5)),#REF!) ->  | BA22: =IF(OR(LEFT(#REF!,1)="<",LEFT(#REF!,1)=">"),VALUE(MID(#REF!,2,5)),#REF!) -> 
C23: Medel | D23: 0.41 | E23: 9.866666667 | F23: 10.23333333 | G23: 88.16666667 | H23: 7.738333333 | I23: 17.7 | J23: 54.33333333 | K23: 5.65 | L23: 15.33333333 | M23: 124.1666667 | N23: 2166.666667 | O23: 314 | P23: 3733.333333 | AI23: 0.41 | AJ23: 9.866666667 | AK23: 10.23333333 | AL23: 88.16666667 | AM23: 7.738333333 | AN23: 17.7 | AO23: 54.33333333 | AP23: 5.65 | AQ23: 15.33333333 | AR23: 124.1666667 | AS23: 2166.666667 | AT23: 314 | AU23: 3733.333333 | AV23: 0 | AW23: 0 | AX23: 0 | AY23: =IF(OR(LEFT(#REF!,1)="<",LEFT(#REF!,1)=">"),VALUE(MID(#REF!,2,5)),#REF!) ->  | AZ23: =IF(OR(LEFT(#REF!,1)="<",LEFT(#REF!,1)=">"),VALUE(MID(#REF!,2,5)),#REF!) ->  | BA23: =IF(OR(LEFT(#REF!,1)="<",LEFT(#REF!,1)=">"),VALUE(MID(#REF!,2,5)),#REF!) -> 
C24: Max | D24: 1.1 | E24: 16.5 | F24: 13.5 | G24: 105 | H24: 7.89 | I24: 39 | J24: 63.8 | K24: 7.6 | L24: 19 | M24: 170 | N24: 2900 | O24: 700 | P24: 4800 | AI24: 1.1 | AJ24: 16.5 | AK24: 13.5 | AL24: 105 | AM24: 7.89 | AN24: 39 | AO24: 63.8 | AP24: 7.6 | AQ24: 19 | AR24: 170 | AS24: 2900 | AT24: 700 | AU24: 4800 | AV24: 0 | AW24: 0 | AX24: 0 | AY24: =IF(OR(LEFT(#REF!,1)="<",LEFT(#REF!,1)=">"),VALUE(MID(#REF!,2,5)),#REF!) ->  | AZ24: =IF(OR(LEFT(#REF!,1)="<",LEFT(#REF!,1)=">"),VALUE(MID(#REF!,2,5)),#REF!) ->  | BA24: =IF(OR(LEFT(#REF!,1)="<",LEFT(#REF!,1)=">"),VALUE(MID(#REF!,2,5)),#REF!) -> 
C25: Min | D25: 0.06 | E25: 1.2 | F25: 7.9 | G25: 75 | H25: 7.61 | I25: 7.2 | J25: 44.9 | K25: 4 | L25: 11 | M25: 69 | N25: 1100 | O25: 68 | P25: 2300 | AI25: 0.06 | AJ25: 1.2 | AK25: 7.9 | AL25: 75 | AM25: 7.61 | AN25: 7.2 | AO25: 44.9 | AP25: 4 | AQ25: 11 | AR25: 69 | AS25: 1100 | AT25: 68 | AU25: 2300 | AV25: 0 | AW25: 0 | AX25: 0 | AY25: =IF(OR(LEFT(#REF!,1)="<",LEFT(#REF!,1)=">"),VALUE(MID(#REF!,2,5)),#REF!) ->  | AZ25: =IF(OR(LEFT(#REF!,1)="<",LEFT(#REF!,1)=">"),VALUE(MID(#REF!,2,5)),#REF!) ->  | BA25: =IF(OR(LEFT(#REF!,1)="<",LEFT(#REF!,1)=">"),VALUE(MID(#REF!,2,5)),#REF!) -> 
AI26: 0 | AJ26: 0 | AK26: 0 | AL26: 0 | AM26: 0 | AN26: 0 | AO26: 0 | AP26: 0 | AQ26: 0 | AR26: 0 | AS26: 0 | AT26: 0 | AU26: 0 | AV26: 0 | AW26: 0 | AX26: 0 | AY26: =IF(OR(LEFT(#REF!,1)="<",LEFT(#REF!,1)=">"),VALUE(MID(#REF!,2,5)),#REF!) ->  | AZ26: =IF(OR(LEFT(#REF!,1)="<",LEFT(#REF!,1)=">"),VALUE(MID(#REF!,2,5)),#REF!) ->  | BA26: =IF(OR(LEFT(#REF!,1)="<",LEFT(#REF!,1)=">"),VALUE(MID(#REF!,2,5)),#REF!) -> 
A27: 7 | B27: 9 Sege å, vid Lilla Mölleberga | C27: 2021-02-15 | E27: 0 | F27: 14 | G27: 96 | H27: 7.92 | I27: 11 | J27: 68.3 | L27: 16 | M27: 83 | N27: 3300 | O27: 300 | P27: 3900 | T27: 1445 | U27: istäckt | AJ27: 0 | AK27: 14 | AL27: 96 | AM27: 7.92 | AN27: 11 | AO27: 68.3 | AQ27: 16 | AR27: 83 | AS27: 3300 | AT27: 300 | AU27: 3900 | AY27: =IF(OR(LEFT(#REF!,1)="<",LEFT(#REF!,1)=">"),VALUE(MID(#REF!,2,5)),#REF!) ->  | AZ27: =IF(OR(LEFT(#REF!,1)="<",LEFT(#REF!,1)=">"),VALUE(MID(#REF!,2,5)),#REF!) ->  | BA27: =IF(OR(LEFT(#REF!,1)="<",LEFT(#REF!,1)=">"),VALUE(MID(#REF!,2,5)),#REF!) -> 
A28: 7 | B28: 9 Sege å, vid Lilla Mölleberga | C28: 2021-04-19 | E28: 9.5 | F28: 11 | G28: 97 | H28: 8 | I28: 8.2 | J28: 63.8 | L28: 15 | M28: 77 | N28: 2100 | O28: <10 | P28: 2900 | T28: 920 | AJ28: 9.5 | AK28: 11 | AL28: 97 | AM28: 8 | AN28: 8.2 | AO28: 63.8 | AQ28: 15 | AR28: 77 | AS28: 2100 | AT28: 10 | AU28: 2900 | AY28: =IF(OR(LEFT(#REF!,1)="<",LEFT(#REF!,1)=">"),VALUE(MID(#REF!,2,5)),#REF!) ->  | AZ28: =IF(OR(LEFT(#REF!,1)="<",LEFT(#REF!,1)=">"),VALUE(MID(#REF!,2,5)),#REF!) ->  | BA28: =IF(OR(LEFT(#REF!,1)="<",LEFT(#REF!,1)=">"),VALUE(MID(#REF!,2,5)),#REF!) -> 
A29: 7 | B29: 9 Sege å, vid Lilla Mölleberga | C29: 2021-06-15 | E29: 16.6 | F29: 7.6 | G29: 78 | H29: 7.81 | I29: 8.8 | J29: 65.6 | L29: 13 | M29: 120 | N29: 1100 | O29: 39 | P29: 2100 | T29: 845 | AJ29: 16.6 | AK29: 7.6 | AL29: 78 | AM29: 7.81 | AN29: 8.8 | AO29: 65.6 | AQ29: 13 | AR29: 120 | AS29: 1100 | AT29: 39 | AU29: 2100 | AY29: =IF(OR(LEFT(#REF!,1)="<",LEFT(#REF!,1)=">"),VALUE(MID(#REF!,2,5)),#REF!) ->  | AZ29: =IF(OR(LEFT(#REF!,1)="<",LEFT(#REF!,1)=">"),VALUE(MID(#REF!,2,5)),#REF!) ->  | BA29: =IF(OR(LEFT(#REF!,1)="<",LEFT(#REF!,1)=">"),VALUE(MID(#REF!,2,5)),#REF!) -> 
A30: 7 | B30: 9 Sege å, vid Lilla Mölleberga | C30: 2021-08-19 | E30: 15 | F30: 7 | G30: 70 | H30: 7.7 | I30: 6.3 | J30: 35.4 | L30: 7.7 | M30: 120 | N30: 920 | O30: 83 | P30: 1600 | T30: 1220 | AJ30: 15 | AK30: 7 | AL30: 70 | AM30: 7.7 | AN30: 6.3 | AO30: 35.4 | AQ30: 7.7 | AR30: 120 | AS30: 920 | AT30: 83 | AU30: 1600 | AY30: =IF(OR(LEFT(#REF!,1)="<",LEFT(#REF!,1)=">"),VALUE(MID(#REF!,2,5)),#REF!) ->  | AZ30: =IF(OR(LEFT(#REF!,1)="<",LEFT(#REF!,1)=">"),VALUE(MID(#REF!,2,5)),#REF!) ->  | BA30: =IF(OR(LEFT(#REF!,1)="<",LEFT(#REF!,1)=">"),VALUE(MID(#REF!,2,5)),#REF!) -> 
A31: 7 | B31: 9 Sege å, vid Lilla Mölleberga | C31: 2021-10-20 | E31: 11.9 | F31: 8.1 | G31: 75 | H31: 7.9 | I31: 5.6 | J31: 66.2 | L31: 8.3 | M31: 81 | N31: 2000 | O31: 18 | P31: 2900 | T31: 1255 | AJ31: 11.9 | AK31: 8.1 | AL31: 75 | AM31: 7.9 | AN31: 5.6 | AO31: 66.2 | AQ31: 8.3 | AR31: 81 | AS31: 2000 | AT31: 18 | AU31: 2900 | AY31: =IF(OR(LEFT(#REF!,1)="<",LEFT(#REF!,1)=">"),VALUE(MID(#REF!,2,5)),#REF!) ->  | AZ31: =IF(OR(LEFT(#REF!,1)="<",LEFT(#REF!,1)=">"),VALUE(MID(#REF!,2,5)),#REF!) ->  | BA31: =IF(OR(LEFT(#REF!,1)="<",LEFT(#REF!,1)=">"),VALUE(MID(#REF!,2,5)),#REF!) -> 
A32: 7 | B32: 9 Sege å, vid Lilla Mölleberga | C32: 2021-12-20 | E32: 2.9 | F32: 12.2 | G32: 90 | H32: 7.97 | I32: 12 | J32: 61.3 | L32: 16 | M32: 93 | N32: 3600 | O32: 310 | P32: 4200 | T32: 1330 | AJ32: 2.9 | AK32: 12.2 | AL32: 90 | AM32: 7.97 | AN32: 12 | AO32: 61.3 | AQ32: 16 | AR32: 93 | AS32: 3600 | AT32: 310 | AU32: 4200 | AY32: =IF(OR(LEFT(#REF!,1)="<",LEFT(#REF!,1)=">"),VALUE(MID(#REF!,2,5)),#REF!) ->  | AZ32: =IF(OR(LEFT(#REF!,1)="<",LEFT(#REF!,1)=">"),VALUE(MID(#REF!,2,5)),#REF!) ->  | BA32: =IF(OR(LEFT(#REF!,1)="<",LEFT(#REF!,1)=">"),VALUE(MID(#REF!,2,5)),#REF!) -> 
C33: Medel | E33: 9.316666667 | F33: 9.983333333 | G33: 84.33333333 | H33: 7.883333333 | I33: 8.65 | J33: 60.1 | L33: 12.66666667 | M33: 95.66666667 | N33: 2170 | O33: 126.6666667 | P33: 2933.333333 | AI33: 0 | AJ33: 9.316666667 | AK33: 9.983333333 | AL33: 84.33333333 | AM33: 7.883333333 | AN33: 8.65 | AO33: 60.1 | AP33: 0 | AQ33: 12.66666667 | AR33: 95.66666667 | AS33: 2170 | AT33: 126.6666667 | AU33: 2933.333333 | AV33: 0 | AW33: 0 | AX33: 0 | AY33: =IF(OR(LEFT(#REF!,1)="<",LEFT(#REF!,1)=">"),VALUE(MID(#REF!,2,5)),#REF!) ->  | AZ33: =IF(OR(LEFT(#REF!,1)="<",LEFT(#REF!,1)=">"),VALUE(MID(#REF!,2,5)),#REF!) ->  | BA33: =IF(OR(LEFT(#REF!,1)="<",LEFT(#REF!,1)=">"),VALUE(MID(#REF!,2,5)),#REF!) -> 
C34: Max | E34: 16.6 | F34: 14 | G34: 97 | H34: 8 | I34: 12 | J34: 68.3 | L34: 16 | M34: 120 | N34: 3600 | O34: 310 | P34: 4200 | AI34: 0 | AJ34: 16.6 | AK34: 14 | AL34: 97 | AM34: 8 | AN34: 12 | AO34: 68.3 | AP34: 0 | AQ34: 16 | AR34: 120 | AS34: 3600 | AT34: 310 | AU34: 4200 | AV34: 0 | AW34: 0 | AX34: 0 | AY34: =IF(OR(LEFT(#REF!,1)="<",LEFT(#REF!,1)=">"),VALUE(MID(#REF!,2,5)),#REF!) ->  | AZ34: =IF(OR(LEFT(#REF!,1)="<",LEFT(#REF!,1)=">"),VALUE(MID(#REF!,2,5)),#REF!) ->  | BA34: =IF(OR(LEFT(#REF!,1)="<",LEFT(#REF!,1)=">"),VALUE(MID(#REF!,2,5)),#REF!) -> 
C35: Min | E35: 0 | F35: 7 | G35: 70 | H35: 7.7 | I35: 5.6 | J35: 35.4 | L35: 7.7 | M35: 77 | N35: 920 | O35: 10 | P35: 1600 | AI35: 0 | AJ35: 0 | AK35: 7 | AL35: 70 | AM35: 7.7 | AN35: 5.6 | AO35: 35.4 | AP35: 0 | AQ35: 7.7 | AR35: 77 | AS35: 920 | AT35: 10 | AU35: 1600 | AV35: 0 | AW35: 0 | AX35: 0 | AY35: =IF(OR(LEFT(#REF!,1)="<",LEFT(#REF!,1)=">"),VALUE(MID(#REF!,2,5)),#REF!) ->  | AZ35: =IF(OR(LEFT(#REF!,1)="<",LEFT(#REF!,1)=">"),VALUE(MID(#REF!,2,5)),#REF!) ->  | BA35: =IF(OR(LEFT(#REF!,1)="<",LEFT(#REF!,1)=">"),VALUE(MID(#REF!,2,5)),#REF!) -> 
AI36: 0 | AJ36: 0 | AK36: 0 | AL36: 0 | AM36: 0 | AN36: 0 | AO36: 0 | AP36: 0 | AQ36: 0 | AR36: 0 | AS36: 0 | AT36: 0 | AU36: 0 | AV36: 0 | AW36: 0 | AX36: 0 | AY36: =IF(OR(LEFT(#REF!,1)="<",LEFT(#REF!,1)=">"),VALUE(MID(#REF!,2,5)),#REF!) ->  | AZ36: =IF(OR(LEFT(#REF!,1)="<",LEFT(#REF!,1)=">"),VALUE(MID(#REF!,2,5)),#REF!) ->  | BA36: =IF(OR(LEFT(#REF!,1)="<",LEFT(#REF!,1)=">"),VALUE(MID(#REF!,2,5)),#REF!) -> 
A37: 9 | B37: 18 Sege å, nordväst Valdemarsro, järnvägsbron | C37: 2021-02-15 | E37: 0.1 | F37: 13.5 | G37: 92 | H37: 7.89 | I37: 14 | J37: 78.2 | L37: 14 | M37: 99 | N37: 4300 | O37: 240 | P37: 4800 | T37: 1400 | U37: is i kanten | AJ37: 0.1 | AK37: 13.5 | AL37: 92 | AM37: 7.89 | AN37: 14 | AO37: 78.2 | AQ37: 14 | AR37: 99 | AS37: 4300 | AT37: 240 | AU37: 4800 | AY37: =IF(OR(LEFT(#REF!,1)="<",LEFT(#REF!,1)=">"),VALUE(MID(#REF!,2,5)),#REF!) ->  | AZ37: =IF(OR(LEFT(#REF!,1)="<",LEFT(#REF!,1)=">"),VALUE(MID(#REF!,2,5)),#REF!) ->  | BA37: =IF(OR(LEFT(#REF!,1)="<",LEFT(#REF!,1)=">"),VALUE(MID(#REF!,2,5)),#REF!) -> 
A38: 9 | B38: 18 Sege å, nordväst Valdemarsro, järnvägsbron | C38: 2021-04-19 | E38: 9.5 | F38: 10.4 | G38: 91 | H38: 8 | I38: 6.7 | J38: 70.1 | L38: 13 | M38: 62 | N38: 2400 | O38: 14 | P38: 3200 | T38: 840 | AJ38: 9.5 | AK38: 10.4 | AL38: 91 | AM38: 8 | AN38: 6.7 | AO38: 70.1 | AQ38: 13 | AR38: 62 | AS38: 2400 | AT38: 14 | AU38: 3200 | AY38: =IF(OR(LEFT(#REF!,1)="<",LEFT(#REF!,1)=">"),VALUE(MID(#REF!,2,5)),#REF!) ->  | AZ38: =IF(OR(LEFT(#REF!,1)="<",LEFT(#REF!,1)=">"),VALUE(MID(#REF!,2,5)),#REF!) ->  | BA38: =IF(OR(LEFT(#REF!,1)="<",LEFT(#REF!,1)=">"),VALUE(MID(#REF!,2,5)),#REF!) -> 
A39: 9 | B39: 18 Sege å, nordväst Valdemarsro, järnvägsbron | C39: 2021-06-15 | E39: 17.2 | F39: 5.7 | G39: 59 | H39: 7.78 | I39: 4.1 | J39: 73.5 | L39: 12 | M39: 94 | N39: 850 | O39: 87 | P39: 1700 | T39: 810 | AJ39: 17.2 | AK39: 5.7 | AL39: 59 | AM39: 7.78 | AN39: 4.1 | AO39: 73.5 | AP39: =IF(OR(LEFT(K39,1)="<",LEFT(K39,1)=">"),VALUE(MID(K39,2,5)),K39) ->  | AQ39: =IF(OR(LEFT(L39,1)="<",LEFT(L39,1)=">"),VALUE(MID(L39,2,5)),L39) -> 12 | AR39: =IF(OR(LEFT(M39,1)="<",LEFT(M39,1)=">"),VALUE(MID(M39,2,5)),M39) -> 94 | AS39: =IF(OR(LEFT(N39,1)="<",LEFT(N39,1)=">"),VALUE(MID(N39,2,5)),N39) -> 850 | AT39: =IF(OR(LEFT(O39,1)="<",LEFT(O39,1)=">"),VALUE(MID(O39,2,5)),O39) -> 87 | AU39: =IF(OR(LEFT(P39,1)="<",LEFT(P39,1)=">"),VALUE(MID(P39,2,5)),P39) -> 1700 | AV39: =IF(OR(LEFT(Q39,1)="<",LEFT(Q39,1)=">"),VALUE(MID(Q39,2,5)),Q39) ->  | AW39: =IF(OR(LEFT(R39,1)="<",LEFT(R39,1)=">"),VALUE(MID(R39,2,5)),R39) ->  | AX39: =IF(OR(LEFT(S39,1)="<",LEFT(S39,1)=">"),VALUE(MID(S39,2,5)),S39) ->  | AY39: =IF(OR(LEFT(#REF!,1)="<",LEFT(#REF!,1)=">"),VALUE(MID(#REF!,2,5)),#REF!) ->  | AZ39: =IF(OR(LEFT(#REF!,1)="<",LEFT(#REF!,1)=">"),VALUE(MID(#REF!,2,5)),#REF!) ->  | BA39: =IF(OR(LEFT(#REF!,1)="<",LEFT(#REF!,1)=">"),VALUE(MID(#REF!,2,5)),#REF!) -> 
A40: 9 | B40: 18 Sege å, nordväst Valdemarsro, järnvägsbron | C40: 2021-08-19 | E40: 15.6 | F40: 6.6 | G40: 66 | H40: 7.63 | I40: 8.6 | J40: 45.1 | L40: 7 | M40: 100 | N40: 830 | O40: 35 | P40: 1200 | T40: 1140 | AJ40: 15.6 | AK40: 6.6 | AL40: 66 | AM40: 7.63 | AN40: 8.6 | AO40: 45.1 | AQ40: 7 | AR40: 100 | AS40: 830 | AT40: 35 | AU40: 1200 | AY40: =IF(OR(LEFT(#REF!,1)="<",LEFT(#REF!,1)=">"),VALUE(MID(#REF!,2,5)),#REF!) ->  | AZ40: =IF(OR(LEFT(#REF!,1)="<",LEFT(#REF!,1)=">"),VALUE(MID(#REF!,2,5)),#REF!) ->  | BA40: =IF(OR(LEFT(#REF!,1)="<",LEFT(#REF!,1)=">"),VALUE(MID(#REF!,2,5)),#REF!) -> 
A41: 9 | B41: 18 Sege å, nordväst Valdemarsro, järnvägsbron | C41: 2021-10-20 | E41: 12 | F41: 8.3 | G41: 77 | H41: 7.89 | I41: 8.7 | J41: 59.6 | L41: 7.9 | M41: 84 | N41: 1800 | O41: 50 | P41: 2600 | T41: 1200 | AJ41: 12 | AK41: 8.3 | AL41: 77 | AM41: 7.89 | AN41: 8.7 | AO41: 59.6 | AQ41: 7.9 | AR41: 84 | AS41: 1800 | AT41: 50 | AU41: 2600 | AY41: =IF(OR(LEFT(#REF!,1)="<",LEFT(#REF!,1)=">"),VALUE(MID(#REF!,2,5)),#REF!) ->  | AZ41: =IF(OR(LEFT(#REF!,1)="<",LEFT(#REF!,1)=">"),VALUE(MID(#REF!,2,5)),#REF!) ->  | BA41: =IF(OR(LEFT(#REF!,1)="<",LEFT(#REF!,1)=">"),VALUE(MID(#REF!,2,5)),#REF!) -> 
A42: 9 | B42: 18 Sege å, nordväst Valdemarsro, järnvägsbron | C42: 2021-12-20 | E42: 3.4 | F42: 11.5 | G42: 86 | H42: 7.98 | I42: 11 | J42: 69.4 | L42: 14 | M42: 90 | N42: 5200 | O42: 170 | P42: 5600 | T42: 1300 | AJ42: 3.4 | AK42: 11.5 | AL42: 86 | AM42: 7.98 | AN42: 11 | AO42: 69.4 | AQ42: 14 | AR42: 90 | AS42: 5200 | AT42: 170 | AU42: 5600 | AY42: =IF(OR(LEFT(#REF!,1)="<",LEFT(#REF!,1)=">"),VALUE(MID(#REF!,2,5)),#REF!) ->  | AZ42: =IF(OR(LEFT(#REF!,1)="<",LEFT(#REF!,1)=">"),VALUE(MID(#REF!,2,5)),#REF!) ->  | BA42: =IF(OR(LEFT(#REF!,1)="<",LEFT(#REF!,1)=">"),VALUE(MID(#REF!,2,5)),#REF!) -> 
C43: Medel | E43: 9.633333333 | F43: 9.333333333 | G43: 78.5 | H43: 7.861666667 | I43: 8.85 | J43: 65.98333333 | L43: 11.31666667 | M43: 88.16666667 | N43: 2563.333333 | O43: 99.33333333 | P43: 3183.333333 | AI43: 0 | AJ43: 9.633333333 | AK43: 9.333333333 | AL43: 78.5 | AM43: 7.861666667 | AN43: 8.85 | AO43: 65.98333333 | AP43: 0 | AQ43: 11.31666667 | AR43: 88.16666667 | AS43: 2563.333333 | AT43: 99.33333333 | AU43: 3183.333333 | AV43: 0 | AW43: 0 | AX43: 0 | AY43: =IF(OR(LEFT(#REF!,1)="<",LEFT(#REF!,1)=">"),VALUE(MID(#REF!,2,5)),#REF!) ->  | AZ43: =IF(OR(LEFT(#REF!,1)="<",LEFT(#REF!,1)=">"),VALUE(MID(#REF!,2,5)),#REF!) ->  | BA43: =IF(OR(LEFT(#REF!,1)="<",LEFT(#REF!,1)=">"),VALUE(MID(#REF!,2,5)),#REF!) -> 
C44: Max | E44: 17.2 | F44: 13.5 | G44: 92 | H44: 8 | I44: 14 | J44: 78.2 | L44: 14 | M44: 100 | N44: 5200 | O44: 240 | P44: 5600 | AI44: 0 | AJ44: 17.2 | AK44: 13.5 | AL44: 92 | AM44: 8 | AN44: 14 | AO44: 78.2 | AP44: 0 | AQ44: 14 | AR44: 100 | AS44: 5200 | AT44: 240 | AU44: 5600 | AV44: 0 | AW44: 0 | AX44: 0 | AY44: =IF(OR(LEFT(#REF!,1)="<",LEFT(#REF!,1)=">"),VALUE(MID(#REF!,2,5)),#REF!) ->  | AZ44: =IF(OR(LEFT(#REF!,1)="<",LEFT(#REF!,1)=">"),VALUE(MID(#REF!,2,5)),#REF!) ->  | BA44: =IF(OR(LEFT(#REF!,1)="<",LEFT(#REF!,1)=">"),VALUE(MID(#REF!,2,5)),#REF!) -> 
C45: Min | E45: 0.1 | F45: 5.7 | G45: 59 | H45: 7.63 | I45: 4.1 | J45: 45.1 | L45: 7 | M45: 62 | N45: 830 | O45: 14 | P45: 1200 | AI45: 0 | AJ45: 0.1 | AK45: 5.7 | AL45: 59 | AM45: 7.63 | AN45: 4.1 | AO45: 45.1 | AP45: 0 | AQ45: 7 | AR45: 62 | AS45: 830 | AT45: 14 | AU45: 1200 | AV45: 0 | AW45: 0 | AX45: 0 | AY45: =IF(OR(LEFT(#REF!,1)="<",LEFT(#REF!,1)=">"),VALUE(MID(#REF!,2,5)),#REF!) ->  | AZ45: =IF(OR(LEFT(#REF!,1)="<",LEFT(#REF!,1)=">"),VALUE(MID(#REF!,2,5)),#REF!) ->  | BA45: =IF(OR(LEFT(#REF!,1)="<",LEFT(#REF!,1)=">"),VALUE(MID(#REF!,2,5)),#REF!) -> 
AI46: 0 | AJ46: 0 | AK46: 0 | AL46: 0 | AM46: 0 | AN46: 0 | AO46: 0 | AP46: 0 | AQ46: 0 | AR46: 0 | AS46: 0 | AT46: 0 | AU46: 0 | AV46: 0 | AW46: 0 | AX46: 0 | AY46: =IF(OR(LEFT(#REF!,1)="<",LEFT(#REF!,1)=">"),VALUE(MID(#REF!,2,5)),#REF!) ->  | AZ46: =IF(OR(LEFT(#REF!,1)="<",LEFT(#REF!,1)=">"),VALUE(MID(#REF!,2,5)),#REF!) ->  | BA46: =IF(OR(LEFT(#REF!,1)="<",LEFT(#REF!,1)=">"),VALUE(MID(#REF!,2,5)),#REF!) -> 
A47: 11 | B47: 21 Spångholmsbäcken, vid utlopp till Sege å | C47: 2021-02-15 | E47: 0 | F47: 13.5 | G47: 92 | H47: 7.9 | I47: 11 | J47: 68.7 | L47: 16 | M47: 72 | N47: 1500 | O47: 640 | P47: 3100 | T47: 1500 | U47: istäckt | AJ47: 0 | AK47: 13.5 | AL47: 92 | AM47: 7.9 | AN47: 11 | AO47: 68.7 | AQ47: 16 | AR47: 72 | AS47: 1500 | AT47: 640 | AU47: 3100 | AY47: =IF(OR(LEFT(#REF!,1)="<",LEFT(#REF!,1)=">"),VALUE(MID(#REF!,2,5)),#REF!) ->  | AZ47: =IF(OR(LEFT(#REF!,1)="<",LEFT(#REF!,1)=">"),VALUE(MID(#REF!,2,5)),#REF!) ->  | BA47: =IF(OR(LEFT(#REF!,1)="<",LEFT(#REF!,1)=">"),VALUE(MID(#REF!,2,5)),#REF!) -> 
A48: 11 | B48: 21 Spångholmsbäcken, vid utlopp till Sege å | C48: 2021-04-19 | E48: 8.6 | F48: 11 | G48: 95 | H48: 7.85 | I48: 7 | J48: 63.9 | L48: 15 | M48: 60 | N48: 1200 | O48: 50 | P48: 2100 | T48: 930 | AJ48: 8.6 | AK48: 11 | AL48: 95 | AM48: 7.85 | AN48: 7 | AO48: 63.9 | AQ48: 15 | AR48: 60 | AS48: 1200 | AT48: 50 | AU48: 2100 | AY48: =IF(OR(LEFT(#REF!,1)="<",LEFT(#REF!,1)=">"),VALUE(MID(#REF!,2,5)),#REF!) ->  | AZ48: =IF(OR(LEFT(#REF!,1)="<",LEFT(#REF!,1)=">"),VALUE(MID(#REF!,2,5)),#REF!) ->  | BA48: =IF(OR(LEFT(#REF!,1)="<",LEFT(#REF!,1)=">"),VALUE(MID(#REF!,2,5)),#REF!) -> 
A49: 11 | B49: 21 Spångholmsbäcken, vid utlopp till Sege å | C49: 2021-06-15 | E49: 14.6 | F49: 6.2 | G49: 61 | H49: 7.7 | I49: 7.7 | J49: 77.5 | L49: 8.6 | M49: 120 | N49: 1000 | O49: 91 | P49: 1700 | T49: 900 | AJ49: 14.6 | AK49: 6.2 | AL49: 61 | AM49: 7.7 | AN49: 7.7 | AO49: 77.5 | AQ49: 8.6 | AR49: 120 | AS49: 1000 | AT49: 91 | AU49: 1700 | AY49: =IF(OR(LEFT(#REF!,1)="<",LEFT(#REF!,1)=">"),VALUE(MID(#REF!,2,5)),#REF!) ->  | AZ49: =IF(OR(LEFT(#REF!,1)="<",LEFT(#REF!,1)=">"),VALUE(MID(#REF!,2,5)),#REF!) ->  | BA49: =IF(OR(LEFT(#REF!,1)="<",LEFT(#REF!,1)=">"),VALUE(MID(#REF!,2,5)),#REF!) -> 
A50: 11 | B50: 21 Spångholmsbäcken, vid utlopp till Sege å | C50: 2021-08-19 | E50: 15 | F50: 9.5 | G50: 94 | H50: 7.7 | I50: 4.3 | J50: 59.2 | L50: 7.8 | M50: 130 | N50: 1600 | O50: 86 | P50: 2100 | T50: 1230 | AJ50: 15 | AK50: 9.5 | AL50: 94 | AM50: 7.7 | AN50: 4.3 | AO50: 59.2 | AQ50: 7.8 | AR50: 130 | AS50: 1600 | AT50: 86 | AU50: 2100 | AY50: =IF(OR(LEFT(#REF!,1)="<",LEFT(#REF!,1)=">"),VALUE(MID(#REF!,2,5)),#REF!) ->  | AZ50: =IF(OR(LEFT(#REF!,1)="<",LEFT(#REF!,1)=">"),VALUE(MID(#REF!,2,5)),#REF!) ->  | BA50: =IF(OR(LEFT(#REF!,1)="<",LEFT(#REF!,1)=">"),VALUE(MID(#REF!,2,5)),#REF!) -> 
A51: 11 | B51: 21 Spångholmsbäcken, vid utlopp till Sege å | C51: 2021-10-20 | E51: 12.4 | F51: 7.2 | G51: 68 | H51: 7.73 | I51: 4.2 | J51: 62 | L51: 7.1 | M51: 66 | N51: 1500 | O51: 28 | P51: 2200 | T51: 1300 | AJ51: 12.4 | AK51: 7.2 | AL51: 68 | AM51: 7.73 | AN51: 4.2 | AO51: 62 | AQ51: 7.1 | AR51: 66 | AS51: 1500 | AT51: 28 | AU51: 2200 | AY51: =IF(OR(LEFT(#REF!,1)="<",LEFT(#REF!,1)=">"),VALUE(MID(#REF!,2,5)),#REF!) ->  | AZ51: =IF(OR(LEFT(#REF!,1)="<",LEFT(#REF!,1)=">"),VALUE(MID(#REF!,2,5)),#REF!) ->  | BA51: =IF(OR(LEFT(#REF!,1)="<",LEFT(#REF!,1)=">"),VALUE(MID(#REF!,2,5)),#REF!) -> 
A52: 11 | B52: 21 Spångholmsbäcken, vid utlopp till Sege å | C52: 2021-12-20 | E52: 2.4 | F52: 12.1 | G52: 88 | H52: 7.94 | I52: 7.9 | J52: 58.3 | L52: 16 | M52: 66 | N52: 1400 | O52: 390 | P52: 2600 | T52: 1345 | AJ52: 2.4 | AK52: 12.1 | AL52: 88 | AM52: 7.94 | AN52: 7.9 | AO52: 58.3 | AQ52: 16 | AR52: 66 | AS52: 1400 | AT52: 390 | AU52: 2600 | AY52: =IF(OR(LEFT(#REF!,1)="<",LEFT(#REF!,1)=">"),VALUE(MID(#REF!,2,5)),#REF!) ->  | AZ52: =IF(OR(LEFT(#REF!,1)="<",LEFT(#REF!,1)=">"),VALUE(MID(#REF!,2,5)),#REF!) ->  | BA52: =IF(OR(LEFT(#REF!,1)="<",LEFT(#REF!,1)=">"),VALUE(MID(#REF!,2,5)),#REF!) -> 
C53: Medel | E53: 8.833333333 | F53: 9.916666667 | G53: 83 | H53: 7.803333333 | I53: 7.016666667 | J53: 64.93333333 | L53: 11.75 | M53: 85.66666667 | N53: 1366.666667 | O53: 214.1666667 | P53: 2300 | AI53: 0 | AJ53: 8.833333333 | AK53: 9.916666667 | AL53: 83 | AM53: 7.803333333 | AN53: 7.016666667 | AO53: 64.93333333 | AP53: 0 | AQ53: 11.75 | AR53: 85.66666667 | AS53: 1366.666667 | AT53: 214.1666667 | AU53: 2300 | AV53: 0 | AW53: 0 | AX53: 0 | AY53: =IF(OR(LEFT(#REF!,1)="<",LEFT(#REF!,1)=">"),VALUE(MID(#REF!,2,5)),#REF!) ->  | AZ53: =IF(OR(LEFT(#REF!,1)="<",LEFT(#REF!,1)=">"),VALUE(MID(#REF!,2,5)),#REF!) ->  | BA53: =IF(OR(LEFT(#REF!,1)="<",LEFT(#REF!,1)=">"),VALUE(MID(#REF!,2,5)),#REF!) -> 
C54: Max | E54: 15 | F54: 13.5 | G54: 95 | H54: 7.94 | I54: 11 | J54: 77.5 | L54: 16 | M54: 130 | N54: 1600 | O54: 640 | P54: 3100 | AI54: 0 | AJ54: 15 | AK54: 13.5 | AL54: 95 | AM54: 7.94 | AN54: 11 | AO54: 77.5 | AP54: 0 | AQ54: 16 | AR54: 130 | AS54: 1600 | AT54: 640 | AU54: 3100 | AV54: 0 | AW54: 0 | AX54: 0 | AY54: =IF(OR(LEFT(#REF!,1)="<",LEFT(#REF!,1)=">"),VALUE(MID(#REF!,2,5)),#REF!) ->  | AZ54: =IF(OR(LEFT(#REF!,1)="<",LEFT(#REF!,1)=">"),VALUE(MID(#REF!,2,5)),#REF!) ->  | BA54: =IF(OR(LEFT(#REF!,1)="<",LEFT(#REF!,1)=">"),VALUE(MID(#REF!,2,5)),#REF!) -> 
C55: Min | E55: 0 | F55: 6.2 | G55: 61 | H55: 7.7 | I55: 4.2 | J55: 58.3 | L55: 7.1 | M55: 60 | N55: 1000 | O55: 28 | P55: 1700 | AI55: 0 | AJ55: 0 | AK55: 6.2 | AL55: 61 | AM55: 7.7 | AN55: 4.2 | AO55: 58.3 | AP55: 0 | AQ55: 7.1 | AR55: 60 | AS55: 1000 | AT55: 28 | AU55: 1700 | AV55: 0 | AW55: 0 | AX55: 0 | AY55: =IF(OR(LEFT(#REF!,1)="<",LEFT(#REF!,1)=">"),VALUE(MID(#REF!,2,5)),#REF!) ->  | AZ55: =IF(OR(LEFT(#REF!,1)="<",LEFT(#REF!,1)=">"),VALUE(MID(#REF!,2,5)),#REF!) ->  | BA55: =IF(OR(LEFT(#REF!,1)="<",LEFT(#REF!,1)=">"),VALUE(MID(#REF!,2,5)),#REF!) -> 
AI56: 0 | AJ56: 0 | AK56: 0 | AL56: 0 | AM56: 0 | AN56: 0 | AO56: 0 | AP56: 0 | AQ56: 0 | AR56: 0 | AS56: 0 | AT56: 0 | AU56: 0 | AV56: 0 | AW56: 0 | AX56: 0 | AY56: =IF(OR(LEFT(#REF!,1)="<",LEFT(#REF!,1)=">"),VALUE(MID(#REF!,2,5)),#REF!) ->  | AZ56: =IF(OR(LEFT(#REF!,1)="<",LEFT(#REF!,1)=">"),VALUE(MID(#REF!,2,5)),#REF!) ->  | BA56: =IF(OR(LEFT(#REF!,1)="<",LEFT(#REF!,1)=">"),VALUE(MID(#REF!,2,5)),#REF!) -> 
A57: 13 | B57: 22b Spångholmsbäcken, bron vid Torupsvägen | C57: 2021-02-15 | E57: 0.1 | F57: 13.8 | G57: 95 | H57: 7.91 | I57: 6.6 | J57: 62.9 | L57: 18 | M57: 55 | N57: 1400 | O57: 910 | P57: 3000 | T57: 1510 | U57: is i kanten | AJ57: 0.1 | AK57: 13.8 | AL57: 95 | AM57: 7.91 | AN57: 6.6 | AO57: 62.9 | AQ57: 18 | AR57: 55 | AS57: 1400 | AT57: 910 | AU57: 3000 | AY57: =IF(OR(LEFT(#REF!,1)="<",LEFT(#REF!,1)=">"),VALUE(MID(#REF!,2,5)),#REF!) ->  | AZ57: =IF(OR(LEFT(#REF!,1)="<",LEFT(#REF!,1)=">"),VALUE(MID(#REF!,2,5)),#REF!) ->  | BA57: =IF(OR(LEFT(#REF!,1)="<",LEFT(#REF!,1)=">"),VALUE(MID(#REF!,2,5)),#REF!) -> 
A58: 13 | B58: 22b Spångholmsbäcken, bron vid Torupsvägen | C58: 2021-04-19 | E58: 9.1 | F58: 11.5 | G58: 100 | H58: 7.83 | I58: 4.3 | J58: 58.8 | L58: 18 | M58: 52 | N58: 1200 | O58: 180 | P58: 2300 | T58: 950 | AJ58: 9.1 | AK58: 11.5 | AL58: 100 | AM58: 7.83 | AN58: 4.3 | AO58: 58.8 | AQ58: 18 | AR58: 52 | AS58: 1200 | AT58: 180 | AU58: 2300 | AY58: =IF(OR(LEFT(#REF!,1)="<",LEFT(#REF!,1)=">"),VALUE(MID(#REF!,2,5)),#REF!) ->  | AZ58: =IF(OR(LEFT(#REF!,1)="<",LEFT(#REF!,1)=">"),VALUE(MID(#REF!,2,5)),#REF!) ->  | BA58: =IF(OR(LEFT(#REF!,1)="<",LEFT(#REF!,1)=">"),VALUE(MID(#REF!,2,5)),#REF!) -> 
A59: 13 | B59: 22b Spångholmsbäcken, bron vid Torupsvägen | C59: 2021-06-15 | E59: 14.5 | F59: 5.4 | G59: 53 | H59: 7.68 | I59: 5.8 | J59: 74.8 | L59: 11 | M59: 76 | N59: 1900 | O59: 130 | P59: 4100 | T59: 920 | AJ59: 14.5 | AK59: 5.4 | AL59: 53 | AM59: 7.68 | AN59: 5.8 | AO59: 74.8 | AQ59: 11 | AR59: 76 | AS59: 1900 | AT59: 130 | AU59: 4100 | AY59: =IF(OR(LEFT(#REF!,1)="<",LEFT(#REF!,1)=">"),VALUE(MID(#REF!,2,5)),#REF!) ->  | AZ59: =IF(OR(LEFT(#REF!,1)="<",LEFT(#REF!,1)=">"),VALUE(MID(#REF!,2,5)),#REF!) ->  | BA59: =IF(OR(LEFT(#REF!,1)="<",LEFT(#REF!,1)=">"),VALUE(MID(#REF!,2,5)),#REF!) -> 
A60: 13 | B60: 22b Spångholmsbäcken, bron vid Torupsvägen | C60: 2021-08-19 | E60: 14.4 | F60: 5.7 | G60: 56 | H60: 7.66 | I60: 3.4 | J60: 73.5 | L60: 9.7 | M60: 68 | N60: 4500 | O60: 40 | P60: 5200 | T60: 1240 | AJ60: 14.4 | AK60: 5.7 | AL60: 56 | AM60: 7.66 | AN60: 3.4 | AO60: 73.5 | AQ60: 9.7 | AR60: 68 | AS60: 4500 | AT60: 40 | AU60: 5200 | AY60: =IF(OR(LEFT(#REF!,1)="<",LEFT(#REF!,1)=">"),VALUE(MID(#REF!,2,5)),#REF!) ->  | AZ60: =IF(OR(LEFT(#REF!,1)="<",LEFT(#REF!,1)=">"),VALUE(MID(#REF!,2,5)),#REF!) ->  | BA60: =IF(OR(LEFT(#REF!,1)="<",LEFT(#REF!,1)=">"),VALUE(MID(#REF!,2,5)),#REF!) -> 
A61: 13 | B61: 22b Spångholmsbäcken, bron vid Torupsvägen | C61: 2021-10-20 | E61: 12.4 | F61: 7.8 | G61: 73 | H61: 7.63 | I61: 3.9 | J61: 80.1 | L61: 13 | M61: 64 | N61: 5100 | O61: 15 | P61: 6400 | T61: 1315 | AJ61: 12.4 | AK61: 7.8 | AL61: 73 | AM61: 7.63 | AN61: 3.9 | AO61: 80.1 | AQ61: 13 | AR61: 64 | AS61: 5100 | AT61: 15 | AU61: 6400 | AY61: =IF(OR(LEFT(#REF!,1)="<",LEFT(#REF!,1)=">"),VALUE(MID(#REF!,2,5)),#REF!) ->  | AZ61: =IF(OR(LEFT(#REF!,1)="<",LEFT(#REF!,1)=">"),VALUE(MID(#REF!,2,5)),#REF!) ->  | BA61: =IF(OR(LEFT(#REF!,1)="<",LEFT(#REF!,1)=">"),VALUE(MID(#REF!,2,5)),#REF!) -> 
A62: 13 | B62: 22b Spångholmsbäcken, bron vid Torupsvägen | C62: 2021-12-20 | E62: 2 | F62: 12.5 | G62: 90 | H62: 7.94 | I62: 6.3 | J62: 54.5 | L62: 17 | M62: 64 | N62: 920 | O62: 520 | P62: 3000 | T62: 1355 | AJ62: 2 | AK62: 12.5 | AL62: 90 | AM62: 7.94 | AN62: 6.3 | AO62: 54.5 | AQ62: 17 | AR62: 64 | AS62: 920 | AT62: 520 | AU62: 3000 | AY62: =IF(OR(LEFT(#REF!,1)="<",LEFT(#REF!,1)=">"),VALUE(MID(#REF!,2,5)),#REF!) ->  | AZ62: =IF(OR(LEFT(#REF!,1)="<",LEFT(#REF!,1)=">"),VALUE(MID(#REF!,2,5)),#REF!) ->  | BA62: =IF(OR(LEFT(#REF!,1)="<",LEFT(#REF!,1)=">"),VALUE(MID(#REF!,2,5)),#REF!) -> 
C63: Medel | E63: 8.75 | F63: 9.45 | G63: 77.83333333 | H63: 7.775 | I63: 5.05 | J63: 67.43333333 | L63: 14.45 | M63: 63.16666667 | N63: 2503.333333 | O63: 299.1666667 | P63: 4000 | AI63: 0 | AJ63: 8.75 | AK63: 9.45 | AL63: 77.83333333 | AM63: 7.775 | AN63: 5.05 | AO63: 67.43333333 | AP63: 0 | AQ63: 14.45 | AR63: 63.16666667 | AS63: 2503.333333 | AT63: 299.1666667 | AU63: 4000 | AV63: 0 | AW63: 0 | AX63: 0 | AY63: =IF(OR(LEFT(#REF!,1)="<",LEFT(#REF!,1)=">"),VALUE(MID(#REF!,2,5)),#REF!) ->  | AZ63: =IF(OR(LEFT(#REF!,1)="<",LEFT(#REF!,1)=">"),VALUE(MID(#REF!,2,5)),#REF!) ->  | BA63: =IF(OR(LEFT(#REF!,1)="<",LEFT(#REF!,1)=">"),VALUE(MID(#REF!,2,5)),#REF!) -> 
C64: Max | E64: 14.5 | F64: 13.8 | G64: 100 | H64: 7.94 | I64: 6.6 | J64: 80.1 | L64: 18 | M64: 76 | N64: 5100 | O64: 910 | P64: 6400 | AI64: 0 | AJ64: 14.5 | AK64: 13.8 | AL64: 100 | AM64: 7.94 | AN64: 6.6 | AO64: 80.1 | AP64: 0 | AQ64: 18 | AR64: 76 | AS64: 5100 | AT64: 910 | AU64: 6400 | AV64: 0 | AW64: 0 | AX64: 0 | AY64: =IF(OR(LEFT(#REF!,1)="<",LEFT(#REF!,1)=">"),VALUE(MID(#REF!,2,5)),#REF!) ->  | AZ64: =IF(OR(LEFT(#REF!,1)="<",LEFT(#REF!,1)=">"),VALUE(MID(#REF!,2,5)),#REF!) ->  | BA64: =IF(OR(LEFT(#REF!,1)="<",LEFT(#REF!,1)=">"),VALUE(MID(#REF!,2,5)),#REF!) -> 
C65: Min | E65: 0.1 | F65: 5.4 | G65: 53 | H65: 7.63 | I65: 3.4 | J65: 54.5 | L65: 9.7 | M65: 52 | N65: 920 | O65: 15 | P65: 2300 | AI65: 0 | AJ65: 0.1 | AK65: 5.4 | AL65: 53 | AM65: 7.63 | AN65: 3.4 | AO65: 54.5 | AP65: 0 | AQ65: 9.7 | AR65: 52 | AS65: 920 | AT65: 15 | AU65: 2300 | AV65: 0 | AW65: 0 | AX65: 0 | AY65: =IF(OR(LEFT(#REF!,1)="<",LEFT(#REF!,1)=">"),VALUE(MID(#REF!,2,5)),#REF!) ->  | AZ65: =IF(OR(LEFT(#REF!,1)="<",LEFT(#REF!,1)=">"),VALUE(MID(#REF!,2,5)),#REF!) ->  | BA65: =IF(OR(LEFT(#REF!,1)="<",LEFT(#REF!,1)=">"),VALUE(MID(#REF!,2,5)),#REF!) -> 
AI66: 0 | AJ66: 0 | AK66: 0 | AL66: 0 | AM66: 0 | AN66: 0 | AO66: 0 | AP66: 0 | AQ66: 0 | AR66: 0 | AS66: 0 | AT66: 0 | AU66: 0 | AV66: 0 | AW66: 0 | AX66: 0 | AY66: =IF(OR(LEFT(#REF!,1)="<",LEFT(#REF!,1)=">"),VALUE(MID(#REF!,2,5)),#REF!) ->  | AZ66: =IF(OR(LEFT(#REF!,1)="<",LEFT(#REF!,1)=">"),VALUE(MID(#REF!,2,5)),#REF!) ->  | BA66: =IF(OR(LEFT(#REF!,1)="<",LEFT(#REF!,1)=">"),VALUE(MID(#REF!,2,5)),#REF!) -> 
A67: 15 | B67: 23 Spångholmsbäcken, uppströms Torupsdammen | C67: 2021-02-15 | E67: 0 | F67: 14.3 | G67: 98 | H67: 8.01 | I67: 10 | J67: 59 | L67: 18 | M67: 62 | N67: 760 | O67: 980 | P67: 3000 | T67: 1520 | U67: istäckt | AJ67: 0 | AK67: 14.3 | AL67: 98 | AM67: 8.01 | AN67: 10 | AO67: 59 | AQ67: 18 | AR67: 62 | AS67: 760 | AT67: 980 | AU67: 3000 | AY67: =IF(OR(LEFT(#REF!,1)="<",LEFT(#REF!,1)=">"),VALUE(MID(#REF!,2,5)),#REF!) ->  | AZ67: =IF(OR(LEFT(#REF!,1)="<",LEFT(#REF!,1)=">"),VALUE(MID(#REF!,2,5)),#REF!) ->  | BA67: =IF(OR(LEFT(#REF!,1)="<",LEFT(#REF!,1)=">"),VALUE(MID(#REF!,2,5)),#REF!) -> 
A68: 15 | B68: 23 Spångholmsbäcken, uppströms Torupsdammen | C68: 2021-04-19 | E68: 9.4 | F68: 11.1 | G68: 97 | H68: 7.99 | I68: 3.1 | J68: 56.4 | L68: 18 | M68: 53 | N68: 590 | O68: 410 | P68: 2100 | T68: 1010 | AJ68: 9.4 | AK68: 11.1 | AL68: 97 | AM68: 7.99 | AN68: 3.1 | AO68: 56.4 | AQ68: 18 | AR68: 53 | AS68: 590 | AT68: 410 | AU68: 2100 | AY68: =IF(OR(LEFT(#REF!,1)="<",LEFT(#REF!,1)=">"),VALUE(MID(#REF!,2,5)),#REF!) ->  | AZ68: =IF(OR(LEFT(#REF!,1)="<",LEFT(#REF!,1)=">"),VALUE(MID(#REF!,2,5)),#REF!) ->  | BA68: =IF(OR(LEFT(#REF!,1)="<",LEFT(#REF!,1)=">"),VALUE(MID(#REF!,2,5)),#REF!) -> 
A69: 15 | B69: 23 Spångholmsbäcken, uppströms Torupsdammen | C69: 2021-06-15 | E69: 14.6 | F69: 3.9 | G69: 38 | H69: 7.58 | I69: 5.3 | J69: 65 | L69: 15 | M69: 220 | N69: 45 | O69: 570 | P69: 1700 | T69: 940 | AJ69: 14.6 | AK69: 3.9 | AL69: 38 | AM69: 7.58 | AN69: 5.3 | AO69: 65 | AQ69: 15 | AR69: 220 | AS69: 45 | AT69: 570 | AU69: 1700 | AY69: =IF(OR(LEFT(#REF!,1)="<",LEFT(#REF!,1)=">"),VALUE(MID(#REF!,2,5)),#REF!) ->  | AZ69: =IF(OR(LEFT(#REF!,1)="<",LEFT(#REF!,1)=">"),VALUE(MID(#REF!,2,5)),#REF!) ->  | BA69: =IF(OR(LEFT(#REF!,1)="<",LEFT(#REF!,1)=">"),VALUE(MID(#REF!,2,5)),#REF!) -> 
A70: 15 | B70: 23 Spångholmsbäcken, uppströms Torupsdammen | C70: 2021-08-19 | E70: 15.6 | F70: 7.1 | G70: 72 | H70: 7.77 | I70: 12 | J70: 60.9 | L70: 7.1 | M70: 110 | N70: 2900 | O70: 31 | P70: 3500 | T70: 1250 | AJ70: 15.6 | AK70: 7.1 | AL70: 72 | AM70: 7.77 | AN70: 12 | AO70: 60.9 | AQ70: 7.1 | AR70: 110 | AS70: 2900 | AT70: 31 | AU70: 3500 | AY70: =IF(OR(LEFT(#REF!,1)="<",LEFT(#REF!,1)=">"),VALUE(MID(#REF!,2,5)),#REF!) ->  | AZ70: =IF(OR(LEFT(#REF!,1)="<",LEFT(#REF!,1)=">"),VALUE(MID(#REF!,2,5)),#REF!) ->  | BA70: =IF(OR(LEFT(#REF!,1)="<",LEFT(#REF!,1)=">"),VALUE(MID(#REF!,2,5)),#REF!) -> 
A71: 15 | B71: 23 Spångholmsbäcken, uppströms Torupsdammen | C71: 2021-10-20 | E71: 12.8 | F71: 7.6 | G71: 72 | H71: 7.51 | I71: 1.5 | J71: 70.1 | L71: 17 | M71: 94 | N71: 360 | O71: 45 | P71: 1600 | T71: 1330 | AJ71: 12.8 | AK71: 7.6 | AL71: 72 | AM71: 7.51 | AN71: 1.5 | AO71: 70.1 | AP71: =IF(OR(LEFT(K71,1)="<",LEFT(K71,1)=">"),VALUE(MID(K71,2,5)),K71) ->  | AQ71: =IF(OR(LEFT(L71,1)="<",LEFT(L71,1)=">"),VALUE(MID(L71,2,5)),L71) -> 17 | AR71: =IF(OR(LEFT(M71,1)="<",LEFT(M71,1)=">"),VALUE(MID(M71,2,5)),M71) -> 94 | AS71: =IF(OR(LEFT(N71,1)="<",LEFT(N71,1)=">"),VALUE(MID(N71,2,5)),N71) -> 360 | AT71: =IF(OR(LEFT(O71,1)="<",LEFT(O71,1)=">"),VALUE(MID(O71,2,5)),O71) -> 45 | AU71: =IF(OR(LEFT(P71,1)="<",LEFT(P71,1)=">"),VALUE(MID(P71,2,5)),P71) -> 1600 | AV71: =IF(OR(LEFT(Q71,1)="<",LEFT(Q71,1)=">"),VALUE(MID(Q71,2,5)),Q71) ->  | AW71: =IF(OR(LEFT(R71,1)="<",LEFT(R71,1)=">"),VALUE(MID(R71,2,5)),R71) ->  | AX71: =IF(OR(LEFT(S71,1)="<",LEFT(S71,1)=">"),VALUE(MID(S71,2,5)),S71) ->  | AY71: =IF(OR(LEFT(#REF!,1)="<",LEFT(#REF!,1)=">"),VALUE(MID(#REF!,2,5)),#REF!) ->  | AZ71: =IF(OR(LEFT(#REF!,1)="<",LEFT(#REF!,1)=">"),VALUE(MID(#REF!,2,5)),#REF!) ->  | BA71: =IF(OR(LEFT(#REF!,1)="<",LEFT(#REF!,1)=">"),VALUE(MID(#REF!,2,5)),#REF!) -> 
A72: 15 | B72: 23 Spångholmsbäcken, uppströms Torupsdammen | C72: 2021-12-20 | E72: 1.9 | F72: 12.2 | G72: 88 | H72: 8.19 | I72: 7.3 | J72: 52.2 | L72: 19 | M72: 66 | N72: 310 | O72: 540 | P72: 2000 | T72: 1410 | AJ72: 1.9 | AK72: 12.2 | AL72: 88 | AM72: 8.19 | AN72: 7.3 | AO72: 52.2 | AQ72: 19 | AR72: 66 | AS72: 310 | AT72: 540 | AU72: 2000 | AY72: =IF(OR(LEFT(#REF!,1)="<",LEFT(#REF!,1)=">"),VALUE(MID(#REF!,2,5)),#REF!) ->  | AZ72: =IF(OR(LEFT(#REF!,1)="<",LEFT(#REF!,1)=">"),VALUE(MID(#REF!,2,5)),#REF!) ->  | BA72: =IF(OR(LEFT(#REF!,1)="<",LEFT(#REF!,1)=">"),VALUE(MID(#REF!,2,5)),#REF!) -> 
C73: Medel | E73: 9.05 | F73: 9.366666667 | G73: 77.5 | H73: 7.841666667 | I73: 6.533333333 | J73: 60.6 | L73: 15.68333333 | M73: 100.8333333 | N73: 827.5 | O73: 429.3333333 | P73: 2316.666667 | AI73: 0 | AJ73: 9.05 | AK73: 9.366666667 | AL73: 77.5 | AM73: 7.841666667 | AN73: 6.533333333 | AO73: 60.6 | AP73: 0 | AQ73: 15.68333333 | AR73: 100.8333333 | AS73: 827.5 | AT73: 429.3333333 | AU73: 2316.666667 | AV73: 0 | AW73: 0 | AX73: 0 | AY73: =IF(OR(LEFT(#REF!,1)="<",LEFT(#REF!,1)=">"),VALUE(MID(#REF!,2,5)),#REF!) ->  | AZ73: =IF(OR(LEFT(#REF!,1)="<",LEFT(#REF!,1)=">"),VALUE(MID(#REF!,2,5)),#REF!) ->  | BA73: =IF(OR(LEFT(#REF!,1)="<",LEFT(#REF!,1)=">"),VALUE(MID(#REF!,2,5)),#REF!) -> 
C74: Max | E74: 15.6 | F74: 14.3 | G74: 98 | H74: 8.19 | I74: 12 | J74: 70.1 | L74: 19 | M74: 220 | N74: 2900 | O74: 980 | P74: 3500 | AI74: 0 | AJ74: 15.6 | AK74: 14.3 | AL74: 98 | AM74: 8.19 | AN74: 12 | AO74: 70.1 | AP74: 0 | AQ74: 19 | AR74: 220 | AS74: 2900 | AT74: 980 | AU74: 3500 | AV74: 0 | AW74: 0 | AX74: 0 | AY74: =IF(OR(LEFT(#REF!,1)="<",LEFT(#REF!,1)=">"),VALUE(MID(#REF!,2,5)),#REF!) ->  | AZ74: =IF(OR(LEFT(#REF!,1)="<",LEFT(#REF!,1)=">"),VALUE(MID(#REF!,2,5)),#REF!) ->  | BA74: =IF(OR(LEFT(#REF!,1)="<",LEFT(#REF!,1)=">"),VALUE(MID(#REF!,2,5)),#REF!) -> 
C75: Min | E75: 0 | F75: 3.9 | G75: 38 | H75: 7.51 | I75: 1.5 | J75: 52.2 | L75: 7.1 | M75: 53 | N75: 45 | O75: 31 | P75: 1600 | AI75: 0 | AJ75: 0 | AK75: 3.9 | AL75: 38 | AM75: 7.51 | AN75: 1.5 | AO75: 52.2 | AP75: 0 | AQ75: 7.1 | AR75: 53 | AS75: 45 | AT75: 31 | AU75: 1600 | AV75: 0 | AW75: 0 | AX75: 0 | AY75: =IF(OR(LEFT(#REF!,1)="<",LEFT(#REF!,1)=">"),VALUE(MID(#REF!,2,5)),#REF!) ->  | AZ75: =IF(OR(LEFT(#REF!,1)="<",LEFT(#REF!,1)=">"),VALUE(MID(#REF!,2,5)),#REF!) ->  | BA75: =IF(OR(LEFT(#REF!,1)="<",LEFT(#REF!,1)=">"),VALUE(MID(#REF!,2,5)),#REF!) -> 
AI76: 0 | AJ76: 0 | AK76: 0 | AL76: 0 | AM76: 0 | AN76: 0 | AO76: 0 | AP76: 0 | AQ76: 0 | AR76: 0 | AS76: 0 | AT76: 0 | AU76: 0 | AV76: 0 | AW76: 0 | AX76: 0 | AY76: =IF(OR(LEFT(#REF!,1)="<",LEFT(#REF!,1)=">"),VALUE(MID(#REF!,2,5)),#REF!) ->  | AZ76: =IF(OR(LEFT(#REF!,1)="<",LEFT(#REF!,1)=">"),VALUE(MID(#REF!,2,5)),#REF!) ->  | BA76: =IF(OR(LEFT(#REF!,1)="<",LEFT(#REF!,1)=">"),VALUE(MID(#REF!,2,5)),#REF!) -> 
A77: 17 | B77: 10 Torrebergabäcken, vägbron nordost Mölleberga | C77: 2021-02-15 | E77: 0 | F77: 11.5 | G77: 79 | H77: 7.67 | I77: 9.6 | J77: 78.9 | L77: 12 | M77: 140 | N77: 6900 | O77: 210 | P77: 6700 | T77: 1430 | U77: istäckt | AJ77: 0 | AK77: 11.5 | AL77: 79 | AM77: 7.67 | AN77: 9.6 | AO77: 78.9 | AQ77: 12 | AR77: 140 | AS77: 6900 | AT77: 210 | AU77: 6700 | AY77: =IF(OR(LEFT(#REF!,1)="<",LEFT(#REF!,1)=">"),VALUE(MID(#REF!,2,5)),#REF!) ->  | AZ77: =IF(OR(LEFT(#REF!,1)="<",LEFT(#REF!,1)=">"),VALUE(MID(#REF!,2,5)),#REF!) ->  | BA77: =IF(OR(LEFT(#REF!,1)="<",LEFT(#REF!,1)=">"),VALUE(MID(#REF!,2,5)),#REF!) -> 
A78: 17 | B78: 10 Torrebergabäcken, vägbron nordost Mölleberga | C78: 2021-04-19 | E78: 8.9 | F78: 9.8 | G78: 85 | H78: 7.84 | I78: 5.3 | J78: 66 | L78: 14 | M78: 66 | N78: 2900 | O78: 20 | P78: 3600 | T78: 910 | AJ78: 8.9 | AK78: 9.8 | AL78: 85 | AM78: 7.84 | AN78: 5.3 | AO78: 66 | AQ78: 14 | AR78: 66 | AS78: 2900 | AT78: 20 | AU78: 3600 | AY78: =IF(OR(LEFT(#REF!,1)="<",LEFT(#REF!,1)=">"),VALUE(MID(#REF!,2,5)),#REF!) ->  | AZ78: =IF(OR(LEFT(#REF!,1)="<",LEFT(#REF!,1)=">"),VALUE(MID(#REF!,2,5)),#REF!) ->  | BA78: =IF(OR(LEFT(#REF!,1)="<",LEFT(#REF!,1)=">"),VALUE(MID(#REF!,2,5)),#REF!) -> 
A79: 17 | B79: 10 Torrebergabäcken, vägbron nordost Mölleberga | C79: 2021-06-15 | E79: 17.1 | F79: 3.4 | G79: 35 | H79: 7.52 | I79: 11 | J79: 64.8 | L79: 12 | M79: 150 | N79: 750 | O79: 100 | P79: 1700 | T79: 830 | AJ79: 17.1 | AK79: 3.4 | AL79: 35 | AM79: 7.52 | AN79: 11 | AO79: 64.8 | AQ79: 12 | AR79: 150 | AS79: 750 | AT79: 100 | AU79: 1700 | AY79: =IF(OR(LEFT(#REF!,1)="<",LEFT(#REF!,1)=">"),VALUE(MID(#REF!,2,5)),#REF!) ->  | AZ79: =IF(OR(LEFT(#REF!,1)="<",LEFT(#REF!,1)=">"),VALUE(MID(#REF!,2,5)),#REF!) ->  | BA79: =IF(OR(LEFT(#REF!,1)="<",LEFT(#REF!,1)=">"),VALUE(MID(#REF!,2,5)),#REF!) -> 
A80: 17 | B80: 10 Torrebergabäcken, vägbron nordost Mölleberga | C80: 2021-08-19 | E80: 15.6 | F80: 3.9 | G80: 39 | H80: 7.56 | I80: 5.6 | J80: 28.3 | L80: 6.5 | M80: 140 | N80: 390 | O80: 36 | P80: 890 | T80: 1210 | AJ80: 15.6 | AK80: 3.9 | AL80: 39 | AM80: 7.56 | AN80: 5.6 | AO80: 28.3 | AQ80: 6.5 | AR80: 140 | AS80: 390 | AT80: 36 | AU80: 890 | AY80: =IF(OR(LEFT(#REF!,1)="<",LEFT(#REF!,1)=">"),VALUE(MID(#REF!,2,5)),#REF!) ->  | AZ80: =IF(OR(LEFT(#REF!,1)="<",LEFT(#REF!,1)=">"),VALUE(MID(#REF!,2,5)),#REF!) ->  | BA80: =IF(OR(LEFT(#REF!,1)="<",LEFT(#REF!,1)=">"),VALUE(MID(#REF!,2,5)),#REF!) -> 
A81: 17 | B81: 10 Torrebergabäcken, vägbron nordost Mölleberga | C81: 2021-10-20 | E81: 11.5 | F81: 5.7 | G81: 52 | H81: 7.65 | I81: 5.2 | J81: 71.3 | L81: 13 | M81: 98 | N81: 2400 | O81: 59 | P81: 3200 | T81: 1245 | AJ81: 11.5 | AK81: 5.7 | AL81: 52 | AM81: 7.65 | AN81: 5.2 | AO81: 71.3 | AQ81: 13 | AR81: 98 | AS81: 2400 | AT81: 59 | AU81: 3200 | AY81: =IF(OR(LEFT(#REF!,1)="<",LEFT(#REF!,1)=">"),VALUE(MID(#REF!,2,5)),#REF!) ->  | AZ81: =IF(OR(LEFT(#REF!,1)="<",LEFT(#REF!,1)=">"),VALUE(MID(#REF!,2,5)),#REF!) ->  | BA81: =IF(OR(LEFT(#REF!,1)="<",LEFT(#REF!,1)=">"),VALUE(MID(#REF!,2,5)),#REF!) -> 
A82: 17 | B82: 10 Torrebergabäcken, vägbron nordost Mölleberga | C82: 2021-12-20 | E82: 2.6 | F82: 10 | G82: 74 | H82: 7.81 | I82: 7 | J82: 70.8 | L82: 16 | M82: 85 | N82: 7700 | O82: 160 | P82: 7300 | T82: 1315 | AJ82: 2.6 | AK82: 10 | AL82: 74 | AM82: 7.81 | AN82: 7 | AO82: 70.8 | AQ82: 16 | AR82: 85 | AS82: 7700 | AT82: 160 | AU82: 7300 | AY82: =IF(OR(LEFT(#REF!,1)="<",LEFT(#REF!,1)=">"),VALUE(MID(#REF!,2,5)),#REF!) ->  | AZ82: =IF(OR(LEFT(#REF!,1)="<",LEFT(#REF!,1)=">"),VALUE(MID(#REF!,2,5)),#REF!) ->  | BA82: =IF(OR(LEFT(#REF!,1)="<",LEFT(#REF!,1)=">"),VALUE(MID(#REF!,2,5)),#REF!) -> 
C83: Medel | E83: 9.283333333 | F83: 7.383333333 | G83: 60.66666667 | H83: 7.675 | I83: 7.283333333 | J83: 63.35 | L83: 12.25 | M83: 113.1666667 | N83: 3506.666667 | O83: 97.5 | P83: 3898.333333 | AI83: 0 | AJ83: 9.283333333 | AK83: 7.383333333 | AL83: 60.66666667 | AM83: 7.675 | AN83: 7.283333333 | AO83: 63.35 | AP83: 0 | AQ83: 12.25 | AR83: 113.1666667 | AS83: 3506.666667 | AT83: 97.5 | AU83: 3898.333333 | AV83: 0 | AW83: 0 | AX83: 0 | AY83: =IF(OR(LEFT(#REF!,1)="<",LEFT(#REF!,1)=">"),VALUE(MID(#REF!,2,5)),#REF!) ->  | AZ83: =IF(OR(LEFT(#REF!,1)="<",LEFT(#REF!,1)=">"),VALUE(MID(#REF!,2,5)),#REF!) ->  | BA83: =IF(OR(LEFT(#REF!,1)="<",LEFT(#REF!,1)=">"),VALUE(MID(#REF!,2,5)),#REF!) -> 
C84: Max | E84: 17.1 | F84: 11.5 | G84: 85 | H84: 7.84 | I84: 11 | J84: 78.9 | L84: 16 | M84: 150 | N84: 7700 | O84: 210 | P84: 7300 | AI84: 0 | AJ84: 17.1 | AK84: 11.5 | AL84: 85 | AM84: 7.84 | AN84: 11 | AO84: 78.9 | AP84: 0 | AQ84: 16 | AR84: 150 | AS84: 7700 | AT84: 210 | AU84: 7300 | AV84: 0 | AW84: 0 | AX84: 0 | AY84: =IF(OR(LEFT(#REF!,1)="<",LEFT(#REF!,1)=">"),VALUE(MID(#REF!,2,5)),#REF!) ->  | AZ84: =IF(OR(LEFT(#REF!,1)="<",LEFT(#REF!,1)=">"),VALUE(MID(#REF!,2,5)),#REF!) ->  | BA84: =IF(OR(LEFT(#REF!,1)="<",LEFT(#REF!,1)=">"),VALUE(MID(#REF!,2,5)),#REF!) -> 
C85: Min | E85: 0 | F85: 3.4 | G85: 35 | H85: 7.52 | I85: 5.2 | J85: 28.3 | L85: 6.5 | M85: 66 | N85: 390 | O85: 20 | P85: 890 | AI85: 0 | AJ85: 0 | AK85: 3.4 | AL85: 35 | AM85: 7.52 | AN85: 5.2 | AO85: 28.3 | AP85: 0 | AQ85: 6.5 | AR85: 66 | AS85: 390 | AT85: 20 | AU85: 890 | AV85: 0 | AW85: 0 | AX85: 0 | AY85: =IF(OR(LEFT(#REF!,1)="<",LEFT(#REF!,1)=">"),VALUE(MID(#REF!,2,5)),#REF!) ->  | AZ85: =IF(OR(LEFT(#REF!,1)="<",LEFT(#REF!,1)=">"),VALUE(MID(#REF!,2,5)),#REF!) ->  | BA85: =IF(OR(LEFT(#REF!,1)="<",LEFT(#REF!,1)=">"),VALUE(MID(#REF!,2,5)),#REF!) -> 
AI86: 0 | AJ86: 0 | AK86: 0 | AL86: 0 | AM86: 0 | AN86: 0 | AO86: 0 | AP86: 0 | AQ86: 0 | AR86: 0 | AS86: 0 | AT86: 0 | AU86: 0 | AV86: 0 | AW86: 0 | AX86: 0 | AY86: =IF(OR(LEFT(#REF!,1)="<",LEFT(#REF!,1)=">"),VALUE(MID(#REF!,2,5)),#REF!) ->  | AZ86: =IF(OR(LEFT(#REF!,1)="<",LEFT(#REF!,1)=">"),VALUE(MID(#REF!,2,5)),#REF!) ->  | BA86: =IF(OR(LEFT(#REF!,1)="<",LEFT(#REF!,1)=">"),VALUE(MID(#REF!,2,5)),#REF!) -> 
A87: 18 | B87: 15 Risebergabäcken, ca 250 m uppströms från Sege å | C87: 2021-02-15 | E87: 0.9 | F87: 14.5 | G87: 102 | H87: 8.24 | I87: 2.6 | J87: 115 | L87: 5.2 | M87: 31 | N87: 1600 | O87: 37 | P87: 3600 | T87: 1410 | AJ87: 0.9 | AK87: 14.5 | AL87: 102 | AM87: 8.24 | AN87: 2.6 | AO87: 115 | AQ87: 5.2 | AR87: 31 | AS87: 1600 | AT87: 37 | AU87: 3600 | AY87: =IF(OR(LEFT(#REF!,1)="<",LEFT(#REF!,1)=">"),VALUE(MID(#REF!,2,5)),#REF!) ->  | AZ87: =IF(OR(LEFT(#REF!,1)="<",LEFT(#REF!,1)=">"),VALUE(MID(#REF!,2,5)),#REF!) ->  | BA87: =IF(OR(LEFT(#REF!,1)="<",LEFT(#REF!,1)=">"),VALUE(MID(#REF!,2,5)),#REF!) -> 
A88: 18 | B88: 15 Risebergabäcken, ca 250 m uppströms från Sege å | C88: 2021-04-19 | E88: 9.5 | F88: 12.2 | G88: 107 | H88: 8.06 | I88: 3.2 | J88: 104 | L88: 5.5 | M88: 32 | N88: 2000 | O88: 37 | P88: 2300 | T88: 850 | AJ88: 9.5 | AK88: 12.2 | AL88: 107 | AM88: 8.06 | AN88: 3.2 | AO88: 104 | AQ88: 5.5 | AR88: 32 | AS88: 2000 | AT88: 37 | AU88: 2300 | AY88: =IF(OR(LEFT(#REF!,1)="<",LEFT(#REF!,1)=">"),VALUE(MID(#REF!,2,5)),#REF!) ->  | AZ88: =IF(OR(LEFT(#REF!,1)="<",LEFT(#REF!,1)=">"),VALUE(MID(#REF!,2,5)),#REF!) ->  | BA88: =IF(OR(LEFT(#REF!,1)="<",LEFT(#REF!,1)=">"),VALUE(MID(#REF!,2,5)),#REF!) -> 
A89: 18 | B89: 15 Risebergabäcken, ca 250 m uppströms från Sege å | C89: 2021-06-15 | E89: 13.8 | F89: 8.5 | G89: 82 | H89: 8 | I89: 5.5 | J89: 111 | L89: 4.1 | M89: 63 | N89: 1100 | O89: 140 | P89: 1600 | T89: 820 | AJ89: 13.8 | AK89: 8.5 | AL89: 82 | AM89: 8 | AN89: 5.5 | AO89: 111 | AQ89: 4.1 | AR89: 63 | AS89: 1100 | AT89: 140 | AU89: 1600 | AY89: =IF(OR(LEFT(#REF!,1)="<",LEFT(#REF!,1)=">"),VALUE(MID(#REF!,2,5)),#REF!) ->  | AZ89: =IF(OR(LEFT(#REF!,1)="<",LEFT(#REF!,1)=">"),VALUE(MID(#REF!,2,5)),#REF!) ->  | BA89: =IF(OR(LEFT(#REF!,1)="<",LEFT(#REF!,1)=">"),VALUE(MID(#REF!,2,5)),#REF!) -> 
A90: 18 | B90: 15 Risebergabäcken, ca 250 m uppströms från Sege å | C90: 2021-08-19 | E90: 15.5 | F90: 5.8 | G90: 58 | H90: 7.96 | I90: 32 | J90: 63.8 | L90: 7.1 | M90: 110 | N90: 2900 | O90: 31 | P90: 3500 | T90: 1150 | AJ90: 15.5 | AK90: 5.8 | AL90: 58 | AM90: 7.96 | AN90: 32 | AO90: 63.8 | AQ90: 7.1 | AR90: 110 | AS90: 2900 | AT90: 31 | AU90: 3500 | AY90: =IF(OR(LEFT(#REF!,1)="<",LEFT(#REF!,1)=">"),VALUE(MID(#REF!,2,5)),#REF!) ->  | AZ90: =IF(OR(LEFT(#REF!,1)="<",LEFT(#REF!,1)=">"),VALUE(MID(#REF!,2,5)),#REF!) ->  | BA90: =IF(OR(LEFT(#REF!,1)="<",LEFT(#REF!,1)=">"),VALUE(MID(#REF!,2,5)),#REF!) -> 
A91: 18 | B91: 15 Risebergabäcken, ca 250 m uppströms från Sege å | C91: 2021-10-20 | E91: 13.3 | F91: 9.5 | G91: 91 | H91: 7.88 | I91: 16 | J91: 40.9 | L91: 4.5 | M91: 91 | N91: 1500 | O91: 100 | P91: 1700 | T91: 1215 | AJ91: 13.3 | AK91: 9.5 | AL91: 91 | AM91: 7.88 | AN91: 16 | AO91: 40.9 | AQ91: 4.5 | AR91: 91 | AS91: 1500 | AT91: 100 | AU91: 1700 | AY91: =IF(OR(LEFT(#REF!,1)="<",LEFT(#REF!,1)=">"),VALUE(MID(#REF!,2,5)),#REF!) ->  | AZ91: =IF(OR(LEFT(#REF!,1)="<",LEFT(#REF!,1)=">"),VALUE(MID(#REF!,2,5)),#REF!) ->  | BA91: =IF(OR(LEFT(#REF!,1)="<",LEFT(#REF!,1)=">"),VALUE(MID(#REF!,2,5)),#REF!) -> 
A92: 18 | B92: 15 Risebergabäcken, ca 250 m uppströms från Sege å | C92: 2021-12-20 | E92: 7 | F92: 11.1 | G92: 92 | H92: 8.14 | I92: 4.5 | J92: 110 | L92: 5.7 | M92: 56 | N92: 4900 | O92: 120 | P92: 5000 | T92: 1305 | AJ92: 7 | AK92: 11.1 | AL92: 92 | AM92: 8.14 | AN92: 4.5 | AO92: 110 | AQ92: 5.7 | AR92: 56 | AS92: 4900 | AT92: 120 | AU92: 5000 | AY92: =IF(OR(LEFT(#REF!,1)="<",LEFT(#REF!,1)=">"),VALUE(MID(#REF!,2,5)),#REF!) ->  | AZ92: =IF(OR(LEFT(#REF!,1)="<",LEFT(#REF!,1)=">"),VALUE(MID(#REF!,2,5)),#REF!) ->  | BA92: =IF(OR(LEFT(#REF!,1)="<",LEFT(#REF!,1)=">"),VALUE(MID(#REF!,2,5)),#REF!) -> 
C93: Medel | E93: 10 | F93: 10.26666667 | G93: 88.66666667 | H93: 8.046666667 | I93: 10.63333333 | J93: 90.78333333 | L93: 5.35 | M93: 63.83333333 | N93: 2333.333333 | O93: 77.5 | P93: 2950 | AI93: 0 | AJ93: 10 | AK93: 10.26666667 | AL93: 88.66666667 | AM93: 8.046666667 | AN93: 10.63333333 | AO93: 90.78333333 | AP93: 0 | AQ93: 5.35 | AR93: 63.83333333 | AS93: 2333.333333 | AT93: 77.5 | AU93: 2950 | AV93: 0 | AW93: 0 | AX93: 0 | AY93: =IF(OR(LEFT(#REF!,1)="<",LEFT(#REF!,1)=">"),VALUE(MID(#REF!,2,5)),#REF!) ->  | AZ93: =IF(OR(LEFT(#REF!,1)="<",LEFT(#REF!,1)=">"),VALUE(MID(#REF!,2,5)),#REF!) ->  | BA93: =IF(OR(LEFT(#REF!,1)="<",LEFT(#REF!,1)=">"),VALUE(MID(#REF!,2,5)),#REF!) -> 
C94: Max | E94: 15.5 | F94: 14.5 | G94: 107 | H94: 8.24 | I94: 32 | J94: 115 | L94: 7.1 | M94: 110 | N94: 4900 | O94: 140 | P94: 5000 | AI94: 0 | AJ94: 15.5 | AK94: 14.5 | AL94: 107 | AM94: 8.24 | AN94: 32 | AO94: 115 | AP94: 0 | AQ94: 7.1 | AR94: 110 | AS94: 4900 | AT94: 140 | AU94: 5000 | AV94: 0 | AW94: 0 | AX94: 0 | AY94: =IF(OR(LEFT(#REF!,1)="<",LEFT(#REF!,1)=">"),VALUE(MID(#REF!,2,5)),#REF!) ->  | AZ94: =IF(OR(LEFT(#REF!,1)="<",LEFT(#REF!,1)=">"),VALUE(MID(#REF!,2,5)),#REF!) ->  | BA94: =IF(OR(LEFT(#REF!,1)="<",LEFT(#REF!,1)=">"),VALUE(MID(#REF!,2,5)),#REF!) -> 
C95: Min | E95: 0.9 | F95: 5.8 | G95: 58 | H95: 7.88 | I95: 2.6 | J95: 40.9 | L95: 4.1 | M95: 31 | N95: 1100 | O95: 31 | P95: 1600 | AI95: 0 | AJ95: 0.9 | AK95: 5.8 | AL95: 58 | AM95: 7.88 | AN95: 2.6 | AO95: 40.9 | AP95: 0 | AQ95: 4.1 | AR95: 31 | AS95: 1100 | AT95: 31 | AU95: 1600 | AV95: 0 | AW95: 0 | AX95: 0 | AY95: =IF(OR(LEFT(#REF!,1)="<",LEFT(#REF!,1)=">"),VALUE(MID(#REF!,2,5)),#REF!) ->  | AZ95: =IF(OR(LEFT(#REF!,1)="<",LEFT(#REF!,1)=">"),VALUE(MID(#REF!,2,5)),#REF!) ->  | BA95: =IF(OR(LEFT(#REF!,1)="<",LEFT(#REF!,1)=">"),VALUE(MID(#REF!,2,5)),#REF!) -> 
AI96: 0 | AJ96: 0 | AK96: 0 | AL96: 0 | AM96: 0 | AN96: 0 | AO96: 0 | AP96: 0 | AQ96: 0 | AR96: 0 | AS96: 0 | AT96: 0 | AU96: 0 | AV96: 0 | AW96: 0 | AX96: 0 | AY96: =IF(OR(LEFT(#REF!,1)="<",LEFT(#REF!,1)=">"),VALUE(MID(#REF!,2,5)),#REF!) ->  | AZ96: =IF(OR(LEFT(#REF!,1)="<",LEFT(#REF!,1)=">"),VALUE(MID(#REF!,2,5)),#REF!) ->  | BA96: =IF(OR(LEFT(#REF!,1)="<",LEFT(#REF!,1)=">"),VALUE(MID(#REF!,2,5)),#REF!) -> 
AI97: 0 | AJ97: 0 | AK97: 0 | AL97: 0 | AM97: 0 | AN97: 0 | AO97: 0 | AP97: 0 | AQ97: 0 | AR97: 0 | AS97: 0 | AT97: 0 | AU97: 0 | AV97: 0 | AW97: 0 | AX97: 0 | AY97: =IF(OR(LEFT(#REF!,1)="<",LEFT(#REF!,1)=">"),VALUE(MID(#REF!,2,5)),#REF!) ->  | AZ97: =IF(OR(LEFT(#REF!,1)="<",LEFT(#REF!,1)=">"),VALUE(MID(#REF!,2,5)),#REF!) ->  | BA97: =IF(OR(LEFT(#REF!,1)="<",LEFT(#REF!,1)=">"),VALUE(MID(#REF!,2,5)),#REF!) -> 
A98: 20 | B98: 31 Börringesjön | C98: 2021-05-17 | E98: 16.3 | F98: 13.3 | G98: 136 | H98: 8.82 | I98: 36 | J98: 38.6 | L98: 20 | M98: 77 | N98: <10 | O98: <10 | P98: 2300 | Q98: 62 | R98: 0.3 | S98: 0.3 | T98: 1000 | U98: gröngrumligt | AJ98: 16.3 | AK98: 13.3 | AL98: 136 | AM98: 8.82 | AN98: 36 | AO98: 38.6 | AQ98: 20 | AR98: 77 | AS98: 10 | AT98: 10 | AU98: 2300 | AV98: 62 | AW98: 0.3 | AX98: 0.3 | AY98: =IF(OR(LEFT(#REF!,1)="<",LEFT(#REF!,1)=">"),VALUE(MID(#REF!,2,5)),#REF!) ->  | AZ98: =IF(OR(LEFT(#REF!,1)="<",LEFT(#REF!,1)=">"),VALUE(MID(#REF!,2,5)),#REF!) ->  | BA98: =IF(OR(LEFT(#REF!,1)="<",LEFT(#REF!,1)=">"),VALUE(MID(#REF!,2,5)),#REF!) -> 
A99: 20 | B99: 31 Börringesjön | C99: 2021-06-14 | E99: 19.2 | F99: 9.7 | G99: 105 | H99: 8.67 | I99: 42 | J99: 39.3 | L99: 26 | M99: 96 | N99: <10 | O99: <10 | P99: 2800 | Q99: 54 | R99: 0.3 | S99: 0.3 | T99: 950 | U99: gulgrumligt | AJ99: 19.2 | AK99: 9.7 | AL99: 105 | AM99: 8.67 | AN99: 42 | AO99: 39.3 | AQ99: 26 | AR99: 96 | AS99: 10 | AT99: 10 | AU99: 2800 | AV99: 54 | AW99: 0.3 | AX99: 0.3 | AY99: =IF(OR(LEFT(#REF!,1)="<",LEFT(#REF!,1)=">"),VALUE(MID(#REF!,2,5)),#REF!) ->  | AZ99: =IF(OR(LEFT(#REF!,1)="<",LEFT(#REF!,1)=">"),VALUE(MID(#REF!,2,5)),#REF!) ->  | BA99: =IF(OR(LEFT(#REF!,1)="<",LEFT(#REF!,1)=">"),VALUE(MID(#REF!,2,5)),#REF!) -> 
A100: 20 | B100: 31 Börringesjön | C100: 2021-07-13 | E100: 21.6 | F100: 10.1 | G100: 114 | H100: 8.83 | I100: 30 | J100: 37.8 | L100: 22 | M100: 75 | N100: <10 | O100: <10 | P100: 2200 | Q100: 40 | R100: 0.4 | S100: 0.4 | T100: 920 | U100: gulgrumligt | AJ100: 21.6 | AK100: 10.1 | AL100: 114 | AM100: 8.83 | AN100: 30 | AO100: 37.8 | AQ100: 22 | AR100: 75 | AS100: 10 | AT100: 10 | AU100: 2200 | AV100: 40 | AW100: 0.4 | AX100: 0.4 | AY100: =IF(OR(LEFT(#REF!,1)="<",LEFT(#REF!,1)=">"),VALUE(MID(#REF!,2,5)),#REF!) ->  | AZ100: =IF(OR(LEFT(#REF!,1)="<",LEFT(#REF!,1)=">"),VALUE(MID(#REF!,2,5)),#REF!) ->  | BA100: =IF(OR(LEFT(#REF!,1)="<",LEFT(#REF!,1)=">"),VALUE(MID(#REF!,2,5)),#REF!) -> 
A101: 20 | B101: 31 Börringesjön | C101: 2021-08-18 | E101: 16.2 | F101: 10 | G101: 102 | H101: 8.48 | I101: 34 | J101: 35.4 | L101: 20 | M101: 74 | N101: <10 | O101: <10 | P101: 2100 | Q101: 43 | R101: 0.3 | S101: 0.3 | T101: 1100 | U101: gulgrumligt | AJ101: 16.2 | AK101: 10 | AL101: 102 | AM101: 8.48 | AN101: 34 | AO101: 35.4 | AQ101: 20 | AR101: 74 | AS101: 10 | AT101: 10 | AU101: 2100 | AV101: 43 | AW101: 0.3 | AX101: 0.3 | AY101: =IF(OR(LEFT(#REF!,1)="<",LEFT(#REF!,1)=">"),VALUE(MID(#REF!,2,5)),#REF!) ->  | AZ101: =IF(OR(LEFT(#REF!,1)="<",LEFT(#REF!,1)=">"),VALUE(MID(#REF!,2,5)),#REF!) ->  | BA101: =IF(OR(LEFT(#REF!,1)="<",LEFT(#REF!,1)=">"),VALUE(MID(#REF!,2,5)),#REF!) -> 
A102: 20 | B102: 31 Börringesjön | C102: 2021-09-20 | E102: 14.1 | F102: 11 | G102: 107 | H102: 8.58 | I102: 37 | J102: 37.1 | L102: 26 | M102: 98 | N102: <10 | O102: <10 | P102: 2900 | Q102: 80 | R102: 0.3 | S102: 0.3 | T102: 930 | U102: gulgrumligt | AJ102: 14.1 | AK102: 11 | AL102: 107 | AM102: 8.58 | AN102: 37 | AO102: 37.1 | AQ102: 26 | AR102: 98 | AS102: 10 | AT102: 10 | AU102: 2900 | AV102: 80 | AW102: 0.3 | AX102: 0.3 | AY102: =IF(OR(LEFT(#REF!,1)="<",LEFT(#REF!,1)=">"),VALUE(MID(#REF!,2,5)),#REF!) ->  | AZ102: =IF(OR(LEFT(#REF!,1)="<",LEFT(#REF!,1)=">"),VALUE(MID(#REF!,2,5)),#REF!) ->  | BA102: =IF(OR(LEFT(#REF!,1)="<",LEFT(#REF!,1)=">"),VALUE(MID(#REF!,2,5)),#REF!) -> 
C103: Medel | E103: 17.48 | F103: 10.82 | G103: 112.8 | H103: 8.676 | I103: 35.8 | J103: 37.64 | L103: 22.8 | M103: 84 | N103: 10 | O103: 10 | P103: 2460 | Q103: 55.8 | R103: 0.32 | S103: 0.32 | AI103: 0 | AJ103: 17.48 | AK103: 10.82 | AL103: 112.8 | AM103: 8.676 | AN103: 35.8 | AO103: 37.64 | AP103: =IF(OR(LEFT(K103,1)="<",LEFT(K103,1)=">"),VALUE(MID(K103,2,5)),K103) -> 0 | AQ103: =IF(OR(LEFT(L103,1)="<",LEFT(L103,1)=">"),VALUE(MID(L103,2,5)),L103) -> 22.8 | AR103: =IF(OR(LEFT(M103,1)="<",LEFT(M103,1)=">"),VALUE(MID(M103,2,5)),M103) -> 84 | AS103: =IF(OR(LEFT(N103,1)="<",LEFT(N103,1)=">"),VALUE(MID(N103,2,5)),N103) -> 10 | AT103: =IF(OR(LEFT(O103,1)="<",LEFT(O103,1)=">"),VALUE(MID(O103,2,5)),O103) -> 10 | AU103: =IF(OR(LEFT(P103,1)="<",LEFT(P103,1)=">"),VALUE(MID(P103,2,5)),P103) -> 2460 | AV103: =IF(OR(LEFT(Q103,1)="<",LEFT(Q103,1)=">"),VALUE(MID(Q103,2,5)),Q103) -> 55.8 | AW103: =IF(OR(LEFT(R103,1)="<",LEFT(R103,1)=">"),VALUE(MID(R103,2,5)),R103) -> 0.32 | AX103: =IF(OR(LEFT(S103,1)="<",LEFT(S103,1)=">"),VALUE(MID(S103,2,5)),S103) -> 0.32 | AY103: =IF(OR(LEFT(#REF!,1)="<",LEFT(#REF!,1)=">"),VALUE(MID(#REF!,2,5)),#REF!) ->  | AZ103: =IF(OR(LEFT(#REF!,1)="<",LEFT(#REF!,1)=">"),VALUE(MID(#REF!,2,5)),#REF!) ->  | BA103: =IF(OR(LEFT(#REF!,1)="<",LEFT(#REF!,1)=">"),VALUE(MID(#REF!,2,5)),#REF!) -> 
C104: Max | E104: 21.6 | F104: 13.3 | G104: 136 | H104: 8.83 | I104: 42 | J104: 39.3 | L104: 26 | M104: 98 | N104: 10 | O104: 10 | P104: 2900 | Q104: 80 | R104: 0.4 | S104: 0.4 | AI104: 0 | AJ104: 21.6 | AK104: 13.3 | AL104: 136 | AM104: 8.83 | AN104: 42 | AO104: 39.3 | AP104: 0 | AQ104: 26 | AR104: 98 | AS104: 10 | AT104: 10 | AU104: 2900 | AV104: 80 | AW104: 0.4 | AX104: 0.4 | AY104: =IF(OR(LEFT(#REF!,1)="<",LEFT(#REF!,1)=">"),VALUE(MID(#REF!,2,5)),#REF!) ->  | AZ104: =IF(OR(LEFT(#REF!,1)="<",LEFT(#REF!,1)=">"),VALUE(MID(#REF!,2,5)),#REF!) ->  | BA104: =IF(OR(LEFT(#REF!,1)="<",LEFT(#REF!,1)=">"),VALUE(MID(#REF!,2,5)),#REF!) -> 
C105: Min | E105: 14.1 | F105: 9.7 | G105: 102 | H105: 8.48 | I105: 30 | J105: 35.4 | L105: 20 | M105: 74 | N105: 10 | O105: 10 | P105: 2100 | Q105: 40 | R105: 0.3 | S105: 0.3 | AI105: 0 | AJ105: 14.1 | AK105: 9.7 | AL105: 102 | AM105: 8.48 | AN105: 30 | AO105: 35.4 | AP105: 0 | AQ105: 20 | AR105: 74 | AS105: 10 | AT105: 10 | AU105: 2100 | AV105: 40 | AW105: 0.3 | AX105: 0.3 | AY105: =IF(OR(LEFT(#REF!,1)="<",LEFT(#REF!,1)=">"),VALUE(MID(#REF!,2,5)),#REF!) ->  | AZ105: =IF(OR(LEFT(#REF!,1)="<",LEFT(#REF!,1)=">"),VALUE(MID(#REF!,2,5)),#REF!) ->  | BA105: =IF(OR(LEFT(#REF!,1)="<",LEFT(#REF!,1)=">"),VALUE(MID(#REF!,2,5)),#REF!) -> 
AI106: 0 | AJ106: 0 | AK106: 0 | AL106: 0 | AM106: 0 | AN106: 0 | AO106: 0 | AP106: 0 | AQ106: 0 | AR106: 0 | AS106: 0 | AT106: 0 | AU106: 0 | AV106: 0 | AW106: 0 | AX106: 0 | AY106: =IF(OR(LEFT(#REF!,1)="<",LEFT(#REF!,1)=">"),VALUE(MID(#REF!,2,5)),#REF!) ->  | AZ106: =IF(OR(LEFT(#REF!,1)="<",LEFT(#REF!,1)=">"),VALUE(MID(#REF!,2,5)),#REF!) ->  | BA106: =IF(OR(LEFT(#REF!,1)="<",LEFT(#REF!,1)=">"),VALUE(MID(#REF!,2,5)),#REF!) -> 
A107: 22 | B107: 32 Fjällfotasjön | C107: 2021-05-17 | E107: 16.4 | F107: 10.6 | G107: 109 | H107: 8.87 | I107: 8.9 | J107: 31.4 | L107: 25 | M107: 52 | N107: <10 | O107: <10 | P107: 1900 | Q107: 28 | R107: 0.6 | S107: 0.6 | T107: 930 | U107: brungrumligt | AJ107: 16.4 | AK107: 10.6 | AL107: 109 | AM107: 8.87 | AN107: 8.9 | AO107: 31.4 | AQ107: 25 | AR107: 52 | AS107: 10 | AT107: 10 | AU107: 1900 | AV107: 28 | AW107: 0.6 | AX107: 0.6 | AY107: =IF(OR(LEFT(#REF!,1)="<",LEFT(#REF!,1)=">"),VALUE(MID(#REF!,2,5)),#REF!) ->  | AZ107: =IF(OR(LEFT(#REF!,1)="<",LEFT(#REF!,1)=">"),VALUE(MID(#REF!,2,5)),#REF!) ->  | BA107: =IF(OR(LEFT(#REF!,1)="<",LEFT(#REF!,1)=">"),VALUE(MID(#REF!,2,5)),#REF!) -> 
A108: 22 | B108: 32 Fjällfotasjön | C108: 2021-06-14 | E108: 19.4 | F108: 9.9 | G108: 108 | H108: 9.06 | I108: 16 | J108: 33 | L108: 28 | M108: 76 | N108: <10 | O108: <10 | P108: 2200 | Q108: 38 | R108: 0.6 | S108: 0.5 | T108: 900 | U108: gröngrumligt | AJ108: 19.4 | AK108: 9.9 | AL108: 108 | AM108: 9.06 | AN108: 16 | AO108: 33 | AQ108: 28 | AR108: 76 | AS108: 10 | AT108: 10 | AU108: 2200 | AV108: 38 | AW108: 0.6 | AX108: 0.5 | AY108: =IF(OR(LEFT(#REF!,1)="<",LEFT(#REF!,1)=">"),VALUE(MID(#REF!,2,5)),#REF!) ->  | AZ108: =IF(OR(LEFT(#REF!,1)="<",LEFT(#REF!,1)=">"),VALUE(MID(#REF!,2,5)),#REF!) ->  | BA108: =IF(OR(LEFT(#REF!,1)="<",LEFT(#REF!,1)=">"),VALUE(MID(#REF!,2,5)),#REF!) -> 
A109: 22 | B109: 32 Fjällfotasjön | C109: 2021-07-13 | E109: 22.1 | F109: 9.6 | G109: 110 | H109: 8.82 | I109: 13 | J109: 32.3 | L109: 29 | M109: 54 | N109: <10 | O109: 14 | P109: 1900 | Q109: 25 | R109: 0.6 | S109: 0.5 | T109: 830 | U109: gröngrumligt | AJ109: 22.1 | AK109: 9.6 | AL109: 110 | AM109: 8.82 | AN109: 13 | AO109: 32.3 | AQ109: 29 | AR109: 54 | AS109: 10 | AT109: 14 | AU109: 1900 | AV109: 25 | AW109: 0.6 | AX109: 0.5 | AY109: =IF(OR(LEFT(#REF!,1)="<",LEFT(#REF!,1)=">"),VALUE(MID(#REF!,2,5)),#REF!) ->  | AZ109: =IF(OR(LEFT(#REF!,1)="<",LEFT(#REF!,1)=">"),VALUE(MID(#REF!,2,5)),#REF!) ->  | BA109: =IF(OR(LEFT(#REF!,1)="<",LEFT(#REF!,1)=">"),VALUE(MID(#REF!,2,5)),#REF!) -> 
A110: 22 | B110: 32 Fjällfotasjön | C110: 2021-08-18 | E110: 16.6 | F110: 8.9 | G110: 92 | H110: 8.12 | I110: 12 | J110: 32.4 | L110: 27 | M110: 70 | N110: <10 | O110: 11 | P110: 2000 | Q110: 23 | R110: 0.8 | S110: 0.7 | T110: 1000 | U110: ganska klart vatten | AJ110: 16.6 | AK110: 8.9 | AL110: 92 | AM110: 8.12 | AN110: 12 | AO110: 32.4 | AQ110: 27 | AR110: 70 | AS110: 10 | AT110: 11 | AU110: 2000 | AV110: 23 | AW110: 0.8 | AX110: 0.7 | AY110: =IF(OR(LEFT(#REF!,1)="<",LEFT(#REF!,1)=">"),VALUE(MID(#REF!,2,5)),#REF!) ->  | AZ110: =IF(OR(LEFT(#REF!,1)="<",LEFT(#REF!,1)=">"),VALUE(MID(#REF!,2,5)),#REF!) ->  | BA110: =IF(OR(LEFT(#REF!,1)="<",LEFT(#REF!,1)=">"),VALUE(MID(#REF!,2,5)),#REF!) -> 
A111: 22 | B111: 32 Fjällfotasjön | C111: 2021-09-20 | E111: 14.6 | F111: 10.1 | G111: 100 | H111: 8.16 | I111: 8.5 | J111: 34 | L111: 26 | M111: 51 | N111: <10 | O111: 170 | P111: 2100 | Q111: 28 | R111: 0.7 | S111: 0.6 | T111: 845 | U111: gröngrumligt | AJ111: 14.6 | AK111: 10.1 | AL111: 100 | AM111: 8.16 | AN111: 8.5 | AO111: 34 | AQ111: 26 | AR111: 51 | AS111: 10 | AT111: 170 | AU111: 2100 | AV111: 28 | AW111: 0.7 | AX111: 0.6 | AY111: =IF(OR(LEFT(#REF!,1)="<",LEFT(#REF!,1)=">"),VALUE(MID(#REF!,2,5)),#REF!) ->  | AZ111: =IF(OR(LEFT(#REF!,1)="<",LEFT(#REF!,1)=">"),VALUE(MID(#REF!,2,5)),#REF!) ->  | BA111: =IF(OR(LEFT(#REF!,1)="<",LEFT(#REF!,1)=">"),VALUE(MID(#REF!,2,5)),#REF!) -> 
C112: Medel | E112: 17.82 | F112: 9.82 | G112: 103.8 | H112: 8.606 | I112: 11.68 | J112: 32.62 | L112: 27 | M112: 60.6 | N112: 10 | O112: 43 | P112: 2020 | Q112: 28.4 | R112: 0.66 | S112: 0.58 | AI112: 0 | AJ112: 17.82 | AK112: 9.82 | AL112: 103.8 | AM112: 8.606 | AN112: 11.68 | AO112: 32.62 | AP112: 0 | AQ112: 27 | AR112: 60.6 | AS112: 10 | AT112: 43 | AU112: 2020 | AV112: 28.4 | AW112: 0.66 | AX112: 0.58 | AY112: =IF(OR(LEFT(#REF!,1)="<",LEFT(#REF!,1)=">"),VALUE(MID(#REF!,2,5)),#REF!) ->  | AZ112: =IF(OR(LEFT(#REF!,1)="<",LEFT(#REF!,1)=">"),VALUE(MID(#REF!,2,5)),#REF!) ->  | BA112: =IF(OR(LEFT(#REF!,1)="<",LEFT(#REF!,1)=">"),VALUE(MID(#REF!,2,5)),#REF!) -> 
C113: Max | E113: 22.1 | F113: 10.6 | G113: 110 | H113: 9.06 | I113: 16 | J113: 34 | L113: 29 | M113: 76 | N113: 10 | O113: 170 | P113: 2200 | Q113: 38 | R113: 0.8 | S113: 0.7 | AI113: 0 | AJ113: 22.1 | AK113: 10.6 | AL113: 110 | AM113: 9.06 | AN113: 16 | AO113: 34 | AP113: 0 | AQ113: 29 | AR113: 76 | AS113: 10 | AT113: 170 | AU113: 2200 | AV113: 38 | AW113: 0.8 | AX113: 0.7 | AY113: =IF(OR(LEFT(#REF!,1)="<",LEFT(#REF!,1)=">"),VALUE(MID(#REF!,2,5)),#REF!) ->  | AZ113: =IF(OR(LEFT(#REF!,1)="<",LEFT(#REF!,1)=">"),VALUE(MID(#REF!,2,5)),#REF!) ->  | BA113: =IF(OR(LEFT(#REF!,1)="<",LEFT(#REF!,1)=">"),VALUE(MID(#REF!,2,5)),#REF!) -> 
C114: Min | E114: 14.6 | F114: 8.9 | G114: 92 | H114: 8.12 | I114: 8.5 | J114: 31.4 | L114: 25 | M114: 51 | N114: 10 | O114: 10 | P114: 1900 | Q114: 23 | R114: 0.6 | S114: 0.5 | AI114: 0 | AJ114: 14.6 | AK114: 8.9 | AL114: 92 | AM114: 8.12 | AN114: 8.5 | AO114: 31.4 | AP114: 0 | AQ114: 25 | AR114: 51 | AS114: 10 | AT114: 10 | AU114: 1900 | AV114: 23 | AW114: 0.6 | AX114: 0.5 | AY114: =IF(OR(LEFT(#REF!,1)="<",LEFT(#REF!,1)=">"),VALUE(MID(#REF!,2,5)),#REF!) ->  | AZ114: =IF(OR(LEFT(#REF!,1)="<",LEFT(#REF!,1)=">"),VALUE(MID(#REF!,2,5)),#REF!) ->  | BA114: =IF(OR(LEFT(#REF!,1)="<",LEFT(#REF!,1)=">"),VALUE(MID(#REF!,2,5)),#REF!) -> 
AI115: 0 | AJ115: 0 | AK115: 0 | AL115: 0 | AM115: 0 | AN115: 0 | AO115: 0 | AP115: 0 | AQ115: 0 | AR115: 0 | AS115: 0 | AT115: 0 | AU115: 0 | AV115: 0 | AW115: 0 | AX115: 0 | AY115: =IF(OR(LEFT(#REF!,1)="<",LEFT(#REF!,1)=">"),VALUE(MID(#REF!,2,5)),#REF!) ->  | AZ115: =IF(OR(LEFT(#REF!,1)="<",LEFT(#REF!,1)=">"),VALUE(MID(#REF!,2,5)),#REF!) ->  | BA115: =IF(OR(LEFT(#REF!,1)="<",LEFT(#REF!,1)=">"),VALUE(MID(#REF!,2,5)),#REF!) -> 
A116: 24 | B116: 33 Yddingen | C116: 2021-05-17 | E116: 16.1 | F116: 13.4 | G116: 136 | H116: 8.75 | I116: 14 | J116: 49.5 | L116: 21 | M116: 40 | N116: <10 | O116: <10 | P116: 2000 | Q116: 90 | R116: 0.55 | S116: 0.5 | T116: 800 | U116: gulgrumligt | AJ116: 16.1 | AK116: 13.4 | AL116: 136 | AM116: 8.75 | AN116: 14 | AO116: 49.5 | AQ116: 21 | AR116: 40 | AS116: 10 | AT116: 10 | AU116: 2000 | AV116: 90 | AW116: 0.55 | AX116: 0.5 | AY116: =IF(OR(LEFT(#REF!,1)="<",LEFT(#REF!,1)=">"),VALUE(MID(#REF!,2,5)),#REF!) ->  | AZ116: =IF(OR(LEFT(#REF!,1)="<",LEFT(#REF!,1)=">"),VALUE(MID(#REF!,2,5)),#REF!) ->  | BA116: =IF(OR(LEFT(#REF!,1)="<",LEFT(#REF!,1)=">"),VALUE(MID(#REF!,2,5)),#REF!) -> 
A117: 24 | B117: 33 Yddingen | C117: 2021-06-14 | E117: 20.1 | F117: 8.3 | G117: 91 | H117: 8.44 | I117: 14 | J117: 48.6 | L117: 22 | M117: 54 | N117: <10 | O117: <10 | P117: 1900 | Q117: 40 | R117: 0.55 | S117: 0.5 | T117: 800 | U117: brungrumligt | AJ117: 20.1 | AK117: 8.3 | AL117: 91 | AM117: 8.44 | AN117: 14 | AO117: 48.6 | AQ117: 22 | AR117: 54 | AS117: 10 | AT117: 10 | AU117: 1900 | AV117: 40 | AW117: 0.55 | AX117: 0.5 | AY117: =IF(OR(LEFT(#REF!,1)="<",LEFT(#REF!,1)=">"),VALUE(MID(#REF!,2,5)),#REF!) ->  | AZ117: =IF(OR(LEFT(#REF!,1)="<",LEFT(#REF!,1)=">"),VALUE(MID(#REF!,2,5)),#REF!) ->  | BA117: =IF(OR(LEFT(#REF!,1)="<",LEFT(#REF!,1)=">"),VALUE(MID(#REF!,2,5)),#REF!) -> 
A118: 24 | B118: 33 Yddingen | C118: 2021-07-13 | E118: 21.9 | F118: 9 | G118: 102 | H118: 8.63 | I118: 14 | J118: 49.5 | L118: 21 | M118: 47 | N118: <10 | O118: <10 | P118: 1700 | Q118: 36 | R118: 0.4 | S118: 0.4 | T118: 745 | U118: gulgrumligt | AJ118: 21.9 | AK118: 9 | AL118: 102 | AM118: 8.63 | AN118: 14 | AO118: 49.5 | AQ118: 21 | AR118: 47 | AS118: 10 | AT118: 10 | AU118: 1700 | AV118: 36 | AW118: 0.4 | AX118: 0.4 | AY118: =IF(OR(LEFT(#REF!,1)="<",LEFT(#REF!,1)=">"),VALUE(MID(#REF!,2,5)),#REF!) ->  | AZ118: =IF(OR(LEFT(#REF!,1)="<",LEFT(#REF!,1)=">"),VALUE(MID(#REF!,2,5)),#REF!) ->  | BA118: =IF(OR(LEFT(#REF!,1)="<",LEFT(#REF!,1)=">"),VALUE(MID(#REF!,2,5)),#REF!) -> 
A119: 24 | B119: 33 Yddingen | C119: 2021-08-18 | E119: 17 | F119: 8.8 | G119: 91 | H119: 8.27 | I119: 22 | J119: 50.5 | L119: 20 | M119: 74 | N119: <10 | O119: <10 | P119: 2100 | Q119: 43 | R119: 0.6 | S119: 0.6 | T119: 845 | U119: grumligt | AJ119: 17 | AK119: 8.8 | AL119: 91 | AM119: 8.27 | AN119: 22 | AO119: 50.5 | AQ119: 20 | AR119: 74 | AS119: 10 | AT119: 10 | AU119: 2100 | AV119: 43 | AW119: 0.6 | AX119: 0.6 | AY119: =IF(OR(LEFT(#REF!,1)="<",LEFT(#REF!,1)=">"),VALUE(MID(#REF!,2,5)),#REF!) ->  | AZ119: =IF(OR(LEFT(#REF!,1)="<",LEFT(#REF!,1)=">"),VALUE(MID(#REF!,2,5)),#REF!) ->  | BA119: =IF(OR(LEFT(#REF!,1)="<",LEFT(#REF!,1)=">"),VALUE(MID(#REF!,2,5)),#REF!) -> 
A120: 24 | B120: 33 Yddingen | C120: 2021-09-20 | E120: 15.2 | F120: 9.6 | G120: 96 | H120: 8.25 | I120: 17 | J120: 49.8 | L120: 20 | M120: 63 | N120: <50 | O120: <10 | P120: 2300 | Q120: 82 | R120: 0.55 | S120: 0.5 | T120: 800 | U120: brungrumligt | AJ120: 15.2 | AK120: 9.6 | AL120: 96 | AM120: 8.25 | AN120: 17 | AO120: 49.8 | AQ120: 20 | AR120: 63 | AS120: 50 | AT120: 10 | AU120: 2300 | AV120: 82 | AW120: 0.55 | AX120: 0.5 | AY120: =IF(OR(LEFT(#REF!,1)="<",LEFT(#REF!,1)=">"),VALUE(MID(#REF!,2,5)),#REF!) ->  | AZ120: =IF(OR(LEFT(#REF!,1)="<",LEFT(#REF!,1)=">"),VALUE(MID(#REF!,2,5)),#REF!) ->  | BA120: =IF(OR(LEFT(#REF!,1)="<",LEFT(#REF!,1)=">"),VALUE(MID(#REF!,2,5)),#REF!) -> 
C121: Medel | E121: 18.06 | F121: 9.82 | G121: 103.2 | H121: 8.468 | I121: 16.2 | J121: 49.58 | L121: 20.8 | M121: 55.6 | N121: 18 | O121: 10 | P121: 2000 | Q121: 58.2 | R121: 0.53 | S121: 0.5 | AI121: 0 | AJ121: 18.06 | AK121: 9.82 | AL121: 103.2 | AM121: 8.468 | AN121: 16.2 | AO121: 49.58 | AP121: 0 | AQ121: 20.8 | AR121: 55.6 | AS121: 18 | AT121: 10 | AU121: 2000 | AV121: 58.2 | AW121: 0.53 | AX121: 0.5 | AY121: =IF(OR(LEFT(#REF!,1)="<",LEFT(#REF!,1)=">"),VALUE(MID(#REF!,2,5)),#REF!) ->  | AZ121: =IF(OR(LEFT(#REF!,1)="<",LEFT(#REF!,1)=">"),VALUE(MID(#REF!,2,5)),#REF!) ->  | BA121: =IF(OR(LEFT(#REF!,1)="<",LEFT(#REF!,1)=">"),VALUE(MID(#REF!,2,5)),#REF!) -> 
C122: Max | E122: 21.9 | F122: 13.4 | G122: 136 | H122: 8.75 | I122: 22 | J122: 50.5 | L122: 22 | M122: 74 | N122: 50 | O122: 10 | P122: 2300 | Q122: 90 | R122: 0.6 | S122: 0.6 | AI122: 0 | AJ122: 21.9 | AK122: 13.4 | AL122: 136 | AM122: 8.75 | AN122: 22 | AO122: 50.5 | AP122: 0 | AQ122: 22 | AR122: 74 | AS122: 50 | AT122: 10 | AU122: 2300 | AV122: 90 | AW122: 0.6 | AX122: 0.6 | AY122: =IF(OR(LEFT(#REF!,1)="<",LEFT(#REF!,1)=">"),VALUE(MID(#REF!,2,5)),#REF!) ->  | AZ122: =IF(OR(LEFT(#REF!,1)="<",LEFT(#REF!,1)=">"),VALUE(MID(#REF!,2,5)),#REF!) ->  | BA122: =IF(OR(LEFT(#REF!,1)="<",LEFT(#REF!,1)=">"),VALUE(MID(#REF!,2,5)),#REF!) -> 
C123: Min | E123: 15.2 | F123: 8.3 | G123: 91 | H123: 8.25 | I123: 14 | J123: 48.6 | L123: 20 | M123: 40 | N123: 10 | O123: 10 | P123: 1700 | Q123: 36 | R123: 0.4 | S123: 0.4 | AI123: 0 | AJ123: 15.2 | AK123: 8.3 | AL123: 91 | AM123: 8.25 | AN123: 14 | AO123: 48.6 | AP123: 0 | AQ123: 20 | AR123: 40 | AS123: 10 | AT123: 10 | AU123: 1700 | AV123: 36 | AW123: 0.4 | AX123: 0.4 | AY123: =IF(OR(LEFT(#REF!,1)="<",LEFT(#REF!,1)=">"),VALUE(MID(#REF!,2,5)),#REF!) ->  | AZ123: =IF(OR(LEFT(#REF!,1)="<",LEFT(#REF!,1)=">"),VALUE(MID(#REF!,2,5)),#REF!) ->  | BA123: =IF(OR(LEFT(#REF!,1)="<",LEFT(#REF!,1)=">"),VALUE(MID(#REF!,2,5)),#REF!) -> 
AI124: 0 | AJ124: 0 | AK124: 0 | AL124: 0 | AM124: 0 | AN124: 0 | AO124: 0 | AP124: 0 | AQ124: 0 | AR124: 0 | AS124: 0 | AT124: 0 | AU124: 0 | AV124: 0 | AW124: 0 | AX124: 0 | AY124: =IF(OR(LEFT(#REF!,1)="<",LEFT(#REF!,1)=">"),VALUE(MID(#REF!,2,5)),#REF!) ->  | AZ124: =IF(OR(LEFT(#REF!,1)="<",LEFT(#REF!,1)=">"),VALUE(MID(#REF!,2,5)),#REF!) ->  | BA124: =IF(OR(LEFT(#REF!,1)="<",LEFT(#REF!,1)=">"),VALUE(MID(#REF!,2,5)),#REF!) -> 
A125: 26 | B125: 34 Havgårdssjön | C125: 2021-05-17 | E125: 16.1 | F125: 9.3 | G125: 95 | H125: 8.31 | I125: 3.7 | J125: 30.8 | L125: 7.6 | M125: 42 | N125: 180 | O125: 39 | P125: 1000 | Q125: 4.2 | R125: 2 | S125: 1.8 | T125: 1030 | U125: ganska klart vatten | AJ125: 16.1 | AK125: 9.3 | AL125: 95 | AM125: 8.31 | AN125: 3.7 | AO125: 30.8 | AQ125: 7.6 | AR125: 42 | AS125: 180 | AT125: 39 | AU125: 1000 | AV125: 4.2 | AW125: 2 | AX125: 1.8 | AY125: =IF(OR(LEFT(#REF!,1)="<",LEFT(#REF!,1)=">"),VALUE(MID(#REF!,2,5)),#REF!) ->  | AZ125: =IF(OR(LEFT(#REF!,1)="<",LEFT(#REF!,1)=">"),VALUE(MID(#REF!,2,5)),#REF!) ->  | BA125: =IF(OR(LEFT(#REF!,1)="<",LEFT(#REF!,1)=">"),VALUE(MID(#REF!,2,5)),#REF!) -> 
A126: 26 | B126: 34 Havgårdssjön | C126: 2021-06-14 | E126: 19.1 | F126: 8.7 | G126: 94 | H126: 8.23 | I126: 4.7 | J126: 30.6 | L126: 10 | M126: 56 | N126: 84 | O126: 130 | P126: 1100 | Q126: 8 | R126: 2 | S126: 1.8 | T126: 1030 | U126: klart vatten | AJ126: 19.1 | AK126: 8.7 | AL126: 94 | AM126: 8.23 | AN126: 4.7 | AO126: 30.6 | AQ126: 10 | AR126: 56 | AS126: 84 | AT126: 130 | AU126: 1100 | AV126: 8 | AW126: 2 | AX126: 1.8 | AY126: =IF(OR(LEFT(#REF!,1)="<",LEFT(#REF!,1)=">"),VALUE(MID(#REF!,2,5)),#REF!) ->  | AZ126: =IF(OR(LEFT(#REF!,1)="<",LEFT(#REF!,1)=">"),VALUE(MID(#REF!,2,5)),#REF!) ->  | BA126: =IF(OR(LEFT(#REF!,1)="<",LEFT(#REF!,1)=">"),VALUE(MID(#REF!,2,5)),#REF!) -> 
A127: 26 | B127: 34 Havgårdssjön | C127: 2021-07-13 | E127: 22.1 | F127: 9 | G127: 103 | H127: 8.41 | I127: 3.6 | J127: 28 | L127: 9.3 | M127: 45 | N127: <10 | O127: 24 | P127: 920 | Q127: 8.2 | R127: 2.2 | S127: 2 | T127: 1000 | U127: klart vatten | AJ127: 22.1 | AK127: 9 | AL127: 103 | AM127: 8.41 | AN127: 3.6 | AO127: 28 | AQ127: 9.3 | AR127: 45 | AS127: 10 | AT127: 24 | AU127: 920 | AV127: 8.2 | AW127: 2.2 | AX127: 2 | AY127: =IF(OR(LEFT(#REF!,1)="<",LEFT(#REF!,1)=">"),VALUE(MID(#REF!,2,5)),#REF!) ->  | AZ127: =IF(OR(LEFT(#REF!,1)="<",LEFT(#REF!,1)=">"),VALUE(MID(#REF!,2,5)),#REF!) ->  | BA127: =IF(OR(LEFT(#REF!,1)="<",LEFT(#REF!,1)=">"),VALUE(MID(#REF!,2,5)),#REF!) -> 
A128: 26 | B128: 34 Havgårdssjön | C128: 2021-08-18 | E128: 18.3 | F128: 9.9 | G128: 105 | H128: 8.47 | I128: 6.2 | J128: 25.6 | L128: 10 | M128: 58 | N128: 48 | O128: <10 | P128: 1200 | Q128: 17 | R128: 1.5 | S128: 1.3 | T128: 1400 | U128: klart vatten | AJ128: 18.3 | AK128: 9.9 | AL128: 105 | AM128: 8.47 | AN128: 6.2 | AO128: 25.6 | AQ128: 10 | AR128: 58 | AS128: 48 | AT128: 10 | AU128: 1200 | AV128: 17 | AW128: 1.5 | AX128: 1.3 | AY128: =IF(OR(LEFT(#REF!,1)="<",LEFT(#REF!,1)=">"),VALUE(MID(#REF!,2,5)),#REF!) ->  | AZ128: =IF(OR(LEFT(#REF!,1)="<",LEFT(#REF!,1)=">"),VALUE(MID(#REF!,2,5)),#REF!) ->  | BA128: =IF(OR(LEFT(#REF!,1)="<",LEFT(#REF!,1)=">"),VALUE(MID(#REF!,2,5)),#REF!) -> 
A129: 26 | B129: 34 Havgårdssjön | C129: 2021-09-20 | E129: 16 | F129: 11 | G129: 112 | H129: 8.32 | I129: 6.5 | J129: 26.9 | L129: 9.3 | M129: 54 | N129: <10 | O129: 120 | P129: 1200 | Q129: 26 | R129: 1.4 | S129: 1.2 | T129: 1000 | U129: gröngrumligt | AJ129: 16 | AK129: 11 | AL129: 112 | AM129: 8.32 | AN129: 6.5 | AO129: 26.9 | AQ129: 9.3 | AR129: 54 | AS129: 10 | AT129: 120 | AU129: 1200 | AV129: 26 | AW129: 1.4 | AX129: 1.2 | AY129: =IF(OR(LEFT(#REF!,1)="<",LEFT(#REF!,1)=">"),VALUE(MID(#REF!,2,5)),#REF!) ->  | AZ129: =IF(OR(LEFT(#REF!,1)="<",LEFT(#REF!,1)=">"),VALUE(MID(#REF!,2,5)),#REF!) ->  | BA129: =IF(OR(LEFT(#REF!,1)="<",LEFT(#REF!,1)=">"),VALUE(MID(#REF!,2,5)),#REF!) -> 
C130: Medel | E130: 18.32 | F130: 9.58 | G130: 101.8 | H130: 8.348 | I130: 4.94 | J130: 28.38 | L130: 9.24 | M130: 51 | N130: 66.4 | O130: 64.6 | P130: 1084 | Q130: 12.68 | R130: 1.82 | S130: 1.62 | AI130: 0 | AJ130: 18.32 | AK130: 9.58 | AL130: 101.8 | AM130: 8.348 | AN130: 4.94 | AO130: 28.38 | AP130: 0 | AQ130: 9.24 | AR130: 51 | AS130: 66.4 | AT130: 64.6 | AU130: 1084 | AV130: 12.68 | AW130: 1.82 | AX130: 1.62 | AY130: =IF(OR(LEFT(#REF!,1)="<",LEFT(#REF!,1)=">"),VALUE(MID(#REF!,2,5)),#REF!) ->  | AZ130: =IF(OR(LEFT(#REF!,1)="<",LEFT(#REF!,1)=">"),VALUE(MID(#REF!,2,5)),#REF!) ->  | BA130: =IF(OR(LEFT(#REF!,1)="<",LEFT(#REF!,1)=">"),VALUE(MID(#REF!,2,5)),#REF!) -> 
C131: Max | E131: 22.1 | F131: 11 | G131: 112 | H131: 8.47 | I131: 6.5 | J131: 30.8 | L131: 10 | M131: 58 | N131: 180 | O131: 130 | P131: 1200 | Q131: 26 | R131: 2.2 | S131: 2 | AI131: 0 | AJ131: 22.1 | AK131: 11 | AL131: 112 | AM131: 8.47 | AN131: 6.5 | AO131: 30.8 | AP131: 0 | AQ131: 10 | AR131: 58 | AS131: 180 | AT131: 130 | AU131: 1200 | AV131: 26 | AW131: 2.2 | AX131: 2 | AY131: =IF(OR(LEFT(#REF!,1)="<",LEFT(#REF!,1)=">"),VALUE(MID(#REF!,2,5)),#REF!) ->  | AZ131: =IF(OR(LEFT(#REF!,1)="<",LEFT(#REF!,1)=">"),VALUE(MID(#REF!,2,5)),#REF!) ->  | BA131: =IF(OR(LEFT(#REF!,1)="<",LEFT(#REF!,1)=">"),VALUE(MID(#REF!,2,5)),#REF!) -> 
C132: Min | E132: 16 | F132: 8.7 | G132: 94 | H132: 8.23 | I132: 3.6 | J132: 25.6 | L132: 7.6 | M132: 42 | N132: 10 | O132: 10 | P132: 920 | Q132: 4.2 | R132: 1.4 | S132: 1.2 | AI132: 0 | AJ132: 16 | AK132: 8.7 | AL132: 94 | AM132: 8.23 | AN132: 3.6 | AO132: 25.6 | AP132: 0 | AQ132: 7.6 | AR132: 42 | AS132: 10 | AT132: 10 | AU132: 920 | AV132: 4.2 | AW132: 1.4 | AX132: 1.2 | AY132: =IF(OR(LEFT(#REF!,1)="<",LEFT(#REF!,1)=">"),VALUE(MID(#REF!,2,5)),#REF!) ->  | AZ132: =IF(OR(LEFT(#REF!,1)="<",LEFT(#REF!,1)=">"),VALUE(MID(#REF!,2,5)),#REF!) ->  | BA132: =IF(OR(LEFT(#REF!,1)="<",LEFT(#REF!,1)=">"),VALUE(MID(#REF!,2,5)),#REF!) -> 
AI133: 0 | AJ133: 0 | AK133: 0 | AL133: 0 | AM133: 0 | AN133: 0 | AO133: 0 | AP133: 0 | AQ133: 0 | AR133: 0 | AS133: 0 | AT133: 0 | AU133: 0 | AV133: 0 | AW133: 0 | AX133: 0 | AY133: =IF(OR(LEFT(#REF!,1)="<",LEFT(#REF!,1)=">"),VALUE(MID(#REF!,2,5)),#REF!) ->  | AZ133: =IF(OR(LEFT(#REF!,1)="<",LEFT(#REF!,1)=">"),VALUE(MID(#REF!,2,5)),#REF!) ->  | BA133: =IF(OR(LEFT(#REF!,1)="<",LEFT(#REF!,1)=">"),VALUE(MID(#REF!,2,5)),#REF!) -> 
A134: 28 | B134: 35 Eksholmssjön | C134: 2021-08-18 | E134: 18 | F134: 8.7 | G134: 92 | H134: 7.14 | I134: 7 | J134: 11 | L134: 23 | M134: 58 | N134: <10 | O134: 10 | P134: 1100 | Q134: 19 | R134: 1 | S134: 0.9 | T134: 1500 | U134: humöst | AJ134: 18 | AK134: 8.7 | AL134: 92 | AM134: 7.14 | AN134: 7 | AO134: 11 | AQ134: 23 | AR134: 58 | AS134: 10 | AT134: 10 | AU134: 1100 | AV134: 19 | AW134: 1 | AX134: 0.9 | AY134: =IF(OR(LEFT(#REF!,1)="<",LEFT(#REF!,1)=">"),VALUE(MID(#REF!,2,5)),#REF!) ->  | AZ134: =IF(OR(LEFT(#REF!,1)="<",LEFT(#REF!,1)=">"),VALUE(MID(#REF!,2,5)),#REF!) ->  | BA134: =IF(OR(LEFT(#REF!,1)="<",LEFT(#REF!,1)=">"),VALUE(MID(#REF!,2,5)),#REF!) -> 
C135: Provtaging endast i augusti | AI135: 0 | AJ135: 0 | AK135: 0 | AL135: 0 | AM135: 0 | AN135: 0 | AO135: 0 | AP135: =IF(OR(LEFT(K135,1)="<",LEFT(K135,1)=">"),VALUE(MID(K135,2,5)),K135) -> 0 | AQ135: =IF(OR(LEFT(L135,1)="<",LEFT(L135,1)=">"),VALUE(MID(L135,2,5)),L135) -> 0 | AR135: =IF(OR(LEFT(M135,1)="<",LEFT(M135,1)=">"),VALUE(MID(M135,2,5)),M135) -> 0 | AS135: =IF(OR(LEFT(N135,1)="<",LEFT(N135,1)=">"),VALUE(MID(N135,2,5)),N135) -> 0 | AT135: =IF(OR(LEFT(O135,1)="<",LEFT(O135,1)=">"),VALUE(MID(O135,2,5)),O135) -> 0 | AU135: =IF(OR(LEFT(P135,1)="<",LEFT(P135,1)=">"),VALUE(MID(P135,2,5)),P135) -> 0 | AV135: =IF(OR(LEFT(Q135,1)="<",LEFT(Q135,1)=">"),VALUE(MID(Q135,2,5)),Q135) -> 0 | AW135: =IF(OR(LEFT(R135,1)="<",LEFT(R135,1)=">"),VALUE(MID(R135,2,5)),R135) -> 0 | AX135: =IF(OR(LEFT(S135,1)="<",LEFT(S135,1)=">"),VALUE(MID(S135,2,5)),S135) -> 0 | AY135: =IF(OR(LEFT(#REF!,1)="<",LEFT(#REF!,1)=">"),VALUE(MID(#REF!,2,5)),#REF!) ->  | AZ135: =IF(OR(LEFT(#REF!,1)="<",LEFT(#REF!,1)=">"),VALUE(MID(#REF!,2,5)),#REF!) ->  | BA135: =IF(OR(LEFT(#REF!,1)="<",LEFT(#REF!,1)=">"),VALUE(MID(#REF!,2,5)),#REF!) -> 
AI136: 0 | AJ136: 0 | AK136: 0 | AL136: 0 | AM136: 0 | AN136: 0 | AO136: 0 | AP136: 0 | AQ136: 0 | AR136: 0 | AS136: 0 | AT136: 0 | AU136: 0 | AV136: 0 | AW136: 0 | AX136: 0 | AY136: =IF(OR(LEFT(#REF!,1)="<",LEFT(#REF!,1)=">"),VALUE(MID(#REF!,2,5)),#REF!) ->  | AZ136: =IF(OR(LEFT(#REF!,1)="<",LEFT(#REF!,1)=">"),VALUE(MID(#REF!,2,5)),#REF!) ->  | BA136: =IF(OR(LEFT(#REF!,1)="<",LEFT(#REF!,1)=">"),VALUE(MID(#REF!,2,5)),#REF!) -> 
A137: 30 | B137: A1 Alnarpsån, mynningen | C137: 2021-02-15 | E137: 0.1 | F137: 13.3 | G137: 91 | H137: 7.92 | I137: 18 | J137: 113 | L137: 5.6 | M137: 63 | N137: 5700 | O137: 160 | P137: 5800 | T137: 1315 | U137: istäckt | AJ137: 0.1 | AK137: 13.3 | AL137: 91 | AM137: 7.92 | AN137: 18 | AO137: 113 | AQ137: 5.6 | AR137: 63 | AS137: 5700 | AT137: 160 | AU137: 5800 | AY137: =IF(OR(LEFT(#REF!,1)="<",LEFT(#REF!,1)=">"),VALUE(MID(#REF!,2,5)),#REF!) ->  | AZ137: =IF(OR(LEFT(#REF!,1)="<",LEFT(#REF!,1)=">"),VALUE(MID(#REF!,2,5)),#REF!) ->  | BA137: =IF(OR(LEFT(#REF!,1)="<",LEFT(#REF!,1)=">"),VALUE(MID(#REF!,2,5)),#REF!) -> 
A138: 30 | B138: A1 Alnarpsån, mynningen | C138: 2021-04-19 | E138: 6.6 | F138: 18.5 | G138: 151 | H138: 7.73 | I138: 5.4 | J138: 100 | L138: 6 | M138: 52 | N138: 3400 | O138: 26 | P138: 3900 | T138: 800 | AJ138: 6.6 | AK138: 18.5 | AL138: 151 | AM138: 7.73 | AN138: 5.4 | AO138: 100 | AQ138: 6 | AR138: 52 | AS138: 3400 | AT138: 26 | AU138: 3900 | AY138: =IF(OR(LEFT(#REF!,1)="<",LEFT(#REF!,1)=">"),VALUE(MID(#REF!,2,5)),#REF!) ->  | AZ138: =IF(OR(LEFT(#REF!,1)="<",LEFT(#REF!,1)=">"),VALUE(MID(#REF!,2,5)),#REF!) ->  | BA138: =IF(OR(LEFT(#REF!,1)="<",LEFT(#REF!,1)=">"),VALUE(MID(#REF!,2,5)),#REF!) -> 
A139: 30 | B139: A1 Alnarpsån, mynningen | C139: 2021-06-15 | E139: 16.4 | F139: 4.4 | G139: 45 | H139: 7.69 | I139: 5.4 | J139: 98.3 | L139: 6.9 | M139: 130 | N139: 2300 | O139: 41 | P139: 2800 | T139: 750 | AJ139: 16.4 | AK139: 4.4 | AL139: 45 | AM139: 7.69 | AN139: 5.4 | AO139: 98.3 | AQ139: 6.9 | AR139: 130 | AS139: 2300 | AT139: 41 | AU139: 2800 | AY139: =IF(OR(LEFT(#REF!,1)="<",LEFT(#REF!,1)=">"),VALUE(MID(#REF!,2,5)),#REF!) ->  | AZ139: =IF(OR(LEFT(#REF!,1)="<",LEFT(#REF!,1)=">"),VALUE(MID(#REF!,2,5)),#REF!) ->  | BA139: =IF(OR(LEFT(#REF!,1)="<",LEFT(#REF!,1)=">"),VALUE(MID(#REF!,2,5)),#REF!) -> 
A140: 30 | B140: A1 Alnarpsån, mynningen | C140: 2021-08-19 | E140: 15.7 | F140: 5.5 | G140: 56 | H140: 7.55 | I140: 5.7 | J140: 78 | L140: 9.3 | M140: 120 | N140: 1700 | O140: 68 | P140: 1900 | T140: 1120 | AJ140: 15.7 | AK140: 5.5 | AL140: 56 | AM140: 7.55 | AN140: 5.7 | AO140: 78 | AQ140: 9.3 | AR140: 120 | AS140: 1700 | AT140: 68 | AU140: 1900 | AY140: =IF(OR(LEFT(#REF!,1)="<",LEFT(#REF!,1)=">"),VALUE(MID(#REF!,2,5)),#REF!) ->  | AZ140: =IF(OR(LEFT(#REF!,1)="<",LEFT(#REF!,1)=">"),VALUE(MID(#REF!,2,5)),#REF!) ->  | BA140: =IF(OR(LEFT(#REF!,1)="<",LEFT(#REF!,1)=">"),VALUE(MID(#REF!,2,5)),#REF!) -> 
A141: 30 | B141: A1 Alnarpsån, mynningen | C141: 2021-10-20 | E141: 12.6 | F141: 7.2 | G141: 68 | H141: 7.7 | I141: 20 | J141: 50.3 | L141: 3.8 | M141: 110 | N141: 740 | O141: 44 | P141: 1000 | T141: 1145 | AJ141: 12.6 | AK141: 7.2 | AL141: 68 | AM141: 7.7 | AN141: 20 | AO141: 50.3 | AQ141: 3.8 | AR141: 110 | AS141: 740 | AT141: 44 | AU141: 1000 | AY141: =IF(OR(LEFT(#REF!,1)="<",LEFT(#REF!,1)=">"),VALUE(MID(#REF!,2,5)),#REF!) ->  | AZ141: =IF(OR(LEFT(#REF!,1)="<",LEFT(#REF!,1)=">"),VALUE(MID(#REF!,2,5)),#REF!) ->  | BA141: =IF(OR(LEFT(#REF!,1)="<",LEFT(#REF!,1)=">"),VALUE(MID(#REF!,2,5)),#REF!) -> 
A142: 30 | B142: A1 Alnarpsån, mynningen | C142: 2021-12-20 | E142: 4.4 | F142: 10.7 | G142: 83 | H142: 7.99 | I142: 3.4 | J142: 102 | L142: 5.8 | M142: 74 | N142: 12000 | O142: 55 | P142: 12000 | T142: 1245 | AJ142: 4.4 | AK142: 10.7 | AL142: 83 | AM142: 7.99 | AN142: 3.4 | AO142: 102 | AQ142: 5.8 | AR142: 74 | AS142: 12000 | AT142: 55 | AU142: 12000 | AY142: =IF(OR(LEFT(#REF!,1)="<",LEFT(#REF!,1)=">"),VALUE(MID(#REF!,2,5)),#REF!) ->  | AZ142: =IF(OR(LEFT(#REF!,1)="<",LEFT(#REF!,1)=">"),VALUE(MID(#REF!,2,5)),#REF!) ->  | BA142: =IF(OR(LEFT(#REF!,1)="<",LEFT(#REF!,1)=">"),VALUE(MID(#REF!,2,5)),#REF!) -> 
C143: Medel | E143: 9.3 | F143: 9.933333333 | G143: 82.33333333 | H143: 7.763333333 | I143: 9.65 | J143: 90.26666667 | L143: 6.233333333 | M143: 91.5 | N143: 4306.666667 | O143: 65.66666667 | P143: 4566.666667 | AI143: 0 | AJ143: 9.3 | AK143: 9.933333333 | AL143: 82.33333333 | AM143: 7.763333333 | AN143: 9.65 | AO143: 90.26666667 | AP143: 0 | AQ143: 6.233333333 | AR143: 91.5 | AS143: 4306.666667 | AT143: 65.66666667 | AU143: 4566.666667 | AV143: 0 | AW143: 0 | AX143: 0 | AY143: =IF(OR(LEFT(#REF!,1)="<",LEFT(#REF!,1)=">"),VALUE(MID(#REF!,2,5)),#REF!) ->  | AZ143: =IF(OR(LEFT(#REF!,1)="<",LEFT(#REF!,1)=">"),VALUE(MID(#REF!,2,5)),#REF!) ->  | BA143: =IF(OR(LEFT(#REF!,1)="<",LEFT(#REF!,1)=">"),VALUE(MID(#REF!,2,5)),#REF!) -> 
C144: Max | E144: 16.4 | F144: 18.5 | G144: 151 | H144: 7.99 | I144: 20 | J144: 113 | L144: 9.3 | M144: 130 | N144: 12000 | O144: 160 | P144: 12000 | AI144: 0 | AJ144: 16.4 | AK144: 18.5 | AL144: 151 | AM144: 7.99 | AN144: 20 | AO144: 113 | AP144: 0 | AQ144: 9.3 | AR144: 130 | AS144: 12000 | AT144: 160 | AU144: 12000 | AV144: 0 | AW144: 0 | AX144: 0 | AY144: =IF(OR(LEFT(#REF!,1)="<",LEFT(#REF!,1)=">"),VALUE(MID(#REF!,2,5)),#REF!) ->  | AZ144: =IF(OR(LEFT(#REF!,1)="<",LEFT(#REF!,1)=">"),VALUE(MID(#REF!,2,5)),#REF!) ->  | BA144: =IF(OR(LEFT(#REF!,1)="<",LEFT(#REF!,1)=">"),VALUE(MID(#REF!,2,5)),#REF!) -> 
C145: Min | E145: 0.1 | F145: 4.4 | G145: 45 | H145: 7.55 | I145: 3.4 | J145: 50.3 | L145: 3.8 | M145: 52 | N145: 740 | O145: 26 | P145: 1000 | AI145: 0 | AJ145: 0.1 | AK145: 4.4 | AL145: 45 | AM145: 7.55 | AN145: 3.4 | AO145: 50.3 | AP145: 0 | AQ145: 3.8 | AR145: 52 | AS145: 740 | AT145: 26 | AU145: 1000 | AV145: 0 | AW145: 0 | AX145: 0 | AY145: =IF(OR(LEFT(#REF!,1)="<",LEFT(#REF!,1)=">"),VALUE(MID(#REF!,2,5)),#REF!) ->  | AZ145: =IF(OR(LEFT(#REF!,1)="<",LEFT(#REF!,1)=">"),VALUE(MID(#REF!,2,5)),#REF!) ->  | BA145: =IF(OR(LEFT(#REF!,1)="<",LEFT(#REF!,1)=">"),VALUE(MID(#REF!,2,5)),#REF!) -> 
AI146: 0 | AJ146: 0 | AK146: 0 | AL146: 0 | AM146: 0 | AN146: 0 | AO146: 0 | AP146: 0 | AQ146: 0 | AR146: 0 | AS146: 0 | AT146: 0 | AU146: 0 | AV146: 0 | AW146: 0 | AX146: 0 | AY146: =IF(OR(LEFT(#REF!,1)="<",LEFT(#REF!,1)=">"),VALUE(MID(#REF!,2,5)),#REF!) ->  | AZ146: =IF(OR(LEFT(#REF!,1)="<",LEFT(#REF!,1)=">"),VALUE(MID(#REF!,2,5)),#REF!) ->  | BA146: =IF(OR(LEFT(#REF!,1)="<",LEFT(#REF!,1)=">"),VALUE(MID(#REF!,2,5)),#REF!) -> 
A147: 32 | B147: A4 Alnarpsån, Coyetgården | C147: 2021-02-15 | E147: 0.1 | F147: 18.5 | G147: 127 | H147: 8.36 | I147: 8 | J147: 88.1 | L147: 3.4 | M147: 130 | N147: 6100 | O147: 300 | P147: 6300 | T147: 1330 | U147: istäckt | AJ147: 0.1 | AK147: 18.5 | AL147: 127 | AM147: 8.36 | AN147: 8 | AO147: 88.1 | AQ147: 3.4 | AR147: 130 | AS147: 6100 | AT147: 300 | AU147: 6300 | AY147: =IF(OR(LEFT(#REF!,1)="<",LEFT(#REF!,1)=">"),VALUE(MID(#REF!,2,5)),#REF!) ->  | AZ147: =IF(OR(LEFT(#REF!,1)="<",LEFT(#REF!,1)=">"),VALUE(MID(#REF!,2,5)),#REF!) ->  | BA147: =IF(OR(LEFT(#REF!,1)="<",LEFT(#REF!,1)=">"),VALUE(MID(#REF!,2,5)),#REF!) -> 
A148: 32 | B148: A4 Alnarpsån, Coyetgården | C148: 2021-04-19 | E148: 8.6 | F148: 8.6 | G148: 74 | H148: 8.17 | I148: 1.4 | J148: 86.1 | L148: 3.2 | M148: 16 | N148: 3800 | O148: <10 | P148: 4400 | T148: 815 | AJ148: 8.6 | AK148: 8.6 | AL148: 74 | AM148: 8.17 | AN148: 1.4 | AO148: 86.1 | AQ148: 3.2 | AR148: 16 | AS148: 3800 | AT148: 10 | AU148: 4400 | AY148: =IF(OR(LEFT(#REF!,1)="<",LEFT(#REF!,1)=">"),VALUE(MID(#REF!,2,5)),#REF!) ->  | AZ148: =IF(OR(LEFT(#REF!,1)="<",LEFT(#REF!,1)=">"),VALUE(MID(#REF!,2,5)),#REF!) ->  | BA148: =IF(OR(LEFT(#REF!,1)="<",LEFT(#REF!,1)=">"),VALUE(MID(#REF!,2,5)),#REF!) -> 
A149: 32 | B149: A4 Alnarpsån, Coyetgården | C149: 2021-06-15 | E149: 14.3 | F149: 9.6 | G149: 94 | H149: 8.06 | I149: 2.1 | J149: 97 | L149: 5.2 | M149: 97 | N149: 1200 | O149: 100 | P149: 1600 | T149: 730 | AJ149: 14.3 | AK149: 9.6 | AL149: 94 | AM149: 8.06 | AN149: 2.1 | AO149: 97 | AQ149: 5.2 | AR149: 97 | AS149: 1200 | AT149: 100 | AU149: 1600 | AY149: =IF(OR(LEFT(#REF!,1)="<",LEFT(#REF!,1)=">"),VALUE(MID(#REF!,2,5)),#REF!) ->  | AZ149: =IF(OR(LEFT(#REF!,1)="<",LEFT(#REF!,1)=">"),VALUE(MID(#REF!,2,5)),#REF!) ->  | BA149: =IF(OR(LEFT(#REF!,1)="<",LEFT(#REF!,1)=">"),VALUE(MID(#REF!,2,5)),#REF!) -> 
A150: 32 | B150: A4 Alnarpsån, Coyetgården | C150: 2021-08-19 | E150: 13.7 | F150: 6.1 | G150: 59 | H150: 8.2 | I150: 2.3 | J150: 49.5 | L150: 5.6 | M150: 72 | N150: 470 | O150: 17 | P150: 800 | T150: 1100 | AJ150: 13.7 | AK150: 6.1 | AL150: 59 | AM150: 8.2 | AN150: 2.3 | AO150: 49.5 | AQ150: 5.6 | AR150: 72 | AS150: 470 | AT150: 17 | AU150: 800 | AY150: =IF(OR(LEFT(#REF!,1)="<",LEFT(#REF!,1)=">"),VALUE(MID(#REF!,2,5)),#REF!) ->  | AZ150: =IF(OR(LEFT(#REF!,1)="<",LEFT(#REF!,1)=">"),VALUE(MID(#REF!,2,5)),#REF!) ->  | BA150: =IF(OR(LEFT(#REF!,1)="<",LEFT(#REF!,1)=">"),VALUE(MID(#REF!,2,5)),#REF!) -> 
A151: 32 | B151: A4 Alnarpsån, Coyetgården | C151: 2021-10-20 | E151: 13.2 | F151: 9.1 | G151: 87 | H151: 7.75 | I151: 6 | J151: 49.1 | L151: 5.2 | M151: 110 | N151: 1000 | O151: 25 | P151: 1500 | T151: 1130 | AJ151: 13.2 | AK151: 9.1 | AL151: 87 | AM151: 7.75 | AN151: 6 | AO151: 49.1 | AQ151: 5.2 | AR151: 110 | AS151: 1000 | AT151: 25 | AU151: 1500 | AY151: =IF(OR(LEFT(#REF!,1)="<",LEFT(#REF!,1)=">"),VALUE(MID(#REF!,2,5)),#REF!) ->  | AZ151: =IF(OR(LEFT(#REF!,1)="<",LEFT(#REF!,1)=">"),VALUE(MID(#REF!,2,5)),#REF!) ->  | BA151: =IF(OR(LEFT(#REF!,1)="<",LEFT(#REF!,1)=">"),VALUE(MID(#REF!,2,5)),#REF!) -> 
A152: 32 | B152: A4 Alnarpsån, Coyetgården | C152: 2021-12-20 | E152: 5.3 | F152: 12.2 | G152: 96 | H152: 8.17 | I152: 2.2 | J152: 88.1 | L152: 3.4 | M152: 90 | N152: 11000 | O152: 19 | P152: 11000 | T152: 1230 | AJ152: 5.3 | AK152: 12.2 | AL152: 96 | AM152: 8.17 | AN152: 2.2 | AO152: 88.1 | AQ152: 3.4 | AR152: 90 | AS152: 11000 | AT152: 19 | AU152: 11000 | AY152: =IF(OR(LEFT(#REF!,1)="<",LEFT(#REF!,1)=">"),VALUE(MID(#REF!,2,5)),#REF!) ->  | AZ152: =IF(OR(LEFT(#REF!,1)="<",LEFT(#REF!,1)=">"),VALUE(MID(#REF!,2,5)),#REF!) ->  | BA152: =IF(OR(LEFT(#REF!,1)="<",LEFT(#REF!,1)=">"),VALUE(MID(#REF!,2,5)),#REF!) -> 
C153: Medel | E153: 9.2 | F153: 10.68333333 | G153: 89.5 | H153: 8.118333333 | I153: 3.666666667 | J153: 76.31666667 | L153: 4.333333333 | M153: 85.83333333 | N153: 3928.333333 | O153: 78.5 | P153: 4266.666667 | AJ153: 9.2 | AK153: 10.68333333 | AL153: 89.5 | AM153: 8.118333333 | AN153: 3.666666667 | AO153: 76.31666667 | AQ153: 4.333333333 | AR153: 85.83333333 | AS153: 3928.333333 | AT153: 78.5 | AU153: 4266.666667 | AV153: 0 | AW153: 0 | AX153: 0 | AY153: =IF(OR(LEFT(#REF!,1)="<",LEFT(#REF!,1)=">"),VALUE(MID(#REF!,2,5)),#REF!) ->  | AZ153: =IF(OR(LEFT(#REF!,1)="<",LEFT(#REF!,1)=">"),VALUE(MID(#REF!,2,5)),#REF!) ->  | BA153: =IF(OR(LEFT(#REF!,1)="<",LEFT(#REF!,1)=">"),VALUE(MID(#REF!,2,5)),#REF!) -> 
C154: Max | D154: 0 | E154: 14.3 | F154: 18.5 | G154: 127 | H154: 8.36 | I154: 8 | J154: 97 | K154: 0 | L154: 5.6 | M154: 130 | N154: 11000 | O154: 300 | P154: 11000 | AI154: 0 | AJ154: 14.3 | AK154: 18.5 | AL154: 127 | AM154: 8.36 | AN154: 8 | AO154: 97 | AP154: 0 | AQ154: 5.6 | AR154: 130 | AS154: 11000 | AT154: 300 | AU154: 11000 | AV154: 0 | AW154: 0 | AX154: 0 | AY154: =IF(OR(LEFT(#REF!,1)="<",LEFT(#REF!,1)=">"),VALUE(MID(#REF!,2,5)),#REF!) ->  | AZ154: =IF(OR(LEFT(#REF!,1)="<",LEFT(#REF!,1)=">"),VALUE(MID(#REF!,2,5)),#REF!) ->  | BA154: =IF(OR(LEFT(#REF!,1)="<",LEFT(#REF!,1)=">"),VALUE(MID(#REF!,2,5)),#REF!) -> 
C155: Min | D155: 0 | E155: 0.1 | F155: 6.1 | G155: 59 | H155: 7.75 | I155: 1.4 | J155: 49.1 | K155: 0 | L155: 3.2 | M155: 16 | N155: 470 | O155: 10 | P155: 800 | AI155: 0 | AJ155: 0.1 | AK155: 6.1 | AL155: 59 | AM155: 7.75 | AN155: 1.4 | AO155: 49.1 | AP155: 0 | AQ155: 3.2 | AR155: 16 | AS155: 470 | AT155: 10 | AU155: 800 | AV155: 0 | AW155: 0 | AX155: 0 | AY155: =IF(OR(LEFT(#REF!,1)="<",LEFT(#REF!,1)=">"),VALUE(MID(#REF!,2,5)),#REF!) ->  | AZ155: =IF(OR(LEFT(#REF!,1)="<",LEFT(#REF!,1)=">"),VALUE(MID(#REF!,2,5)),#REF!) ->  | BA155: =IF(OR(LEFT(#REF!,1)="<",LEFT(#REF!,1)=">"),VALUE(MID(#REF!,2,5)),#REF!) -> 

Sheet Stn 18
A2: Sege å
A3: Veckoprov stn 18
A5: Provtagningspunkt | B5: Vecka | C5: Provtagn. | D5: Temp | E5: Syreh | F5: Syrem | G5: Kond | H5: Anmärkning
A6: Nr Läge | B6: nr | C6: datum | D6: °C | E6: mg/l | F6: % | G6: mS/m
A7: 18 Sege å, nordväst Valdemarsro, järnvägsbron | B7: 1 | C7: 2021-01-05 | D7: 2 | E7: 12.6 | F7: 91 | G7: 78.5
A8: 18 Sege å, nordväst Valdemarsro, järnvägsbron | B8: 2 | C8: 2021-01-12 | D8: 3.9 | E8: 12 | F8: 91 | G8: 69.8
A9: 18 Sege å, nordväst Valdemarsro, järnvägsbron | B9: 3 | C9: 2021-01-20 | D9: 3.5 | E9: 12.1 | F9: 91 | G9: 57.7 | H9: högflöde
A10: 18 Sege å, nordväst Valdemarsro, järnvägsbron | B10: 4 | C10: 2021-01-28 | D10: 2.1 | E10: 12.6 | F10: 91 | G10: 72.5
A11: 18 Sege å, nordväst Valdemarsro, järnvägsbron | B11: 5 | C11: 2021-02-03 | D11: 1.4 | E11: 14.6 | F11: 104 | G11: 70.9
A12: 18 Sege å, nordväst Valdemarsro, järnvägsbron | B12: 6 | C12: 2021-02-10 | D12: 0 | E12: 13.7 | F12: 94 | G12: 78.8
A13: 18 Sege å, nordväst Valdemarsro, järnvägsbron | B13: 7 | C13: 2021-02-15 | D13: 0.1 | E13: 13.5 | F13: 92 | G13: 78.2
A14: 18 Sege å, nordväst Valdemarsro, järnvägsbron | B14: 8 | C14: 2021-02-23 | D14: 3.3 | E14: 13.8 | F14: 103 | G14: 65.8
A15: 18 Sege å, nordväst Valdemarsro, järnvägsbron | B15: 9 | C15: 2021-03-04 | D15: 4.4 | E15: 13.1 | F15: 101 | G15: 70
A16: 18 Sege å, nordväst Valdemarsro, järnvägsbron | B16: 10 | C16: 2021-03-10 | D16: 2.5 | E16: 14.1 | F16: 103 | G16: 71.5
A17: 18 Sege å, nordväst Valdemarsro, järnvägsbron | B17: 11 | C17: 2021-03-17 | D17: 5.4 | E17: 12.5 | F17: 99 | G17: 69
A18: 18 Sege å, nordväst Valdemarsro, järnvägsbron | B18: 12 | C18: 2021-03-23 | D18: 6.1 | E18: 11.6 | F18: 94 | G18: 70.8
A19: 18 Sege å, nordväst Valdemarsro, järnvägsbron | B19: 13 | C19: 2021-04-01 | D19: 9.6 | E19: 10.5 | F19: 92 | G19: 68.9
A20: 18 Sege å, nordväst Valdemarsro, järnvägsbron | B20: 14 | C20: 2021-04-08 | D20: 6.1 | E20: 12.2 | F20: 98 | G20: 68.3
A21: 18 Sege å, nordväst Valdemarsro, järnvägsbron | B21: 15 | C21: 2021-04-13 | D21: 6.4 | E21: 12 | F21: 98 | G21: 64
A22: 18 Sege å, nordväst Valdemarsro, järnvägsbron | B22: 16 | C22: 2021-04-19 | D22: 9.5 | E22: 10.4 | F22: 91 | G22: 70.1
A23: 18 Sege å, nordväst Valdemarsro, järnvägsbron | B23: 17 | C23: 2021-04-29 | D23: 9.4 | E23: 10.6 | F23: 93 | G23: 70.8
A24: 18 Sege å, nordväst Valdemarsro, järnvägsbron | B24: 18 | C24: 2021-05-04 | D24: 9.3 | E24: 10.1 | F24: 88 | G24: 67.5
A25: 18 Sege å, nordväst Valdemarsro, järnvägsbron | B25: 19 | C25: 2021-05-11 | D25: 15 | E25: 9.1 | F25: 91 | G25: 69.1
A26: 18 Sege å, nordväst Valdemarsro, järnvägsbron | B26: 20 | C26: 2021-05-17 | D26: 16.1 | E26: 10.1 | F26: 103 | G26: 65.6
A27: 18 Sege å, nordväst Valdemarsro, järnvägsbron | B27: 21 | C27: 2021-05-25 | D27: 14.2 | E27: 7.5 | F27: 73 | G27: 67.4
A28: 18 Sege å, nordväst Valdemarsro, järnvägsbron | B28: 22 | C28: 2021-06-01 | D28: 16.7 | E28: 6.8 | F28: 70 | G28: 67.1
A29: 18 Sege å, nordväst Valdemarsro, järnvägsbron | B29: 23 | C29: 2021-06-08 | D29: 18.9 | E29: 6.5 | F29: 70 | G29: 70.7
A30: 18 Sege å, nordväst Valdemarsro, järnvägsbron | B30: 24 | C30: 2021-06-15 | D30: 17.2 | E30: 5.7 | F30: 59 | G30: 73.5
A31: 18 Sege å, nordväst Valdemarsro, järnvägsbron | B31: 25 | C31: 2021-06-22 | D31: 19.3 | E31: 3.6 | F31: 39 | G31: 73.5
A32: 18 Sege å, nordväst Valdemarsro, järnvägsbron | B32: 26 | C32: 2021-06-29 | D32: 18.5 | E32: 5.7 | F32: 61 | G32: 76.7
A33: 18 Sege å, nordväst Valdemarsro, järnvägsbron | B33: 27 | C33: 2021-07-08 | D33: 19.8 | E33: 4.8 | F33: 53 | G33: 45.8
A34: 18 Sege å, nordväst Valdemarsro, järnvägsbron | B34: 28 | C34: 2021-07-13 | D34: 19.7 | E34: 5.6 | F34: 61 | G34: 55.5
A35: 18 Sege å, nordväst Valdemarsro, järnvägsbron | B35: 29 | C35: 2021-07-20 | D35: 19 | E35: 4.6 | F35: 50 | G35: 65.1
A36: 18 Sege å, nordväst Valdemarsro, järnvägsbron | B36: 30
A37: 18 Sege å, nordväst Valdemarsro, järnvägsbron | B37: 31 | C37: 2021-08-04 | D37: 16.6 | E37: 5.5 | F37: 57 | G37: 69
A38: 18 Sege å, nordväst Valdemarsro, järnvägsbron | B38: 32 | C38: 2021-08-11 | D38: 16.6 | E38: 5.2 | F38: 53 | G38: 52
A39: 18 Sege å, nordväst Valdemarsro, järnvägsbron | B39: 33 | C39: 2021-08-19 | D39: 15.6 | E39: 6.6 | F39: 66 | G39: 45.1
A40: 18 Sege å, nordväst Valdemarsro, järnvägsbron | B40: 34 | C40: 2021-08-24 | D40: 14.4 | E40: 6.1 | F40: 60 | G40: 58.3
A41: 18 Sege å, nordväst Valdemarsro, järnvägsbron | B41: 35 | C41: 2021-09-01 | D41: 15.6 | E41: 5.7 | F41: 57 | G41: 56.8
A42: 18 Sege å, nordväst Valdemarsro, järnvägsbron | B42: 36 | C42: 2021-09-08 | D42: 14.8 | E42: 7.2 | F42: 71 | G42: 70.3
A43: 18 Sege å, nordväst Valdemarsro, järnvägsbron | B43: 37 | C43: 2021-09-14 | D43: 15.9 | E43: 5.5 | F43: 56 | G43: 73.7
A44: 18 Sege å, nordväst Valdemarsro, järnvägsbron | B44: 38 | C44: 2021-09-20 | D44: 13.7 | E44: 7.6 | F44: 74 | G44: 68.8
A45: 18 Sege å, nordväst Valdemarsro, järnvägsbron | B45: 39 | C45: 2021-09-30 | D45: 13.8 | E45: 8.3 | F45: 80 | G45: 40.7
A46: 18 Sege å, nordväst Valdemarsro, järnvägsbron | B46: 40 | C46: 2021-10-06 | D46: 13.2 | E46: 7.3 | F46: 70 | G46: 52.5
A47: 18 Sege å, nordväst Valdemarsro, järnvägsbron | B47: 41 | C47: 2021-10-14 | D47: 10.1 | E47: 8.9 | F47: 79 | G47: 69
A48: 18 Sege å, nordväst Valdemarsro, järnvägsbron | B48: 42 | C48: 2021-10-20 | D48: 12 | E48: 8.3 | F48: 77 | G48: 59.6
A49: 18 Sege å, nordväst Valdemarsro, järnvägsbron | B49: 43 | C49: 2021-10-26 | D49: 9.1 | E49: 8.8 | F49: 77 | G49: 70.3
A50: 18 Sege å, nordväst Valdemarsro, järnvägsbron | B50: 44 | C50: 2021-11-02 | D50: 10.6 | E50: 7.6 | F50: 69 | G50: 73.1
A51: 18 Sege å, nordväst Valdemarsro, järnvägsbron | B51: 45 | C51: 2021-11-09 | D51: 10 | E51: 8.9 | F51: 79 | G51: 68.2
A52: 18 Sege å, nordväst Valdemarsro, järnvägsbron | B52: 46 | C52: 2021-11-17 | D52: 7.9 | E52: 8.9 | F52: 75 | G52: 73.2
A53: 18 Sege å, nordväst Valdemarsro, järnvägsbron | B53: 47 | C53: 2021-11-23 | D53: 6.4 | E53: 10.6 | F53: 86 | G53: 72.4
A54: 18 Sege å, nordväst Valdemarsro, järnvägsbron | B54: 48 | C54: 2021-11-30 | D54: 5.2 | E54: 10.9 | F54: 86 | G54: 109
A55: 18 Sege å, nordväst Valdemarsro, järnvägsbron | B55: 49 | C55: 2021-12-09 | D55: 1.9 | E55: 12.2 | F55: 88 | G55: 63.7
A56: 18 Sege å, nordväst Valdemarsro, järnvägsbron | B56: 50 | C56: 2021-12-15 | D56: 5.2 | E56: 11.2 | F56: 88 | G56: 66.2
A57: 18 Sege å, nordväst Valdemarsro, järnvägsbron | B57: 51 | C57: 2021-12-20 | D57: 3.4 | E57: 11.5 | F57: 86 | G57: 69.4
A58: 18 Sege å, nordväst Valdemarsro, järnvägsbron | B58: 52 | C58: 2021-12-28 | D58: 1.4 | E58: 12.9 | F58: 92 | G58: 75
A59: 18 Sege å, nordväst Valdemarsro, järnvägsbron | B59: 53

Sheet Vattenföring
A2: Sege å
A3: Vattenföring
A6: Provtagnings- | B6: Svedala, mätstation
A7: datum | B7: m3/s
A8: 2021-02-15 | B8: 0.486
C36: SMHI mätstation Svedala, 1879 | H36: Data från SMHI mätstation Svedala, 1879
A99: Data från SMHI mätstation Högsmölla, 2117 | G99: Månadsmedel 1991-2020, Svedala
A100: Datum | B100: Mätstation | C100: S-hype | G100: Medel | H100: Max | I100: Min
A101: 2021-01-01 | B101: 0.452 | F101: Jan | G101: 0.9377282796 | H101: 3.46 | I101: 0.047
A102: =A101+1 -> 2021-01-02 | B102: 0.45 | F102: Feb | G102: 0.8965439858 | H102: 3.38 | I102: 0.0973
A103: =A102+1 -> 2021-01-03 | B103: 0.412 | F103: Mar | G103: 0.8084204301 | H103: 3.24 | I103: 0.197
A104: 2021-01-04 | B104: 0.409 | F104: Apr | G104: 0.5158717778 | H104: 1.99 | I104: 0.0733
A105: 2021-01-05 | B105: 0.426 | F105: Maj | G105: 0.2921229032 | H105: 1.86 | I105: 0.0437
A106: 2021-01-06 | B106: 0.448 | F106: Juni | G106: 0.1712063333 | H106: 1.68 | I106: 0.0314
A107: 2021-01-07 | B107: 0.499 | F107: Juli | G107: 0.1679270968 | H107: 2.86 | I107: 0.0281
A108: 2021-01-08 | B108: 0.532 | F108: Aug | G108: 0.1607329032 | H108: 1.61 | I108: 0.0199
A109: 2021-01-09 | B109: 0.56 | F109: Sep | G109: 0.1692031111 | H109: 1.64 | I109: 0.0129
A110: 2021-01-10 | B110: 0.568 | F110: Okt | G110: 0.2090254516 | H110: 3.39 | I110: 0.0094
A111: 2021-01-11 | B111: 0.675 | F111: Nov | G111: 0.3802986778 | H111: 2.51 | I111: 0.00409
A112: 2021-01-12 | B112: 1 | F112: Dec | G112: 0.6651941935 | H112: 2.56 | I112: 0.0184
A113: 2021-01-13 | B113: 0.937
A114: 2021-01-14 | B114: 0.99
A115: 2021-01-15 | B115: 0.873
A116: 2021-01-16 | B116: 0.818
A117: 2021-01-17 | B117: 0.785
A118: 2021-01-18 | B118: 0.766
A119: 2021-01-19 | B119: 0.839
A120: 2021-01-20 | B120: 1.5
A121: 2021-01-21 | B121: 1.88
A122: 2021-01-22 | B122: 1.74
A123: 2021-01-23 | B123: 1.76
A124: 2021-01-24 | B124: 1.77
A125: 2021-01-25 | B125: 1.78
A126: 2021-01-26 | B126: 1.73
A127: 2021-01-27 | B127: 1.63
A128: 2021-01-28 | B128: 1.56
A129: 2021-01-29 | B129: 1.41
A130: 2021-01-30 | B130: 1.27
A131: 2021-01-31 | B131: 1.19
A132: 2021-02-01 | B132: 1.1
A133: 2021-02-02 | B133: 1.02
A134: 2021-02-03 | B134: 0.939
A135: 2021-02-04 | B135: 0.874
A136: 2021-02-05 | B136: 0.812
A137: 2021-02-06 | B137: 0.756
A138: 2021-02-07 | B138: 0.713
A139: 2021-02-08 | B139: 0.682
A140: 2021-02-09 | B140: 0.655
A141: 2021-02-10 | B141: 0.629
A142: 2021-02-11 | B142: 0.59
A143: 2021-02-12 | B143: 0.553
A144: 2021-02-13 | B144: 0.524
A145: 2021-02-14 | B145: 0.504
A146: 2021-02-15 | B146: 0.486
A147: 2021-02-16 | B147: 0.479
A148: 2021-02-17 | B148: 0.58
A149: 2021-02-18 | B149: 0.627
A150: 2021-02-19 | B150: 1.1
A151: 2021-02-20 | B151: 1.05
A152: 2021-02-21 | B152: 0.96
A153: 2021-02-22 | B153: 0.933
A154: 2021-02-23 | B154: 0.925
A155: 2021-02-24 | B155: 0.927
A156: 2021-02-25 | B156: 0.916
A157: 2021-02-26 | B157: 0.899
A158: 2021-02-27 | B158: 0.881
A159: 2021-02-28 | B159: 0.856
A160: 2021-03-01 | B160: 0.826
A161: 2021-03-02 | B161: 0.796
A162: 2021-03-03 | B162: 0.774
A163: 2021-03-04 | B163: 0.764
A164: 2021-03-05 | B164: 0.738
A165: 2021-03-06 | B165: 0.709
A166: 2021-03-07 | B166: 0.687
A167: =A166+1 -> 2021-03-08 | B167: 0.666
A168: 2021-03-09 | B168: 0.647
A169: 2021-03-10 | B169: 0.63
A170: 2021-03-11 | B170: 0.682
A171: 2021-03-12 | B171: 0.751
A172: 2021-03-13 | B172: 0.952
A173: 2021-03-14 | B173: 1.22
A174: 2021-03-15 | B174: 1.02
A175: 2021-03-16 | B175: 0.978
A176: 2021-03-17 | B176: 0.947
A177: 2021-03-18 | B177: 0.925
A178: 2021-03-19 | B178: 0.895
A179: 2021-03-20 | B179: 0.864
A180: 2021-03-21 | B180: 0.843
A181: 2021-03-22 | B181: 0.807
A182: 2021-03-23 | B182: 0.78
A183: 2021-03-24 | B183: 0.757
A184: 2021-03-25 | B184: 0.737
A185: 2021-03-26 | B185: 0.721
A186: 2021-03-27 | B186: 0.704
A187: 2021-03-28 | B187: 0.697
A188: 2021-03-29 | B188: 0.714
A189: 2021-03-30 | B189: 0.69
A190: 2021-03-31 | B190: 0.653
A191: 2021-04-01 | B191: 0.622
A192: 2021-04-02 | B192: 0.6
A193: 2021-04-03 | B193: 0.578
A194: 2021-04-04 | B194: 0.56
A195: 2021-04-05 | B195: 0.59
A196: 2021-04-06 | B196: 0.571
A197: 2021-04-07 | B197: 0.552
A198: 2021-04-08
A199: 2021-04-09 | B199: 0.526
A200: 2021-04-10 | B200: 0.509
A201: 2021-04-11 | B201: 0.449
A202: 2021-04-12 | B202: 0.666
A203: 2021-04-13 | B203: 0.559
A204: 2021-04-14 | B204: 0.506
A205: 2021-04-15 | B205: 0.472
A206: 2021-04-16 | B206: 0.451
A207: 2021-04-17 | B207: 0.435
A208: 2021-04-18 | B208: 0.425
A209: 2021-04-19 | B209: 0.413
A210: 2021-04-20 | B210: 0.397
A211: 2021-04-21 | B211: 0.379
A212: 2021-04-22 | B212: 0.361
A213: 2021-04-23 | B213: 0.333
A214: 2021-04-24 | B214: 0.321
A215: 2021-04-25 | B215: 0.305
A216: 2021-04-26 | B216: 0.295
A217: 2021-04-27 | B217: 0.287
A218: 2021-04-28 | B218: 0.282
A219: 2021-04-29 | B219: 0.288
A220: 2021-04-30 | B220: 0.32
A221: 2021-05-01 | B221: 0.291
A222: 2021-05-02 | B222: 0.281
A223: 2021-05-03 | B223: 0.3
A224: 2021-05-04 | B224: 0.33
A225: 2021-05-05 | B225: 0.42
A226: 2021-05-06 | B226: 0.432
A227: 2021-05-07 | B227: 0.417
A228: 2021-05-08 | B228: 0.411
A229: 2021-05-09 | B229: 0.445
A230: 2021-05-10 | B230: 0.438
A231: =A230+1 -> 2021-05-11 | B231: 0.402
A232: 2021-05-12 | B232: 0.385
A233: 2021-05-13 | B233: 0.412
A234: 2021-05-14 | B234: 0.409
A235: 2021-05-15 | B235: 0.397
A236: 2021-05-16 | B236: 0.396
A237: 2021-05-17 | B237: 0.38
A238: 2021-05-18 | B238: 0.352
A239: 2021-05-19 | B239: 0.326
A240: 2021-05-20 | B240: 0.308
A241: 2021-05-21 | B241: 0.296
A242: 2021-05-22 | B242: 0.284
A243: 2021-05-23 | B243: 0.289
A244: 2021-05-24 | B244: 0.263
A245: 2021-05-25 | B245: 0.304
A246: 2021-05-26 | B246: 0.303
A247: 2021-05-27 | B247: 0.283
A248: 2021-05-28 | B248: 0.281
A249: 2021-05-29 | B249: 0.26
A250: 2021-05-30 | B250: 0.244
A251: 2021-05-31 | B251: 0.233
A252: 2021-06-01
A253: 2021-06-02
A254: 2021-06-03
A255: 2021-06-04
A256: 2021-06-05
A257: 2021-06-06
A258: 2021-06-07
A259: 2021-06-08
A260: 2021-06-09
A261: 2021-06-10
A262: 2021-06-11
A263: 2021-06-12
A264: 2021-06-13
A265: 2021-06-14
A266: 2021-06-15
A267: 2021-06-16
A268: 2021-06-17
A269: 2021-06-18
A270: 2021-06-19
A271: 2021-06-20
A272: 2021-06-21
A273: 2021-06-22
A274: 2021-06-23
A275: 2021-06-24
A276: 2021-06-25
A277: 2021-06-26
A278: 2021-06-27
A279: 2021-06-28
A280: 2021-06-29
A281: 2021-06-30
A282: 2021-07-01
A283: 2021-07-02
A284: 2021-07-03
A285: 2021-07-04
A286: 2021-07-05
A287: 2021-07-06
A288: 2021-07-07
A289: 2021-07-08
A290: 2021-07-09
A291: 2021-07-10
A292: 2021-07-11
... 175 more rows

Sheet Statistik
B1: Sege å, Vattenkontroll - Statistik
B3: =CONCATENATE("Statistik för åren: ",MIN(Q:Q)," - ",MAX(Q:Q)) -> Statistik för åren: 2011 - 2020
B4: (kan vara annorlunda för vissa parametrar)
AA6: Stödlinjer i diagram--> | CD6: Värden omvandlade för statisitk -->
D7: °C | E7: mg/l | F7: % | H7: FNU | I7: mS/m | J7: mg/l | K7: µg/l | L7: µg/l | M7: µg/l | N7: µg/l | O7: µg/l | AA7: Syre | AE7: pH | AI7: Turb | AM7: Kond | AP7: BOD | AS7: PO4-P | AV7: Tot_P | AZ7: NO2,3-N | BC7: NH4-N | BF7: Tot-N | CD7: °C | CE7: mg/l | CF7: % | CH7: FNU | CI7: mS/m | CJ7: mg/l | CK7: µg/l | CL7: µg/l | CM7: µg/l | CN7: µg/l | CO7: µg/l
B8: =INDEX(Provpunkter!B1:B16,Provpunkter!G1) -> 1 Sege å, vid Brännemölla, uppströms Svedala AR | C8: Datum | D8: Temp | E8: Syrehalt | F8: Syrem | G8: pH | H8: Gruml | I8: Kond | J8: BOD7 | K8: PO4-P | L8: Tot-P | M8: NO3+2-N | N8: NH4-N | O8: Tot-N | Q8: År | R8: Månad | AA8: Medel | AB8: +/- 1 std | AC8: - 1 std | AD8: Klass 4 | AE8: Medel | AF8: +/- 1 std | AG8: - 1 std | AH8: Klass 3 | AI8: Medel | AJ8: +/- 1 std | AK8: - 1 std | AL8: Klass 5 | AM8: Medel | AN8: +/- 1 std | AO8: - 1 std | AP8: Medel | AQ8: +/- 1 std | AR8: - 1 std | AS8: Medel | AT8: +/- 1 std | AU8: - 1 std | AV8: Medel | AW8: +/- 1 std | AX8: - 1 std | AY8: Klass 5 | AZ8: Medel | BA8: +/- 1 std | BB8: - 1 std | BC8: Medel | BD8: +/- 1 std | BE8: - 1 std | BF8: Medel | BG8: +/- 1 std | BH8: - 1 std | BI8: Klass 5 | BL8: Test datum | CD8: Temp | CE8: Syrehalt | CF8: Syrem | CG8: pH | CH8: Gruml | CI8: Kond | CJ8: BOD | CK8: PO4-P | CL8: Tot-P | CM8: NO3+2-N | CN8: NH4-N | CO8: Tot-N
A9: =IF(B9=B$8,1,"") ->  | AA9: =$E$73 -> 9.628333333 | AB9: =AA9+E$74 -> 12.2284045 | AC9: =AA9-E$74 -> 7.02826217 | AD9: 2.95 | AE9: =$G$73 -> 7.7375 | AF9: =AE9+G$74 -> 7.980668526 | AG9: =AE9-G$74 -> 7.494331474 | AH9: 6.5 | AI9: =$H$73 -> 34.54333333 | AJ9: =AI9+H$74 -> 107.5061922 | AK9: =AI9-H$74 -> -38.41952549 | AL9: 7 | AM9: =$I$73 -> 43.52833333 | AN9: =AM9+I$74 -> 49.68925698 | AO9: =AM9-I$74 -> 37.36740968 | AP9: =$J$73 -> 6.5305 | AQ9: =AP9+J$74 -> 8.112967956 | AR9: =AP9-J$74 -> 4.948032044 | AS9: =$K$73 -> 21.31666667 | AT9: =AS9+$K$74 -> 25.22446707 | AU9: =AS9-$K$74 -> 17.40886627 | AV9: =$L$73 -> 108.1833333 | AW9: =AV9+$L$74 -> 175.2788867 | AX9: =AV9-$L$74 -> 41.08778 | AY9: 100 | AZ9: =$M$73 -> 1820.8 | BA9: =AZ9+$M$74 -> 4520.360245 | BB9: =AZ9-$M$74 -> -878.7602454 | BC9: =$N$73 -> 130.95 | BD9: =BC9+$N$74 -> 305.1721867 | BE9: =BC9-$N$74 -> -43.2721867 | BF9: =$O$73 -> 3911.666667 | BG9: =BF9+$O$74 -> 6215.980357 | BH9: =BF9-$O$74 -> 1607.352977 | BI9: 5000 | BL9: =C9 -> 0 | CD9: =IF(D9="","",IF(OR(LEFT(D9,1)="<",LEFT(D9,1)=">"),VALUE(MID(D9,2,3)),D9)) -> 
B10: 1 Sege å, vid Brännemölla, uppströms Svedala AR | C10: 2011-02-22 | D10: 1.3 | E10: 10.6 | F10: 75.13870672 | G10: 7.41 | H10: 8.8 | I10: 39.8 | J10: 5.8 | K10: 21 | L10: 61 | M10: 1900 | N10: 350 | O10: 3400 | P10: isfritt | Q10: 2011 | R10: 2 | AA10: =$E$73 -> 9.628333333 | AB10: =AA10+E$74 -> 12.2284045 | AC10: =AA10-E$74 -> 7.02826217 | AD10: 2.95 | AE10: =$G$73 -> 7.7375 | AF10: =AE10+G$74 -> 7.980668526 | AG10: =AE10-G$74 -> 7.494331474 | AH10: 6.5 | AI10: =$H$73 -> 34.54333333 | AJ10: =AI10+H$74 -> 107.5061922 | AK10: =AI10-H$74 -> -38.41952549 | AL10: 7 | AM10: =$I$73 -> 43.52833333 | AN10: =AM10+I$74 -> 49.68925698 | AO10: =AM10-I$74 -> 37.36740968 | AP10: =$J$73 -> 6.5305 | AQ10: =AP10+J$74 -> 8.112967956 | AR10: =AP10-J$74 -> 4.948032044 | AS10: =$K$73 -> 21.31666667 | AT10: =AS10+$K$74 -> 25.22446707 | AU10: =AS10-$K$74 -> 17.40886627 | AV10: =$L$73 -> 108.1833333 | AW10: =AV10+$L$74 -> 175.2788867 | AX10: =AV10-$L$74 -> 41.08778 | AY10: 100 | AZ10: =$M$73 -> 1820.8 | BA10: =AZ10+$M$74 -> 4520.360245 | BB10: =AZ10-$M$74 -> -878.7602454 | BC10: =$N$73 -> 130.95 | BD10: =BC10+$N$74 -> 305.1721867 | BE10: =BC10-$N$74 -> -43.2721867 | BF10: =$O$73 -> 3911.666667 | BG10: =BF10+$O$74 -> 6215.980357 | BH10: =BF10-$O$74 -> 1607.352977 | BI10: 5000 | BL10: =C10 -> 40596 | CD10: =IF(D10="","",IF(OR(LEFT(D10,1)="<",LEFT(D10,1)=">"),VALUE(MID(D10,2,3)),D10)) -> 1.3 | CE10: =IF(E10="","",IF(OR(LEFT(E10,1)="<",LEFT(E10,1)=">"),VALUE(MID(E10,2,3)),E10)) -> 10.6 | CF10: =IF(F10="","",IF(OR(LEFT(F10,1)="<",LEFT(F10,1)=">"),VALUE(MID(F10,2,3)),F10)) -> 75.13870672 | CG10: =IF(G10="","",IF(OR(LEFT(G10,1)="<",LEFT(G10,1)=">"),VALUE(MID(G10,2,3)),G10)) -> 7.41 | CH10: =IF(H10="","",IF(OR(LEFT(H10,1)="<",LEFT(H10,1)=">"),VALUE(MID(H10,2,3)),H10)) -> 8.8 | CI10: =IF(I10="","",IF(OR(LEFT(I10,1)="<",LEFT(I10,1)=">"),VALUE(MID(I10,2,3)),I10)) -> 39.8 | CJ10: =IF(J10="","",IF(OR(LEFT(J10,1)="<",LEFT(J10,1)=">"),VALUE(MID(J10,2,3)),J10)) -> 5.8 | CK10: =IF(K10="","",IF(OR(LEFT(K10,1)="<",LEFT(K10,1)=">"),VALUE(MID(K10,2,3)),K10)) -> 21 | CL10: =IF(L10="","",IF(OR(LEFT(L10,1)="<",LEFT(L10,1)=">"),VALUE(MID(L10,2,3)),L10)) -> 61 | CM10: =IF(M10="","",IF(OR(LEFT(M10,1)="<",LEFT(M10,1)=">"),VALUE(MID(M10,2,3)),M10)) -> 1900 | CN10: =IF(N10="","",IF(OR(LEFT(N10,1)="<",LEFT(N10,1)=">"),VALUE(MID(N10,2,3)),N10)) -> 350 | CO10: =IF(O10="","",IF(OR(LEFT(O10,1)="<",LEFT(O10,1)=">"),VALUE(MID(O10,2,3)),O10)) -> 3400
B11: 1 Sege å, vid Brännemölla, uppströms Svedala AR | C11: 2011-04-11 | D11: 10.5 | E11: 11.6 | F11: 104.3395729 | G11: 8.18 | H11: 19 | I11: 39.8 | J11: 9.8 | K11: 22 | L11: 120 | M11: 940 | N11: 72 | O11: 3100 | P11: gröngrumligt | Q11: 2011 | R11: 4 | AA11: 9.628333333 | AB11: 12.2284045 | AC11: 7.02826217 | AD11: 2.95 | AE11: 7.7375 | AF11: 7.980668526 | AG11: 7.494331474 | AH11: 6.5 | AI11: 34.54333333 | AJ11: 107.5061922 | AK11: -38.41952549 | AL11: 7 | AM11: 43.52833333 | AN11: 49.68925698 | AO11: 37.36740968 | AP11: 6.5305 | AQ11: 8.112967956 | AR11: 4.948032044 | AS11: 21.31666667 | AT11: 25.22446707 | AU11: 17.40886627 | AV11: 108.1833333 | AW11: 175.2788867 | AX11: 41.08778 | AY11: 100 | AZ11: 1820.8 | BA11: 4520.360245 | BB11: -878.7602454 | BC11: 130.95 | BD11: 305.1721867 | BE11: -43.2721867 | BF11: 3911.666667 | BG11: 6215.980357 | BH11: 1607.352977 | BI11: 5000 | BL11: 40644 | CD11: 10.5 | CE11: 11.6 | CF11: 104.3395729 | CG11: 8.18 | CH11: 19 | CI11: 39.8 | CJ11: 9.8 | CK11: 22 | CL11: 120 | CM11: 940 | CN11: 72 | CO11: 3100
B12: 1 Sege å, vid Brännemölla, uppströms Svedala AR | C12: 2011-06-21 | D12: 18.5 | E12: 10.8 | F12: 115.340951 | G12: 8.7 | H12: 41 | I12: 32.5 | J12: 7.8 | K12: 32 | L12: 170 | M12: 58 | N12: <10 | O12: 3700 | P12: lågflöde, grumligt | Q12: 2011 | R12: 6 | AA12: 9.628333333 | AB12: 12.2284045 | AC12: 7.02826217 | AD12: 2.95 | AE12: 7.7375 | AF12: 7.980668526 | AG12: 7.494331474 | AH12: 6.5 | AI12: 34.54333333 | AJ12: 107.5061922 | AK12: -38.41952549 | AL12: 7 | AM12: 43.52833333 | AN12: 49.68925698 | AO12: 37.36740968 | AP12: 6.5305 | AQ12: 8.112967956 | AR12: 4.948032044 | AS12: 21.31666667 | AT12: 25.22446707 | AU12: 17.40886627 | AV12: 108.1833333 | AW12: 175.2788867 | AX12: 41.08778 | AY12: 100 | AZ12: 1820.8 | BA12: 4520.360245 | BB12: -878.7602454 | BC12: 130.95 | BD12: 305.1721867 | BE12: -43.2721867 | BF12: 3911.666667 | BG12: 6215.980357 | BH12: 1607.352977 | BI12: 5000 | BL12: 40715 | CD12: 18.5 | CE12: 10.8 | CF12: 115.340951 | CG12: 8.7 | CH12: 41 | CI12: 32.5 | CJ12: 7.8 | CK12: 32 | CL12: 170 | CM12: 58 | CN12: 10 | CO12: 3700
B13: 1 Sege å, vid Brännemölla, uppströms Svedala AR | C13: 2011-08-16 | D13: 16.4 | E13: 7.6 | F13: 77.83686248 | G13: 7.36 | H13: 25 | I13: 40 | J13: 5.8 | K13: 31 | L13: 140 | M13: 1400 | N13: <10 | O13: 4000 | P13: högflöde, grumligt | Q13: 2011 | R13: 8 | AA13: 9.628333333 | AB13: 12.2284045 | AC13: 7.02826217 | AD13: 2.95 | AE13: 7.7375 | AF13: 7.980668526 | AG13: 7.494331474 | AH13: 6.5 | AI13: 34.54333333 | AJ13: 107.5061922 | AK13: -38.41952549 | AL13: 7 | AM13: 43.52833333 | AN13: 49.68925698 | AO13: 37.36740968 | AP13: 6.5305 | AQ13: 8.112967956 | AR13: 4.948032044 | AS13: 21.31666667 | AT13: 25.22446707 | AU13: 17.40886627 | AV13: 108.1833333 | AW13: 175.2788867 | AX13: 41.08778 | AY13: 100 | AZ13: 1820.8 | BA13: 4520.360245 | BB13: -878.7602454 | BC13: 130.95 | BD13: 305.1721867 | BE13: -43.2721867 | BF13: 3911.666667 | BG13: 6215.980357 | BH13: 1607.352977 | BI13: 5000 | BL13: 40771 | CD13: 16.4 | CE13: 7.6 | CF13: 77.83686248 | CG13: 7.36 | CH13: 25 | CI13: 40 | CJ13: 5.8 | CK13: 31 | CL13: 140 | CM13: 1400 | CN13: 10 | CO13: 4000
B14: 1 Sege å, vid Brännemölla, uppströms Svedala AR | C14: 2011-10-11 | D14: 11 | E14: 8.8 | F14: 80.0858005 | G14: 7.49 | H14: 17 | I14: 45.1 | J14: 6.8 | K14: 31 | L14: 99 | M14: 1200 | N14: 240 | O14: 3400 | P14: gröngrumligt | Q14: 2011 | R14: 10 | AA14: 9.628333333 | AB14: 12.2284045 | AC14: 7.02826217 | AD14: 2.95 | AE14: 7.7375 | AF14: 7.980668526 | AG14: 7.494331474 | AH14: 6.5 | AI14: 34.54333333 | AJ14: 107.5061922 | AK14: -38.41952549 | AL14: 7 | AM14: 43.52833333 | AN14: 49.68925698 | AO14: 37.36740968 | AP14: 6.5305 | AQ14: 8.112967956 | AR14: 4.948032044 | AS14: 21.31666667 | AT14: 25.22446707 | AU14: 17.40886627 | AV14: 108.1833333 | AW14: 175.2788867 | AX14: 41.08778 | AY14: 100 | AZ14: 1820.8 | BA14: 4520.360245 | BB14: -878.7602454 | BC14: 130.95 | BD14: 305.1721867 | BE14: -43.2721867 | BF14: 3911.666667 | BG14: 6215.980357 | BH14: 1607.352977 | BI14: 5000 | BL14: 40827 | CD14: 11 | CE14: 8.8 | CF14: 80.0858005 | CG14: 7.49 | CH14: 17 | CI14: 45.1 | CJ14: 6.8 | CK14: 31 | CL14: 99 | CM14: 1200 | CN14: 240 | CO14: 3400
B15: 1 Sege å, vid Brännemölla, uppströms Svedala AR | C15: 2011-12-19 | D15: 2.6 | E15: 11.9 | F15: 87.46708741 | G15: 7.7 | H15: 34 | I15: 45.4 | J15: 6.2 | K15: 21 | L15: 120 | M15: 1500 | N15: 770 | O15: 4200 | P15: gröngrumligt | Q15: 2011 | R15: 12 | AA15: 9.628333333 | AB15: 12.2284045 | AC15: 7.02826217 | AD15: 2.95 | AE15: 7.7375 | AF15: 7.980668526 | AG15: 7.494331474 | AH15: 6.5 | AI15: 34.54333333 | AJ15: 107.5061922 | AK15: -38.41952549 | AL15: 7 | AM15: 43.52833333 | AN15: 49.68925698 | AO15: 37.36740968 | AP15: 6.5305 | AQ15: 8.112967956 | AR15: 4.948032044 | AS15: 21.31666667 | AT15: 25.22446707 | AU15: 17.40886627 | AV15: 108.1833333 | AW15: 175.2788867 | AX15: 41.08778 | AY15: 100 | AZ15: 1820.8 | BA15: 4520.360245 | BB15: -878.7602454 | BC15: 130.95 | BD15: 305.1721867 | BE15: -43.2721867 | BF15: 3911.666667 | BG15: 6215.980357 | BH15: 1607.352977 | BI15: 5000 | BL15: 40896 | CD15: 2.6 | CE15: 11.9 | CF15: 87.46708741 | CG15: 7.7 | CH15: 34 | CI15: 45.4 | CJ15: 6.2 | CK15: 21 | CL15: 120 | CM15: 1500 | CN15: 770 | CO15: 4200
B16: 1 Sege å, vid Brännemölla, uppströms Svedala AR | C16: 2012-02-13 | D16: 1.2 | E16: 12.3 | F16: 86.94352949 | G16: 7.5 | H16: 13 | I16: 46 | J16: 6.6 | K16: 21 | L16: 58 | M16: 1600 | N16: 700 | O16: 3600 | P16: is i kanten | Q16: 2012 | R16: 2 | AA16: 9.628333333 | AB16: 12.2284045 | AC16: 7.02826217 | AD16: 2.95 | AE16: 7.7375 | AF16: 7.980668526 | AG16: 7.494331474 | AH16: 6.5 | AI16: 34.54333333 | AJ16: 107.5061922 | AK16: -38.41952549 | AL16: 7 | AM16: 43.52833333 | AN16: 49.68925698 | AO16: 37.36740968 | AP16: 6.5305 | AQ16: 8.112967956 | AR16: 4.948032044 | AS16: 21.31666667 | AT16: 25.22446707 | AU16: 17.40886627 | AV16: 108.1833333 | AW16: 175.2788867 | AX16: 41.08778 | AY16: 100 | AZ16: 1820.8 | BA16: 4520.360245 | BB16: -878.7602454 | BC16: 130.95 | BD16: 305.1721867 | BE16: -43.2721867 | BF16: 3911.666667 | BG16: 6215.980357 | BH16: 1607.352977 | BI16: 5000 | BL16: 40952 | CD16: 1.2 | CE16: 12.3 | CF16: 86.94352949 | CG16: 7.5 | CH16: 13 | CI16: 46 | CJ16: 6.6 | CK16: 21 | CL16: 58 | CM16: 1600 | CN16: 700 | CO16: 3600
B17: 1 Sege å, vid Brännemölla, uppströms Svedala AR | C17: 2012-04-16 | D17: 8 | E17: 10.9 | F17: 92.29242441 | G17: 7.97 | H17: 7.3 | I17: 43 | J17: 6.05 | K17: 20 | L17: 54 | M17: 990 | N17: 230 | O17: 2700 | P17: gröngrumligt | Q17: 2012 | R17: 4 | AA17: 9.628333333 | AB17: 12.2284045 | AC17: 7.02826217 | AD17: 2.95 | AE17: 7.7375 | AF17: 7.980668526 | AG17: 7.494331474 | AH17: 6.5 | AI17: 34.54333333 | AJ17: 107.5061922 | AK17: -38.41952549 | AL17: 7 | AM17: 43.52833333 | AN17: 49.68925698 | AO17: 37.36740968 | AP17: 6.5305 | AQ17: 8.112967956 | AR17: 4.948032044 | AS17: 21.31666667 | AT17: 25.22446707 | AU17: 17.40886627 | AV17: 108.1833333 | AW17: 175.2788867 | AX17: 41.08778 | AY17: 100 | AZ17: 1820.8 | BA17: 4520.360245 | BB17: -878.7602454 | BC17: 130.95 | BD17: 305.1721867 | BE17: -43.2721867 | BF17: 3911.666667 | BG17: 6215.980357 | BH17: 1607.352977 | BI17: 5000 | BL17: 41015 | CD17: 8 | CE17: 10.9 | CF17: 92.29242441 | CG17: 7.97 | CH17: 7.3 | CI17: 43 | CJ17: 6.05 | CK17: 20 | CL17: 54 | CM17: 990 | CN17: 230 | CO17: 2700
B18: 1 Sege å, vid Brännemölla, uppströms Svedala AR | C18: 2012-06-19 | D18: 17.5 | E18: 7.9 | F18: 82.72710928 | G18: 7.9 | H18: 32 | I18: 41.2 | J18: 7 | K18: 17 | L18: 130 | M18: 180 | N18: <10 | O18: 2800 | P18: grumligt | Q18: 2012 | R18: 6 | AA18: 9.628333333 | AB18: 12.2284045 | AC18: 7.02826217 | AD18: 2.95 | AE18: 7.7375 | AF18: 7.980668526 | AG18: 7.494331474 | AH18: 6.5 | AI18: 34.54333333 | AJ18: 107.5061922 | AK18: -38.41952549 | AL18: 7 | AM18: 43.52833333 | AN18: 49.68925698 | AO18: 37.36740968 | AP18: 6.5305 | AQ18: 8.112967956 | AR18: 4.948032044 | AS18: 21.31666667 | AT18: 25.22446707 | AU18: 17.40886627 | AV18: 108.1833333 | AW18: 175.2788867 | AX18: 41.08778 | AY18: 100 | AZ18: 1820.8 | BA18: 4520.360245 | BB18: -878.7602454 | BC18: 130.95 | BD18: 305.1721867 | BE18: -43.2721867 | BF18: 3911.666667 | BG18: 6215.980357 | BH18: 1607.352977 | BI18: 5000 | BL18: 41079 | CD18: 17.5 | CE18: 7.9 | CF18: 82.72710928 | CG18: 7.9 | CH18: 32 | CI18: 41.2 | CJ18: 7 | CK18: 17 | CL18: 130 | CM18: 180 | CN18: 10 | CO18: 2800
B19: 1 Sege å, vid Brännemölla, uppströms Svedala AR | C19: 2012-08-20 | D19: 21.1 | E19: 6.6 | F19: 74.00789695 | G19: 7.82 | H19: 23 | I19: 38.2 | J19: 7.6 | K19: 26 | L19: 130 | M19: 530 | N19: <10 | O19: 2300 | P19: grumligt | Q19: 2012 | R19: 8 | AA19: 9.628333333 | AB19: 12.2284045 | AC19: 7.02826217 | AD19: 2.95 | AE19: 7.7375 | AF19: 7.980668526 | AG19: 7.494331474 | AH19: 6.5 | AI19: 34.54333333 | AJ19: 107.5061922 | AK19: -38.41952549 | AL19: 7 | AM19: 43.52833333 | AN19: 49.68925698 | AO19: 37.36740968 | AP19: 6.5305 | AQ19: 8.112967956 | AR19: 4.948032044 | AS19: 21.31666667 | AT19: 25.22446707 | AU19: 17.40886627 | AV19: 108.1833333 | AW19: 175.2788867 | AX19: 41.08778 | AY19: 100 | AZ19: 1820.8 | BA19: 4520.360245 | BB19: -878.7602454 | BC19: 130.95 | BD19: 305.1721867 | BE19: -43.2721867 | BF19: 3911.666667 | BG19: 6215.980357 | BH19: 1607.352977 | BI19: 5000 | BL19: 41141 | CD19: 21.1 | CE19: 6.6 | CF19: 74.00789695 | CG19: 7.82 | CH19: 23 | CI19: 38.2 | CJ19: 7.6 | CK19: 26 | CL19: 130 | CM19: 530 | CN19: 10 | CO19: 2300
B20: 1 Sege å, vid Brännemölla, uppströms Svedala AR | C20: 2012-10-10 | D20: 8.5 | E20: 10.2 | F20: 87.438387 | G20: 7.87 | H20: 21 | I20: 44.4 | J20: 6.9 | K20: 17 | L20: 110 | M20: 820 | N20: <10 | O20: 2700 | P20: gröngrumligt | Q20: 2012 | R20: 10 | AA20: 9.628333333 | AB20: 12.2284045 | AC20: 7.02826217 | AD20: 2.95 | AE20: 7.7375 | AF20: 7.980668526 | AG20: 7.494331474 | AH20: 6.5 | AI20: 34.54333333 | AJ20: 107.5061922 | AK20: -38.41952549 | AL20: 7 | AM20: 43.52833333 | AN20: 49.68925698 | AO20: 37.36740968 | AP20: 6.5305 | AQ20: 8.112967956 | AR20: 4.948032044 | AS20: 21.31666667 | AT20: 25.22446707 | AU20: 17.40886627 | AV20: 108.1833333 | AW20: 175.2788867 | AX20: 41.08778 | AY20: 100 | AZ20: 1820.8 | BA20: 4520.360245 | BB20: -878.7602454 | BC20: 130.95 | BD20: 305.1721867 | BE20: -43.2721867 | BF20: 3911.666667 | BG20: 6215.980357 | BH20: 1607.352977 | BI20: 5000 | BL20: 41192 | CD20: 8.5 | CE20: 10.2 | CF20: 87.438387 | CG20: 7.87 | CH20: 21 | CI20: 44.4 | CJ20: 6.9 | CK20: 17 | CL20: 110 | CM20: 820 | CN20: 10 | CO20: 2700
B21: 1 Sege å, vid Brännemölla, uppströms Svedala AR | C21: 2012-12-10 | D21: 0.7 | E21: 13.5 | F21: 94.08180772 | G21: 7.84 | H21: 13 | I21: 43.2 | J21: 6.2 | K21: 20 | L21: 73 | M21: 550 | N21: 320 | O21: 2800 | P21: isfritt | Q21: 2012 | R21: 12 | AA21: 9.628333333 | AB21: 12.2284045 | AC21: 7.02826217 | AD21: 2.95 | AE21: 7.7375 | AF21: 7.980668526 | AG21: 7.494331474 | AH21: 6.5 | AI21: 34.54333333 | AJ21: 107.5061922 | AK21: -38.41952549 | AL21: 7 | AM21: 43.52833333 | AN21: 49.68925698 | AO21: 37.36740968 | AP21: 6.5305 | AQ21: 8.112967956 | AR21: 4.948032044 | AS21: 21.31666667 | AT21: 25.22446707 | AU21: 17.40886627 | AV21: 108.1833333 | AW21: 175.2788867 | AX21: 41.08778 | AY21: 100 | AZ21: 1820.8 | BA21: 4520.360245 | BB21: -878.7602454 | BC21: 130.95 | BD21: 305.1721867 | BE21: -43.2721867 | BF21: 3911.666667 | BG21: 6215.980357 | BH21: 1607.352977 | BI21: 5000 | BL21: 41253 | CD21: 0.7 | CE21: 13.5 | CF21: 94.08180772 | CG21: 7.84 | CH21: 13 | CI21: 43.2 | CJ21: 6.2 | CK21: 20 | CL21: 73 | CM21: 550 | CN21: 320 | CO21: 2800
B22: 1 Sege å, vid Brännemölla, uppströms Svedala AR | C22: 2013-02-18 | D22: 1.3 | E22: 12.2 | F22: 86.4803983 | G22: 7.6 | H22: 7.5 | I22: 42.2 | J22: 2.6 | K22: 17 | L22: 36 | M22: 2400 | N22: 310 | O22: 3800 | P22: grumligt | Q22: 2013 | R22: 2 | AA22: 9.628333333 | AB22: 12.2284045 | AC22: 7.02826217 | AD22: 2.95 | AE22: 7.7375 | AF22: 7.980668526 | AG22: 7.494331474 | AH22: 6.5 | AI22: 34.54333333 | AJ22: 107.5061922 | AK22: -38.41952549 | AL22: 7 | AM22: 43.52833333 | AN22: 49.68925698 | AO22: 37.36740968 | AP22: 6.5305 | AQ22: 8.112967956 | AR22: 4.948032044 | AS22: 21.31666667 | AT22: 25.22446707 | AU22: 17.40886627 | AV22: 108.1833333 | AW22: 175.2788867 | AX22: 41.08778 | AY22: 100 | AZ22: 1820.8 | BA22: 4520.360245 | BB22: -878.7602454 | BC22: 130.95 | BD22: 305.1721867 | BE22: -43.2721867 | BF22: 3911.666667 | BG22: 6215.980357 | BH22: 1607.352977 | BI22: 5000 | BL22: 41323 | CD22: 1.3 | CE22: 12.2 | CF22: 86.4803983 | CG22: 7.6 | CH22: 7.5 | CI22: 42.2 | CJ22: 2.6 | CK22: 17 | CL22: 36 | CM22: 2400 | CN22: 310 | CO22: 3800
B23: 1 Sege å, vid Brännemölla, uppströms Svedala AR | C23: 2013-04-15 | D23: 8.8 | E23: 13.4 | F23: 115.7170494 | G23: 8 | H23: 8.8 | I23: 43 | J23: 5.7 | K23: 17 | L23: 44 | M23: 1000 | N23: 450 | O23: 2800 | Q23: 2013 | R23: 4 | AA23: 9.628333333 | AB23: 12.2284045 | AC23: 7.02826217 | AD23: 2.95 | AE23: 7.7375 | AF23: 7.980668526 | AG23: 7.494331474 | AH23: 6.5 | AI23: 34.54333333 | AJ23: 107.5061922 | AK23: -38.41952549 | AL23: 7 | AM23: 43.52833333 | AN23: 49.68925698 | AO23: 37.36740968 | AP23: 6.5305 | AQ23: 8.112967956 | AR23: 4.948032044 | AS23: 21.31666667 | AT23: 25.22446707 | AU23: 17.40886627 | AV23: 108.1833333 | AW23: 175.2788867 | AX23: 41.08778 | AY23: 100 | AZ23: 1820.8 | BA23: 4520.360245 | BB23: -878.7602454 | BC23: 130.95 | BD23: 305.1721867 | BE23: -43.2721867 | BF23: 3911.666667 | BG23: 6215.980357 | BH23: 1607.352977 | BI23: 5000 | BL23: 41379 | CD23: 8.8 | CE23: 13.4 | CF23: 115.7170494 | CG23: 8 | CH23: 8.8 | CI23: 43 | CJ23: 5.7 | CK23: 17 | CL23: 44 | CM23: 1000 | CN23: 450 | CO23: 2800
B24: 1 Sege å, vid Brännemölla, uppströms Svedala AR | C24: 2013-06-17 | D24: 19.2 | E24: 10.1 | F24: 109.3269599 | G24: 7.8 | H24: 34 | I24: 40.6 | J24: 8.33 | K24: 22 | L24: 130 | M24: 140 | N24: <10 | O24: 2600 | P24: gröngrumligt | Q24: 2013 | R24: 6 | AA24: 9.628333333 | AB24: 12.2284045 | AC24: 7.02826217 | AD24: 2.95 | AE24: 7.7375 | AF24: 7.980668526 | AG24: 7.494331474 | AH24: 6.5 | AI24: 34.54333333 | AJ24: 107.5061922 | AK24: -38.41952549 | AL24: 7 | AM24: 43.52833333 | AN24: 49.68925698 | AO24: 37.36740968 | AP24: 6.5305 | AQ24: 8.112967956 | AR24: 4.948032044 | AS24: 21.31666667 | AT24: 25.22446707 | AU24: 17.40886627 | AV24: 108.1833333 | AW24: 175.2788867 | AX24: 41.08778 | AY24: 100 | AZ24: 1820.8 | BA24: 4520.360245 | BB24: -878.7602454 | BC24: 130.95 | BD24: 305.1721867 | BE24: -43.2721867 | BF24: 3911.666667 | BG24: 6215.980357 | BH24: 1607.352977 | BI24: 5000 | BL24: 41442 | CD24: 19.2 | CE24: 10.1 | CF24: 109.3269599 | CG24: 7.8 | CH24: 34 | CI24: 40.6 | CJ24: 8.33 | CK24: 22 | CL24: 130 | CM24: 140 | CN24: 10 | CO24: 2600
B25: 1 Sege å, vid Brännemölla, uppströms Svedala AR | C25: 2013-08-20 | D25: 16.4 | E25: 7.6 | F25: 77.83686248 | G25: 7.5 | H25: 19 | I25: 36.8 | J25: 8.4 | K25: 17 | L25: 150 | M25: 280 | N25: 17 | O25: 2900 | P25: gröngrumligt | Q25: 2013 | R25: 8 | AA25: 9.628333333 | AB25: 12.2284045 | AC25: 7.02826217 | AD25: 2.95 | AE25: 7.7375 | AF25: 7.980668526 | AG25: 7.494331474 | AH25: 6.5 | AI25: 34.54333333 | AJ25: 107.5061922 | AK25: -38.41952549 | AL25: 7 | AM25: 43.52833333 | AN25: 49.68925698 | AO25: 37.36740968 | AP25: 6.5305 | AQ25: 8.112967956 | AR25: 4.948032044 | AS25: 21.31666667 | AT25: 25.22446707 | AU25: 17.40886627 | AV25: 108.1833333 | AW25: 175.2788867 | AX25: 41.08778 | AY25: 100 | AZ25: 1820.8 | BA25: 4520.360245 | BB25: -878.7602454 | BC25: 130.95 | BD25: 305.1721867 | BE25: -43.2721867 | BF25: 3911.666667 | BG25: 6215.980357 | BH25: 1607.352977 | BI25: 5000 | BL25: 41506 | CD25: 16.4 | CE25: 7.6 | CF25: 77.83686248 | CG25: 7.5 | CH25: 19 | CI25: 36.8 | CJ25: 8.4 | CK25: 17 | CL25: 150 | CM25: 280 | CN25: 17 | CO25: 2900
B26: 1 Sege å, vid Brännemölla, uppströms Svedala AR | C26: 2013-10-14 | D26: 12.1 | E26: 7.5 | F26: 70.00287385 | G26: 7.49 | H26: 22 | I26: 40.4 | J26: 9 | K26: 21 | L26: 210 | M26: 380 | N26: <10 | O26: 4400 | P26: gröngrumligt | Q26: 2013 | R26: 10 | AA26: 9.628333333 | AB26: 12.2284045 | AC26: 7.02826217 | AD26: 2.95 | AE26: 7.7375 | AF26: 7.980668526 | AG26: 7.494331474 | AH26: 6.5 | AI26: 34.54333333 | AJ26: 107.5061922 | AK26: -38.41952549 | AL26: 7 | AM26: 43.52833333 | AN26: 49.68925698 | AO26: 37.36740968 | AP26: 6.5305 | AQ26: 8.112967956 | AR26: 4.948032044 | AS26: 21.31666667 | AT26: 25.22446707 | AU26: 17.40886627 | AV26: 108.1833333 | AW26: 175.2788867 | AX26: 41.08778 | AY26: 100 | AZ26: 1820.8 | BA26: 4520.360245 | BB26: -878.7602454 | BC26: 130.95 | BD26: 305.1721867 | BE26: -43.2721867 | BF26: 3911.666667 | BG26: 6215.980357 | BH26: 1607.352977 | BI26: 5000 | BL26: 41561 | CD26: 12.1 | CE26: 7.5 | CF26: 70.00287385 | CG26: 7.49 | CH26: 22 | CI26: 40.4 | CJ26: 9 | CK26: 21 | CL26: 210 | CM26: 380 | CN26: 10 | CO26: 4400
B27: 1 Sege å, vid Brännemölla, uppströms Svedala AR | C27: 2013-12-12 | D27: 4.7 | E27: 12.4 | F27: 96.46611716 | G27: 7.58 | H27: 25 | I27: 52.6 | J27: 4.2 | K27: 20 | L27: 96 | M27: 7800 | N27: 110 | O27: 8000 | P27: gröngrumligt | Q27: 2013 | R27: 12 | AA27: 9.628333333 | AB27: 12.2284045 | AC27: 7.02826217 | AD27: 2.95 | AE27: 7.7375 | AF27: 7.980668526 | AG27: 7.494331474 | AH27: 6.5 | AI27: 34.54333333 | AJ27: 107.5061922 | AK27: -38.41952549 | AL27: 7 | AM27: 43.52833333 | AN27: 49.68925698 | AO27: 37.36740968 | AP27: 6.5305 | AQ27: 8.112967956 | AR27: 4.948032044 | AS27: 21.31666667 | AT27: 25.22446707 | AU27: 17.40886627 | AV27: 108.1833333 | AW27: 175.2788867 | AX27: 41.08778 | AY27: 100 | AZ27: 1820.8 | BA27: 4520.360245 | BB27: -878.7602454 | BC27: 130.95 | BD27: 305.1721867 | BE27: -43.2721867 | BF27: 3911.666667 | BG27: 6215.980357 | BH27: 1607.352977 | BI27: 5000 | BL27: 41620 | CD27: 4.7 | CE27: 12.4 | CF27: 96.46611716 | CG27: 7.58 | CH27: 25 | CI27: 52.6 | CJ27: 4.2 | CK27: 20 | CL27: 96 | CM27: 7800 | CN27: 110 | CO27: 8000
B28: 1 Sege å, vid Brännemölla, uppströms Svedala AR | C28: 2014-02-18 | D28: 2.9 | E28: 12.2 | F28: 90.41454437 | G28: 7.83 | H28: 20 | I28: 42.1 | J28: 4.9 | K28: 15 | L28: 89 | M28: 2400 | N28: 420 | O28: 4200 | P28: Högflöde | Q28: 2014 | R28: 2 | AA28: 9.628333333 | AB28: 12.2284045 | AC28: 7.02826217 | AD28: 2.95 | AE28: 7.7375 | AF28: 7.980668526 | AG28: 7.494331474 | AH28: 6.5 | AI28: 34.54333333 | AJ28: 107.5061922 | AK28: -38.41952549 | AL28: 7 | AM28: 43.52833333 | AN28: 49.68925698 | AO28: 37.36740968 | AP28: 6.5305 | AQ28: 8.112967956 | AR28: 4.948032044 | AS28: 21.31666667 | AT28: 25.22446707 | AU28: 17.40886627 | AV28: 108.1833333 | AW28: 175.2788867 | AX28: 41.08778 | AY28: 100 | AZ28: 1820.8 | BA28: 4520.360245 | BB28: -878.7602454 | BC28: 130.95 | BD28: 305.1721867 | BE28: -43.2721867 | BF28: 3911.666667 | BG28: 6215.980357 | BH28: 1607.352977 | BI28: 5000 | BL28: 41688 | CD28: 2.9 | CE28: 12.2 | CF28: 90.41454437 | CG28: 7.83 | CH28: 20 | CI28: 42.1 | CJ28: 4.9 | CK28: 15 | CL28: 89 | CM28: 2400 | CN28: 420 | CO28: 4200
B29: 1 Sege å, vid Brännemölla, uppströms Svedala AR | C29: 2014-04-14 | D29: 8.7 | E29: 11 | F29: 94.75975934 | G29: 8.15 | H29: 18 | I29: 42.9 | J29: 7.2 | K29: 20 | L29: 62 | M29: 1300 | N29: <10 | O29: 3000 | P29: Måttligt flöde | Q29: 2014 | R29: 4 | AA29: 9.628333333 | AB29: 12.2284045 | AC29: 7.02826217 | AD29: 2.95 | AE29: 7.7375 | AF29: 7.980668526 | AG29: 7.494331474 | AH29: 6.5 | AI29: 34.54333333 | AJ29: 107.5061922 | AK29: -38.41952549 | AL29: 7 | AM29: 43.52833333 | AN29: 49.68925698 | AO29: 37.36740968 | AP29: 6.5305 | AQ29: 8.112967956 | AR29: 4.948032044 | AS29: 21.31666667 | AT29: 25.22446707 | AU29: 17.40886627 | AV29: 108.1833333 | AW29: 175.2788867 | AX29: 41.08778 | AY29: 100 | AZ29: 1820.8 | BA29: 4520.360245 | BB29: -878.7602454 | BC29: 130.95 | BD29: 305.1721867 | BE29: -43.2721867 | BF29: 3911.666667 | BG29: 6215.980357 | BH29: 1607.352977 | BI29: 5000 | BL29: 41743 | CD29: 8.7 | CE29: 11 | CF29: 94.75975934 | CG29: 8.15 | CH29: 18 | CI29: 42.9 | CJ29: 7.2 | CK29: 20 | CL29: 62 | CM29: 1300 | CN29: 10 | CO29: 3000
B30: 1 Sege å, vid Brännemölla, uppströms Svedala AR | C30: 2014-06-11 | D30: 18.1 | E30: 4.7 | F30: 49.80449554 | G30: 7.63 | H30: 19 | I30: 41.7 | J30: 7.5 | K30: 17 | L30: 23 | M30: 660 | N30: 220 | O30: 3300 | P30: Grumligt | Q30: 2014 | R30: 6 | AA30: 9.628333333 | AB30: 12.2284045 | AC30: 7.02826217 | AD30: 2.95 | AE30: 7.7375 | AF30: 7.980668526 | AG30: 7.494331474 | AH30: 6.5 | AI30: 34.54333333 | AJ30: 107.5061922 | AK30: -38.41952549 | AL30: 7 | AM30: 43.52833333 | AN30: 49.68925698 | AO30: 37.36740968 | AP30: 6.5305 | AQ30: 8.112967956 | AR30: 4.948032044 | AS30: 21.31666667 | AT30: 25.22446707 | AU30: 17.40886627 | AV30: 108.1833333 | AW30: 175.2788867 | AX30: 41.08778 | AY30: 100 | AZ30: 1820.8 | BA30: 4520.360245 | BB30: -878.7602454 | BC30: 130.95 | BD30: 305.1721867 | BE30: -43.2721867 | BF30: 3911.666667 | BG30: 6215.980357 | BH30: 1607.352977 | BI30: 5000 | BL30: 41801 | CD30: 18.1 | CE30: 4.7 | CF30: 49.80449554 | CG30: 7.63 | CH30: 19 | CI30: 41.7 | CJ30: 7.5 | CK30: 17 | CL30: 23 | CM30: 660 | CN30: 220 | CO30: 3300
B31: 1 Sege å, vid Brännemölla, uppströms Svedala AR | C31: 2014-08-18 | D31: 15.1 | E31: 7.3 | F31: 72.76847581 | G31: 7.53 | H31: 17 | I31: 40.4 | J31: 7.7 | K31: 22 | L31: 160 | M31: 420 | N31: 47 | O31: 3000 | P31: Gröngrumligt | Q31: 2014 | R31: 8 | AA31: 9.628333333 | AB31: 12.2284045 | AC31: 7.02826217 | AD31: 2.95 | AE31: 7.7375 | AF31: 7.980668526 | AG31: 7.494331474 | AH31: 6.5 | AI31: 34.54333333 | AJ31: 107.5061922 | AK31: -38.41952549 | AL31: 7 | AM31: 43.52833333 | AN31: 49.68925698 | AO31: 37.36740968 | AP31: 6.5305 | AQ31: 8.112967956 | AR31: 4.948032044 | AS31: 21.31666667 | AT31: 25.22446707 | AU31: 17.40886627 | AV31: 108.1833333 | AW31: 175.2788867 | AX31: 41.08778 | AY31: 100 | AZ31: 1820.8 | BA31: 4520.360245 | BB31: -878.7602454 | BC31: 130.95 | BD31: 305.1721867 | BE31: -43.2721867 | BF31: 3911.666667 | BG31: 6215.980357 | BH31: 1607.352977 | BI31: 5000 | BL31: 41869 | CD31: 15.1 | CE31: 7.3 | CF31: 72.76847581 | CG31: 7.53 | CH31: 17 | CI31: 40.4 | CJ31: 7.7 | CK31: 22 | CL31: 160 | CM31: 420 | CN31: 47 | CO31: 3000
B32: 1 Sege å, vid Brännemölla, uppströms Svedala AR | C32: 2014-10-20 | D32: 13 | E32: 6.3 | F32: 60.00362747 | G32: 7.13 | H32: 184 | I32: 41.9 | J32: 4.1 | K32: 21 | L32: 46 | M32: 6900 | N32: 48 | O32: 8100 | P32: Högflöde, grumligt | Q32: 2014 | R32: 10 | AA32: 9.628333333 | AB32: 12.2284045 | AC32: 7.02826217 | AD32: 2.95 | AE32: 7.7375 | AF32: 7.980668526 | AG32: 7.494331474 | AH32: 6.5 | AI32: 34.54333333 | AJ32: 107.5061922 | AK32: -38.41952549 | AL32: 7 | AM32: 43.52833333 | AN32: 49.68925698 | AO32: 37.36740968 | AP32: 6.5305 | AQ32: 8.112967956 | AR32: 4.948032044 | AS32: 21.31666667 | AT32: 25.22446707 | AU32: 17.40886627 | AV32: 108.1833333 | AW32: 175.2788867 | AX32: 41.08778 | AY32: 100 | AZ32: 1820.8 | BA32: 4520.360245 | BB32: -878.7602454 | BC32: 130.95 | BD32: 305.1721867 | BE32: -43.2721867 | BF32: 3911.666667 | BG32: 6215.980357 | BH32: 1607.352977 | BI32: 5000 | BL32: 41932 | CD32: 13 | CE32: 6.3 | CF32: 60.00362747 | CG32: 7.13 | CH32: 184 | CI32: 41.9 | CJ32: 4.1 | CK32: 21 | CL32: 46 | CM32: 6900 | CN32: 48 | CO32: 8100
B33: 1 Sege å, vid Brännemölla, uppströms Svedala AR | C33: 2014-12-10 | D33: 4.1 | E33: 10.9 | F33: 83.45130802 | G33: 7.62 | H33: 520 | I33: 40.2 | J33: 6.3 | K33: 25 | L33: 440 | M33: 1900 | N33: 410 | O33: 4200 | P33: Mkt lergumligt | Q33: 2014 | R33: 12 | AA33: 9.628333333 | AB33: 12.2284045 | AC33: 7.02826217 | AD33: 2.95 | AE33: 7.7375 | AF33: 7.980668526 | AG33: 7.494331474 | AH33: 6.5 | AI33: 34.54333333 | AJ33: 107.5061922 | AK33: -38.41952549 | AL33: 7 | AM33: 43.52833333 | AN33: 49.68925698 | AO33: 37.36740968 | AP33: 6.5305 | AQ33: 8.112967956 | AR33: 4.948032044 | AS33: 21.31666667 | AT33: 25.22446707 | AU33: 17.40886627 | AV33: 108.1833333 | AW33: 175.2788867 | AX33: 41.08778 | AY33: 100 | AZ33: 1820.8 | BA33: 4520.360245 | BB33: -878.7602454 | BC33: 130.95 | BD33: 305.1721867 | BE33: -43.2721867 | BF33: 3911.666667 | BG33: 6215.980357 | BH33: 1607.352977 | BI33: 5000 | BL33: 41983 | CD33: 4.1 | CE33: 10.9 | CF33: 83.45130802 | CG33: 7.62 | CH33: 520 | CI33: 40.2 | CJ33: 6.3 | CK33: 25 | CL33: 440 | CM33: 1900 | CN33: 410 | CO33: 4200
B34: 1 Sege å, vid Brännemölla, uppströms Svedala AR | C34: 2015-02-10 | D34: 2.3 | E34: 12.7 | F34: 92.57661157 | G34: 7.79 | H34: 25 | I34: 41 | J34: 5.8 | K34: 18 | L34: 71 | M34: 1700 | N34: 480 | O34: 3900 | P34: grumligt | Q34: 2015 | R34: 2 | AA34: 9.628333333 | AB34: 12.2284045 | AC34: 7.02826217 | AD34: 2.95 | AE34: 7.7375 | AF34: 7.980668526 | AG34: 7.494331474 | AH34: 6.5 | AI34: 34.54333333 | AJ34: 107.5061922 | AK34: -38.41952549 | AL34: 7 | AM34: 43.52833333 | AN34: 49.68925698 | AO34: 37.36740968 | AP34: 6.5305 | AQ34: 8.112967956 | AR34: 4.948032044 | AS34: 21.31666667 | AT34: 25.22446707 | AU34: 17.40886627 | AV34: 108.1833333 | AW34: 175.2788867 | AX34: 41.08778 | AY34: 100 | AZ34: 1820.8 | BA34: 4520.360245 | BB34: -878.7602454 | BC34: 130.95 | BD34: 305.1721867 | BE34: -43.2721867 | BF34: 3911.666667 | BG34: 6215.980357 | BH34: 1607.352977 | BI34: 5000 | BL34: 42045 | CD34: 2.3 | CE34: 12.7 | CF34: 92.57661157 | CG34: 7.79 | CH34: 25 | CI34: 41 | CJ34: 5.8 | CK34: 18 | CL34: 71 | CM34: 1700 | CN34: 480 | CO34: 3900
B35: 1 Sege å, vid Brännemölla, uppströms Svedala AR | C35: 2015-04-13 | D35: 9.6 | E35: 11.5 | F35: 101.2511512 | G35: 8.07 | H35: 15 | I35: 42.5 | J35: 5.8 | K35: 21 | L35: 66 | M35: 1700 | N35: <10 | O35: 3300 | P35: grumligt | Q35: 2015 | R35: 4 | AA35: 9.628333333 | AB35: 12.2284045 | AC35: 7.02826217 | AD35: 2.95 | AE35: 7.7375 | AF35: 7.980668526 | AG35: 7.494331474 | AH35: 6.5 | AI35: 34.54333333 | AJ35: 107.5061922 | AK35: -38.41952549 | AL35: 7 | AM35: 43.52833333 | AN35: 49.68925698 | AO35: 37.36740968 | AP35: 6.5305 | AQ35: 8.112967956 | AR35: 4.948032044 | AS35: 21.31666667 | AT35: 25.22446707 | AU35: 17.40886627 | AV35: 108.1833333 | AW35: 175.2788867 | AX35: 41.08778 | AY35: 100 | AZ35: 1820.8 | BA35: 4520.360245 | BB35: -878.7602454 | BC35: 130.95 | BD35: 305.1721867 | BE35: -43.2721867 | BF35: 3911.666667 | BG35: 6215.980357 | BH35: 1607.352977 | BI35: 5000 | BL35: 42107 | CD35: 9.6 | CE35: 11.5 | CF35: 101.2511512 | CG35: 8.07 | CH35: 15 | CI35: 42.5 | CJ35: 5.8 | CK35: 21 | CL35: 66 | CM35: 1700 | CN35: 10 | CO35: 3300
B36: 1 Sege å, vid Brännemölla, uppströms Svedala AR | C36: 2015-06-15 | D36: 16.1 | E36: 5.7 | F36: 58.01873653 | G36: 7.54 | H36: 17 | I36: 44.5 | J36: 8.6 | K36: 21 | L36: 160 | M36: 450 | N36: 220 | O36: 3300 | P36: gröngrumligt | Q36: 2015 | R36: 6 | AA36: 9.628333333 | AB36: 12.2284045 | AC36: 7.02826217 | AD36: 2.95 | AE36: 7.7375 | AF36: 7.980668526 | AG36: 7.494331474 | AH36: 6.5 | AI36: 34.54333333 | AJ36: 107.5061922 | AK36: -38.41952549 | AL36: 7 | AM36: 43.52833333 | AN36: 49.68925698 | AO36: 37.36740968 | AP36: 6.5305 | AQ36: 8.112967956 | AR36: 4.948032044 | AS36: 21.31666667 | AT36: 25.22446707 | AU36: 17.40886627 | AV36: 108.1833333 | AW36: 175.2788867 | AX36: 41.08778 | AY36: 100 | AZ36: 1820.8 | BA36: 4520.360245 | BB36: -878.7602454 | BC36: 130.95 | BD36: 305.1721867 | BE36: -43.2721867 | BF36: 3911.666667 | BG36: 6215.980357 | BH36: 1607.352977 | BI36: 5000 | BL36: 42170 | CD36: 16.1 | CE36: 5.7 | CF36: 58.01873653 | CG36: 7.54 | CH36: 17 | CI36: 44.5 | CJ36: 8.6 | CK36: 21 | CL36: 160 | CM36: 450 | CN36: 220 | CO36: 3300
B37: 1 Sege å, vid Brännemölla, uppströms Svedala AR | C37: 2015-08-18 | D37: 17.8 | E37: 5.2 | F37: 54.77836004 | G37: 7.58 | H37: 34 | I37: 40.7 | J37: 8.1 | K37: 28 | L37: 240 | M37: 410 | N37: <10 | O37: 3700 | P37: grumligt | Q37: 2015 | R37: 8 | AA37: 9.628333333 | AB37: 12.2284045 | AC37: 7.02826217 | AD37: 2.95 | AE37: 7.7375 | AF37: 7.980668526 | AG37: 7.494331474 | AH37: 6.5 | AI37: 34.54333333 | AJ37: 107.5061922 | AK37: -38.41952549 | AL37: 7 | AM37: 43.52833333 | AN37: 49.68925698 | AO37: 37.36740968 | AP37: 6.5305 | AQ37: 8.112967956 | AR37: 4.948032044 | AS37: 21.31666667 | AT37: 25.22446707 | AU37: 17.40886627 | AV37: 108.1833333 | AW37: 175.2788867 | AX37: 41.08778 | AY37: 100 | AZ37: 1820.8 | BA37: 4520.360245 | BB37: -878.7602454 | BC37: 130.95 | BD37: 305.1721867 | BE37: -43.2721867 | BF37: 3911.666667 | BG37: 6215.980357 | BH37: 1607.352977 | BI37: 5000 | BL37: 42234 | CD37: 17.8 | CE37: 5.2 | CF37: 54.77836004 | CG37: 7.58 | CH37: 34 | CI37: 40.7 | CJ37: 8.1 | CK37: 28 | CL37: 240 | CM37: 410 | CN37: 10 | CO37: 3700
B38: 1 Sege å, vid Brännemölla, uppströms Svedala AR | C38: 2015-10-19 | D38: 9.5 | E38: 8.9 | F38: 78.17156276 | G38: 7.65 | H38: 25 | I38: 41.9 | J38: 6.2 | K38: 19 | L38: 120 | M38: 430 | N38: 19 | O38: 2900 | P38: grumligt | Q38: 2015 | R38: 10 | AA38: 9.628333333 | AB38: 12.2284045 | AC38: 7.02826217 | AD38: 2.95 | AE38: 7.7375 | AF38: 7.980668526 | AG38: 7.494331474 | AH38: 6.5 | AI38: 34.54333333 | AJ38: 107.5061922 | AK38: -38.41952549 | AL38: 7 | AM38: 43.52833333 | AN38: 49.68925698 | AO38: 37.36740968 | AP38: 6.5305 | AQ38: 8.112967956 | AR38: 4.948032044 | AS38: 21.31666667 | AT38: 25.22446707 | AU38: 17.40886627 | AV38: 108.1833333 | AW38: 175.2788867 | AX38: 41.08778 | AY38: 100 | AZ38: 1820.8 | BA38: 4520.360245 | BB38: -878.7602454 | BC38: 130.95 | BD38: 305.1721867 | BE38: -43.2721867 | BF38: 3911.666667 | BG38: 6215.980357 | BH38: 1607.352977 | BI38: 5000 | BL38: 42296 | CD38: 9.5 | CE38: 8.9 | CF38: 78.17156276 | CG38: 7.65 | CH38: 25 | CI38: 41.9 | CJ38: 6.2 | CK38: 19 | CL38: 120 | CM38: 430 | CN38: 19 | CO38: 2900
B39: 1 Sege å, vid Brännemölla, uppströms Svedala AR | C39: 2015-12-09 | D39: 6 | E39: 11 | F39: 88.53709861 | G39: 7.8 | H39: 25 | I39: 41.9 | J39: 5.4 | K39: 20 | L39: 110 | M39: 2200 | N39: 22 | O39: 4000 | P39: grumligt | Q39: 2015 | R39: 12 | AA39: 9.628333333 | AB39: 12.2284045 | AC39: 7.02826217 | AD39: 2.95 | AE39: 7.7375 | AF39: 7.980668526 | AG39: 7.494331474 | AH39: 6.5 | AI39: 34.54333333 | AJ39: 107.5061922 | AK39: -38.41952549 | AL39: 7 | AM39: 43.52833333 | AN39: 49.68925698 | AO39: 37.36740968 | AP39: 6.5305 | AQ39: 8.112967956 | AR39: 4.948032044 | AS39: 21.31666667 | AT39: 25.22446707 | AU39: 17.40886627 | AV39: 108.1833333 | AW39: 175.2788867 | AX39: 41.08778 | AY39: 100 | AZ39: 1820.8 | BA39: 4520.360245 | BB39: -878.7602454 | BC39: 130.95 | BD39: 305.1721867 | BE39: -43.2721867 | BF39: 3911.666667 | BG39: 6215.980357 | BH39: 1607.352977 | BI39: 5000 | BL39: 42347 | CD39: 6 | CE39: 11 | CF39: 88.53709861 | CG39: 7.8 | CH39: 25 | CI39: 41.9 | CJ39: 5.4 | CK39: 20 | CL39: 110 | CM39: 2200 | CN39: 22 | CO39: 4000
B40: 1 Sege å, vid Brännemölla, uppströms Svedala AR | C40: 2016-02-23 | D40: 3.8 | E40: 12.3 | F40: 93.41337215 | G40: 7.77 | H40: 20 | I40: 41.6 | J40: 4.5 | K40: 17 | L40: 70 | M40: 2700 | N40: 170 | O40: 3800 | P40: grumligt | Q40: 2016 | R40: 2 | AA40: 9.628333333 | AB40: 12.2284045 | AC40: 7.02826217 | AD40: 2.95 | AE40: 7.7375 | AF40: 7.980668526 | AG40: 7.494331474 | AH40: 6.5 | AI40: 34.54333333 | AJ40: 107.5061922 | AK40: -38.41952549 | AL40: 7 | AM40: 43.52833333 | AN40: 49.68925698 | AO40: 37.36740968 | AP40: 6.5305 | AQ40: 8.112967956 | AR40: 4.948032044 | AS40: 21.31666667 | AT40: 25.22446707 | AU40: 17.40886627 | AV40: 108.1833333 | AW40: 175.2788867 | AX40: 41.08778 | AY40: 100 | AZ40: 1820.8 | BA40: 4520.360245 | BB40: -878.7602454 | BC40: 130.95 | BD40: 305.1721867 | BE40: -43.2721867 | BF40: 3911.666667 | BG40: 6215.980357 | BH40: 1607.352977 | BI40: 5000 | BL40: 42423 | CD40: 3.8 | CE40: 12.3 | CF40: 93.41337215 | CG40: 7.77 | CH40: 20 | CI40: 41.6 | CJ40: 4.5 | CK40: 17 | CL40: 70 | CM40: 2700 | CN40: 170 | CO40: 3800
B41: 1 Sege å, vid Brännemölla, uppströms Svedala AR | C41: 2016-04-19 | D41: 8.7 | E41: 10.8 | F41: 93.03685462 | G41: 7.92 | H41: 21 | I41: 46.3 | J41: 6.6 | K41: 18 | L41: 82 | M41: 1200 | N41: <10 | O41: 3000 | P41: grumligt | Q41: 2016 | R41: 4 | AA41: 9.628333333 | AB41: 12.2284045 | AC41: 7.02826217 | AD41: 2.95 | AE41: 7.7375 | AF41: 7.980668526 | AG41: 7.494331474 | AH41: 6.5 | AI41: 34.54333333 | AJ41: 107.5061922 | AK41: -38.41952549 | AL41: 7 | AM41: 43.52833333 | AN41: 49.68925698 | AO41: 37.36740968 | AP41: 6.5305 | AQ41: 8.112967956 | AR41: 4.948032044 | AS41: 21.31666667 | AT41: 25.22446707 | AU41: 17.40886627 | AV41: 108.1833333 | AW41: 175.2788867 | AX41: 41.08778 | AY41: 100 | AZ41: 1820.8 | BA41: 4520.360245 | BB41: -878.7602454 | BC41: 130.95 | BD41: 305.1721867 | BE41: -43.2721867 | BF41: 3911.666667 | BG41: 6215.980357 | BH41: 1607.352977 | BI41: 5000 | BL41: 42479 | CD41: 8.7 | CE41: 10.8 | CF41: 93.03685462 | CG41: 7.92 | CH41: 21 | CI41: 46.3 | CJ41: 6.6 | CK41: 18 | CL41: 82 | CM41: 1200 | CN41: 10 | CO41: 3000
B42: 1 Sege å, vid Brännemölla, uppströms Svedala AR | C42: 2016-06-15 | D42: 17.3 | E42: 8 | F42: 83.4404001 | G42: 7.75 | H42: 32 | I42: 41.8 | J42: 7.2 | K42: 20 | L42: 150 | M42: 500 | N42: <10 | O42: 3300 | P42: grumligt | Q42: 2016 | R42: 6 | AA42: 9.628333333 | AB42: 12.2284045 | AC42: 7.02826217 | AD42: 2.95 | AE42: 7.7375 | AF42: 7.980668526 | AG42: 7.494331474 | AH42: 6.5 | AI42: 34.54333333 | AJ42: 107.5061922 | AK42: -38.41952549 | AL42: 7 | AM42: 43.52833333 | AN42: 49.68925698 | AO42: 37.36740968 | AP42: 6.5305 | AQ42: 8.112967956 | AR42: 4.948032044 | AS42: 21.31666667 | AT42: 25.22446707 | AU42: 17.40886627 | AV42: 108.1833333 | AW42: 175.2788867 | AX42: 41.08778 | AY42: 100 | AZ42: 1820.8 | BA42: 4520.360245 | BB42: -878.7602454 | BC42: 130.95 | BD42: 305.1721867 | BE42: -43.2721867 | BF42: 3911.666667 | BG42: 6215.980357 | BH42: 1607.352977 | BI42: 5000 | BL42: 42536 | CD42: 17.3 | CE42: 8 | CF42: 83.4404001 | CG42: 7.75 | CH42: 32 | CI42: 41.8 | CJ42: 7.2 | CK42: 20 | CL42: 150 | CM42: 500 | CN42: 10 | CO42: 3300
B43: 1 Sege å, vid Brännemölla, uppströms Svedala AR | C43: 2016-08-16 | D43: 15.6 | E43: 6.6 | F43: 66.48578727 | G43: 7.71 | H43: 26 | I43: 38.5 | J43: 7 | K43: 21 | L43: 120 | M43: 410 | N43: <10 | O43: 2600 | P43: grumligt | Q43: 2016 | R43: 8 | AA43: 9.628333333 | AB43: 12.2284045 | AC43: 7.02826217 | AD43: 2.95 | AE43: 7.7375 | AF43: 7.980668526 | AG43: 7.494331474 | AH43: 6.5 | AI43: 34.54333333 | AJ43: 107.5061922 | AK43: -38.41952549 | AL43: 7 | AM43: 43.52833333 | AN43: 49.68925698 | AO43: 37.36740968 | AP43: 6.5305 | AQ43: 8.112967956 | AR43: 4.948032044 | AS43: 21.31666667 | AT43: 25.22446707 | AU43: 17.40886627 | AV43: 108.1833333 | AW43: 175.2788867 | AX43: 41.08778 | AY43: 100 | AZ43: 1820.8 | BA43: 4520.360245 | BB43: -878.7602454 | BC43: 130.95 | BD43: 305.1721867 | BE43: -43.2721867 | BF43: 3911.666667 | BG43: 6215.980357 | BH43: 1607.352977 | BI43: 5000 | BL43: 42598 | CD43: 15.6 | CE43: 6.6 | CF43: 66.48578727 | CG43: 7.71 | CH43: 26 | CI43: 38.5 | CJ43: 7 | CK43: 21 | CL43: 120 | CM43: 410 | CN43: 10 | CO43: 2600
B44: 1 Sege å, vid Brännemölla, uppströms Svedala AR | C44: 2016-10-17 | D44: 8.7 | E44: 10.1 | F44: 87.00668812 | G44: 7.72 | H44: 24 | I44: 40.9 | J44: 5 | K44: 19 | L44: 90 | M44: 560 | N44: 55 | O44: 3100 | P44: grumligt | Q44: 2016 | R44: 10 | AA44: 9.628333333 | AB44: 12.2284045 | AC44: 7.02826217 | AD44: 2.95 | AE44: 7.7375 | AF44: 7.980668526 | AG44: 7.494331474 | AH44: 6.5 | AI44: 34.54333333 | AJ44: 107.5061922 | AK44: -38.41952549 | AL44: 7 | AM44: 43.52833333 | AN44: 49.68925698 | AO44: 37.36740968 | AP44: 6.5305 | AQ44: 8.112967956 | AR44: 4.948032044 | AS44: 21.31666667 | AT44: 25.22446707 | AU44: 17.40886627 | AV44: 108.1833333 | AW44: 175.2788867 | AX44: 41.08778 | AY44: 100 | AZ44: 1820.8 | BA44: 4520.360245 | BB44: -878.7602454 | BC44: 130.95 | BD44: 305.1721867 | BE44: -43.2721867 | BF44: 3911.666667 | BG44: 6215.980357 | BH44: 1607.352977 | BI44: 5000 | BL44: 42660 | CD44: 8.7 | CE44: 10.1 | CF44: 87.00668812 | CG44: 7.72 | CH44: 24 | CI44: 40.9 | CJ44: 5 | CK44: 19 | CL44: 90 | CM44: 560 | CN44: 55 | CO44: 3100
B45: 1 Sege å, vid Brännemölla, uppströms Svedala AR | C45: 2016-12-15 | D45: 2.1 | E45: 12.6 | F45: 91.33921409 | G45: 7.67 | H45: 15 | I45: 45.9 | J45: 5.2 | K45: 17 | L45: 50 | M45: 2600 | N45: 71 | O45: 4100 | P45: grumligt | Q45: 2016 | R45: 12 | AA45: 9.628333333 | AB45: 12.2284045 | AC45: 7.02826217 | AD45: 2.95 | AE45: 7.7375 | AF45: 7.980668526 | AG45: 7.494331474 | AH45: 6.5 | AI45: 34.54333333 | AJ45: 107.5061922 | AK45: -38.41952549 | AL45: 7 | AM45: 43.52833333 | AN45: 49.68925698 | AO45: 37.36740968 | AP45: 6.5305 | AQ45: 8.112967956 | AR45: 4.948032044 | AS45: 21.31666667 | AT45: 25.22446707 | AU45: 17.40886627 | AV45: 108.1833333 | AW45: 175.2788867 | AX45: 41.08778 | AY45: 100 | AZ45: 1820.8 | BA45: 4520.360245 | BB45: -878.7602454 | BC45: 130.95 | BD45: 305.1721867 | BE45: -43.2721867 | BF45: 3911.666667 | BG45: 6215.980357 | BH45: 1607.352977 | BI45: 5000 | BL45: 42719 | CD45: 2.1 | CE45: 12.6 | CF45: 91.33921409 | CG45: 7.67 | CH45: 15 | CI45: 45.9 | CJ45: 5.2 | CK45: 17 | CL45: 50 | CM45: 2600 | CN45: 71 | CO45: 4100
B46: 1 Sege å, vid Brännemölla, uppströms Svedala AR | C46: 2017-02-21 | D46: 4.6 | E46: 12 | F46: 93.10694695 | G46: 7.66 | H46: 15 | I46: 52.9 | J46: 3.3 | K46: 16 | L46: 54 | M46: 4500 | N46: 230 | O46: 5800 | P46: grumligt | Q46: 2017 | R46: 2 | AA46: 9.628333333 | AB46: 12.2284045 | AC46: 7.02826217 | AD46: 2.95 | AE46: 7.7375 | AF46: 7.980668526 | AG46: 7.494331474 | AH46: 6.5 | AI46: 34.54333333 | AJ46: 107.5061922 | AK46: -38.41952549 | AL46: 7 | AM46: 43.52833333 | AN46: 49.68925698 | AO46: 37.36740968 | AP46: 6.5305 | AQ46: 8.112967956 | AR46: 4.948032044 | AS46: 21.31666667 | AT46: 25.22446707 | AU46: 17.40886627 | AV46: 108.1833333 | AW46: 175.2788867 | AX46: 41.08778 | AY46: 100 | AZ46: 1820.8 | BA46: 4520.360245 | BB46: -878.7602454 | BC46: 130.95 | BD46: 305.1721867 | BE46: -43.2721867 | BF46: 3911.666667 | BG46: 6215.980357 | BH46: 1607.352977 | BI46: 5000 | BL46: 42787 | CD46: 4.6 | CE46: 12 | CF46: 93.10694695 | CG46: 7.66 | CH46: 15 | CI46: 52.9 | CJ46: 3.3 | CK46: 16 | CL46: 54 | CM46: 4500 | CN46: 230 | CO46: 5800
B47: 1 Sege å, vid Brännemölla, uppströms Svedala AR | C47: 2017-04-18 | D47: 7 | E47: 12 | F47: 99.08970254 | G47: 8.12 | H47: 20 | I47: 44.7 | J47: 9.1 | K47: 20 | L47: 68 | M47: 1800 | N47: <10 | O47: 3800 | P47: grumligt | Q47: 2017 | R47: 4 | AA47: 9.628333333 | AB47: 12.2284045 | AC47: 7.02826217 | AD47: 2.95 | AE47: 7.7375 | AF47: 7.980668526 | AG47: 7.494331474 | AH47: 6.5 | AI47: 34.54333333 | AJ47: 107.5061922 | AK47: -38.41952549 | AL47: 7 | AM47: 43.52833333 | AN47: 49.68925698 | AO47: 37.36740968 | AP47: 6.5305 | AQ47: 8.112967956 | AR47: 4.948032044 | AS47: 21.31666667 | AT47: 25.22446707 | AU47: 17.40886627 | AV47: 108.1833333 | AW47: 175.2788867 | AX47: 41.08778 | AY47: 100 | AZ47: 1820.8 | BA47: 4520.360245 | BB47: -878.7602454 | BC47: 130.95 | BD47: 305.1721867 | BE47: -43.2721867 | BF47: 3911.666667 | BG47: 6215.980357 | BH47: 1607.352977 | BI47: 5000 | BL47: 42843 | CD47: 7 | CE47: 12 | CF47: 99.08970254 | CG47: 8.12 | CH47: 20 | CI47: 44.7 | CJ47: 9.1 | CK47: 20 | CL47: 68 | CM47: 1800 | CN47: 10 | CO47: 3800
B48: 1 Sege å, vid Brännemölla, uppströms Svedala AR | C48: 2017-06-21 | D48: 18.5 | E48: 6.3 | F48: 67.28222142 | G48: 7.81 | H48: 28 | I48: 40.7 | J48: 7.6 | K48: 23 | L48: 140 | M48: 270 | N48: 32 | O48: 2800 | P48: grumligt | Q48: 2017 | R48: 6 | AA48: 9.628333333 | AB48: 12.2284045 | AC48: 7.02826217 | AD48: 2.95 | AE48: 7.7375 | AF48: 7.980668526 | AG48: 7.494331474 | AH48: 6.5 | AI48: 34.54333333 | AJ48: 107.5061922 | AK48: -38.41952549 | AL48: 7 | AM48: 43.52833333 | AN48: 49.68925698 | AO48: 37.36740968 | AP48: 6.5305 | AQ48: 8.112967956 | AR48: 4.948032044 | AS48: 21.31666667 | AT48: 25.22446707 | AU48: 17.40886627 | AV48: 108.1833333 | AW48: 175.2788867 | AX48: 41.08778 | AY48: 100 | AZ48: 1820.8 | BA48: 4520.360245 | BB48: -878.7602454 | BC48: 130.95 | BD48: 305.1721867 | BE48: -43.2721867 | BF48: 3911.666667 | BG48: 6215.980357 | BH48: 1607.352977 | BI48: 5000 | BL48: 42907 | CD48: 18.5 | CE48: 6.3 | CF48: 67.28222142 | CG48: 7.81 | CH48: 28 | CI48: 40.7 | CJ48: 7.6 | CK48: 23 | CL48: 140 | CM48: 270 | CN48: 32 | CO48: 2800
B49: 1 Sege å, vid Brännemölla, uppströms Svedala AR | C49: 2017-08-22 | D49: 17.5 | E49: 7.4 | F49: 77.49121629 | G49: 7.75 | H49: 19 | I49: 40.4 | J49: 6.05 | K49: 24 | L49: 100 | M49: 370 | N49: <10 | O49: 2900 | Q49: 2017 | R49: 8 | AA49: 9.628333333 | AB49: 12.2284045 | AC49: 7.02826217 | AD49: 2.95 | AE49: 7.7375 | AF49: 7.980668526 | AG49: 7.494331474 | AH49: 6.5 | AI49: 34.54333333 | AJ49: 107.5061922 | AK49: -38.41952549 | AL49: 7 | AM49: 43.52833333 | AN49: 49.68925698 | AO49: 37.36740968 | AP49: 6.5305 | AQ49: 8.112967956 | AR49: 4.948032044 | AS49: 21.31666667 | AT49: 25.22446707 | AU49: 17.40886627 | AV49: 108.1833333 | AW49: 175.2788867 | AX49: 41.08778 | AY49: 100 | AZ49: 1820.8 | BA49: 4520.360245 | BB49: -878.7602454 | BC49: 130.95 | BD49: 305.1721867 | BE49: -43.2721867 | BF49: 3911.666667 | BG49: 6215.980357 | BH49: 1607.352977 | BI49: 5000 | BL49: 42969 | CD49: 17.5 | CE49: 7.4 | CF49: 77.49121629 | CG49: 7.75 | CH49: 19 | CI49: 40.4 | CJ49: 6.05 | CK49: 24 | CL49: 100 | CM49: 370 | CN49: 10 | CO49: 2900
B50: 1 Sege å, vid Brännemölla, uppströms Svedala AR | C50: 2017-10-17 | D50: 12.5 | E50: 9.6 | F50: 90.41731969 | G50: 7.81 | H50: 22 | I50: 41 | J50: 7.1 | K50: 23 | L50: 70 | M50: 760 | N50: <10 | O50: 3100 | P50: grumligt | Q50: 2017 | R50: 10 | AA50: 9.628333333 | AB50: 12.2284045 | AC50: 7.02826217 | AD50: 2.95 | AE50: 7.7375 | AF50: 7.980668526 | AG50: 7.494331474 | AH50: 6.5 | AI50: 34.54333333 | AJ50: 107.5061922 | AK50: -38.41952549 | AL50: 7 | AM50: 43.52833333 | AN50: 49.68925698 | AO50: 37.36740968 | AP50: 6.5305 | AQ50: 8.112967956 | AR50: 4.948032044 | AS50: 21.31666667 | AT50: 25.22446707 | AU50: 17.40886627 | AV50: 108.1833333 | AW50: 175.2788867 | AX50: 41.08778 | AY50: 100 | AZ50: 1820.8 | BA50: 4520.360245 | BB50: -878.7602454 | BC50: 130.95 | BD50: 305.1721867 | BE50: -43.2721867 | BF50: 3911.666667 | BG50: 6215.980357 | BH50: 1607.352977 | BI50: 5000 | BL50: 43025 | CD50: 12.5 | CE50: 9.6 | CF50: 90.41731969 | CG50: 7.81 | CH50: 22 | CI50: 41 | CJ50: 7.1 | CK50: 23 | CL50: 70 | CM50: 760 | CN50: 10 | CO50: 3100
B51: 1 Sege å, vid Brännemölla, uppströms Svedala AR | C51: 2017-12-19 | D51: 2 | E51: 12.7 | F51: 91.80827211 | G51: 7.78 | H51: 17 | I51: 42.4 | J51: 5.2 | K51: 21 | L51: 72 | M51: 1600 | N51: 160 | O51: 3200 | P51: högflöde | Q51: 2017 | R51: 12 | AA51: 9.628333333 | AB51: 12.2284045 | AC51: 7.02826217 | AD51: 2.95 | AE51: 7.7375 | AF51: 7.980668526 | AG51: 7.494331474 | AH51: 6.5 | AI51: 34.54333333 | AJ51: 107.5061922 | AK51: -38.41952549 | AL51: 7 | AM51: 43.52833333 | AN51: 49.68925698 | AO51: 37.36740968 | AP51: 6.5305 | AQ51: 8.112967956 | AR51: 4.948032044 | AS51: 21.31666667 | AT51: 25.22446707 | AU51: 17.40886627 | AV51: 108.1833333 | AW51: 175.2788867 | AX51: 41.08778 | AY51: 100 | AZ51: 1820.8 | BA51: 4520.360245 | BB51: -878.7602454 | BC51: 130.95 | BD51: 305.1721867 | BE51: -43.2721867 | BF51: 3911.666667 | BG51: 6215.980357 | BH51: 1607.352977 | BI51: 5000 | BL51: 43088 | CD51: 2 | CE51: 12.7 | CF51: 91.80827211 | CG51: 7.78 | CH51: 17 | CI51: 42.4 | CJ51: 5.2 | CK51: 21 | CL51: 72 | CM51: 1600 | CN51: 160 | CO51: 3200
B52: 1 Sege å, vid Brännemölla, uppströms Svedala AR | C52: 2018-02-19 | D52: 2.5 | E52: 13.3 | F52: 97.48806432 | G52: 7.84 | H52: 12 | I52: 44.1 | J52: 5.1 | K52: 18 | L52: 53 | M52: 1700 | N52: 310 | O52: 3100 | Q52: 2018 | R52: 2 | AA52: 9.628333333 | AB52: 12.2284045 | AC52: 7.02826217 | AD52: 2.95 | AE52: 7.7375 | AF52: 7.980668526 | AG52: 7.494331474 | AH52: 6.5 | AI52: 34.54333333 | AJ52: 107.5061922 | AK52: -38.41952549 | AL52: 7 | AM52: 43.52833333 | AN52: 49.68925698 | AO52: 37.36740968 | AP52: 6.5305 | AQ52: 8.112967956 | AR52: 4.948032044 | AS52: 21.31666667 | AT52: 25.22446707 | AU52: 17.40886627 | AV52: 108.1833333 | AW52: 175.2788867 | AX52: 41.08778 | AY52: 100 | AZ52: 1820.8 | BA52: 4520.360245 | BB52: -878.7602454 | BC52: 130.95 | BD52: 305.1721867 | BE52: -43.2721867 | BF52: 3911.666667 | BG52: 6215.980357 | BH52: 1607.352977 | BI52: 5000 | BL52: 43150 | CD52: 2.5 | CE52: 13.3 | CF52: 97.48806432 | CG52: 7.84 | CH52: 12 | CI52: 44.1 | CJ52: 5.1 | CK52: 18 | CL52: 53 | CM52: 1700 | CN52: 310 | CO52: 3100
B53: 1 Sege å, vid Brännemölla, uppströms Svedala AR | C53: 2018-04-16 | D53: 10.6 | E53: 11.7 | F53: 105.4867193 | G53: 7.83 | H53: 19 | I53: 43.1 | J53: 6.7 | K53: 17 | L53: 54 | M53: 1400 | N53: 98 | O53: 3000 | P53: grumligt | Q53: 2018 | R53: 4 | AA53: 9.628333333 | AB53: 12.2284045 | AC53: 7.02826217 | AD53: 2.95 | AE53: 7.7375 | AF53: 7.980668526 | AG53: 7.494331474 | AH53: 6.5 | AI53: 34.54333333 | AJ53: 107.5061922 | AK53: -38.41952549 | AL53: 7 | AM53: 43.52833333 | AN53: 49.68925698 | AO53: 37.36740968 | AP53: 6.5305 | AQ53: 8.112967956 | AR53: 4.948032044 | AS53: 21.31666667 | AT53: 25.22446707 | AU53: 17.40886627 | AV53: 108.1833333 | AW53: 175.2788867 | AX53: 41.08778 | AY53: 100 | AZ53: 1820.8 | BA53: 4520.360245 | BB53: -878.7602454 | BC53: 130.95 | BD53: 305.1721867 | BE53: -43.2721867 | BF53: 3911.666667 | BG53: 6215.980357 | BH53: 1607.352977 | BI53: 5000 | BL53: 43206 | CD53: 10.6 | CE53: 11.7 | CF53: 105.4867193 | CG53: 7.83 | CH53: 19 | CI53: 43.1 | CJ53: 6.7 | CK53: 17 | CL53: 54 | CM53: 1400 | CN53: 98 | CO53: 3000
B54: 1 Sege å, vid Brännemölla, uppströms Svedala AR | C54: 2018-06-20 | D54: 18.1 | E54: 9.1 | F54: 96.42998073 | G54: 7.83 | H54: 17 | I54: 41.2 | J54: 5.5 | K54: 19 | L54: 130 | M54: 1100 | N54: <10 | O54: 2800 | P54: grumligt | Q54: 2018 | R54: 6 | AA54: 9.628333333 | AB54: 12.2284045 | AC54: 7.02826217 | AD54: 2.95 | AE54: 7.7375 | AF54: 7.980668526 | AG54: 7.494331474 | AH54: 6.5 | AI54: 34.54333333 | AJ54: 107.5061922 | AK54: -38.41952549 | AL54: 7 | AM54: 43.52833333 | AN54: 49.68925698 | AO54: 37.36740968 | AP54: 6.5305 | AQ54: 8.112967956 | AR54: 4.948032044 | AS54: 21.31666667 | AT54: 25.22446707 | AU54: 17.40886627 | AV54: 108.1833333 | AW54: 175.2788867 | AX54: 41.08778 | AY54: 100 | AZ54: 1820.8 | BA54: 4520.360245 | BB54: -878.7602454 | BC54: 130.95 | BD54: 305.1721867 | BE54: -43.2721867 | BF54: 3911.666667 | BG54: 6215.980357 | BH54: 1607.352977 | BI54: 5000 | BL54: 43271 | CD54: 18.1 | CE54: 9.1 | CF54: 96.42998073 | CG54: 7.83 | CH54: 17 | CI54: 41.2 | CJ54: 5.5 | CK54: 19 | CL54: 130 | CM54: 1100 | CN54: 10 | CO54: 2800
B55: 1 Sege å, vid Brännemölla, uppströms Svedala AR | C55: 2018-08-17 | D55: 19.9 | E55: 6.8 | F55: 74.58534558 | G55: 7.7 | H55: 14 | I55: 36.3 | J55: 7.8 | K55: 24 | L55: 120 | M55: 940 | N55: 27 | O55: 3000 | Q55: 2018 | R55: 8 | AA55: 9.628333333 | AB55: 12.2284045 | AC55: 7.02826217 | AD55: 2.95 | AE55: 7.7375 | AF55: 7.980668526 | AG55: 7.494331474 | AH55: 6.5 | AI55: 34.54333333 | AJ55: 107.5061922 | AK55: -38.41952549 | AL55: 7 | AM55: 43.52833333 | AN55: 49.68925698 | AO55: 37.36740968 | AP55: 6.5305 | AQ55: 8.112967956 | AR55: 4.948032044 | AS55: 21.31666667 | AT55: 25.22446707 | AU55: 17.40886627 | AV55: 108.1833333 | AW55: 175.2788867 | AX55: 41.08778 | AY55: 100 | AZ55: 1820.8 | BA55: 4520.360245 | BB55: -878.7602454 | BC55: 130.95 | BD55: 305.1721867 | BE55: -43.2721867 | BF55: 3911.666667 | BG55: 6215.980357 | BH55: 1607.352977 | BI55: 5000 | BL55: 43329 | CD55: 19.9 | CE55: 6.8 | CF55: 74.58534558 | CG55: 7.7 | CH55: 14 | CI55: 36.3 | CJ55: 7.8 | CK55: 24 | CL55: 120 | CM55: 940 | CN55: 27 | CO55: 3000
B56: 1 Sege å, vid Brännemölla, uppströms Svedala AR | C56: 2018-10-16 | D56: 10.5 | E56: 6.1 | F56: 54.86822369 | G56: 7.68 | H56: 12 | I56: 46.3 | J56: 6.2 | K56: 20 | L56: 95 | M56: 1500 | N56: <10 | O56: 3100 | Q56: 2018 | R56: 10 | AA56: 9.628333333 | AB56: 12.2284045 | AC56: 7.02826217 | AD56: 2.95 | AE56: 7.7375 | AF56: 7.980668526 | AG56: 7.494331474 | AH56: 6.5 | AI56: 34.54333333 | AJ56: 107.5061922 | AK56: -38.41952549 | AL56: 7 | AM56: 43.52833333 | AN56: 49.68925698 | AO56: 37.36740968 | AP56: 6.5305 | AQ56: 8.112967956 | AR56: 4.948032044 | AS56: 21.31666667 | AT56: 25.22446707 | AU56: 17.40886627 | AV56: 108.1833333 | AW56: 175.2788867 | AX56: 41.08778 | AY56: 100 | AZ56: 1820.8 | BA56: 4520.360245 | BB56: -878.7602454 | BC56: 130.95 | BD56: 305.1721867 | BE56: -43.2721867 | BF56: 3911.666667 | BG56: 6215.980357 | BH56: 1607.352977 | BI56: 5000 | BL56: 43389 | CD56: 10.5 | CE56: 6.1 | CF56: 54.86822369 | CG56: 7.68 | CH56: 12 | CI56: 46.3 | CJ56: 6.2 | CK56: 20 | CL56: 95 | CM56: 1500 | CN56: 10 | CO56: 3100
B57: 1 Sege å, vid Brännemölla, uppströms Svedala AR | C57: 2018-12-11 | D57: 5.4 | E57: 10.4 | F57: 82.41208314 | G57: 7.51 | H57: 3.2 | I57: 80.6 | J57: 2.1 | K57: 15 | L57: 51 | M57: 19000 | N57: 140 | O57: 19000 | P57: klart vatten | Q57: 2018 | R57: 12 | AA57: 9.628333333 | AB57: 12.2284045 | AC57: 7.02826217 | AD57: 2.95 | AE57: 7.7375 | AF57: 7.980668526 | AG57: 7.494331474 | AH57: 6.5 | AI57: 34.54333333 | AJ57: 107.5061922 | AK57: -38.41952549 | AL57: 7 | AM57: 43.52833333 | AN57: 49.68925698 | AO57: 37.36740968 | AP57: 6.5305 | AQ57: 8.112967956 | AR57: 4.948032044 | AS57: 21.31666667 | AT57: 25.22446707 | AU57: 17.40886627 | AV57: 108.1833333 | AW57: 175.2788867 | AX57: 41.08778 | AY57: 100 | AZ57: 1820.8 | BA57: 4520.360245 | BB57: -878.7602454 | BC57: 130.95 | BD57: 305.1721867 | BE57: -43.2721867 | BF57: 3911.666667 | BG57: 6215.980357 | BH57: 1607.352977 | BI57: 5000 | BL57: 43445 | CD57: 5.4 | CE57: 10.4 | CF57: 82.41208314 | CG57: 7.51 | CH57: 3.2 | CI57: 80.6 | CJ57: 2.1 | CK57: 15 | CL57: 51 | CM57: 19000 | CN57: 140 | CO57: 19000
B58: 1 Sege å, vid Brännemölla, uppströms Svedala AR | C58: 2019-02-20 | D58: 4.8 | E58: 11.9 | F58: 93 | G58: 7.73 | H58: 15 | I58: 47.5 | J58: 5.3 | K58: 23 | L58: 64 | M58: 4600 | N58: 79 | O58: 6100 | Q58: 2019 | R58: 2 | AA58: 9.628333333 | AB58: 12.2284045 | AC58: 7.02826217 | AD58: 2.95 | AE58: 7.7375 | AF58: 7.980668526 | AG58: 7.494331474 | AH58: 6.5 | AI58: 34.54333333 | AJ58: 107.5061922 | AK58: -38.41952549 | AL58: 7 | AM58: 43.52833333 | AN58: 49.68925698 | AO58: 37.36740968 | AP58: 6.5305 | AQ58: 8.112967956 | AR58: 4.948032044 | AS58: 21.31666667 | AT58: 25.22446707 | AU58: 17.40886627 | AV58: 108.1833333 | AW58: 175.2788867 | AX58: 41.08778 | AY58: 100 | AZ58: 1820.8 | BA58: 4520.360245 | BB58: -878.7602454 | BC58: 130.95 | BD58: 305.1721867 | BE58: -43.2721867 | BF58: 3911.666667 | BG58: 6215.980357 | BH58: 1607.352977 | BI58: 5000 | BL58: 43516 | CD58: 4.8 | CE58: 11.9 | CF58: 93 | CG58: 7.73 | CH58: 15 | CI58: 47.5 | CJ58: 5.3 | CK58: 23 | CL58: 64 | CM58: 4600 | CN58: 79 | CO58: 6100
B59: 1 Sege å, vid Brännemölla, uppströms Svedala AR | C59: 2019-04-16 | D59: 7.3 | E59: 12.2 | F59: 102 | G59: 8.18 | H59: 19 | I59: 44.8 | J59: 7.7 | K59: 21 | L59: 20 | M59: 2300 | N59: <10 | O59: 3100 | Q59: 2019 | R59: 4 | AA59: 9.628333333 | AB59: 12.2284045 | AC59: 7.02826217 | AD59: 2.95 | AE59: 7.7375 | AF59: 7.980668526 | AG59: 7.494331474 | AH59: 6.5 | AI59: 34.54333333 | AJ59: 107.5061922 | AK59: -38.41952549 | AL59: 7 | AM59: 43.52833333 | AN59: 49.68925698 | AO59: 37.36740968 | AP59: 6.5305 | AQ59: 8.112967956 | AR59: 4.948032044 | AS59: 21.31666667 | AT59: 25.22446707 | AU59: 17.40886627 | AV59: 108.1833333 | AW59: 175.2788867 | AX59: 41.08778 | AY59: 100 | AZ59: 1820.8 | BA59: 4520.360245 | BB59: -878.7602454 | BC59: 130.95 | BD59: 305.1721867 | BE59: -43.2721867 | BF59: 3911.666667 | BG59: 6215.980357 | BH59: 1607.352977 | BI59: 5000 | BL59: 43571 | CD59: 7.3 | CE59: 12.2 | CF59: 102 | CG59: 8.18 | CH59: 19 | CI59: 44.8 | CJ59: 7.7 | CK59: 21 | CL59: 20 | CM59: 2300 | CN59: 10 | CO59: 3100
B60: 1 Sege å, vid Brännemölla, uppströms Svedala AR | C60: 2019-06-18 | D60: 18.2 | E60: 6 | F60: 64 | G60: 7.71 | H60: 16 | I60: 40.5 | J60: 9 | K60: 20 | L60: 110 | M60: 700 | N60: 28 | O60: 3100 | Q60: 2019 | R60: 6 | AA60: 9.628333333 | AB60: 12.2284045 | AC60: 7.02826217 | AD60: 2.95 | AE60: 7.7375 | AF60: 7.980668526 | AG60: 7.494331474 | AH60: 6.5 | AI60: 34.54333333 | AJ60: 107.5061922 | AK60: -38.41952549 | AL60: 7 | AM60: 43.52833333 | AN60: 49.68925698 | AO60: 37.36740968 | AP60: 6.5305 | AQ60: 8.112967956 | AR60: 4.948032044 | AS60: 21.31666667 | AT60: 25.22446707 | AU60: 17.40886627 | AV60: 108.1833333 | AW60: 175.2788867 | AX60: 41.08778 | AY60: 100 | AZ60: 1820.8 | BA60: 4520.360245 | BB60: -878.7602454 | BC60: 130.95 | BD60: 305.1721867 | BE60: -43.2721867 | BF60: 3911.666667 | BG60: 6215.980357 | BH60: 1607.352977 | BI60: 5000 | BL60: 43634 | CD60: 18.2 | CE60: 6 | CF60: 64 | CG60: 7.71 | CH60: 16 | CI60: 40.5 | CJ60: 9 | CK60: 20 | CL60: 110 | CM60: 700 | CN60: 28 | CO60: 3100
B61: 1 Sege å, vid Brännemölla, uppströms Svedala AR | C61: 2019-08-20 | D61: 16.7 | E61: 5.7 | F61: 59 | G61: 7.4 | H61: 13 | I61: 40.5 | J61: 7.7 | K61: 28 | L61: 120 | M61: 520 | N61: 12 | O61: 3200 | Q61: 2019 | R61: 8 | AA61: 9.628333333 | AB61: 12.2284045 | AC61: 7.02826217 | AD61: 2.95 | AE61: 7.7375 | AF61: 7.980668526 | AG61: 7.494331474 | AH61: 6.5 | AI61: 34.54333333 | AJ61: 107.5061922 | AK61: -38.41952549 | AL61: 7 | AM61: 43.52833333 | AN61: 49.68925698 | AO61: 37.36740968 | AP61: 6.5305 | AQ61: 8.112967956 | AR61: 4.948032044 | AS61: 21.31666667 | AT61: 25.22446707 | AU61: 17.40886627 | AV61: 108.1833333 | AW61: 175.2788867 | AX61: 41.08778 | AY61: 100 | AZ61: 1820.8 | BA61: 4520.360245 | BB61: -878.7602454 | BC61: 130.95 | BD61: 305.1721867 | BE61: -43.2721867 | BF61: 3911.666667 | BG61: 6215.980357 | BH61: 1607.352977 | BI61: 5000 | BL61: 43697 | CD61: 16.7 | CE61: 5.7 | CF61: 59 | CG61: 7.4 | CH61: 13 | CI61: 40.5 | CJ61: 7.7 | CK61: 28 | CL61: 120 | CM61: 520 | CN61: 12 | CO61: 3200
B62: 1 Sege å, vid Brännemölla, uppströms Svedala AR | C62: 2019-10-16 | D62: 11.6 | E62: 6.6 | F62: 61 | G62: 7.51 | H62: 24 | I62: 49.5 | J62: 7.1 | K62: 24 | L62: 110 | M62: 2000 | N62: <10 | O62: 5000 | Q62: 2019 | R62: 10 | AA62: 9.628333333 | AB62: 12.2284045 | AC62: 7.02826217 | AD62: 2.95 | AE62: 7.7375 | AF62: 7.980668526 | AG62: 7.494331474 | AH62: 6.5 | AI62: 34.54333333 | AJ62: 107.5061922 | AK62: -38.41952549 | AL62: 7 | AM62: 43.52833333 | AN62: 49.68925698 | AO62: 37.36740968 | AP62: 6.5305 | AQ62: 8.112967956 | AR62: 4.948032044 | AS62: 21.31666667 | AT62: 25.22446707 | AU62: 17.40886627 | AV62: 108.1833333 | AW62: 175.2788867 | AX62: 41.08778 | AY62: 100 | AZ62: 1820.8 | BA62: 4520.360245 | BB62: -878.7602454 | BC62: 130.95 | BD62: 305.1721867 | BE62: -43.2721867 | BF62: 3911.666667 | BG62: 6215.980357 | BH62: 1607.352977 | BI62: 5000 | BL62: 43754 | CD62: 11.6 | CE62: 6.6 | CF62: 61 | CG62: 7.51 | CH62: 24 | CI62: 49.5 | CJ62: 7.1 | CK62: 24 | CL62: 110 | CM62: 2000 | CN62: 10 | CO62: 5000
B63: 1 Sege å, vid Brännemölla, uppströms Svedala AR | C63: 2019-12-11 | D63: 4.7 | E63: 11 | F63: 86 | G63: 7.68 | H63: 236 | I63: 43.3 | J63: 8.3 | K63: 24 | L63: 310 | M63: 4100 | N63: 170 | O63: 6800 | P63: grumligt | Q63: 2019 | R63: 12 | AA63: 9.628333333 | AB63: 12.2284045 | AC63: 7.02826217 | AD63: 2.95 | AE63: 7.7375 | AF63: 7.980668526 | AG63: 7.494331474 | AH63: 6.5 | AI63: 34.54333333 | AJ63: 107.5061922 | AK63: -38.41952549 | AL63: 7 | AM63: 43.52833333 | AN63: 49.68925698 | AO63: 37.36740968 | AP63: 6.5305 | AQ63: 8.112967956 | AR63: 4.948032044 | AS63: 21.31666667 | AT63: 25.22446707 | AU63: 17.40886627 | AV63: 108.1833333 | AW63: 175.2788867 | AX63: 41.08778 | AY63: 100 | AZ63: 1820.8 | BA63: 4520.360245 | BB63: -878.7602454 | BC63: 130.95 | BD63: 305.1721867 | BE63: -43.2721867 | BF63: 3911.666667 | BG63: 6215.980357 | BH63: 1607.352977 | BI63: 5000 | BL63: 43810 | CD63: 4.7 | CE63: 11 | CF63: 86 | CG63: 7.68 | CH63: 236 | CI63: 43.3 | CJ63: 8.3 | CK63: 24 | CL63: 310 | CM63: 4100 | CN63: 170 | CO63: 6800
B64: 1 Sege å, vid Brännemölla, uppströms Svedala AR | C64: 2020-02-12 | D64: 4.1 | E64: 12 | F64: 92 | G64: 7.82 | H64: 31 | I64: 45.9 | J64: 6.8 | K64: 23 | L64: 110 | M64: 2900 | N64: 270 | O64: 4900 | P64: grumligt | Q64: 2020 | R64: 2 | AA64: 9.628333333 | AB64: 12.2284045 | AC64: 7.02826217 | AD64: 2.95 | AE64: 7.7375 | AF64: 7.980668526 | AG64: 7.494331474 | AH64: 6.5 | AI64: 34.54333333 | AJ64: 107.5061922 | AK64: -38.41952549 | AL64: 7 | AM64: 43.52833333 | AN64: 49.68925698 | AO64: 37.36740968 | AP64: 6.5305 | AQ64: 8.112967956 | AR64: 4.948032044 | AS64: 21.31666667 | AT64: 25.22446707 | AU64: 17.40886627 | AV64: 108.1833333 | AW64: 175.2788867 | AX64: 41.08778 | AY64: 100 | AZ64: 1820.8 | BA64: 4520.360245 | BB64: -878.7602454 | BC64: 130.95 | BD64: 305.1721867 | BE64: -43.2721867 | BF64: 3911.666667 | BG64: 6215.980357 | BH64: 1607.352977 | BI64: 5000 | BL64: 43873 | CD64: 4.1 | CE64: 12 | CF64: 92 | CG64: 7.82 | CH64: 31 | CI64: 45.9 | CJ64: 6.8 | CK64: 23 | CL64: 110 | CM64: 2900 | CN64: 270 | CO64: 4900
B65: 1 Sege å, vid Brännemölla, uppströms Svedala AR | C65: 2020-04-20 | D65: 9.9 | E65: 11 | F65: 98 | G65: 7.87 | H65: 21 | I65: 48 | J65: 8.3 | K65: 24 | L65: 98 | M65: 1200 | N65: <10 | O65: 3000 | Q65: 2020 | R65: 4 | AA65: 9.628333333 | AB65: 12.2284045 | AC65: 7.02826217 | AD65: 2.95 | AE65: 7.7375 | AF65: 7.980668526 | AG65: 7.494331474 | AH65: 6.5 | AI65: 34.54333333 | AJ65: 107.5061922 | AK65: -38.41952549 | AL65: 7 | AM65: 43.52833333 | AN65: 49.68925698 | AO65: 37.36740968 | AP65: 6.5305 | AQ65: 8.112967956 | AR65: 4.948032044 | AS65: 21.31666667 | AT65: 25.22446707 | AU65: 17.40886627 | AV65: 108.1833333 | AW65: 175.2788867 | AX65: 41.08778 | AY65: 100 | AZ65: 1820.8 | BA65: 4520.360245 | BB65: -878.7602454 | BC65: 130.95 | BD65: 305.1721867 | BE65: -43.2721867 | BF65: 3911.666667 | BG65: 6215.980357 | BH65: 1607.352977 | BI65: 5000 | BL65: 43941 | CD65: 9.9 | CE65: 11 | CF65: 98 | CG65: 7.87 | CH65: 21 | CI65: 48 | CJ65: 8.3 | CK65: 24 | CL65: 98 | CM65: 1200 | CN65: 10 | CO65: 3000
B66: 1 Sege å, vid Brännemölla, uppströms Svedala AR | C66: 2020-06-15 | D66: 17.3 | E66: 6.8 | F66: 71 | G66: 7.72 | H66: 29 | I66: 45 | J66: 8.4 | K66: 29 | L66: 140 | M66: 640 | N66: <10 | O66: 3300 | P66: grumligt | Q66: 2020 | R66: 6 | AA66: 9.628333333 | AB66: 12.2284045 | AC66: 7.02826217 | AD66: 2.95 | AE66: 7.7375 | AF66: 7.980668526 | AG66: 7.494331474 | AH66: 6.5 | AI66: 34.54333333 | AJ66: 107.5061922 | AK66: -38.41952549 | AL66: 7 | AM66: 43.52833333 | AN66: 49.68925698 | AO66: 37.36740968 | AP66: 6.5305 | AQ66: 8.112967956 | AR66: 4.948032044 | AS66: 21.31666667 | AT66: 25.22446707 | AU66: 17.40886627 | AV66: 108.1833333 | AW66: 175.2788867 | AX66: 41.08778 | AY66: 100 | AZ66: 1820.8 | BA66: 4520.360245 | BB66: -878.7602454 | BC66: 130.95 | BD66: 305.1721867 | BE66: -43.2721867 | BF66: 3911.666667 | BG66: 6215.980357 | BH66: 1607.352977 | BI66: 5000 | BL66: 43997 | CD66: 17.3 | CE66: 6.8 | CF66: 71 | CG66: 7.72 | CH66: 29 | CI66: 45 | CJ66: 8.4 | CK66: 29 | CL66: 140 | CM66: 640 | CN66: 10 | CO66: 3300
B67: 1 Sege å, vid Brännemölla, uppströms Svedala AR | C67: 2020-08-18 | D67: 20.4 | E67: 3.7 | F67: 41 | G67: 7.34 | H67: 14 | I67: 42.6 | J67: 6.9 | K67: 26 | L67: 130 | M67: 720 | N67: 120 | O67: 3600 | P67: grumligt | Q67: 2020 | R67: 8 | AA67: 9.628333333 | AB67: 12.2284045 | AC67: 7.02826217 | AD67: 2.95 | AE67: 7.7375 | AF67: 7.980668526 | AG67: 7.494331474 | AH67: 6.5 | AI67: 34.54333333 | AJ67: 107.5061922 | AK67: -38.41952549 | AL67: 7 | AM67: 43.52833333 | AN67: 49.68925698 | AO67: 37.36740968 | AP67: 6.5305 | AQ67: 8.112967956 | AR67: 4.948032044 | AS67: 21.31666667 | AT67: 25.22446707 | AU67: 17.40886627 | AV67: 108.1833333 | AW67: 175.2788867 | AX67: 41.08778 | AY67: 100 | AZ67: 1820.8 | BA67: 4520.360245 | BB67: -878.7602454 | BC67: 130.95 | BD67: 305.1721867 | BE67: -43.2721867 | BF67: 3911.666667 | BG67: 6215.980357 | BH67: 1607.352977 | BI67: 5000 | BL67: 44061 | CD67: 20.4 | CE67: 3.7 | CF67: 41 | CG67: 7.34 | CH67: 14 | CI67: 42.6 | CJ67: 6.9 | CK67: 26 | CL67: 130 | CM67: 720 | CN67: 120 | CO67: 3600
B68: 1 Sege å, vid Brännemölla, uppströms Svedala AR | C68: 2020-10-19 | D68: 7.2 | E68: 9.4 | F68: 78 | G68: 7.74 | H68: 16 | I68: 44.9 | J68: 5.2 | K68: 23 | L68: 98 | M68: 820 | N68: <10 | O68: 3300 | P68: grumligt | Q68: 2020 | R68: 10 | AA68: 9.628333333 | AB68: 12.2284045 | AC68: 7.02826217 | AD68: 2.95 | AE68: 7.7375 | AF68: 7.980668526 | AG68: 7.494331474 | AH68: 6.5 | AI68: 34.54333333 | AJ68: 107.5061922 | AK68: -38.41952549 | AL68: 7 | AM68: 43.52833333 | AN68: 49.68925698 | AO68: 37.36740968 | AP68: 6.5305 | AQ68: 8.112967956 | AR68: 4.948032044 | AS68: 21.31666667 | AT68: 25.22446707 | AU68: 17.40886627 | AV68: 108.1833333 | AW68: 175.2788867 | AX68: 41.08778 | AY68: 100 | AZ68: 1820.8 | BA68: 4520.360245 | BB68: -878.7602454 | BC68: 130.95 | BD68: 305.1721867 | BE68: -43.2721867 | BF68: 3911.666667 | BG68: 6215.980357 | BH68: 1607.352977 | BI68: 5000 | BL68: 44123 | CD68: 7.2 | CE68: 9.4 | CF68: 78 | CG68: 7.74 | CH68: 16 | CI68: 44.9 | CJ68: 5.2 | CK68: 23 | CL68: 98 | CM68: 820 | CN68: 10 | CO68: 3300
B69: 1 Sege å, vid Brännemölla, uppströms Svedala AR | C69: 2020-12-14 | D69: 4.4 | E69: 10.3 | F69: 79 | G69: 7.66 | H69: 13 | I69: 54.6 | J69: 5.5 | K69: 22 | L69: 94 | M69: 1700 | N69: 200 | O69: 3700 | P69: grumligt | Q69: 2020 | R69: 12 | AA69: 9.628333333 | AB69: 12.2284045 | AC69: 7.02826217 | AD69: 2.95 | AE69: 7.7375 | AF69: 7.980668526 | AG69: 7.494331474 | AH69: 6.5 | AI69: 34.54333333 | AJ69: 107.5061922 | AK69: -38.41952549 | AL69: 7 | AM69: 43.52833333 | AN69: 49.68925698 | AO69: 37.36740968 | AP69: 6.5305 | AQ69: 8.112967956 | AR69: 4.948032044 | AS69: 21.31666667 | AT69: 25.22446707 | AU69: 17.40886627 | AV69: 108.1833333 | AW69: 175.2788867 | AX69: 41.08778 | AY69: 100 | AZ69: 1820.8 | BA69: 4520.360245 | BB69: -878.7602454 | BC69: 130.95 | BD69: 305.1721867 | BE69: -43.2721867 | BF69: 3911.666667 | BG69: 6215.980357 | BH69: 1607.352977 | BI69: 5000 | BL69: 44179 | CD69: 4.4 | CE69: 10.3 | CF69: 79 | CG69: 7.66 | CH69: 13 | CI69: 54.6 | CJ69: 5.5 | CK69: 22 | CL69: 94 | CM69: 1700 | CN69: 200 | CO69: 3700
C73: Medel | D73: =AVERAGE(CD$10:CD72) -> 10.24833333 | E73: =AVERAGE(CE$10:CE72) -> 9.628333333 | F73: =AVERAGE(CF$10:CF72) -> 83.45424234 | G73: =AVERAGE(CG$10:CG72) -> 7.7375 | H73: =AVERAGE(CH$10:CH72) -> 34.54333333 | I73: =AVERAGE(CI$10:CI72) -> 43.52833333 | J73: =IFERROR(AVERAGE(CJ$10:CJ72),"") -> 6.5305 | K73: =AVERAGE(CK$10:CK72) -> 21.31666667 | L73: =AVERAGE(CL$10:CL72) -> 108.1833333 | M73: =AVERAGE(CM$10:CM72) -> 1820.8 | N73: =AVERAGE(CN$10:CN72) -> 130.95 | O73: =AVERAGE(CO$10:CO72) -> 3911.666667
C74: Std.avv. | D74: =STDEV(CD$10:CD72) -> 6.199193268 | E74: =STDEV(CE$10:CE72) -> 2.600071164 | F74: =STDEV(CF$10:CF72) -> 16.02706987 | G74: =STDEV(CG$10:CG72) -> 0.2431685263 | H74: =STDEV(CH$10:CH72) -> 72.96285883 | I74: =STDEV(CI$10:CI72) -> 6.16092365 | J74: =IFERROR(STDEV(CJ$10:CJ72),"") -> 1.582467956 | K74: =STDEV(CK$10:CK72) -> 3.907800399 | L74: =STDEV(CL$10:CL72) -> 67.09555333 | M74: =STDEV(CM$10:CM72) -> 2699.560245 | N74: =STDEV(CN$10:CN72) -> 174.2221867 | O74: =STDEV(CO$10:CO72) -> 2304.31369
C75: Max | D75: =MAX(CD$10:CD72) -> 21.1 | E75: =MAX(CE$10:CE72) -> 13.5 | F75: =MAX(CF$10:CF72) -> 115.7170494 | G75: =MAX(CG$10:CG72) -> 8.7 | H75: =MAX(CH$10:CH72) -> 520 | I75: =MAX(CI$10:CI72) -> 80.6 | J75: =MAX(CJ$10:CJ72) -> 9.8 | K75: =MAX(CK$10:CK72) -> 32 | L75: =MAX(CL$10:CL72) -> 440 | M75: =MAX(CM$10:CM72) -> 19000 | N75: =MAX(CN$10:CN72) -> 770 | O75: =MAX(CO$10:CO72) -> 19000
C76: Min | D76: =MIN(CD$10:CD72) -> 0.7 | E76: =MIN(CE$10:CE72) -> 3.7 | F76: =MIN(CF$10:CF72) -> 41 | G76: =MIN(CG$10:CG72) -> 7.13 | H76: =MIN(CH$10:CH72) -> 3.2 | I76: =MIN(CI$10:CI72) -> 32.5 | J76: =MIN(CJ$10:CJ72) -> 2.1 | K76: =MIN(CK$10:CK72) -> 15 | L76: =MIN(CL$10:CL72) -> 20 | M76: =MIN(CM$10:CM72) -> 58 | N76: =MIN(CN$10:CN72) -> 10 | O76: =MIN(CO$10:CO72) -> 2300
C77: Antal | D77: =COUNTA(D$10:D72) -> 60 | E77: =COUNTA(E$10:E72) -> 60 | F77: =COUNTA(F$10:F72) -> 60 | G77: =COUNTA(G$10:G72) -> 60 | H77: =COUNTA(H$10:H72) -> 60 | I77: =COUNTA(I$10:I72) -> 60 | J77: =COUNTA(J$10:J72) -> 60 | K77: =COUNTA(K$10:K72) -> 60 | L77: =COUNTA(L$10:L72) -> 60 | M77: =COUNTA(M$10:M72) -> 60 | N77: =COUNTA(N$10:N72) -> 60 | O77: =COUNTA(O$10:O72) -> 60
C78: SISTA
E81: OBS! Värden < a (och > a) hanteras som a i beräkning av medelvärde, standardavvikelse, min och max

Sheet Diagram
C3: Provpunkt: | R3: Senaste provtagningsdatum | AR3: Senaste provtagningsdatum
C4: =Statistik!$B8 -> 1 Sege å, vid Brännemölla, uppströms Svedala AR | H4: Statistik för: | I4: =MIN(Statistik!$C10:$C72) -> 2011-02-22 | J4: - | K4: =MAX(Statistik!$C10:$C72) -> 2020-12-14 | R4: =IF((VLOOKUP(C4,Provpunkter!B1:C16,2,FALSE))=6,MAX(RS!E1:E8),IF((VLOOKUP(C4,Provpunkter!B1:C16,2,FALSE))=5,MAX(RS!E57:E61),RS!E77)) -> 2021-12-20 | AR4: 2021-02-15
M7: Syre | N7: halt | P7: mättnad | R7: Årets resultat | AR7: Årets resultat
N8: mg/l | P8: % | R8: Datum | S8: mg/l | T8: % | AR8: Datum | AS8: mg/l
M9: Medel | N9: =Statistik!E$73 -> 9.628333333 | P9: =Statistik!F$73 -> 83.45424234 | R9: =IFERROR(VLOOKUP(CONCATENATE($C$4,"1"),RS!$B$3:$R$170,4,FALSE),"") ->  | S9: =IFERROR(VLOOKUP(CONCATENATE($C$4,"1"),RS!$B$3:$R$170,7,FALSE),"") ->  | T9: =IFERROR(VLOOKUP(CONCATENATE($C$4,"1"),RS!$B$3:$R$170,8,FALSE),"") -> 
M10: Std.avv. | N10: =Statistik!E$74 -> 2.600071164 | P10: =Statistik!F$74 -> 16.02706987 | R10: =IFERROR(VLOOKUP(CONCATENATE($C$4,"2"),RS!$B$3:$R$170,4,FALSE),"") -> 2021-02-15 | S10: =IFERROR(VLOOKUP(CONCATENATE($C$4,"2"),RS!$B$3:$R$170,7,FALSE),"") -> 14 | T10: =IFERROR(VLOOKUP(CONCATENATE($C$4,"2"),RS!$B$3:$R$170,8,FALSE),"") -> 97 | AR10: 2021-02-15 | AS10: 14
M11: Max | N11: =Statistik!E$75 -> 13.5 | P11: =Statistik!F$75 -> 115.7170494 | R11: =IFERROR(VLOOKUP(CONCATENATE($C$4,"3"),RS!$B$3:$R$170,4,FALSE),"") ->  | S11: =IFERROR(VLOOKUP(CONCATENATE($C$4,"3"),RS!$B$3:$R$170,7,FALSE),"") ->  | T11: =IFERROR(VLOOKUP(CONCATENATE($C$4,"3"),RS!$B$3:$R$170,8,FALSE),"") -> 
M12: Min | N12: =Statistik!E$76 -> 3.7 | P12: =Statistik!F$76 -> 41 | R12: =IFERROR(VLOOKUP(CONCATENATE($C$4,"4"),RS!$B$3:$R$170,4,FALSE),"") -> 2021-04-19 | S12: =IFERROR(VLOOKUP(CONCATENATE($C$4,"4"),RS!$B$3:$R$170,7,FALSE),"") -> 11.2 | T12: =IFERROR(VLOOKUP(CONCATENATE($C$4,"4"),RS!$B$3:$R$170,8,FALSE),"") -> 99
M13: Antal värden | N13: =Statistik!E$77 -> 60 | R13: =IFERROR(VLOOKUP(CONCATENATE($C$4,"5"),RS!$B$3:$R$170,4,FALSE),"") ->  | S13: =IFERROR(VLOOKUP(CONCATENATE($C$4,"5"),RS!$B$3:$R$170,7,FALSE),"") ->  | T13: =IFERROR(VLOOKUP(CONCATENATE($C$4,"5"),RS!$B$3:$R$170,8,FALSE),"") -> 
R14: =IFERROR(VLOOKUP(CONCATENATE($C$4,"6"),RS!$B$3:$R$170,4,FALSE),"") -> 2021-06-15 | S14: =IFERROR(VLOOKUP(CONCATENATE($C$4,"6"),RS!$B$3:$R$170,7,FALSE),"") -> 4.3 | T14: =IFERROR(VLOOKUP(CONCATENATE($C$4,"6"),RS!$B$3:$R$170,8,FALSE),"") -> 44
M15: Senaste | N15: =VLOOKUP(TRIM(CONCATENATE($C$4,$R$4)),RS!$A$3:$R$170,8,FALSE) -> 10.5 | P15: =VLOOKUP(TRIM(CONCATENATE($C$4,$R$4)),RS!$A$3:$R$170,9,FALSE) -> 74 | R15: =IFERROR(VLOOKUP(CONCATENATE($C$4,"7"),RS!$B$3:$R$170,4,FALSE),"") ->  | S15: =IFERROR(VLOOKUP(CONCATENATE($C$4,"7"),RS!$B$3:$R$170,7,FALSE),"") ->  | T15: =IFERROR(VLOOKUP(CONCATENATE($C$4,"7"),RS!$B$3:$R$170,8,FALSE),"") -> 
R16: =IFERROR(VLOOKUP(CONCATENATE($C$4,"8"),RS!$B$3:$R$170,4,FALSE),"") -> 2021-08-19 | S16: =IFERROR(VLOOKUP(CONCATENATE($C$4,"8"),RS!$B$3:$R$170,7,FALSE),"") -> 8.5 | T16: =IFERROR(VLOOKUP(CONCATENATE($C$4,"8"),RS!$B$3:$R$170,8,FALSE),"") -> 84
R17: =IFERROR(VLOOKUP(CONCATENATE($C$4,"9"),RS!$B$3:$R$170,4,FALSE),"") ->  | S17: =IFERROR(VLOOKUP(CONCATENATE($C$4,"9"),RS!$B$3:$R$170,7,FALSE),"") ->  | T17: =IFERROR(VLOOKUP(CONCATENATE($C$4,"9"),RS!$B$3:$R$170,8,FALSE),"") -> 
R18: =IFERROR(VLOOKUP(CONCATENATE($C$4,"10"),RS!$B$3:$R$170,4,FALSE),"") -> 2021-10-20 | S18: =IFERROR(VLOOKUP(CONCATENATE($C$4,"10"),RS!$B$3:$R$170,7,FALSE),"") -> 7.5 | T18: =IFERROR(VLOOKUP(CONCATENATE($C$4,"10"),RS!$B$3:$R$170,8,FALSE),"") -> 69
R19: =IFERROR(VLOOKUP(CONCATENATE($C$4,"11"),RS!$B$3:$R$170,4,FALSE),"") ->  | S19: =IFERROR(VLOOKUP(CONCATENATE($C$4,"11"),RS!$B$3:$R$170,7,FALSE),"") ->  | T19: =IFERROR(VLOOKUP(CONCATENATE($C$4,"11"),RS!$B$3:$R$170,8,FALSE),"") -> 
R20: =IFERROR(VLOOKUP(CONCATENATE($C$4,"12"),RS!$B$3:$R$170,4,FALSE),"") -> 2021-12-20 | S20: =IFERROR(VLOOKUP(CONCATENATE($C$4,"12"),RS!$B$3:$R$170,7,FALSE),"") -> 10.5 | T20: =IFERROR(VLOOKUP(CONCATENATE($C$4,"12"),RS!$B$3:$R$170,8,FALSE),"") -> 74
M25: Tot-N | N25: µg/l | R25: Årets resultat | AR25: Årets resultat
R26: Datum | S26: µg/l | AR26: Datum | AS26: µg/l
M27: Medel | N27: =Statistik!O$73 -> 3911.666667 | R27: =IFERROR(VLOOKUP(CONCATENATE($C$4,"1"),RS!$B$3:$R$170,4,FALSE),"") ->  | S27: =IFERROR(VLOOKUP(CONCATENATE($C$4,"1"),RS!$B$3:$R$170,17,FALSE),"") -> 
M28: Std.avv. | N28: =Statistik!O$74 -> 2304.31369 | R28: =IFERROR(VLOOKUP(CONCATENATE($C$4,"2"),RS!$B$3:$R$170,4,FALSE),"") -> 2021-02-15 | S28: =IFERROR(VLOOKUP(CONCATENATE($C$4,"2"),RS!$B$3:$R$170,17,FALSE),"") -> 3600 | AR28: 2021-02-15 | AS28: 3600
M29: Max | N29: =Statistik!O$75 -> 19000 | R29: =IFERROR(VLOOKUP(CONCATENATE($C$4,"3"),RS!$B$3:$R$170,4,FALSE),"") ->  | S29: =IFERROR(VLOOKUP(CONCATENATE($C$4,"3"),RS!$B$3:$R$170,17,FALSE),"") -> 
M30: Min | N30: =Statistik!O$76 -> 2300 | R30: =IFERROR(VLOOKUP(CONCATENATE($C$4,"4"),RS!$B$3:$R$170,4,FALSE),"") -> 2021-04-19 | S30: =IFERROR(VLOOKUP(CONCATENATE($C$4,"4"),RS!$B$3:$R$170,17,FALSE),"") -> 2900
M31: Antal värden | N31: =Statistik!O$77 -> 60 | R31: =IFERROR(VLOOKUP(CONCATENATE($C$4,"5"),RS!$B$3:$R$170,4,FALSE),"") ->  | S31: =IFERROR(VLOOKUP(CONCATENATE($C$4,"5"),RS!$B$3:$R$170,17,FALSE),"") -> 
R32: =IFERROR(VLOOKUP(CONCATENATE($C$4,"6"),RS!$B$3:$R$170,4,FALSE),"") -> 2021-06-15 | S32: =IFERROR(VLOOKUP(CONCATENATE($C$4,"6"),RS!$B$3:$R$170,17,FALSE),"") -> 3300
M33: Senaste | N33: =VLOOKUP(TRIM(CONCATENATE($C$4,$R$4)),RS!$A$3:$R$170,18,FALSE) -> 4400 | R33: =IFERROR(VLOOKUP(CONCATENATE($C$4,"7"),RS!$B$3:$R$170,4,FALSE),"") ->  | S33: =IFERROR(VLOOKUP(CONCATENATE($C$4,"7"),RS!$B$3:$R$170,17,FALSE),"") -> 
R34: =IFERROR(VLOOKUP(CONCATENATE($C$4,"8"),RS!$B$3:$R$170,4,FALSE),"") -> 2021-08-19 | S34: =IFERROR(VLOOKUP(CONCATENATE($C$4,"8"),RS!$B$3:$R$170,17,FALSE),"") -> 3000
R35: =IFERROR(VLOOKUP(CONCATENATE($C$4,"9"),RS!$B$3:$R$170,4,FALSE),"") ->  | S35: =IFERROR(VLOOKUP(CONCATENATE($C$4,"9"),RS!$B$3:$R$170,17,FALSE),"") -> 
R36: =IFERROR(VLOOKUP(CONCATENATE($C$4,"10"),RS!$B$3:$R$170,4,FALSE),"") -> 2021-10-20 | S36: =IFERROR(VLOOKUP(CONCATENATE($C$4,"10"),RS!$B$3:$R$170,17,FALSE),"") -> 7700
R37: =IFERROR(VLOOKUP(CONCATENATE($C$4,"11"),RS!$B$3:$R$170,4,FALSE),"") ->  | S37: =IFERROR(VLOOKUP(CONCATENATE($C$4,"11"),RS!$B$3:$R$170,17,FALSE),"") -> 
R38: =IFERROR(VLOOKUP(CONCATENATE($C$4,"12"),RS!$B$3:$R$170,4,FALSE),"") -> 2021-12-20 | S38: =IFERROR(VLOOKUP(CONCATENATE($C$4,"12"),RS!$B$3:$R$170,17,FALSE),"") -> 4400
M43: Tot-P | N43: µg/l | R43: Årets resultat | AR43: Årets resultat
R44: Datum | S44: µg/l | AR44: Datum | AS44: µg/l
M45: Medel | N45: =Statistik!L$73 -> 108.1833333 | R45: =IFERROR(VLOOKUP(CONCATENATE($C$4,"1"),RS!$B$3:$R$170,4,FALSE),"") ->  | S45: =IFERROR(VLOOKUP(CONCATENATE($C$4,"1"),RS!$B$3:$R$170,14,FALSE),"") -> 
M46: Std.avv. | N46: =Statistik!L$74 -> 67.09555333 | R46: =IFERROR(VLOOKUP(CONCATENATE($C$4,"2"),RS!$B$3:$R$170,4,FALSE),"") -> 2021-02-15 | S46: =IFERROR(VLOOKUP(CONCATENATE($C$4,"2"),RS!$B$3:$R$170,14,FALSE),"") -> 65 | AR46: 2021-02-15 | AS46: 65
M47: Max | N47: =Statistik!L$75 -> 440 | R47: =IFERROR(VLOOKUP(CONCATENATE($C$4,"3"),RS!$B$3:$R$170,4,FALSE),"") ->  | S47: =IFERROR(VLOOKUP(CONCATENATE($C$4,"3"),RS!$B$3:$R$170,14,FALSE),"") -> 
M48: Min | N48: =Statistik!L$76 -> 20 | R48: =IFERROR(VLOOKUP(CONCATENATE($C$4,"4"),RS!$B$3:$R$170,4,FALSE),"") -> 2021-04-19 | S48: =IFERROR(VLOOKUP(CONCATENATE($C$4,"4"),RS!$B$3:$R$170,14,FALSE),"") -> 66
M49: Antal värden | N49: =Statistik!L$77 -> 60 | R49: =IFERROR(VLOOKUP(CONCATENATE($C$4,"5"),RS!$B$3:$R$170,4,FALSE),"") ->  | S49: =IFERROR(VLOOKUP(CONCATENATE($C$4,"5"),RS!$B$3:$R$170,14,FALSE),"") -> 
R50: =IFERROR(VLOOKUP(CONCATENATE($C$4,"6"),RS!$B$3:$R$170,4,FALSE),"") -> 2021-06-15 | S50: =IFERROR(VLOOKUP(CONCATENATE($C$4,"6"),RS!$B$3:$R$170,14,FALSE),"") -> 160
M51: Senaste | N51: =VLOOKUP(TRIM(CONCATENATE($C$4,$R$4)),RS!$A$3:$R$170,15,FALSE) -> 120 | R51: =IFERROR(VLOOKUP(CONCATENATE($C$4,"7"),RS!$B$3:$R$170,4,FALSE),"") ->  | S51: =IFERROR(VLOOKUP(CONCATENATE($C$4,"7"),RS!$B$3:$R$170,14,FALSE),"") -> 
R52: =IFERROR(VLOOKUP(CONCATENATE($C$4,"8"),RS!$B$3:$R$170,4,FALSE),"") -> 2021-08-19 | S52: =IFERROR(VLOOKUP(CONCATENATE($C$4,"8"),RS!$B$3:$R$170,14,FALSE),"") -> 120
R53: =IFERROR(VLOOKUP(CONCATENATE($C$4,"9"),RS!$B$3:$R$170,4,FALSE),"") ->  | S53: =IFERROR(VLOOKUP(CONCATENATE($C$4,"9"),RS!$B$3:$R$170,14,FALSE),"") -> 
R54: =IFERROR(VLOOKUP(CONCATENATE($C$4,"10"),RS!$B$3:$R$170,4,FALSE),"") -> 2021-10-20 | S54: =IFERROR(VLOOKUP(CONCATENATE($C$4,"10"),RS!$B$3:$R$170,14,FALSE),"") -> 210
R55: =IFERROR(VLOOKUP(CONCATENATE($C$4,"11"),RS!$B$3:$R$170,4,FALSE),"") ->  | S55: =IFERROR(VLOOKUP(CONCATENATE($C$4,"11"),RS!$B$3:$R$170,14,FALSE),"") -> 
R56: =IFERROR(VLOOKUP(CONCATENATE($C$4,"12"),RS!$B$3:$R$170,4,FALSE),"") -> 2021-12-20 | S56: =IFERROR(VLOOKUP(CONCATENATE($C$4,"12"),RS!$B$3:$R$170,14,FALSE),"") -> 120
M61: pH | R61: Årets resultat | AR61: Årets resultat
R62: Datum | AR62: Datum
M63: Medel | N63: =Statistik!G$73 -> 7.7375 | R63: =IFERROR(VLOOKUP(CONCATENATE($C$4,"1"),RS!$B$3:$R$170,4,FALSE),"") ->  | S63: =IFERROR(VLOOKUP(CONCATENATE($C$4,"1"),RS!$B$3:$R$170,9,FALSE),"") -> 
M64: Std.avv. | N64: =Statistik!G$74 -> 0.2431685263 | R64: =IFERROR(VLOOKUP(CONCATENATE($C$4,"2"),RS!$B$3:$R$170,4,FALSE),"") -> 2021-02-15 | S64: =IFERROR(VLOOKUP(CONCATENATE($C$4,"2"),RS!$B$3:$R$170,9,FALSE),"") -> 7.78 | AR64: 2021-02-15 | AS64: 7.78
M65: Max | N65: =Statistik!G$75 -> 8.7 | R65: =IFERROR(VLOOKUP(CONCATENATE($C$4,"3"),RS!$B$3:$R$170,4,FALSE),"") ->  | S65: =IFERROR(VLOOKUP(CONCATENATE($C$4,"3"),RS!$B$3:$R$170,9,FALSE),"") -> 
M66: Min | N66: =Statistik!G$76 -> 7.13 | R66: =IFERROR(VLOOKUP(CONCATENATE($C$4,"4"),RS!$B$3:$R$170,4,FALSE),"") -> 2021-04-19 | S66: =IFERROR(VLOOKUP(CONCATENATE($C$4,"4"),RS!$B$3:$R$170,9,FALSE),"") -> 7.81
M67: Antal värden | N67: =Statistik!G$77 -> 60 | R67: =IFERROR(VLOOKUP(CONCATENATE($C$4,"5"),RS!$B$3:$R$170,4,FALSE),"") ->  | S67: =IFERROR(VLOOKUP(CONCATENATE($C$4,"5"),RS!$B$3:$R$170,9,FALSE),"") -> 
R68: =IFERROR(VLOOKUP(CONCATENATE($C$4,"6"),RS!$B$3:$R$170,4,FALSE),"") -> 2021-06-15 | S68: =IFERROR(VLOOKUP(CONCATENATE($C$4,"6"),RS!$B$3:$R$170,9,FALSE),"") -> 7.41
M69: Senaste | N69: =VLOOKUP(TRIM(CONCATENATE($C$4,$R$4)),RS!$A$3:$R$170,10,FALSE) -> 7.58 | R69: =IFERROR(VLOOKUP(CONCATENATE($C$4,"7"),RS!$B$3:$R$170,4,FALSE),"") ->  | S69: =IFERROR(VLOOKUP(CONCATENATE($C$4,"7"),RS!$B$3:$R$170,9,FALSE),"") -> 
R70: =IFERROR(VLOOKUP(CONCATENATE($C$4,"8"),RS!$B$3:$R$170,4,FALSE),"") -> 2021-08-19 | S70: =IFERROR(VLOOKUP(CONCATENATE($C$4,"8"),RS!$B$3:$R$170,9,FALSE),"") -> 7.5
R71: =IFERROR(VLOOKUP(CONCATENATE($C$4,"9"),RS!$B$3:$R$170,4,FALSE),"") ->  | S71: =IFERROR(VLOOKUP(CONCATENATE($C$4,"9"),RS!$B$3:$R$170,9,FALSE),"") -> 
R72: =IFERROR(VLOOKUP(CONCATENATE($C$4,"10"),RS!$B$3:$R$170,4,FALSE),"") -> 2021-10-20 | S72: =IFERROR(VLOOKUP(CONCATENATE($C$4,"10"),RS!$B$3:$R$170,9,FALSE),"") -> 7.62
R73: =IFERROR(VLOOKUP(CONCATENATE($C$4,"11"),RS!$B$3:$R$170,4,FALSE),"") ->  | S73: =IFERROR(VLOOKUP(CONCATENATE($C$4,"11"),RS!$B$3:$R$170,9,FALSE),"") -> 
R74: =IFERROR(VLOOKUP(CONCATENATE($C$4,"12"),RS!$B$3:$R$170,4,FALSE),"") -> 2021-12-20 | S74: =IFERROR(VLOOKUP(CONCATENATE($C$4,"12"),RS!$B$3:$R$170,9,FALSE),"") -> 7.58
M79: Grumlighet | N79: FNU | R79: Årets resultat | AR79: Årets resultat
M80: (Turbiditet) | R80: Datum | S80: FNU | AR80: Datum | AS80: FNU
M81: Medel | N81: =Statistik!H$73 -> 34.54333333 | R81: =IFERROR(VLOOKUP(CONCATENATE($C$4,"1"),RS!$B$3:$R$170,4,FALSE),"") ->  | S81: =IFERROR(VLOOKUP(CONCATENATE($C$4,"1"),RS!$B$3:$R$170,10,FALSE),"") -> 
M82: Std.avv. | N82: =Statistik!H$74 -> 72.96285883 | R82: =IFERROR(VLOOKUP(CONCATENATE($C$4,"2"),RS!$B$3:$R$170,4,FALSE),"") -> 2021-02-15 | S82: =IFERROR(VLOOKUP(CONCATENATE($C$4,"2"),RS!$B$3:$R$170,10,FALSE),"") -> 12 | AR82: 2021-02-15 | AS82: 12
M83: Max | N83: =Statistik!H$75 -> 520 | R83: =IFERROR(VLOOKUP(CONCATENATE($C$4,"3"),RS!$B$3:$R$170,4,FALSE),"") ->  | S83: =IFERROR(VLOOKUP(CONCATENATE($C$4,"3"),RS!$B$3:$R$170,10,FALSE),"") -> 
M84: Min | N84: =Statistik!H$76 -> 3.2 | R84: =IFERROR(VLOOKUP(CONCATENATE($C$4,"4"),RS!$B$3:$R$170,4,FALSE),"") -> 2021-04-19 | S84: =IFERROR(VLOOKUP(CONCATENATE($C$4,"4"),RS!$B$3:$R$170,10,FALSE),"") -> 11
M85: Antal värden | N85: =Statistik!H$77 -> 60 | R85: =IFERROR(VLOOKUP(CONCATENATE($C$4,"5"),RS!$B$3:$R$170,4,FALSE),"") ->  | S85: =IFERROR(VLOOKUP(CONCATENATE($C$4,"5"),RS!$B$3:$R$170,10,FALSE),"") -> 
R86: =IFERROR(VLOOKUP(CONCATENATE($C$4,"6"),RS!$B$3:$R$170,4,FALSE),"") -> 2021-06-15 | S86: =IFERROR(VLOOKUP(CONCATENATE($C$4,"6"),RS!$B$3:$R$170,10,FALSE),"") -> 18
M87: Senaste | N87: =VLOOKUP(TRIM(CONCATENATE($C$4,$R$4)),RS!$A$3:$R$170,11,FALSE) -> 20 | R87: =IFERROR(VLOOKUP(CONCATENATE($C$4,"7"),RS!$B$3:$R$170,4,FALSE),"") ->  | S87: =IFERROR(VLOOKUP(CONCATENATE($C$4,"7"),RS!$B$3:$R$170,10,FALSE),"") -> 
R88: =IFERROR(VLOOKUP(CONCATENATE($C$4,"8"),RS!$B$3:$R$170,4,FALSE),"") -> 2021-08-19 | S88: =IFERROR(VLOOKUP(CONCATENATE($C$4,"8"),RS!$B$3:$R$170,10,FALSE),"") -> 14
R89: =IFERROR(VLOOKUP(CONCATENATE($C$4,"9"),RS!$B$3:$R$170,4,FALSE),"") ->  | S89: =IFERROR(VLOOKUP(CONCATENATE($C$4,"9"),RS!$B$3:$R$170,10,FALSE),"") -> 
R90: =IFERROR(VLOOKUP(CONCATENATE($C$4,"10"),RS!$B$3:$R$170,4,FALSE),"") -> 2021-10-20 | S90: =IFERROR(VLOOKUP(CONCATENATE($C$4,"10"),RS!$B$3:$R$170,10,FALSE),"") -> 76
R91: =IFERROR(VLOOKUP(CONCATENATE($C$4,"11"),RS!$B$3:$R$170,4,FALSE),"") ->  | S91: =IFERROR(VLOOKUP(CONCATENATE($C$4,"11"),RS!$B$3:$R$170,10,FALSE),"") -> 
R92: =IFERROR(VLOOKUP(CONCATENATE($C$4,"12"),RS!$B$3:$R$170,4,FALSE),"") -> 2021-12-20 | S92: =IFERROR(VLOOKUP(CONCATENATE($C$4,"12"),RS!$B$3:$R$170,10,FALSE),"") -> 20
M97: BOD-7 | N97: mg/l | R97: Årets resultat | AR97: Årets resultat
R98: Datum | S98: mg/l | AR98: Datum | AS98: mg/l
M99: Medel | N99: =Statistik!J$73 -> 6.5305 | R99: =IFERROR(VLOOKUP(CONCATENATE($C$4,"1"),RS!$B$3:$R$170,4,FALSE),"") ->  | S99: =IFERROR(VLOOKUP(CONCATENATE($C$4,"1"),RS!$B$3:$R$170,12,FALSE),"") -> 
M100: Std.avv. | N100: =Statistik!J$74 -> 1.582467956 | R100: =IFERROR(VLOOKUP(CONCATENATE($C$4,"2"),RS!$B$3:$R$170,4,FALSE),"") -> 2021-02-15 | S100: =IFERROR(VLOOKUP(CONCATENATE($C$4,"2"),RS!$B$3:$R$170,12,FALSE),"") -> 4.9 | AR100: 2021-02-15 | AS100: 4.9
M101: Max | N101: =Statistik!J$75 -> 9.8 | R101: =IFERROR(VLOOKUP(CONCATENATE($C$4,"3"),RS!$B$3:$R$170,4,FALSE),"") ->  | S101: =IFERROR(VLOOKUP(CONCATENATE($C$4,"3"),RS!$B$3:$R$170,12,FALSE),"") -> 
M102: Min | N102: =Statistik!J$76 -> 2.1 | R102: =IFERROR(VLOOKUP(CONCATENATE($C$4,"4"),RS!$B$3:$R$170,4,FALSE),"") -> 2021-04-19 | S102: =IFERROR(VLOOKUP(CONCATENATE($C$4,"4"),RS!$B$3:$R$170,12,FALSE),"") -> 6.3
M103: Antal värden | N103: =Statistik!J$77 -> 60 | R103: =IFERROR(VLOOKUP(CONCATENATE($C$4,"5"),RS!$B$3:$R$170,4,FALSE),"") ->  | S103: =IFERROR(VLOOKUP(CONCATENATE($C$4,"5"),RS!$B$3:$R$170,12,FALSE),"") -> 
R104: =IFERROR(VLOOKUP(CONCATENATE($C$4,"6"),RS!$B$3:$R$170,4,FALSE),"") -> 2021-06-15 | S104: =IFERROR(VLOOKUP(CONCATENATE($C$4,"6"),RS!$B$3:$R$170,12,FALSE),"") -> 7.7
M105: Senaste | N105: =VLOOKUP(TRIM(CONCATENATE($C$4,$R$4)),RS!$A$3:$R$170,13,FALSE) -> 5.8 | R105: =IFERROR(VLOOKUP(CONCATENATE($C$4,"7"),RS!$B$3:$R$170,4,FALSE),"") ->  | S105: =IFERROR(VLOOKUP(CONCATENATE($C$4,"7"),RS!$B$3:$R$170,12,FALSE),"") -> 
R106: =IFERROR(VLOOKUP(CONCATENATE($C$4,"8"),RS!$B$3:$R$170,4,FALSE),"") -> 2021-08-19 | S106: =IFERROR(VLOOKUP(CONCATENATE($C$4,"8"),RS!$B$3:$R$170,12,FALSE),"") -> 5.6
R107: =IFERROR(VLOOKUP(CONCATENATE($C$4,"9"),RS!$B$3:$R$170,4,FALSE),"") ->  | S107: =IFERROR(VLOOKUP(CONCATENATE($C$4,"9"),RS!$B$3:$R$170,12,FALSE),"") -> 
R108: =IFERROR(VLOOKUP(CONCATENATE($C$4,"10"),RS!$B$3:$R$170,4,FALSE),"") -> 2021-10-20 | S108: =IFERROR(VLOOKUP(CONCATENATE($C$4,"10"),RS!$B$3:$R$170,12,FALSE),"") -> 5.7
R109: =IFERROR(VLOOKUP(CONCATENATE($C$4,"11"),RS!$B$3:$R$170,4,FALSE),"") ->  | S109: =IFERROR(VLOOKUP(CONCATENATE($C$4,"11"),RS!$B$3:$R$170,12,FALSE),"") -> 
R110: =IFERROR(VLOOKUP(CONCATENATE($C$4,"12"),RS!$B$3:$R$170,4,FALSE),"") -> 2021-12-20 | S110: =IFERROR(VLOOKUP(CONCATENATE($C$4,"12"),RS!$B$3:$R$170,12,FALSE),"") -> 5.8
M115: Kond | N115: mg/l | R115: Årets resultat | AR115: Årets resultat
R116: Datum | S116: mS/m | AR116: Datum | AS116: mS/m
M117: Medel | N117: =Statistik!I$73 -> 43.52833333 | R117: =IFERROR(VLOOKUP(CONCATENATE($C$4,"1"),RS!$B$3:$R$170,4,FALSE),"") ->  | S117: =IFERROR(VLOOKUP(CONCATENATE($C$4,"1"),RS!$B$3:$R$170,11,FALSE),"") -> 
M118: Std.avv. | N118: =Statistik!I$74 -> 6.16092365 | R118: =IFERROR(VLOOKUP(CONCATENATE($C$4,"2"),RS!$B$3:$R$170,4,FALSE),"") -> 2021-02-15 | S118: =IFERROR(VLOOKUP(CONCATENATE($C$4,"2"),RS!$B$3:$R$170,11,FALSE),"") -> 50.4 | AR118: 2021-02-15 | AS118: 50.4
M119: Max | N119: =Statistik!I$75 -> 80.6 | R119: =IFERROR(VLOOKUP(CONCATENATE($C$4,"3"),RS!$B$3:$R$170,4,FALSE),"") ->  | S119: =IFERROR(VLOOKUP(CONCATENATE($C$4,"3"),RS!$B$3:$R$170,11,FALSE),"") -> 
M120: Min | N120: =Statistik!I$76 -> 32.5 | R120: =IFERROR(VLOOKUP(CONCATENATE($C$4,"4"),RS!$B$3:$R$170,4,FALSE),"") -> 2021-04-19 | S120: =IFERROR(VLOOKUP(CONCATENATE($C$4,"4"),RS!$B$3:$R$170,11,FALSE),"") -> 47.7
M121: Antal värden | N121: =Statistik!I$77 -> 60 | R121: =IFERROR(VLOOKUP(CONCATENATE($C$4,"5"),RS!$B$3:$R$170,4,FALSE),"") ->  | S121: =IFERROR(VLOOKUP(CONCATENATE($C$4,"5"),RS!$B$3:$R$170,11,FALSE),"") -> 
R122: =IFERROR(VLOOKUP(CONCATENATE($C$4,"6"),RS!$B$3:$R$170,4,FALSE),"") -> 2021-06-15 | S122: =IFERROR(VLOOKUP(CONCATENATE($C$4,"6"),RS!$B$3:$R$170,11,FALSE),"") -> 45.3
M123: Senaste | N123: =VLOOKUP(TRIM(CONCATENATE($C$4,$R$4)),RS!$A$3:$R$170,12,FALSE) -> 45.8 | R123: =IFERROR(VLOOKUP(CONCATENATE($C$4,"7"),RS!$B$3:$R$170,4,FALSE),"") ->  | S123: =IFERROR(VLOOKUP(CONCATENATE($C$4,"7"),RS!$B$3:$R$170,11,FALSE),"") -> 
R124: =IFERROR(VLOOKUP(CONCATENATE($C$4,"8"),RS!$B$3:$R$170,4,FALSE),"") -> 2021-08-19 | S124: =IFERROR(VLOOKUP(CONCATENATE($C$4,"8"),RS!$B$3:$R$170,11,FALSE),"") -> 50.2
R125: =IFERROR(VLOOKUP(CONCATENATE($C$4,"9"),RS!$B$3:$R$170,4,FALSE),"") ->  | S125: =IFERROR(VLOOKUP(CONCATENATE($C$4,"9"),RS!$B$3:$R$170,11,FALSE),"") -> 
R126: =IFERROR(VLOOKUP(CONCATENATE($C$4,"10"),RS!$B$3:$R$170,4,FALSE),"") -> 2021-10-20 | S126: =IFERROR(VLOOKUP(CONCATENATE($C$4,"10"),RS!$B$3:$R$170,11,FALSE),"") -> 54.5
R127: =IFERROR(VLOOKUP(CONCATENATE($C$4,"11"),RS!$B$3:$R$170,4,FALSE),"") ->  | S127: =IFERROR(VLOOKUP(CONCATENATE($C$4,"11"),RS!$B$3:$R$170,11,FALSE),"") -> 
R128: =IFERROR(VLOOKUP(CONCATENATE($C$4,"12"),RS!$B$3:$R$170,4,FALSE),"") -> 2021-12-20 | S128: =IFERROR(VLOOKUP(CONCATENATE($C$4,"12"),RS!$B$3:$R$170,11,FALSE),"") -> 45.8
M133: NO2,3-N | N133: µg/l | R133: Årets resultat | AR133: Årets resultat
R134: Datum | S134: µg/l | AR134: Datum | AS134: µg/l
M135: Medel | N135: =Statistik!M$73 -> 1820.8 | R135: =IFERROR(VLOOKUP(CONCATENATE($C$4,"1"),RS!$B$3:$R$170,4,FALSE),"") ->  | S135: =IFERROR(VLOOKUP(CONCATENATE($C$4,"1"),RS!$B$3:$R$170,15,FALSE),"") -> 
M136: Std.avv. | N136: =Statistik!M$74 -> 2699.560245 | R136: =IFERROR(VLOOKUP(CONCATENATE($C$4,"2"),RS!$B$3:$R$170,4,FALSE),"") -> 2021-02-15 | S136: =IFERROR(VLOOKUP(CONCATENATE($C$4,"2"),RS!$B$3:$R$170,15,FALSE),"") -> 1800 | AR136: 2021-02-15 | AS136: 1800
M137: Max | N137: =Statistik!M$75 -> 19000 | R137: =IFERROR(VLOOKUP(CONCATENATE($C$4,"3"),RS!$B$3:$R$170,4,FALSE),"") ->  | S137: =IFERROR(VLOOKUP(CONCATENATE($C$4,"3"),RS!$B$3:$R$170,15,FALSE),"") -> 
M138: Min | N138: =Statistik!M$76 -> 58 | R138: =IFERROR(VLOOKUP(CONCATENATE($C$4,"4"),RS!$B$3:$R$170,4,FALSE),"") -> 2021-04-19 | S138: =IFERROR(VLOOKUP(CONCATENATE($C$4,"4"),RS!$B$3:$R$170,15,FALSE),"") -> 1300
M139: Antal värden | N139: =Statistik!M$77 -> 60 | R139: =IFERROR(VLOOKUP(CONCATENATE($C$4,"5"),RS!$B$3:$R$170,4,FALSE),"") ->  | S139: =IFERROR(VLOOKUP(CONCATENATE($C$4,"5"),RS!$B$3:$R$170,15,FALSE),"") -> 
R140: =IFERROR(VLOOKUP(CONCATENATE($C$4,"6"),RS!$B$3:$R$170,4,FALSE),"") -> 2021-06-15 | S140: =IFERROR(VLOOKUP(CONCATENATE($C$4,"6"),RS!$B$3:$R$170,15,FALSE),"") -> 590
M141: Senaste | N141: =VLOOKUP(TRIM(CONCATENATE($C$4,$R$4)),RS!$A$3:$R$170,16,FALSE) -> 1900 | R141: =IFERROR(VLOOKUP(CONCATENATE($C$4,"7"),RS!$B$3:$R$170,4,FALSE),"") ->  | S141: =IFERROR(VLOOKUP(CONCATENATE($C$4,"7"),RS!$B$3:$R$170,15,FALSE),"") -> 
R142: =IFERROR(VLOOKUP(CONCATENATE($C$4,"8"),RS!$B$3:$R$170,4,FALSE),"") -> 2021-08-19 | S142: =IFERROR(VLOOKUP(CONCATENATE($C$4,"8"),RS!$B$3:$R$170,15,FALSE),"") -> 1100
R143: =IFERROR(VLOOKUP(CONCATENATE($C$4,"9"),RS!$B$3:$R$170,4,FALSE),"") ->  | S143: =IFERROR(VLOOKUP(CONCATENATE($C$4,"9"),RS!$B$3:$R$170,15,FALSE),"") -> 
R144: =IFERROR(VLOOKUP(CONCATENATE($C$4,"10"),RS!$B$3:$R$170,4,FALSE),"") -> 2021-10-20 | S144: =IFERROR(VLOOKUP(CONCATENATE($C$4,"10"),RS!$B$3:$R$170,15,FALSE),"") -> 5600
R145: =IFERROR(VLOOKUP(CONCATENATE($C$4,"11"),RS!$B$3:$R$170,4,FALSE),"") ->  | S145: =IFERROR(VLOOKUP(CONCATENATE($C$4,"11"),RS!$B$3:$R$170,15,FALSE),"") -> 
R146: =IFERROR(VLOOKUP(CONCATENATE($C$4,"12"),RS!$B$3:$R$170,4,FALSE),"") -> 2021-12-20 | S146: =IFERROR(VLOOKUP(CONCATENATE($C$4,"12"),RS!$B$3:$R$170,15,FALSE),"") -> 1900
M151: NH4-N | N151: µg/l | R151: Årets resultat | AR151: Årets resultat
R152: Datum | S152: µg/l | AR152: Datum | AS152: µg/l
M153: Medel | N153: =Statistik!N$73 -> 130.95 | R153: =IFERROR(VLOOKUP(CONCATENATE($C$4,"1"),RS!$B$3:$R$170,4,FALSE),"") ->  | S153: =IFERROR(VLOOKUP(CONCATENATE($C$4,"1"),RS!$B$3:$R$170,16,FALSE),"") -> 
M154: Std.avv. | N154: =Statistik!N$74 -> 174.2221867 | R154: =IFERROR(VLOOKUP(CONCATENATE($C$4,"2"),RS!$B$3:$R$170,4,FALSE),"") -> 2021-02-15 | S154: =IFERROR(VLOOKUP(CONCATENATE($C$4,"2"),RS!$B$3:$R$170,16,FALSE),"") -> 250 | AR154: 2021-02-15 | AS154: 250
M155: Max | N155: =Statistik!N$75 -> 770 | R155: =IFERROR(VLOOKUP(CONCATENATE($C$4,"3"),RS!$B$3:$R$170,4,FALSE),"") ->  | S155: =IFERROR(VLOOKUP(CONCATENATE($C$4,"3"),RS!$B$3:$R$170,16,FALSE),"") -> 
M156: Min | N156: =Statistik!N$76 -> 10 | R156: =IFERROR(VLOOKUP(CONCATENATE($C$4,"4"),RS!$B$3:$R$170,4,FALSE),"") -> 2021-04-19 | S156: =IFERROR(VLOOKUP(CONCATENATE($C$4,"4"),RS!$B$3:$R$170,16,FALSE),"") -> <10
M157: Antal värden | N157: =Statistik!N$77 -> 60 | R157: =IFERROR(VLOOKUP(CONCATENATE($C$4,"5"),RS!$B$3:$R$170,4,FALSE),"") ->  | S157: =IFERROR(VLOOKUP(CONCATENATE($C$4,"5"),RS!$B$3:$R$170,16,FALSE),"") -> 
R158: =IFERROR(VLOOKUP(CONCATENATE($C$4,"6"),RS!$B$3:$R$170,4,FALSE),"") -> 2021-06-15 | S158: =IFERROR(VLOOKUP(CONCATENATE($C$4,"6"),RS!$B$3:$R$170,16,FALSE),"") -> 250
M159: Senaste | N159: =VLOOKUP(TRIM(CONCATENATE($C$4,$R$4)),RS!$A$3:$R$170,17,FALSE) -> 650 | R159: =IFERROR(VLOOKUP(CONCATENATE($C$4,"7"),RS!$B$3:$R$170,4,FALSE),"") ->  | S159: =IFERROR(VLOOKUP(CONCATENATE($C$4,"7"),RS!$B$3:$R$170,16,FALSE),"") -> 
R160: =IFERROR(VLOOKUP(CONCATENATE($C$4,"8"),RS!$B$3:$R$170,4,FALSE),"") -> 2021-08-19 | S160: =IFERROR(VLOOKUP(CONCATENATE($C$4,"8"),RS!$B$3:$R$170,16,FALSE),"") -> 130
R161: =IFERROR(VLOOKUP(CONCATENATE($C$4,"9"),RS!$B$3:$R$170,4,FALSE),"") ->  | S161: =IFERROR(VLOOKUP(CONCATENATE($C$4,"9"),RS!$B$3:$R$170,16,FALSE),"") -> 
R162: =IFERROR(VLOOKUP(CONCATENATE($C$4,"10"),RS!$B$3:$R$170,4,FALSE),"") -> 2021-10-20 | S162: =IFERROR(VLOOKUP(CONCATENATE($C$4,"10"),RS!$B$3:$R$170,16,FALSE),"") -> 48
R163: =IFERROR(VLOOKUP(CONCATENATE($C$4,"11"),RS!$B$3:$R$170,4,FALSE),"") ->  | S163: =IFERROR(VLOOKUP(CONCATENATE($C$4,"11"),RS!$B$3:$R$170,16,FALSE),"") -> 
R164: =IFERROR(VLOOKUP(CONCATENATE($C$4,"12"),RS!$B$3:$R$170,4,FALSE),"") -> 2021-12-20 | S164: =IFERROR(VLOOKUP(CONCATENATE($C$4,"12"),RS!$B$3:$R$170,16,FALSE),"") -> 650
M169: TOC | N169: mg/l | R169: Årets resultat | AR169: Årets resultat
R170: Datum | S170: mg/l | AR170: Datum | AS170: µg/l
M171: Medel | N171: =Statistik!K$73 -> 21.31666667 | R171: =IFERROR(VLOOKUP(CONCATENATE($C$4,"1"),RS!$B$3:$R$170,4,FALSE),"") ->  | S171: =IFERROR(VLOOKUP(CONCATENATE($C$4,"1"),RS!$B$3:$R$170,13,FALSE),"") -> 
M172: Std.avv. | N172: =Statistik!K$74 -> 3.907800399 | R172: =IFERROR(VLOOKUP(CONCATENATE($C$4,"2"),RS!$B$3:$R$170,4,FALSE),"") -> 2021-02-15 | S172: =IFERROR(VLOOKUP(CONCATENATE($C$4,"2"),RS!$B$3:$R$170,13,FALSE),"") -> 22 | AR172: 2021-02-15 | AS172: 22
M173: Max | N173: =Statistik!K$75 -> 32 | R173: =IFERROR(VLOOKUP(CONCATENATE($C$4,"3"),RS!$B$3:$R$170,4,FALSE),"") ->  | S173: =IFERROR(VLOOKUP(CONCATENATE($C$4,"3"),RS!$B$3:$R$170,13,FALSE),"") -> 
M174: Min | N174: =Statistik!K$76 -> 15 | R174: =IFERROR(VLOOKUP(CONCATENATE($C$4,"4"),RS!$B$3:$R$170,4,FALSE),"") -> 2021-04-19 | S174: =IFERROR(VLOOKUP(CONCATENATE($C$4,"4"),RS!$B$3:$R$170,13,FALSE),"") -> 22
M175: Antal värden | N175: =Statistik!K$77 -> 60 | R175: =IFERROR(VLOOKUP(CONCATENATE($C$4,"5"),RS!$B$3:$R$170,4,FALSE),"") ->  | S175: =IFERROR(VLOOKUP(CONCATENATE($C$4,"5"),RS!$B$3:$R$170,13,FALSE),"") -> 
R176: =IFERROR(VLOOKUP(CONCATENATE($C$4,"6"),RS!$B$3:$R$170,4,FALSE),"") -> 2021-06-15 | S176: =IFERROR(VLOOKUP(CONCATENATE($C$4,"6"),RS!$B$3:$R$170,13,FALSE),"") -> 26
M177: Senaste | N177: =VLOOKUP(TRIM(CONCATENATE($C$4,$R$4)),RS!$A$3:$R$170,14,FALSE) -> 24 | R177: =IFERROR(VLOOKUP(CONCATENATE($C$4,"7"),RS!$B$3:$R$170,4,FALSE),"") ->  | S177: =IFERROR(VLOOKUP(CONCATENATE($C$4,"7"),RS!$B$3:$R$170,13,FALSE),"") -> 
R178: =IFERROR(VLOOKUP(CONCATENATE($C$4,"8"),RS!$B$3:$R$170,4,FALSE),"") -> 2021-08-19 | S178: =IFERROR(VLOOKUP(CONCATENATE($C$4,"8"),RS!$B$3:$R$170,13,FALSE),"") -> 22
R179: =IFERROR(VLOOKUP(CONCATENATE($C$4,"9"),RS!$B$3:$R$170,4,FALSE),"") ->  | S179: =IFERROR(VLOOKUP(CONCATENATE($C$4,"9"),RS!$B$3:$R$170,13,FALSE),"") -> 
R180: =IFERROR(VLOOKUP(CONCATENATE($C$4,"10"),RS!$B$3:$R$170,4,FALSE),"") -> 2021-10-20 | S180: =IFERROR(VLOOKUP(CONCATENATE($C$4,"10"),RS!$B$3:$R$170,13,FALSE),"") -> 21
R181: =IFERROR(VLOOKUP(CONCATENATE($C$4,"11"),RS!$B$3:$R$170,4,FALSE),"") ->  | S181: =IFERROR(VLOOKUP(CONCATENATE($C$4,"11"),RS!$B$3:$R$170,13,FALSE),"") -> 
R182: =IFERROR(VLOOKUP(CONCATENATE($C$4,"12"),RS!$B$3:$R$170,4,FALSE),"") -> 2021-12-20 | S182: =IFERROR(VLOOKUP(CONCATENATE($C$4,"12"),RS!$B$3:$R$170,13,FALSE),"") -> 24

Sheet Hist_data (hidden)
C1: sista rad | D1: 1084 | E1: OBS! Om det blir fler än 2000 rader måste makro ändras
B2: Sege å
B3: Vattenkontroll - historiska data
D4: °C | E4: mg/l | F4: % | H4: FNU | I4: mS/m | J4: mg/l | K4: mg/l | L4: µg/l | M4: µg/l | N4: µg/l | O4: µg/l
A5: Sorterings- | B5: Provtagningspunkt | C5: Datum | D5: Temp | E5: Syreh | F5: Syrem | G5: pH | H5: Gruml | I5: Kond | J5: BOD7 | K5: TOC | L5: Tot-P | M5: NO3+2-N | N5: NH4-N | O5: Tot-N | P5: Anmärkning | Q5: år | R5: månad
B6: Denna rad ska vara tom
A7: 3 | B7: 1 Sege å, vid Brännemölla, uppströms Svedala AR | C7: 2011-02-22 | D7: 1.3 | E7: 10.6 | F7: 75.13870672 | G7: 7.41 | H7: 8.8 | I7: 39.8 | J7: 5.8 | K7: 21 | L7: 61 | M7: 1900 | N7: 350 | O7: 3400 | P7: isfritt | Q7: =YEAR(C7) -> 2011 | R7: =MONTH(C7) -> 2
A8: 3 | B8: 1 Sege å, vid Brännemölla, uppströms Svedala AR | C8: 2011-04-11 | D8: 10.5 | E8: 11.6 | F8: 104.3395729 | G8: 8.18 | H8: 19 | I8: 39.8 | J8: 9.8 | K8: 22 | L8: 120 | M8: 940 | N8: 72 | O8: 3100 | P8: gröngrumligt | Q8: 2011 | R8: 4
A9: 3 | B9: 1 Sege å, vid Brännemölla, uppströms Svedala AR | C9: 2011-06-21 | D9: 18.5 | E9: 10.8 | F9: 115.340951 | G9: 8.7 | H9: 41 | I9: 32.5 | J9: 7.8 | K9: 32 | L9: 170 | M9: 58 | N9: <10 | O9: 3700 | P9: lågflöde, grumligt | Q9: 2011 | R9: 6
A10: 3 | B10: 1 Sege å, vid Brännemölla, uppströms Svedala AR | C10: 2011-08-16 | D10: 16.4 | E10: 7.6 | F10: 77.83686248 | G10: 7.36 | H10: 25 | I10: 40 | J10: 5.8 | K10: 31 | L10: 140 | M10: 1400 | N10: <10 | O10: 4000 | P10: högflöde, grumligt | Q10: 2011 | R10: 8
A11: 3 | B11: 1 Sege å, vid Brännemölla, uppströms Svedala AR | C11: 2011-10-11 | D11: 11 | E11: 8.8 | F11: 80.0858005 | G11: 7.49 | H11: 17 | I11: 45.1 | J11: 6.8 | K11: 31 | L11: 99 | M11: 1200 | N11: 240 | O11: 3400 | P11: gröngrumligt | Q11: 2011 | R11: 10
A12: 3 | B12: 1 Sege å, vid Brännemölla, uppströms Svedala AR | C12: 2011-12-19 | D12: 2.6 | E12: 11.9 | F12: 87.46708741 | G12: 7.7 | H12: 34 | I12: 45.4 | J12: 6.2 | K12: 21 | L12: 120 | M12: 1500 | N12: 770 | O12: 4200 | P12: gröngrumligt | Q12: 2011 | R12: 12
A13: 3 | B13: 1 Sege å, vid Brännemölla, uppströms Svedala AR | C13: 2012-02-13 | D13: 1.2 | E13: 12.3 | F13: 86.94352949 | G13: 7.5 | H13: 13 | I13: 46 | J13: 6.6 | K13: 21 | L13: 58 | M13: 1600 | N13: 700 | O13: 3600 | P13: is i kanten | Q13: 2012 | R13: 2
A14: 3 | B14: 1 Sege å, vid Brännemölla, uppströms Svedala AR | C14: 2012-04-16 | D14: 8 | E14: 10.9 | F14: 92.29242441 | G14: 7.97 | H14: 7.3 | I14: 43 | J14: 6.05 | K14: 20 | L14: 54 | M14: 990 | N14: 230 | O14: 2700 | P14: gröngrumligt | Q14: 2012 | R14: 4
A15: 3 | B15: 1 Sege å, vid Brännemölla, uppströms Svedala AR | C15: 2012-06-19 | D15: 17.5 | E15: 7.9 | F15: 82.72710928 | G15: 7.9 | H15: 32 | I15: 41.2 | J15: 7 | K15: 17 | L15: 130 | M15: 180 | N15: <10 | O15: 2800 | P15: grumligt | Q15: 2012 | R15: 6
A16: 3 | B16: 1 Sege å, vid Brännemölla, uppströms Svedala AR | C16: 2012-08-20 | D16: 21.1 | E16: 6.6 | F16: 74.00789695 | G16: 7.82 | H16: 23 | I16: 38.2 | J16: 7.6 | K16: 26 | L16: 130 | M16: 530 | N16: <10 | O16: 2300 | P16: grumligt | Q16: 2012 | R16: 8
A17: 3 | B17: 1 Sege å, vid Brännemölla, uppströms Svedala AR | C17: 2012-10-10 | D17: 8.5 | E17: 10.2 | F17: 87.438387 | G17: 7.87 | H17: 21 | I17: 44.4 | J17: 6.9 | K17: 17 | L17: 110 | M17: 820 | N17: <10 | O17: 2700 | P17: gröngrumligt | Q17: 2012 | R17: 10
A18: 3 | B18: 1 Sege å, vid Brännemölla, uppströms Svedala AR | C18: 2012-12-10 | D18: 0.7 | E18: 13.5 | F18: 94.08180772 | G18: 7.84 | H18: 13 | I18: 43.2 | J18: 6.2 | K18: 20 | L18: 73 | M18: 550 | N18: 320 | O18: 2800 | P18: isfritt | Q18: 2012 | R18: 12
A19: 3 | B19: 1 Sege å, vid Brännemölla, uppströms Svedala AR | C19: 2013-02-18 | D19: 1.3 | E19: 12.2 | F19: 86.4803983 | G19: 7.6 | H19: 7.5 | I19: 42.2 | J19: 2.6 | K19: 17 | L19: 36 | M19: 2400 | N19: 310 | O19: 3800 | P19: grumligt | Q19: 2013 | R19: 2
A20: 3 | B20: 1 Sege å, vid Brännemölla, uppströms Svedala AR | C20: 2013-04-15 | D20: 8.8 | E20: 13.4 | F20: 115.7170494 | G20: 8 | H20: 8.8 | I20: 43 | J20: 5.7 | K20: 17 | L20: 44 | M20: 1000 | N20: 450 | O20: 2800 | Q20: 2013 | R20: 4
A21: 3 | B21: 1 Sege å, vid Brännemölla, uppströms Svedala AR | C21: 2013-06-17 | D21: 19.2 | E21: 10.1 | F21: 109.3269599 | G21: 7.8 | H21: 34 | I21: 40.6 | J21: 8.33 | K21: 22 | L21: 130 | M21: 140 | N21: <10 | O21: 2600 | P21: gröngrumligt | Q21: 2013 | R21: 6
A22: 3 | B22: 1 Sege å, vid Brännemölla, uppströms Svedala AR | C22: 2013-08-20 | D22: 16.4 | E22: 7.6 | F22: 77.83686248 | G22: 7.5 | H22: 19 | I22: 36.8 | J22: 8.4 | K22: 17 | L22: 150 | M22: 280 | N22: 17 | O22: 2900 | P22: gröngrumligt | Q22: 2013 | R22: 8
A23: 3 | B23: 1 Sege å, vid Brännemölla, uppströms Svedala AR | C23: 2013-10-14 | D23: 12.1 | E23: 7.5 | F23: 70.00287385 | G23: 7.49 | H23: 22 | I23: 40.4 | J23: 9 | K23: 21 | L23: 210 | M23: 380 | N23: <10 | O23: 4400 | P23: gröngrumligt | Q23: 2013 | R23: 10
A24: 3 | B24: 1 Sege å, vid Brännemölla, uppströms Svedala AR | C24: 2013-12-12 | D24: 4.7 | E24: 12.4 | F24: 96.46611716 | G24: 7.58 | H24: 25 | I24: 52.6 | J24: 4.2 | K24: 20 | L24: 96 | M24: 7800 | N24: 110 | O24: 8000 | P24: gröngrumligt | Q24: 2013 | R24: 12
A25: 3 | B25: 1 Sege å, vid Brännemölla, uppströms Svedala AR | C25: 2014-02-18 | D25: 2.9 | E25: 12.2 | F25: 90.41454437 | G25: 7.83 | H25: 20 | I25: 42.1 | J25: 4.9 | K25: 15 | L25: 89 | M25: 2400 | N25: 420 | O25: 4200 | P25: Högflöde | Q25: 2014 | R25: 2
A26: 3 | B26: 1 Sege å, vid Brännemölla, uppströms Svedala AR | C26: 2014-04-14 | D26: 8.7 | E26: 11 | F26: 94.75975934 | G26: 8.15 | H26: 18 | I26: 42.9 | J26: 7.2 | K26: 20 | L26: 62 | M26: 1300 | N26: <10 | O26: 3000 | P26: Måttligt flöde | Q26: 2014 | R26: 4
A27: 3 | B27: 1 Sege å, vid Brännemölla, uppströms Svedala AR | C27: 2014-06-11 | D27: 18.1 | E27: 4.7 | F27: 49.80449554 | G27: 7.63 | H27: 19 | I27: 41.7 | J27: 7.5 | K27: 17 | L27: 23 | M27: 660 | N27: 220 | O27: 3300 | P27: Grumligt | Q27: 2014 | R27: 6
A28: 3 | B28: 1 Sege å, vid Brännemölla, uppströms Svedala AR | C28: 2014-08-18 | D28: 15.1 | E28: 7.3 | F28: 72.76847581 | G28: 7.53 | H28: 17 | I28: 40.4 | J28: 7.7 | K28: 22 | L28: 160 | M28: 420 | N28: 47 | O28: 3000 | P28: Gröngrumligt | Q28: 2014 | R28: 8
A29: 3 | B29: 1 Sege å, vid Brännemölla, uppströms Svedala AR | C29: 2014-10-20 | D29: 13 | E29: 6.3 | F29: 60.00362747 | G29: 7.13 | H29: 184 | I29: 41.9 | J29: 4.1 | K29: 21 | L29: 46 | M29: 6900 | N29: 48 | O29: 8100 | P29: Högflöde, grumligt | Q29: 2014 | R29: 10
A30: 3 | B30: 1 Sege å, vid Brännemölla, uppströms Svedala AR | C30: 2014-12-10 | D30: 4.1 | E30: 10.9 | F30: 83.45130802 | G30: 7.62 | H30: 520 | I30: 40.2 | J30: 6.3 | K30: 25 | L30: 440 | M30: 1900 | N30: 410 | O30: 4200 | P30: Mkt lergumligt | Q30: 2014 | R30: 12
A31: 3 | B31: 1 Sege å, vid Brännemölla, uppströms Svedala AR | C31: 2015-02-10 | D31: 2.3 | E31: 12.7 | F31: 92.57661157 | G31: 7.79 | H31: 25 | I31: 41 | J31: 5.8 | K31: 18 | L31: 71 | M31: 1700 | N31: 480 | O31: 3900 | P31: grumligt | Q31: 2015 | R31: 2
A32: 3 | B32: 1 Sege å, vid Brännemölla, uppströms Svedala AR | C32: 2015-04-13 | D32: 9.6 | E32: 11.5 | F32: 101.2511512 | G32: 8.07 | H32: 15 | I32: 42.5 | J32: 5.8 | K32: 21 | L32: 66 | M32: 1700 | N32: <10 | O32: 3300 | P32: grumligt | Q32: 2015 | R32: 4
A33: 3 | B33: 1 Sege å, vid Brännemölla, uppströms Svedala AR | C33: 2015-06-15 | D33: 16.1 | E33: 5.7 | F33: 58.01873653 | G33: 7.54 | H33: 17 | I33: 44.5 | J33: 8.6 | K33: 21 | L33: 160 | M33: 450 | N33: 220 | O33: 3300 | P33: gröngrumligt | Q33: 2015 | R33: 6
A34: 3 | B34: 1 Sege å, vid Brännemölla, uppströms Svedala AR | C34: 2015-08-18 | D34: 17.8 | E34: 5.2 | F34: 54.77836004 | G34: 7.58 | H34: 34 | I34: 40.7 | J34: 8.1 | K34: 28 | L34: 240 | M34: 410 | N34: <10 | O34: 3700 | P34: grumligt | Q34: 2015 | R34: 8
A35: 3 | B35: 1 Sege å, vid Brännemölla, uppströms Svedala AR | C35: 2015-10-19 | D35: 9.5 | E35: 8.9 | F35: 78.17156276 | G35: 7.65 | H35: 25 | I35: 41.9 | J35: 6.2 | K35: 19 | L35: 120 | M35: 430 | N35: 19 | O35: 2900 | P35: grumligt | Q35: 2015 | R35: 10
A36: 3 | B36: 1 Sege å, vid Brännemölla, uppströms Svedala AR | C36: 2015-12-09 | D36: 6 | E36: 11 | F36: 88.53709861 | G36: 7.8 | H36: 25 | I36: 41.9 | J36: 5.4 | K36: 20 | L36: 110 | M36: 2200 | N36: 22 | O36: 4000 | P36: grumligt | Q36: 2015 | R36: 12
A37: 3 | B37: 1 Sege å, vid Brännemölla, uppströms Svedala AR | C37: 2016-02-23 | D37: 3.8 | E37: 12.3 | F37: 93.41337215 | G37: 7.77 | H37: 20 | I37: 41.6 | J37: 4.5 | K37: 17 | L37: 70 | M37: 2700 | N37: 170 | O37: 3800 | P37: grumligt | Q37: 2016 | R37: 2
A38: 3 | B38: 1 Sege å, vid Brännemölla, uppströms Svedala AR | C38: 2016-04-19 | D38: 8.7 | E38: 10.8 | F38: 93.03685462 | G38: 7.92 | H38: 21 | I38: 46.3 | J38: 6.6 | K38: 18 | L38: 82 | M38: 1200 | N38: <10 | O38: 3000 | P38: grumligt | Q38: 2016 | R38: 4
A39: 3 | B39: 1 Sege å, vid Brännemölla, uppströms Svedala AR | C39: 2016-06-15 | D39: 17.3 | E39: 8 | F39: 83.4404001 | G39: 7.75 | H39: 32 | I39: 41.8 | J39: 7.2 | K39: 20 | L39: 150 | M39: 500 | N39: <10 | O39: 3300 | P39: grumligt | Q39: 2016 | R39: 6
A40: 3 | B40: 1 Sege å, vid Brännemölla, uppströms Svedala AR | C40: 2016-08-16 | D40: 15.6 | E40: 6.6 | F40: 66.48578727 | G40: 7.71 | H40: 26 | I40: 38.5 | J40: 7 | K40: 21 | L40: 120 | M40: 410 | N40: <10 | O40: 2600 | P40: grumligt | Q40: 2016 | R40: 8
A41: 3 | B41: 1 Sege å, vid Brännemölla, uppströms Svedala AR | C41: 2016-10-17 | D41: 8.7 | E41: 10.1 | F41: 87.00668812 | G41: 7.72 | H41: 24 | I41: 40.9 | J41: 5 | K41: 19 | L41: 90 | M41: 560 | N41: 55 | O41: 3100 | P41: grumligt | Q41: 2016 | R41: 10
A42: 3 | B42: 1 Sege å, vid Brännemölla, uppströms Svedala AR | C42: 2016-12-15 | D42: 2.1 | E42: 12.6 | F42: 91.33921409 | G42: 7.67 | H42: 15 | I42: 45.9 | J42: 5.2 | K42: 17 | L42: 50 | M42: 2600 | N42: 71 | O42: 4100 | P42: grumligt | Q42: 2016 | R42: 12
A43: 3 | B43: 1 Sege å, vid Brännemölla, uppströms Svedala AR | C43: 2017-02-21 | D43: 4.6 | E43: 12 | F43: 93.10694695 | G43: 7.66 | H43: 15 | I43: 52.9 | J43: 3.3 | K43: 16 | L43: 54 | M43: 4500 | N43: 230 | O43: 5800 | P43: grumligt | Q43: 2017 | R43: 2
A44: 3 | B44: 1 Sege å, vid Brännemölla, uppströms Svedala AR | C44: 2017-04-18 | D44: 7 | E44: 12 | F44: 99.08970254 | G44: 8.12 | H44: 20 | I44: 44.7 | J44: 9.1 | K44: 20 | L44: 68 | M44: 1800 | N44: <10 | O44: 3800 | P44: grumligt | Q44: 2017 | R44: 4
A45: 3 | B45: 1 Sege å, vid Brännemölla, uppströms Svedala AR | C45: 2017-06-21 | D45: 18.5 | E45: 6.3 | F45: 67.28222142 | G45: 7.81 | H45: 28 | I45: 40.7 | J45: 7.6 | K45: 23 | L45: 140 | M45: 270 | N45: 32 | O45: 2800 | P45: grumligt | Q45: 2017 | R45: 6
A46: 3 | B46: 1 Sege å, vid Brännemölla, uppströms Svedala AR | C46: 2017-08-22 | D46: 17.5 | E46: 7.4 | F46: 77.49121629 | G46: 7.75 | H46: 19 | I46: 40.4 | J46: 6.05 | K46: 24 | L46: 100 | M46: 370 | N46: <10 | O46: 2900 | Q46: 2017 | R46: 8
A47: 3 | B47: 1 Sege å, vid Brännemölla, uppströms Svedala AR | C47: 2017-10-17 | D47: 12.5 | E47: 9.6 | F47: 90.41731969 | G47: 7.81 | H47: 22 | I47: 41 | J47: 7.1 | K47: 23 | L47: 70 | M47: 760 | N47: <10 | O47: 3100 | P47: grumligt | Q47: 2017 | R47: 10
A48: 3 | B48: 1 Sege å, vid Brännemölla, uppströms Svedala AR | C48: 2017-12-19 | D48: 2 | E48: 12.7 | F48: 91.80827211 | G48: 7.78 | H48: 17 | I48: 42.4 | J48: 5.2 | K48: 21 | L48: 72 | M48: 1600 | N48: 160 | O48: 3200 | P48: högflöde | Q48: 2017 | R48: 12
A49: 3 | B49: 1 Sege å, vid Brännemölla, uppströms Svedala AR | C49: 2018-02-19 | D49: 2.5 | E49: 13.3 | F49: 97.48806432 | G49: 7.84 | H49: 12 | I49: 44.1 | J49: 5.1 | K49: 18 | L49: 53 | M49: 1700 | N49: 310 | O49: 3100 | Q49: 2018 | R49: 2
A50: 3 | B50: 1 Sege å, vid Brännemölla, uppströms Svedala AR | C50: 2018-04-16 | D50: 10.6 | E50: 11.7 | F50: 105.4867193 | G50: 7.83 | H50: 19 | I50: 43.1 | J50: 6.7 | K50: 17 | L50: 54 | M50: 1400 | N50: 98 | O50: 3000 | P50: grumligt | Q50: 2018 | R50: 4
A51: 3 | B51: 1 Sege å, vid Brännemölla, uppströms Svedala AR | C51: 2018-06-20 | D51: 18.1 | E51: 9.1 | F51: 96.42998073 | G51: 7.83 | H51: 17 | I51: 41.2 | J51: 5.5 | K51: 19 | L51: 130 | M51: 1100 | N51: <10 | O51: 2800 | P51: grumligt | Q51: 2018 | R51: 6
A52: 3 | B52: 1 Sege å, vid Brännemölla, uppströms Svedala AR | C52: 2018-08-17 | D52: 19.9 | E52: 6.8 | F52: 74.58534558 | G52: 7.7 | H52: 14 | I52: 36.3 | J52: 7.8 | K52: 24 | L52: 120 | M52: 940 | N52: 27 | O52: 3000 | Q52: 2018 | R52: 8
A53: 3 | B53: 1 Sege å, vid Brännemölla, uppströms Svedala AR | C53: 2018-10-16 | D53: 10.5 | E53: 6.1 | F53: 54.86822369 | G53: 7.68 | H53: 12 | I53: 46.3 | J53: 6.2 | K53: 20 | L53: 95 | M53: 1500 | N53: <10 | O53: 3100 | Q53: 2018 | R53: 10
A54: 3 | B54: 1 Sege å, vid Brännemölla, uppströms Svedala AR | C54: 2018-12-11 | D54: 5.4 | E54: 10.4 | F54: 82.41208314 | G54: 7.51 | H54: 3.2 | I54: 80.6 | J54: 2.1 | K54: 15 | L54: 51 | M54: 19000 | N54: 140 | O54: 19000 | P54: klart vatten | Q54: 2018 | R54: 12
A55: 3 | B55: 1 Sege å, vid Brännemölla, uppströms Svedala AR | C55: 2019-02-20 | D55: 4.8 | E55: 11.9 | F55: 93 | G55: 7.73 | H55: 15 | I55: 47.5 | J55: 5.3 | K55: 23 | L55: 64 | M55: 4600 | N55: 79 | O55: 6100 | Q55: 2019 | R55: 2
A56: 3 | B56: 1 Sege å, vid Brännemölla, uppströms Svedala AR | C56: 2019-04-16 | D56: 7.3 | E56: 12.2 | F56: 102 | G56: 8.18 | H56: 19 | I56: 44.8 | J56: 7.7 | K56: 21 | L56: 20 | M56: 2300 | N56: <10 | O56: 3100 | Q56: 2019 | R56: 4
A57: 3 | B57: 1 Sege å, vid Brännemölla, uppströms Svedala AR | C57: 2019-06-18 | D57: 18.2 | E57: 6 | F57: 64 | G57: 7.71 | H57: 16 | I57: 40.5 | J57: 9 | K57: 20 | L57: 110 | M57: 700 | N57: 28 | O57: 3100 | Q57: 2019 | R57: 6
A58: 3 | B58: 1 Sege å, vid Brännemölla, uppströms Svedala AR | C58: 2019-08-20 | D58: 16.7 | E58: 5.7 | F58: 59 | G58: 7.4 | H58: 13 | I58: 40.5 | J58: 7.7 | K58: 28 | L58: 120 | M58: 520 | N58: 12 | O58: 3200 | Q58: 2019 | R58: 8
A59: 3 | B59: 1 Sege å, vid Brännemölla, uppströms Svedala AR | C59: 2019-10-16 | D59: 11.6 | E59: 6.6 | F59: 61 | G59: 7.51 | H59: 24 | I59: 49.5 | J59: 7.1 | K59: 24 | L59: 110 | M59: 2000 | N59: <10 | O59: 5000 | Q59: 2019 | R59: 10
A60: 3 | B60: 1 Sege å, vid Brännemölla, uppströms Svedala AR | C60: 2019-12-11 | D60: 4.7 | E60: 11 | F60: 86 | G60: 7.68 | H60: 236 | I60: 43.3 | J60: 8.3 | K60: 24 | L60: 310 | M60: 4100 | N60: 170 | O60: 6800 | P60: grumligt | Q60: 2019 | R60: 12
A61: 3 | B61: 1 Sege å, vid Brännemölla, uppströms Svedala AR | C61: 2020-02-12 | D61: 4.1 | E61: 12 | F61: 92 | G61: 7.82 | H61: 31 | I61: 45.9 | J61: 6.8 | K61: 23 | L61: 110 | M61: 2900 | N61: 270 | O61: 4900 | P61: grumligt | Q61: 2020 | R61: 2
A62: 3 | B62: 1 Sege å, vid Brännemölla, uppströms Svedala AR | C62: 2020-04-20 | D62: 9.9 | E62: 11 | F62: 98 | G62: 7.87 | H62: 21 | I62: 48 | J62: 8.3 | K62: 24 | L62: 98 | M62: 1200 | N62: <10 | O62: 3000 | Q62: 2020 | R62: 4
A63: 3 | B63: 1 Sege å, vid Brännemölla, uppströms Svedala AR | C63: 2020-06-15 | D63: 17.3 | E63: 6.8 | F63: 71 | G63: 7.72 | H63: 29 | I63: 45 | J63: 8.4 | K63: 29 | L63: 140 | M63: 640 | N63: <10 | O63: 3300 | P63: grumligt | Q63: 2020 | R63: 6
A64: 3 | B64: 1 Sege å, vid Brännemölla, uppströms Svedala AR | C64: 2020-08-18 | D64: 20.4 | E64: 3.7 | F64: 41 | G64: 7.34 | H64: 14 | I64: 42.6 | J64: 6.9 | K64: 26 | L64: 130 | M64: 720 | N64: 120 | O64: 3600 | P64: grumligt | Q64: 2020 | R64: 8
A65: 3 | B65: 1 Sege å, vid Brännemölla, uppströms Svedala AR | C65: 2020-10-19 | D65: 7.2 | E65: 9.4 | F65: 78 | G65: 7.74 | H65: 16 | I65: 44.9 | J65: 5.2 | K65: 23 | L65: 98 | M65: 820 | N65: <10 | O65: 3300 | P65: grumligt | Q65: 2020 | R65: 10
A66: 3 | B66: 1 Sege å, vid Brännemölla, uppströms Svedala AR | C66: 2020-12-14 | D66: 4.4 | E66: 10.3 | F66: 79 | G66: 7.66 | H66: 13 | I66: 54.6 | J66: 5.5 | K66: 22 | L66: 94 | M66: 1700 | N66: 200 | O66: 3700 | P66: grumligt | Q66: 2020 | R66: 12
A67: 5 | B67: 2 Sege å, söder Krågeholm, nedströms Svedala AR | C67: 2011-02-22 | D67: 1.3 | E67: 12 | F67: 85.06268686 | G67: 7.56 | H67: 13 | I67: 51.3 | J67: 6.5 | K67: 18 | L67: 74 | M67: 2400 | N67: 470 | O67: 4100 | P67: isfritt | Q67: 2011 | R67: 2
A68: 5 | B68: 2 Sege å, söder Krågeholm, nedströms Svedala AR | C68: 2011-04-11 | D68: 10.6 | E68: 11.6 | F68: 104.5851234 | G68: 7.97 | H68: 15 | I68: 61.4 | J68: 9.7 | K68: 16 | L68: 110 | M68: 1700 | N68: 69 | O68: 3700 | P68: grumligt | Q68: 2011 | R68: 4
A69: 5 | B69: 2 Sege å, söder Krågeholm, nedströms Svedala AR | C69: 2011-06-21 | D69: 16.7 | E69: 9 | F69: 92.74115254 | G69: 7.79 | H69: 26 | I69: 49.2 | J69: 7.9 | K69: 25 | L69: 190 | M69: 1000 | N69: <10 | O69: 3500 | P69: lågflöde | Q69: 2011 | R69: 6
A70: 5 | B70: 2 Sege å, söder Krågeholm, nedströms Svedala AR | C70: 2011-08-16 | D70: 16.1 | E70: 6.1 | F70: 62.09022681 | G70: 7.36 | H70: 34 | I70: 48.6 | J70: 4 | K70: 22 | L70: 140 | M70: 2300 | N70: <10 | O70: 4200 | P70: högflöde, grumligt | Q70: 2011 | R70: 8
A71: 5 | B71: 2 Sege å, söder Krågeholm, nedströms Svedala AR | C71: 2011-10-11 | D71: 11.5 | E71: 8 | F71: 73.65264198 | G71: 7.47 | H71: 44 | I71: 54.2 | J71: 6.4 | K71: 22 | L71: 160 | M71: 2600 | N71: 160 | O71: 4400 | P71: grumligt | Q71: =YEAR(C71) -> 2011 | R71: =MONTH(C71) -> 10
A72: 5 | B72: 2 Sege å, söder Krågeholm, nedströms Svedala AR | C72: 2011-12-19 | D72: 2.6 | E72: 11.4 | F72: 83.7919997 | G72: 7.7 | H72: 39 | I72: 52.8 | J72: 5.1 | K72: 20 | L72: 95 | M72: 2800 | N72: 540 | O72: 5100 | P72: grumligt | Q72: 2011 | R72: 12
A73: 5 | B73: 2 Sege å, söder Krågeholm, nedströms Svedala AR | C73: 2012-02-13 | D73: 1.5 | E73: 12.5 | F73: 89.10721645 | G73: 7.6 | H73: 14 | I73: 67.5 | J73: 7.2 | K73: 17 | L73: 66 | M73: 2500 | N73: 550 | O73: 4000 | P73: is i kanten | Q73: 2012 | R73: 2
A74: 5 | B74: 2 Sege å, söder Krågeholm, nedströms Svedala AR | C74: 2012-04-16 | D74: 8.3 | E74: 10.7 | F74: 91.27408547 | G74: 7.88 | H74: 8.5 | I74: 51.9 | J74: 5.9 | K74: 17 | L74: 57 | M74: 1600 | N74: 200 | O74: 3200 | P74: grumligt | Q74: 2012 | R74: 4
A75: 5 | B75: 2 Sege å, söder Krågeholm, nedströms Svedala AR | C75: 2012-06-19 | D75: 15.6 | E75: 8.4 | F75: 84.61827471 | G75: 7.9 | H75: 15 | I75: 73.5 | J75: 5 | K75: 12 | L75: 110 | M75: 1200 | N75: 78 | O75: 2800 | P75: grumligt | Q75: 2012 | R75: 6
A76: 5 | B76: 2 Sege å, söder Krågeholm, nedströms Svedala AR | C76: 2012-08-20 | D76: 18.7 | E76: 6.9 | F76: 73.97588664 | G76: 7.83 | H76: 15 | I76: 69.8 | J76: 7.6 | K76: 18 | L76: 130 | M76: 1700 | N76: 160 | O76: 3300 | P76: grumligt | Q76: 2012 | R76: 8
A77: 5 | B77: 2 Sege å, söder Krågeholm, nedströms Svedala AR | C77: 2012-10-10 | D77: 10 | E77: 9.4 | F77: 83.55662353 | G77: 7.79 | H77: 5.3 | I77: 323 | J77: 2.8 | K77: 6.1 | L77: 61 | M77: 1300 | N77: 65 | O77: 2100 | P77: ganska klart vatten | Q77: 2012 | R77: 10
A78: 5 | B78: 2 Sege å, söder Krågeholm, nedströms Svedala AR | C78: 2012-12-10 | D78: 1.6 | E78: 12.7 | F78: 90.78746693 | G78: 7.85 | H78: 16 | I78: 63.6 | J78: 6.5 | K78: 17 | L78: 90 | M78: 1500 | N78: 300 | O78: 3200 | P78: isfritt | Q78: 2012 | R78: 12
A79: 5 | B79: 2 Sege å, söder Krågeholm, nedströms Svedala AR | C79: 2013-02-18 | D79: 2.1 | E79: 12.4 | F79: 89.8893853 | G79: 7.7 | H79: 8.7 | I79: 59.4 | J79: 2.6 | K79: 16 | L79: 46 | M79: 2700 | N79: 260 | O79: 4000 | P79: grumligt | Q79: 2013 | R79: 2
A80: 5 | B80: 2 Sege å, söder Krågeholm, nedströms Svedala AR | C80: 2013-04-15 | D80: 10.3 | E80: 13 | F80: 116.3820361 | G80: 8 | H80: 6.5 | I80: 54.1 | J80: 5.4 | K80: 14 | L80: 50 | M80: 1700 | N80: 270 | O80: 3300 | Q80: 2013 | R80: 4
A81: 5 | B81: 2 Sege å, söder Krågeholm, nedströms Svedala AR | C81: 2013-06-17 | D81: 17.3 | E81: 9 | F81: 93.87045011 | G81: 7.7 | H81: 14 | I81: 59 | J81: 7 | K81: 14 | L81: 110 | M81: 1400 | N81: 190 | O81: 3200 | P81: grumligt | Q81: 2013 | R81: 6
A82: 5 | B82: 2 Sege å, söder Krågeholm, nedströms Svedala AR | C82: 2013-08-20 | D82: 16.6 | E82: 7 | F82: 71.98535722 | G82: 7.5 | H82: 8.6 | I82: 57.2 | J82: 7 | K82: 11 | L82: 160 | M82: 1400 | N82: 48 | O82: 2800 | P82: ganska klart | Q82: 2013 | R82: 8
A83: 5 | B83: 2 Sege å, söder Krågeholm, nedströms Svedala AR | C83: 2013-10-14 | D83: 12.4 | E83: 6.8 | F83: 63.90152753 | G83: 7.41 | H83: 8.5 | I83: 39.2 | J83: 7 | K83: 7.9 | L83: 110 | M83: 1500 | N83: 180 | O83: 2800 | Q83: 2013 | R83: 10
A84: 5 | B84: 2 Sege å, söder Krågeholm, nedströms Svedala AR | C84: 2013-12-12 | D84: 4.9 | E84: 10.8 | F84: 84.46462072 | G84: 7.62 | H84: 18 | I84: 63.7 | J84: 3.3 | K84: 13 | L84: 97 | M84: 6900 | N84: 62 | O84: 8500 | P84: grumligt | Q84: 2013 | R84: 12
A85: 5 | B85: 2 Sege å, söder Krågeholm, nedströms Svedala AR | C85: 2014-02-18 | D85: 3.1 | E85: 11.9 | F85: 88.6751253 | G85: 7.77 | H85: 21 | I85: 48.9 | J85: 5 | K85: 12 | L85: 95 | M85: 3300 | N85: 350 | O85: 4500 | P85: Högflöde | Q85: 2014 | R85: 2
A86: 5 | B86: 2 Sege å, söder Krågeholm, nedströms Svedala AR | C86: 2014-04-14 | D86: 9 | E86: 10.2 | F86: 88.51330941 | G86: 7.84 | H86: 13 | I86: 46.5 | J86: 6.3 | K86: 14 | L86: 81 | M86: 1300 | N86: 110 | O86: 2700 | P86: Måttligt flöde | Q86: 2014 | R86: 4
A87: 5 | B87: 2 Sege å, söder Krågeholm, nedströms Svedala AR | C87: 2014-06-11 | D87: 17.1 | E87: 6.6 | F87: 68.5625688 | G87: 7.61 | H87: 12 | I87: 63.7 | J87: 7 | K87: 13 | L87: 200 | M87: 1800 | N87: 140 | O87: 3700 | P87: Grumligt | Q87: 2014 | R87: 6
A88: 5 | B88: 2 Sege å, söder Krågeholm, nedströms Svedala AR | C88: 2014-08-18 | D88: 15.8 | E88: 5.9 | F88: 59.68250045 | G88: 7.54 | H88: 10 | I88: 38.7 | J88: 5 | K88: 8.6 | L88: 110 | M88: 1300 | N88: 56 | O88: 1800 | P88: Grumligt | Q88: 2014 | R88: 8
A89: 5 | B89: 2 Sege å, söder Krågeholm, nedströms Svedala AR | C89: 2014-10-20 | D89: 13.2 | E89: 7.4 | F89: 70.79385131 | G89: 7.28 | H89: 380 | I89: 33.2 | J89: 3.9 | K89: 17 | L89: 580 | M89: 3900 | N89: 73 | O89: 5400 | P89: Högflöde, grumligt | Q89: 2014 | R89: 10
A90: 5 | B90: 2 Sege å, söder Krågeholm, nedströms Svedala AR | C90: 2014-12-10 | D90: 5.5 | E90: 10.2 | F90: 81.03869065 | G90: 7.61 | H90: 30 | I90: 54.6 | J90: 5.3 | K90: 17 | L90: 84 | M90: 2200 | N90: 340 | O90: 3700 | P90: Grumligt | Q90: 2014 | R90: 12
A91: 5 | B91: 2 Sege å, söder Krågeholm, nedströms Svedala AR | C91: 2015-02-10 | D91: 2.8 | E91: 12.3 | F91: 90.90591608 | G91: 7.75 | H91: 26 | I91: 48.2 | J91: 5.3 | K91: 14 | L91: 58 | M91: 2400 | N91: 360 | O91: 4100 | P91: grumligt | Q91: 2015 | R91: 2
A92: 5 | B92: 2 Sege å, söder Krågeholm, nedströms Svedala AR | C92: 2015-04-13 | D92: 9.5 | E92: 11.3 | F92: 99.25153475 | G92: 7.92 | H92: 15 | I92: 49.5 | J92: 8 | K92: 14 | L92: 85 | M92: 2400 | N92: 460 | O92: 3900 | P92: grumligt | Q92: 2015 | R92: 4
A93: 5 | B93: 2 Sege å, söder Krågeholm, nedströms Svedala AR | C93: 2015-06-15 | D93: 14.9 | E93: 7.6 | F93: 75.43841285 | G93: 7.63 | H93: 10 | I93: 59.6 | J93: 6.5 | K93: 14 | L93: 120 | M93: 1700 | N93: 210 | O93: 3300 | P93: grumligt | Q93: 2015 | R93: 6
A94: 5 | B94: 2 Sege å, söder Krågeholm, nedströms Svedala AR | C94: 2015-08-18 | D94: 17 | E94: 5.8 | F94: 60.13068943 | G94: 7.68 | H94: 15 | I94: 62.7 | J94: 7.5 | K94: 17 | L94: 200 | M94: 1400 | N94: 31 | O94: 3100 | P94: grumligt | Q94: 2015 | R94: 8
A95: 5 | B95: 2 Sege å, söder Krågeholm, nedströms Svedala AR | C95: 2015-10-19 | D95: 9.8 | E95: 8.5 | F95: 75.19708387 | G95: 7.61 | H95: 12 | I95: 54.8 | J95: 5.5 | K95: 13 | L95: 150 | M95: 1300 | N95: 190 | O95: 2900 | P95: grumligt | Q95: 2015 | R95: 10
A96: 5 | B96: 2 Sege å, söder Krågeholm, nedströms Svedala AR | C96: 2015-12-09 | D96: 6.7 | E96: 10.6 | F96: 86.86444315 | G96: 7.77 | H96: 24 | I96: 48.5 | J96: 5.2 | K96: 18 | L96: 120 | M96: 3000 | N96: 44 | O96: 4500 | P96: grumligt | Q96: 2015 | R96: 12
A97: 5 | B97: 2 Sege å, söder Krågeholm, nedströms Svedala AR | C97: 2016-02-23 | D97: 4.4 | E97: 11.7 | F97: 90.29747074 | G97: 7.7 | H97: 42 | I97: 48.2 | J97: 4.6 | K97: 13 | L97: 100 | M97: 3900 | N97: 210 | O97: 4800 | P97: grumligt | Q97: 2016 | R97: 2
A98: 5 | B98: 2 Sege å, söder Krågeholm, nedströms Svedala AR | C98: 2016-04-19 | D98: 9.5 | E98: 11 | F98: 96.61653825 | G98: 7.91 | H98: 12 | I98: 62 | J98: 5.8 | K98: 13 | L98: 100 | M98: 2700 | N98: 130 | O98: 3800 | P98: grumligt | Q98: 2016 | R98: 4
A99: 5 | B99: 2 Sege å, söder Krågeholm, nedströms Svedala AR | C99: 2016-06-15 | D99: 17.3 | E99: 6.8 | F99: 70.92434008 | G99: 7.63 | H99: 12 | I99: 60.5 | J99: 7 | K99: 15 | L99: 130 | M99: 1300 | N99: 770 | O99: 3600 | P99: grumligt | Q99: 2016 | R99: 6
A100: 5 | B100: 2 Sege å, söder Krågeholm, nedströms Svedala AR | C100: 2016-08-16 | D100: 16.1 | E100: 9.7 | F100: 98.73363936 | G100: 7.6 | H100: 12 | I100: 56.4 | J100: 6.3 | K100: 15 | L100: 140 | M100: 830 | N100: <10 | O100: 2300 | P100: grumligt | Q100: 2016 | R100: 8
A101: 5 | B101: 2 Sege å, söder Krågeholm, nedströms Svedala AR | C101: 2016-10-17 | D101: 10.1 | E101: 8.1 | F101: 72.17223473 | G101: 7.66 | H101: 11 | I101: 52.4 | J101: 4.5 | K101: 10 | L101: 110 | M101: 1100 | N101: 140 | O101: 2700 | P101: grumligt | Q101: 2016 | R101: 10
A102: 5 | B102: 2 Sege å, söder Krågeholm, nedströms Svedala AR | C102: 2016-12-15 | D102: 3 | E102: 12.5 | F102: 92.89187993 | G102: 7.68 | H102: 19 | I102: 56.9 | J102: 4.6 | K102: 13 | L102: 71 | M102: 4100 | N102: 140 | O102: 5300 | P102: grumligt | Q102: 2016 | R102: 12
A103: 5 | B103: 2 Sege å, söder Krågeholm, nedströms Svedala AR | C103: 2017-02-21 | D103: 5.5 | E103: 11.7 | F103: 92.95614516 | G103: 7.78 | H103: 47 | I103: 64 | J103: 4.1 | K103: 11 | L103: 110 | M103: 6000 | N103: 200 | O103: 6800 | P103: grumligt | Q103: 2017 | R103: 2
A104: 5 | B104: 2 Sege å, söder Krågeholm, nedströms Svedala AR | C104: 2017-04-18 | D104: 7 | E104: 12.3 | F104: 101.5669451 | G104: 7.87 | H104: 19 | I104: 53.4 | J104: 7.6 | K104: 13 | L104: 59 | M104: 3200 | N104: 140 | O104: 5000 | P104: grumligt | Q104: 2017 | R104: 4
A105: 5 | B105: 2 Sege å, söder Krågeholm, nedströms Svedala AR | C105: 2017-06-21 | D105: 18.7 | E105: 6.4 | F105: 68.61531515 | G105: 7.79 | H105: 22 | I105: 53.7 | J105: 7.5 | K105: 16 | L105: 140 | M105: 840 | N105: 230 | O105: 2900 | P105: grumligt | Q105: 2017 | R105: 6
A106: 5 | B106: 2 Sege å, söder Krågeholm, nedströms Svedala AR | C106: 2017-08-22 | D106: 17.1 | E106: 7.8 | F106: 81.0284904 | G106: 7.7 | H106: 12 | I106: 55.5 | J106: 6.4 | K106: 16 | L106: 120 | M106: 920 | N106: 61 | O106: 2400 | Q106: 2017 | R106: 8
A107: 5 | B107: 2 Sege å, söder Krågeholm, nedströms Svedala AR | C107: 2017-10-17 | D107: 12.8 | E107: 9.8 | F107: 92.92384329 | G107: 7.72 | H107: 23 | I107: 50.6 | J107: 7 | K107: 20 | L107: 92 | M107: 1400 | N107: 14 | O107: 3400 | P107: grumligt | Q107: 2017 | R107: 10
A108: 5 | B108: 2 Sege å, söder Krågeholm, nedströms Svedala AR | C108: 2017-12-19 | D108: 2.9 | E108: 12.5 | F108: 92.63785284 | G108: 7.75 | H108: 20 | I108: 48.5 | J108: 4.9 | K108: 18 | L108: 74 | M108: 2400 | N108: 160 | O108: 3800 | P108: högflöde | Q108: 2017 | R108: 12
A109: 5 | B109: 2 Sege å, söder Krågeholm, nedströms Svedala AR | C109: 2018-02-19 | D109: 2.7 | E109: 12.8 | F109: 94.34163907 | G109: 7.81 | H109: 17 | I109: 51.6 | J109: 5.2 | K109: 16 | L109: 65 | M109: 2200 | N109: 350 | O109: 2900 | Q109: 2018 | R109: 2
A110: 5 | B110: 2 Sege å, söder Krågeholm, nedströms Svedala AR | C110: 2018-04-16 | D110: 10.2 | E110: 11.3 | F110: 100.9237628 | G110: 7.8 | H110: 22 | I110: 51.7 | J110: 7.4 | K110: 15 | L110: 66 | M110: 1900 | N110: 370 | O110: 3300 | P110: grumligt | Q110: 2018 | R110: 4
A111: 5 | B111: 2 Sege å, söder Krågeholm, nedströms Svedala AR | C111: 2018-06-20 | D111: 18.4 | E111: 8.1 | F111: 86.33777035 | G111: 7.73 | H111: 14 | I111: 64.2 | J111: 6.2 | K111: 14 | L111: 160 | M111: 1400 | N111: 370 | O111: 2900 | P111: grumligt | Q111: 2018 | R111: 6
A112: 5 | B112: 2 Sege å, söder Krågeholm, nedströms Svedala AR | C112: 2018-08-17 | D112: 17.5 | E112: 6.9 | F112: 72.2553233 | G112: 7.59 | H112: 6.2 | I112: 65.4 | J112: 6.8 | K112: 14 | L112: 120 | M112: 1300 | N112: 52 | O112: 2600 | Q112: 2018 | R112: 8
A113: 5 | B113: 2 Sege å, söder Krågeholm, nedströms Svedala AR | C113: 2018-10-16 | D113: 12.9 | E113: 6.6 | F113: 62.72116027 | G113: 7.7 | H113: 3.7 | I113: 73.3 | J113: 5.6 | K113: 13 | L113: 180 | M113: 2500 | N113: 51 | O113: 3400 | Q113: 2018 | R113: 10
A114: 5 | B114: 2 Sege å, söder Krågeholm, nedströms Svedala AR | C114: 2018-12-11 | D114: 6 | E114: 9.8 | F114: 78.87850603 | G114: 7.67 | H114: 11 | I114: 74.7 | J114: 6.6 | K114: 9.8 | L114: 60 | M114: 10000 | N114: 1900 | O114: 12000 | Q114: 2018 | R114: 12
A115: 5 | B115: 2 Sege å, söder Krågeholm, nedströms Svedala AR | C115: 2019-02-20 | D115: 5 | E115: 12 | F115: 94 | G115: 7.77 | H115: 15 | I115: 55 | J115: 5.8 | K115: 19 | L115: 65 | M115: 5800 | N115: 78 | O115: 7000 | Q115: 2019 | R115: 2
A116: 5 | B116: 2 Sege å, söder Krågeholm, nedströms Svedala AR | C116: 2019-04-16 | D116: 8.8 | E116: 12.1 | F116: 104 | G116: 8.01 | H116: 14 | I116: 55.1 | J116: 7 | K116: 17 | L116: 30 | M116: 2400 | N116: 75 | O116: 4100 | Q116: 2019 | R116: 4
A117: 5 | B117: 2 Sege å, söder Krågeholm, nedströms Svedala AR | C117: 2019-06-18 | D117: 17.2 | E117: 6.3 | F117: 66 | G117: 7.58 | H117: 8.2 | I117: 58 | J117: 7.3 | K117: 13 | L117: 120 | M117: 1300 | N117: 280 | O117: 2600 | Q117: 2019 | R117: 6
A118: 5 | B118: 2 Sege å, söder Krågeholm, nedströms Svedala AR | C118: 2019-08-20 | D118: 17.5 | E118: 5.7 | F118: 60 | G118: 7.54 | H118: 5.6 | I118: 56.9 | J118: 5.9 | K118: 12 | L118: 140 | M118: 1400 | N118: 43 | O118: 2300 | Q118: 2019 | R118: 8
